Workbook

Sheet INDICE
E1: ARGÉLIA
E2: Trocas comerciais com Portugal (PT) 2017-2021 Setores agrícola e agroalimentar, do mar e das florestas
C3: Fonte
D4: Estatísticas do Comércio Internacional | E4: Argélia - Síntese
D5: dados: 2020 provisórios; 2021 preliminares | E5: 1. Evolução da balança comercial
E6: 2. Posição de Argélia entre os parceiros comerciais de PT
C7: Data | D7: 2022-08-04T16:23:26.670 | E7: 3. Principais produtos transacionados (NC a 2 e 4 dígitos)
E8: 3A Principais produtos transacionados (sem mar nem florestas)
E9: 4. Evolução da balança comercial por produto
E10: 5. Trocas comerciais por produto (NC 2 dígitos)

Sheet Sintese
A1: Argélia - Síntese (2017-2021)
A3: • As trocas comerciais de bens transacionáveis (excluindo serviços) entre Portugal e Argélia representam um total de 231 milhões de € (M€) em exportações e 387 M€ em importações, na média do período 2017-2021, correspondendo a um saldo negativo da balança comercial de cerca de -155,9 M€.
A4: • No que respeita aos produtos dos setores agrícola e agroalimentar, mar e florestas, Portugal exportou para Argélia 65,9 M€ em média anual, no mesmo período (este país ocupa assim a 24ª posição em relação ao total dos países), enquanto as importações totalizaram 3,6 M€ (98ª posição), com um saldo positivo de 62,3 M€. Estes setores representam perto de 28,5% do total de exportações de bens transacionáveis e 0,9% das correspondentes importações.
A5: • Se nos referirmos apenas ao setor agrícola e agroalimentar, as exportações representam, em média, 14,2 M€ (35ª posição) e as importações 0,1 milhões (128ª posição), ou seja, Portugal tem um saldo positivo de 14,1 M€. Estes valores representam, respetivamente, cerca de 21,5% das exportações do setor agroflorestal e mar e 3,2% das importações.
A6: • As principais exportações agrícolas e agroalimentares (NC 4 dígitos) neste período são Outros produtos de tabaco (35%), Óleo de soja e suas frações (27%) e Produtos hortícolas congelados (16%). As importações agrícolas e agroalimentares mais relevantes referem-se a Gorduras e óleos, animais ou vegetais, processados de outras formas (86%), Outras preparações alimentícias (12%) e Algodão não cardado nem penteado (2%). Se considerarmos também os produtos do mar e da floresta, merecem particular destaque, em termos de exportações, Papel e cartão p/ escrita, etc. (57%), Pastas químicas de madeira, à soda ou ao sulfato (11%) e Outros produtos de tabaco (7%). Nas importações destes setores, destacam-se Cortiça natural em bruto (72%), Obras de cortiça natural (22%) e Gorduras e óleos, animais ou vegetais, processados de outras formas (3%).
A9: Saldo da Balança Comercial | B9: 2019 | C9: 2020 | D9: 2021 | E9: média 2017-2021 | H9: Posição entre os parceiros comerciais de Portugal (milhares de euros)
A10: Total de Bens Transacionáveis* | B10: -430795.982 | C10: -119810.964 | D10: -68027.029 | E10: -155947.4688 | H10: AA + M + F | I10: Posição | J10: média 2017-2021 | K10: % do total | L10: TVMA* 2017-2021 | M10: TVT* 2017-2021
A11: Agrícola e Agroalimentar (AA) | B11: 6967.798 | C11: 9967.875 | D11: 1943-01-05T18:50:24 | E11: 14090.7616 | H11: Exportações | I11: 24ª | J11: 65936.296 | K11: 0.005538619281 | L11: 0.04014825947 | M11: 0.2175203628
A12: Mar (M) | B12: -21.134 | C12: -30.57 | D12: -43.864 | E12: 43.2984 | H12: Importações | I12: 98ª | J12: 3622.7194 | K12: 0.0002651287168 | L12: 0.2925796177 | M12: 2.608166059
A13: Florestas (F) | B13: 32835.306 | C13: 33317.768 | D13: 2092-05-11T23:28:19.200 | E13: 48179.5166 | H13: AA
A14: AA + M + F | B14: 39781.97 | C14: 43255.073 | D14: 2135-04-05T21:34:33.600 | E14: 62313.5766 | H14: Exportações | I14: 35ª | J14: 14208.38 | K14: 0.002197837349 | L14: -0.03975164947 | M14: -0.1835720782
H15: Importações | I15: 128ª | J15: 117.6184 | K15: 1.265769965e-05 | L15: 0.8299013589 | M15: 19.51815935
A16: milhares de euros *exclui serviços | I16: *TVMA - Taxa de variação média anual; TVT - Taxa de variação total
A18: Evolução das trocas comerciais Portugal-Argélia em milhares de euros (2017-2021)
E27: Exportações | G27: Importações | I27: Saldo
A28: Principais produtos agrícolas e agroalimentares, do mar e da floresta transacionados (NC 2 dígitos)
A47: Principais produtos agrícolas e agroalimentares transacionados (NC 2 dígitos)
A81: Fonte: GPP a partir de dados INE/Comércio Internacional (2020 provisórios; 2021 preliminares) | L81: 2022-08-04T16:23:26.670

Sheet 1
A1: Evolução da balança comercial Portugal-Argélia 2017-2021 em milhares de euros
A3: Total de Bens Transacionáveis (BT)(1) | B3: 2017 | C3: 2018 | D3: 2019 | E3: 2020 | F3: 2021 | G3: média quinquénio | H3: var. 17/18 | I3: var. 18/19 | J3: var. 19/20 | K3: var. 20/21 | L3: TVMA* 2017-2021 | M3: TVT* 2017-2021
A4: Exportações | B4: 295477.3 | C4: 281473.058 | D4: 214045.165 | E4: 159925.727 | F4: 204156.703 | G4: 231015.5906 | H4: -0.04739532275 | I4: -0.2395536307 | J4: -0.2528412076 | K4: 0.2765719864 | L4: -0.08828336188 | M4: -0.3090612951
A5: Importações | B5: 313431.332 | C5: 424622.395 | D5: 644841.147 | E5: 279736.691 | F5: 272183.732 | G5: 386963.0594 | H5: 08:30:50.758 | I5: 0.5186225564 | J5: -0.5661928642 | K5: -0.02700024431 | L5: -0.0346608069 | M5: -0.1316001171
A6: Saldo (exp-imp) | B6: -17954.032 | C6: -143149.337 | D6: -430795.982 | E6: -119810.964 | F6: -68027.029 | G6: -155947.4688
A7: Cobertura (exp/imp) | B7: 0.9427178135 | C7: 0.6628785041 | D7: 0.3319347191 | E7: 0.5717009321 | F7: 0.7500694531 | G7: 0.5969964961
A8: Exp BT Argélia / Exp BT Mundo | B8: 0.00537055811 | C8: 0.004865567827 | D8: 0.00357320742 | E8: 0.002974953199 | F8: 0.003211044242 | G8: 0.003981548515 | L8: Exportações
A9: Imp BT Argélia / Imp BT Mundo | B9: 0.004497600628 | C9: 0.005628666985 | D9: 0.008062819463 | E9: 0.004104987299 | F9: 0.003289630729 | G9: 0.00514591659 | L9: Importações
A10: Exp BT Argélia / Exp TE Mundo | B10: 0.003529477547 | C10: 0.003157519838 | D10: 0.002294873357 | E10: 0.002158333157 | F10: 0.002300464632 | G10: 0.002692649679
A11: Imp BT Argélia / Imp TE Mundo | B11: 0.00383453218 | C11: 0.00481461976 | D11: 0.006986227317 | E11: 0.003571569311 | F11: 0.002862885656 | G11: 0.00444140175
A12: (1) Todos os produtos transacionados entre PT e Argélia (exclui serviços) | D12: TE - Total da Economia (bens e serviços) Fonte: INE/Contas Nacionais | H12: *TVMA - Taxa de variação média anual; TVT - Taxa de variação total
A24: Agro(1) + Mar + Florestas (AMF) | B24: 2017 | C24: 2018 | D24: 2019 | E24: 2020 | F24: 2021 | G24: média quinquénio | H24: var. 17/18 | I24: var. 18/19 | J24: var. 19/20 | K24: var. 20/21 | L24: TVMA* 2017-2021 | M24: TVT* 2017-2021
A25: Exportações | B25: 74365.378 | C25: 73206.08 | D25: 44378.987 | E25: 47189.673 | F25: 90541.362 | G25: 65936.296 | H25: -0.0155892168 | I25: -0.3937800385 | J25: 0.06333371242 | K25: 0.9186689851 | L25: 0.05043469657 | M25: 0.2175203628
A26: Importações | B26: 1278.34 | C26: 3691.177 | D26: 4597.017 | E26: 3934.6 | F26: 4612.463 | G26: 3622.7194 | H26: 1900-01-01T21:17:57.989 | I26: 0.2454068174 | J26: -0.1440971395 | K26: 0.17228257 | L26: 0.3782297786 | M26: 2.608166059
A27: Saldo (exp-imp) | B27: 73087.038 | C27: 69514.903 | D27: 39781.97 | E27: 43255.073 | F27: 85928.899 | G27: 62313.5766
A28: Cobertura (exp/imp) | B28: 58.17339518 | C28: 19.83272002 | D28: 9.653866192 | E28: 11.99351217 | F28: 19.62972104 | G28: 18.20077371
A29: Exp AMF Argélia / Exp BT Argélia | B29: 0.2516788193 | C29: 0.2600820147 | D29: 0.2073346856 | E29: 0.2950724307 | F29: 0.4434895385 | G29: 0.2854192474 | L29: Exportações
A30: Imp AMF Argélia / Imp BT Argélia | B30: 0.004078532902 | C30: 0.008692845793 | D30: 0.007128913875 | E30: 0.01406536978 | F30: 0.01694613769 | G30: 0.009361925672 | L30: Importações
A31: Exp AMF Argélia / Exp AMF Mundo | B31: 0.006671382932 | C31: 0.006283400974 | D31: 0.003752097577 | E31: 0.004090856005 | F31: 0.006775367792 | G31: 0.005538619281
A32: Imp AMF Argélia / Imp AMF Mundo | B32: 9.808228404e-05 | C32: 0.0002708008355 | D32: 0.0003323147835 | E32: 0.0003016093397 | F32: 0.000312129546 | G32: 0.0002651287168
A33: (1) Produtos agrícolas e agroalimentares | B33: BT - Total de Bens Transacionáveis (exclui serviços) | H33: *TVMA - Taxa de variação média anual; TVT - Taxa de variação total
A45: Agroalimentar (AA)(1) | B45: 2017 | C45: 2018 | D45: 2019 | E45: 2020 | F45: 2021 | G45: média quinquénio | H45: var. 17/18 | I45: var. 18/19 | J45: var. 19/20 | K45: var. 20/21 | L45: TVMA* 2017-2021 | M45: TVT* 2017-2021
A46: Exportações | B46: 19641.048 | C46: 18184.202 | D46: 7040.79 | E46: 10140.36 | F46: 16035.5 | G46: 14208.38 | H46: -0.07417353697 | I46: -0.6128073148 | J46: 0.4402304287 | K46: 0.5813541137 | L46: -0.04944015923 | M46: -0.1835720782
A47: Importações | B47: 15.777 | C47: 3.123 | D47: 72.992 | E47: 172.485 | F47: 323.715 | G47: 117.6184 | H47: -0.8020536224 | I47: 22.37239833 | J47: 1.363067185 | K47: 0.8767718932 | L47: 1.128308598 | M47: 19.51815935
A48: Saldo (exp-imp) | B48: 19625.271 | C48: 18181.079 | D48: 6967.798 | E48: 9967.875 | F48: 15711.785 | G48: 14090.7616
A49: Cobertura (exp/imp) | B49: 1244.916524 | C49: 5822.67115 | D49: 96.45974901 | E49: 58.78980781 | F49: 49.53585716 | G49: 120.800657
A50: Exp AA Argélia / Exp AMF Argélia | B50: 0.2641154866 | C50: 0.2483974282 | D50: 0.1586514356 | E50: 0.2148851508 | F50: 0.1771069006 | G50: 0.215486475 | L50: Exportações
A51: Imp AA Argélia / Imp AMF Argélia | B51: 0.01234178701 | C51: 0.0008460715918 | D51: 0.0158781227 | E51: 0.04383800132 | F51: 0.0701826768 | G51: 0.03246688109 | L51: Importações
A52: Exp AA Argélia / Exp BT Argélia | B52: 0.06647227384 | C52: 0.06460370356 | D52: 0.03289394554 | E52: 0.06340668378 | F52: 0.07854505762 | G52: 0.06150398751
A53: Imp AA Argélia / Imp BT Argélia | B53: 5.033638437e-05 | C53: 7.354769877e-06 | D53: 0.0001131937693 | E53: 0.000616597699 | F53: 0.001189325305 | G53: 0.0003039525276
A54: Exp AA Argélia / Exp AA Mundo | B54: 0.003335217469 | C54: 0.002977659868 | D54: 0.001119067246 | E54: 0.001532452002 | F54: 0.002161426226 | G54: 0.002197837349
A55: Imp AA Argélia / Imp AA Mundo | B55: 1.805691274e-06 | C55: 3.433423898e-07 | D55: 7.834219915e-06 | E55: 1.898683768e-05 | F55: 3.165473606e-05 | G55: 1.265769965e-05
A56: (1) Produtos agrícolas e agroalimentares | B56: AMF - Agroalimentar, Mar e Florestas; BT - Total de Bens Transacionáveis (exclui serviços) | H56: *TVMA - Taxa de variação média anual; TVT - Taxa de variação total
A67: Mar (M) | B67: 2017 | C67: 2018 | D67: 2019 | E67: 2020 | F67: 2021 | G67: média quinquénio | H67: var. 17/18 | I67: var. 18/19 | J67: var. 19/20 | K67: var. 20/21 | L67: TVMA* 2017-2021 | M67: TVT* 2017-2021
A68: Exportações | B68: 330.348 | C68: 0.116 | D68: 0 | E68: 0 | F68: 0 | G68: 66.0928 | H68: -0.9996488551 | I68: -1 | L68: -1 | M68: -1
A69: Importações | B69: 0 | C69: 18.404 | D69: 21.134 | E69: 30.57 | F69: 43.864 | G69: 22.7944 | I69: 0.148337318 | J69: 0.446484338 | K69: 0.4348707884
A70: Saldo (exp-imp) | B70: 330.348 | C70: -18.288 | D70: -21.134 | E70: -30.57 | F70: -43.864 | G70: 43.2984
A71: Cobertura (exp/imp) | C71: 0.006302977614 | D71: 0 | E71: 0 | F71: 0 | G71: 2.89951918
A72: Exp M Argélia / Exp AMF Argélia | B72: 0.004442228479 | C72: 1.584567839e-06 | D72: 0 | E72: 0 | F72: 0 | G72: 0.001002373564 | L72: Exportações
A73: Imp M Argélia / Imp AMF Argélia | B73: 0 | C73: 0.004985943508 | D73: 0.004597329094 | E73: 0.007769531846 | F73: 0.009509886583 | G73: 0.006292068881 | L73: Importações
A74: Exp M Argélia / Exp BT Argélia | B74: 0.001118014819 | C74: 4.12117596e-07 | D74: 0 | E74: 0 | F74: 0 | G74: 0.0002860967081
A75: Imp M Argélia / Imp BT Argélia | B75: 0 | C75: 4.334203805e-05 | D75: 3.277396317e-05 | E75: 0.0001092813384 | F75: 0.0001611558475 | G75: 5.890588118e-05
A76: Exp M Argélia / Exp M Mundo | B76: 0.0003116364744 | C76: 1.063432768e-07 | D76: 0 | E76: 0 | F76: 0 | G76: 6.336839618e-05
A77: Imp M Argélia / Imp M Mundo | B77: 0 | C77: 8.349382512e-06 | D77: 9.697620605e-06 | E77: 1.588191317e-05 | F77: 2.116221002e-05 | G77: 1.083584095e-05
A78: AMF - Agroalimentar, Mar e Florestas; BT - Total de Bens Transacionáveis (exclui serviços) | H78: *TVMA - Taxa de variação média anual; TVT - Taxa de variação total
A90: Florestas (F) | B90: 2017 | C90: 2018 | D90: 2019 | E90: 2020 | F90: 2021 | G90: média quinquénio | H90: var. 17/18 | I90: var. 18/19 | J90: var. 19/20 | K90: var. 20/21 | L90: TVMA* 2017-2021 | M90: TVT* 2017-2021
A91: Exportações | B91: 54393.982 | C91: 55021.762 | D91: 37338.197 | E91: 37049.313 | F91: 74505.862 | G91: 51661.8232 | H91: 00:16:37.173 | I91: -0.3213921975 | J91: -0.00773695634 | K91: 1.010991729 | L91: 0.08183218465 | M91: 0.3697445795
A92: Importações | B92: 1262.563 | C92: 3669.65 | D92: 4502.891 | E92: 3731.545 | F92: 4244.884 | G92: 3482.3066 | H92: 1900-01-01T21:45:22.328 | I92: 0.2270627989 | J92: -0.1713001714 | K92: 0.1375674151 | L92: 0.3541076518 | M92: 2.362116583
A93: Saldo (exp-imp) | B93: 53131.419 | C93: 51352.112 | D93: 32835.306 | E93: 33317.768 | F93: 70260.978 | G93: 48179.5166
A94: Cobertura (exp/imp) | B94: 43.08219233 | C94: 14.99373564 | D94: 8.29204993 | E94: 9.92867914 | F94: 17.55191944 | G94: 14.83551827
A95: Exp F Argélia / Exp AMF Argélia | B95: 0.7314422849 | C95: 0.7516009872 | D95: 0.8413485644 | E95: 0.7851148492 | F95: 0.8228930994 | G95: 0.7835111514 | L95: Exportações
A96: Imp F Argélia / Imp AMF Argélia | B96: 0.987658213 | C96: 0.9941679849 | D96: 0.9795245482 | E96: 0.9483924668 | F96: 0.9203074366 | G96: 0.96124105 | L96: Importações
A97: Exp F Argélia / Exp BT Argélia | B97: 0.1840885307 | C97: 0.195477899 | D97: 0.1744407401 | E97: 0.2316657469 | F97: 0.3649444809 | G97: 0.2236291631
A98: Imp F Argélia / Imp BT Argélia | B98: 0.004028196517 | C98: 0.008642148985 | D98: 0.006982946143 | E98: 0.01333949074 | F98: 0.01559565654 | G98: 0.008999067263
A99: Exp F Argélia / Exp F Mundo | B99: 0.0129574502 | C99: 0.01235603964 | D99: 0.008357216593 | E99: 0.009219256524 | F99: 0.0153676432 | G99: 0.01174900601
A100: Imp F Argélia / Imp F Mundo | B100: 0.0005847837106 | C100: 0.001574629073 | D100: 0.001926823714 | E100: 0.001832719645 | F100: 0.001712878725 | G100: 0.001535307395
A101: AMF - Agroalimentar, Mar e Florestas; BT - Total de Bens Transacionáveis (exclui serviços) | H101: *TVMA - Taxa de variação média anual; TVT - Taxa de variação total
A111: Fonte: GPP a partir de dados INE/Comércio Internacional (2020 provisórios; 2021 preliminares) | K111: 2022-08-04T16:23:26.670

Sheet 2
A1: Posição de Argélia entre os parceiros comerciais de Portugal (média 2017-2021 em milhares de euros) produtos agrícolas e agroalimentares, do mar e da floresta
A2: Exportações | F2: Importações | K2: Trocas comerciais (total e saldo)
A3: P | B3: País | C3: média quinquénio | D3: % do Total | F3: P | G3: País | H3: média quinquénio | I3: % do Total | K3: P | L3: País | M3: Total (exp+imp) | N3: % do Total | O3: Saldo (exp-imp)
A4: 1 | B4: Espanha | C4: 3707765.108 | D4: 0.3114506056 | F4: 1 | G4: Espanha | H4: 6330902.703 | I4: 0.46332711 | K4: 1 | L4: Espanha | M4: 10038667.81 | N4: 0.3926135327 | O4: -2623137.595
A5: 2 | B5: França | C5: 1256720.198 | D5: 0.1055639328 | F5: 2 | G5: França | H5: 912328.8238 | I5: 0.06676878435 | K5: 2 | L5: França | M5: 2169049.022 | N5: 0.08483177401 | O5: 344391.3742
A6: 3 | B6: Itália | C6: 790087.2358 | D6: 0.06636697333 | F6: 3 | G6: Alemanha | H6: 835563.1146 | I6: 0.06115068598 | K6: 3 | L6: Alemanha | M6: 1424702.266 | N6: 0.05572028084 | O6: -246423.9632
A7: 4 | B7: Alemanha | C7: 589139.1514 | D7: 0.0494874244 | F7: 4 | G7: Países Baixos | H7: 761064.1002 | I7: 0.05569847566 | K7: 4 | L7: Países Baixos | M7: 1300965.989 | N7: 0.05088093985 | O7: -221162.211
A8: 5 | B8: Países Baixos | C8: 539901.8892 | D8: 0.04535151646 | F8: 5 | G8: Brasil | H8: 505999.5348 | I8: 0.03703157561 | K8: 5 | L8: Itália | M8: 1193228.133 | N8: 0.04666729903 | O8: 386946.3386
A9: 6 | B9: Estados Unidos | C9: 510147.8178 | D9: 0.04285218782 | F9: 6 | G9: Itália | H9: 403140.8972 | I9: 0.02950386629 | K9: 6 | L9: Brasil | M9: 935496.84 | N9: 0.03658739647 | O9: -76502.2296 | P9: Nota: Nesta listagem, o Reino Unido passa a ser constituído por três componentes: Reino Unido [até 2020] ; Reino Unido (sem Irlanda do Norte) pós-2020 e Reino Unido (Irlanda do Norte) pós-2020. Estas componentes são calculadas igualmente como média do quinquénio, embora a primeira corresponda a 2017-2020 e as duas últimas apenas ao ano de 2021.
A10: 7 | B10: Reino Unido | C10: 496829.5194 | D10: 0.04173345673 | F10: 7 | G10: Suécia | H10: 319964.3608 | I10: 0.02341659153 | K10: 7 | L10: Estados Unidos | M10: 773222.9762 | N10: 0.0302408457 | O10: 247072.6594
A11: 8 | B11: Brasil | C11: 429497.3052 | D11: 0.03607758094 | F11: 8 | G11: Estados Unidos | H11: 263075.1584 | I11: 0.01925315529 | K11: 8 | L11: Reino Unido | M11: 683852.0118 | N11: 0.02674553629 | O11: 309807.027
A12: 9 | B12: Angola | C12: 368611.1566 | D12: 0.03096317178 | F12: 9 | G12: Bélgica | H12: 260627.1898 | I12: 0.01907400071 | K12: 9 | L12: Bélgica | M12: 486648.016 | N12: 0.01903286376 | O12: -34606.3636
A13: 10 | B13: Polónia | C13: 230579.2688 | D13: 0.01936855513 | F13: 10 | G13: Ucrânia | H13: 192156.8358 | I13: 0.0140629979 | K13: 10 | L13: Polónia | M13: 409106.5564 | N13: 0.01600020774 | O13: 52051.9812
A14: 11 | B14: Bélgica | C14: 226020.8262 | D14: 0.018985648 | F14: 11 | G14: Reino Unido | H14: 187022.4924 | I14: 0.01368724098 | K14: 11 | L14: Suécia | M14: 407895.352 | N14: 0.01595283738 | O14: -232033.3696
A15: 12 | B15: China, República Popular da | C15: 203911.4552 | D15: 0.01712847075 | F15: 12 | G15: Polónia | H15: 178527.2876 | I15: 0.01306551942 | K15: 12 | L15: Angola | M15: 382186.3224 | N15: 0.01494735407 | O15: 355035.9908
A16: 13 | B16: Israel | C16: 171724.2786 | D16: 0.01442476236 | F16: 13 | G16: China, República Popular da | H16: 163867.4338 | I16: 0.01199263803 | K16: 13 | L16: China, República Popular da | M16: 367778.889 | N16: 0.01438387758 | O16: 40044.0214
A17: 14 | B17: Turquia | C17: 149034.3544 | D17: 0.0125188189 | F17: 14 | G17: África do Sul | H17: 136599.2008 | I17: 0.009997012418 | K17: 14 | L17: Dinamarca | M17: 217603.0932 | N17: 0.008510483738 | O17: -51248.076
A18: 15 | B18: Reino Unido (sem Irlanda do Norte) pós 2020 | C18: 135785.0694 | D18: 0.01140588491 | F18: 15 | G18: Dinamarca | H18: 134425.5846 | I18: 0.009837936318 | K18: 15 | L18: Ucrânia | M18: 204319.4974 | N18: 0.007990960672 | O18: -179994.1742
A19: 16 | B19: Suíça | C19: 134621.2194 | D19: 0.01130812203 | F19: 16 | G19: Irlanda | H19: 111466.5244 | I19: 0.008157677513 | K19: 16 | L19: Turquia | M19: 199772.1218 | N19: 0.007813112253 | O19: 98296.587
A20: 17 | B20: Canadá | C20: 93781.2138 | D20: 0.007877579884 | F20: 17 | G20: Roménia | H20: 109920.5084 | I20: 0.008044532333 | K20: 17 | L20: Canadá | M20: 187289.3962 | N20: 0.00732491132 | O20: 273.0314
A21: 18 | B21: Marrocos | C21: 93746.8078 | D21: 0.007874689795 | F21: 18 | G21: Rússia, Federação da | H21: 96928.7628 | I21: 0.00709373144 | K21: 18 | L21: Rússia, Federação da | M21: 184739.9266 | N21: 0.00722520125 | O21: -9117.599
A22: 19 | B22: Cabo Verde | C22: 92841.2106 | D22: 0.007798620037 | F22: 19 | G22: Canadá | H22: 93508.1824 | I22: 0.006843396266 | K22: 19 | L22: Israel | M22: 180740.7254 | N22: 0.007068791999 | O22: 162707.8318
A23: 20 | B23: Suécia | C23: 87930.9912 | D23: 0.00738616381 | F23: 20 | G23: Argentina | H23: 83567.3042 | I23: 0.006115873101 | K23: 20 | L23: África do Sul | M23: 171494.8544 | N23: 0.006707184847 | O23: -101703.5472
A24: 21 | B24: Rússia, Federação da | C24: 87811.1638 | D24: 0.007376098362 | F24: 21 | G24: Uruguai | H24: 78952.6948 | I24: 0.005778152916 | K24: 21 | L24: Irlanda | M24: 165643.948 | N24: 0.006478355178 | O24: -57289.1008
A25: 22 | B25: Dinamarca | C25: 83177.5086 | D25: 0.006986873405 | F25: 22 | G25: Índia | H25: 72537.0598 | I25: 0.005308624672 | K25: 22 | L25: Reino Unido (sem Irlanda do Norte) pós 2020 | M25: 163778.3866 | N25: 0.006405392843 | O25: 107791.7522
A26: 23 | B26: Egito | C26: 78395.8154 | D26: 0.006585213321 | F26: 23 | G26: Vietname | H26: 66855.2994 | I26: 0.004892805041 | K26: 23 | L26: Suíça | M26: 139842.7036 | N26: 0.005469265337 | O26: 129399.7352
A27: 24 | B27: Argélia | C27: 65936.296 | D27: 0.005538619281 | F27: 24 | G27: Finlândia | H27: 66298.6224 | I27: 0.004852064636 | K27: 24 | L27: Marrocos | M27: 138351.351 | N27: 0.005410938353 | O27: 49142.2646
A28: 25 | B28: Japão | C28: 61399.3032 | D28: 0.005157513922 | F28: 25 | G28: Costa Rica | H28: 65624.9686 | I28: 0.004802763283 | K28: 25 | L28: Roménia | M28: 136055.443 | N28: 0.005321145109 | O28: -83785.5738
A29: 26 | B29: México | C29: 60045.8856 | D29: 0.005043827451 | F29: 26 | G29: Grécia | H29: 63232.5598 | I29: 0.004627674846 | K29: 26 | L29: Grécia | M29: 110145.749 | N29: 0.00430781379 | O29: -16319.3706
A30: 27 | B30: Irlanda | C30: 54177.4236 | D30: 0.004550879276 | F30: 27 | G30: Áustria | H30: 56899.6602 | I30: 0.004164201593 | K30: 27 | L30: Argentina | M30: 100118.9 | N30: 0.003915662492 | O30: -67015.7084
A31: 28 | B31: Luxemburgo | C31: 51296.0852 | D31: 0.004308848143 | F31: 28 | G31: Bulgária | H31: 54286.8448 | I31: 0.0039729827 | K31: 28 | L31: Cabo Verde | M31: 94086.5452 | N31: 0.003679736354 | O31: 91595.876
A32: 29 | B32: Grécia | C32: 46913.1892 | D32: 0.003940686845 | F32: 29 | G32: Turquia | H32: 50737.7674 | I32: 0.003713243473 | K32: 29 | L32: Finlândia | M32: 92918.8946 | N32: 0.003634069396 | O32: -39678.3502
A33: 30 | B33: Chile | C33: 38049.3234 | D33: 0.003196126095 | F33: 30 | G33: Chile | H33: 48171.5678 | I33: 0.003525436157 | K33: 30 | L33: Índia | M33: 92627.893 | N33: 0.003622688287 | O33: -52446.2266
A34: 31 | B34: Austrália | C34: 35103.186 | D34: 0.002948651875 | F34: 31 | G34: Marrocos | H34: 44604.5432 | I34: 0.003264383464 | K34: 31 | L34: Áustria | M34: 91200.5698 | N34: 0.003566865501 | O34: -22598.7506
A35: 32 | B35: África do Sul | C35: 34895.6536 | D35: 0.002931219246 | F35: 32 | G35: Cuba | H35: 37575.1428 | I35: 0.0027499368 | K35: 32 | L35: Egito | M35: 86747.5242 | N35: 0.00339270634 | O35: 70044.1066
A36: 33 | B36: Moçambique | C36: 34682.6244 | D36: 0.002913324889 | F36: 33 | G36: Moçambique | H36: 37504.8876 | I36: 0.002744795174 | K36: 33 | L36: Chile | M36: 86220.8912 | N36: 0.003372109659 | O36: -10122.2444
A37: 34 | B37: Áustria | C37: 34300.9096 | D37: 0.002881261017 | F37: 34 | G37: Equador | H37: 36772.7182 | I37: 0.002691211357 | K37: 34 | L37: Uruguai | M37: 81803.061 | N37: 0.003199327776 | O37: -76102.3286
A38: 35 | B38: Arábia Saudita | C38: 33870.6498 | D38: 0.002845119387 | F38: 35 | G38: Paraguai | H38: 33971.2278 | I38: 0.002486184284 | K38: 35 | L38: México | M38: 79029.0902 | N38: 0.003090837437 | O38: 41062.681
A39: 36 | B39: Emirados Árabes Unidos | C39: 30398.3886 | D39: 0.002553451004 | F39: 36 | G39: Checa, República | H39: 32334.8324 | I39: 0.002366424687 | K39: 36 | L39: Japão | M39: 76585.6556 | N39: 0.00299527441 | O39: 46212.9508
A40: 37 | B40: Guiné-Bissau | C40: 28498.7426 | D40: 0.002393881592 | F40: 37 | G40: Reino Unido (sem Irlanda do Norte) pós 2020 | H40: 27993.3172 | I40: 0.0020486909 | K40: 37 | L40: Vietname | M40: 72331.371 | N40: 0.002828888816 | O40: -61379.2278
A41: 38 | B41: Checa, República | C41: 26755.5834 | D41: 0.002247457002 | F41: 38 | G41: Indonésia | H41: 27213.3108 | I41: 0.001991606133 | K41: 38 | L41: Moçambique | M41: 72187.512 | N41: 0.002823262473 | O41: -2822.2632
A42: 39 | B42: Finlândia | C42: 26620.2722 | D42: 0.002236090922 | F42: 39 | G42: Colômbia | H42: 27053.3358 | I42: 0.001979898362 | K42: 39 | L42: Argélia | M42: 69559.0154 | N42: 0.002720461647 | O42: 62313.5766
A43: 40 | B43: Roménia | C43: 26134.9346 | D43: 0.002195322781 | F43: 40 | G43: Guiana | H43: 26314.7806 | I43: 0.0019258472 | K43: 40 | L43: Costa Rica | M43: 69133.3412 | N43: 0.002703813477 | O43: -62116.596
A44: 41 | B44: São Tomé e Príncipe | C44: 25601.1072 | D44: 0.002150481519 | F44: 41 | G44: Namíbia | H44: 22919.9462 | I44: 0.001677396247 | K44: 41 | L44: Bulgária | M44: 65700.4598 | N44: 0.002569553063 | O44: -42873.2298
A45: 42 | B45: Tunísia | C45: 22328.4166 | D45: 0.001875576977 | F45: 42 | G45: Uganda | H45: 21937.8968 | I45: 0.001605524962 | K45: 42 | L45: Luxemburgo | M45: 59438.278 | N45: 0.002324638363 | O45: 43153.8924
A46: 43 | B46: Jordânia | C46: 22280.5828 | D46: 0.001871558959 | F46: 43 | G46: Hungria | H46: 21052.2394 | I46: 0.001540708126 | K46: 43 | L46: Checa, República | M46: 59090.4158 | N46: 0.002311033429 | O46: -5579.249
A47: 44 | B47: Noruega | C47: 20947.5426 | D47: 0.00175958418 | F47: 44 | G47: Costa do Marfim | H47: 19064.1634 | I47: 0.001395210786 | K47: 44 | L47: Austrália | M47: 48855.783 | N47: 0.001910755682 | O47: 21350.589
A48: 45 | B48: Índia | C48: 20090.8332 | D48: 0.001687620975 | F48: 45 | G48: México | H48: 18983.2046 | I48: 0.001389285816 | K48: 45 | L48: Cuba | M48: 42448.6456 | N48: 0.00166017175 | O48: -32701.64
A49: 46 | B49: Argentina | C49: 16551.5958 | D49: 0.001390326621 | F49: 46 | G49: Peru | H49: 17829.3592 | I49: 0.001304841641 | K49: 46 | L49: Equador | M49: 39703.8238 | N49: 0.001552821432 | O49: -33841.6126
A50: 47 | B50: Hungria | C50: 16288.0556 | D50: 0.001368189363 | F50: 47 | G50: Senegal | H50: 17800.654 | I50: 0.001302740851 | K50: 47 | L50: Hungria | M50: 37340.295 | N50: 0.00146038353 | O50: -4764.1838
A51: 48 | B51: Coreia, República da | C51: 15411.9186 | D51: 0.001294594248 | F51: 48 | G51: Nova Zelânda | H51: 17318.2856 | I51: 0.00126743872 | K51: 48 | L51: Paraguai | M51: 35498.914 | N51: 0.001388366892 | O51: -32443.5416
A52: 49 | B52: Síria, República Árabe da | C52: 14814.5936 | D52: 0.001244419216 | F52: 49 | G52: Mauritânia | H52: 15880.134 | I52: 0.001162187596 | K52: 49 | L52: Colômbia | M52: 34419.2026 | N52: 0.001346139247 | O52: -19687.469
A53: 50 | B53: Macau | C53: 14414.9204 | D53: 0.001210846846 | F53: 50 | G53: Japão | H53: 15186.3524 | I53: 0.00111141319 | K53: 50 | L53: Arábia Saudita | M53: 33891.7752 | N53: 0.001325511496 | O53: 33849.5244
A54: 51 | B54: Nigéria | C54: 13908.9392 | D54: 0.001168344653 | F54: 51 | G54: Tanzânia, República Unida da | H54: 14827.3928 | I54: 0.001085142732 | K54: 51 | L54: Noruega | M54: 33045.2378 | N54: 0.001292403315 | O54: 8849.8474
A55: 52 | B55: HongKong | C55: 13491.5316 | D55: 0.001133282601 | F55: 52 | G55: Austrália | H55: 13752.597 | I55: 0.001006483802 | K55: 52 | L55: Tunísia | M55: 31534.4354 | N55: 0.001233315647 | O55: 13122.3978
A56: 53 | B56: Eslováquia | C56: 12643.1898 | D56: 0.001062022271 | F56: 53 | G56: Angola | H56: 13575.1658 | I56: 0.0009934984999 | K56: 53 | L56: Emirados Árabes Unidos | M56: 30941.271 | N56: 0.001210116914 | O56: 29855.5062
A57: 54 | B57: Iraque | C57: 12344.5656 | D57: 0.001036937972 | F57: 54 | G57: Lituânia | H57: 13332.4274 | I57: 0.0009757336903 | K57: 54 | L57: Indonésia | M57: 30007.3552 | N57: 0.001173591352 | O57: -24419.2664
A58: 55 | B58: Ucrânia | C58: 12162.6616 | D58: 0.001021658118 | F58: 55 | G58: Tailândia | H58: 12770.6592 | I58: 0.0009346206849 | K58: 55 | L58: Guiné-Bissau | M58: 28890.7928 | N58: 0.00112992246 | O58: 28106.6924
A59: 56 | B59: Lituânia | C59: 12149.985 | D59: 0.001020593289 | F59: 56 | G59: Camarões | H59: 12569.7702 | I59: 0.0009199186236 | K59: 56 | L59: Costa do Marfim | M59: 27918.195 | N59: 0.00109188404 | O59: -10210.1318
A60: 57 | B60: Bulgária | C60: 11413.615 | D60: 0.0009587385392 | F60: 57 | G60: Suazilândia | H60: 12224.135 | I60: 0.0008946233117 | K60: 57 | L60: Senegal | M60: 26948.3882 | N60: 0.001053954777 | O60: -8652.9198
A61: 58 | B61: Líbano | C61: 10687.9884 | D61: 0.0008977862304 | F61: 58 | G61: Noruega | H61: 12097.6952 | I61: 0.000885369815 | K61: 58 | L61: Coreia, República da | M61: 26710.7458 | N61: 0.001044660553 | O61: 4113.0914
A62: 59 | B62: Dominicana, República | C62: 9597.5676 | D62: 0.0008061913724 | F62: 59 | G62: Maurícias | H62: 11950.8622 | I62: 0.000874623842 | K62: 59 | L62: Guiana | M62: 26493.5252 | N62: 0.001036165029 | O62: -26136.036
A63: 60 | B63: Letónia | C63: 9586.842 | D63: 0.0008052904268 | F63: 60 | G63: Sérvia | H63: 11340.8798 | I63: 0.0008299822805 | K63: 60 | L63: São Tomé e Príncipe | M63: 26292.8568 | N63: 0.001028316863 | O63: 24909.3576
A64: 61 | B64: Eslovénia | C64: 9370.14 | D64: 0.0007870875561 | F64: 61 | G64: Eslovénia | H64: 11333.9078 | I64: 0.0008294720347 | K64: 61 | L64: Lituânia | M64: 25482.4124 | N64: 0.000996620283 | O64: -1182.4424
A65: 62 | B65: Senegal | C65: 9147.7342 | D65: 0.0007684055686 | F65: 62 | G65: Coreia, República da | H65: 11298.8272 | I65: 0.000826904661 | K65: 62 | L65: Peru | M65: 24507.5226 | N65: 0.000958492223 | O65: -11151.1958
A66: 63 | B66: Croácia | C66: 9124.6178 | D66: 0.0007664638014 | F66: 63 | G66: Estónia | H66: 10764.2158 | I66: 0.000787779126 | K66: 63 | L66: Namíbia | M66: 23565.6058 | N66: 0.0009216537411 | O66: -22274.2866
A67: 64 | B67: Líbia, Jamahira Árabe da | C67: 8915.9676 | D67: 0.0007489372782 | F67: 64 | G67: Islândia | H67: 9607.5714 | I67: 0.0007031301064 | K67: 64 | L67: Uganda | M67: 22758.7302 | N67: 0.0008900967372 | O67: -21117.0634
A68: 65 | B68: Costa do Marfim | C68: 8854.0316 | D68: 0.000743734682 | F68: 65 | G68: Belize | H68: 9508.505 | I68: 0.000695879932 | K68: 65 | L68: Jordânia | M68: 22439.5586 | N68: 0.0008776138966 | O68: 22121.607
A69: 66 | B69: Malta | C69: 8519.403 | D69: 0.0007156260297 | F69: 66 | G69: Tunísia | H69: 9206.0188 | I69: 0.0006737424797 | K69: 66 | L69: Nova Zelânda | M69: 21095.938 | N69: 0.0008250647297 | O69: -13540.6332
A70: 67 | B70: Chipre | C70: 8394.5494 | D70: 0.0007051383834 | F70: 67 | G70: Israel | H70: 9016.4468 | I70: 0.000659868653 | K70: 67 | L70: Tailândia | M70: 20778.8206 | N70: 0.0008126622292 | O70: -4762.4978
A71: 68 | B71: Gibraltar | C71: 8275.2764 | D71: 0.0006951195049 | F71: 68 | G71: Filipinas | H71: 8922.415 | I71: 0.0006529869357 | K71: 68 | L71: Eslovénia | M71: 20704.0478 | N71: 0.0008097378558 | O71: -1963.7678
A72: 69 | B72: Tailândia | C72: 8008.1614 | D72: 0.0006726819647 | F72: 69 | G72: Paquistão | H72: 8369.046 | I72: 0.0006124886259 | K72: 69 | L72: Camarões | M72: 19928.1944 | N72: 0.0007793941339 | O72: -5211.346
A73: 70 | B73: Estónia | C73: 7698.2748 | D73: 0.0006466516293 | F73: 70 | G73: Egito | H73: 8351.7088 | I73: 0.0006112198029 | K73: 70 | L73: Nigéria | M73: 18647.3464 | N73: 0.0007293000111 | O73: 9170.532
A74: 71 | B74: Colômbia | C74: 7365.8668 | D74: 0.0006187295065 | F74: 71 | G74: Guatemala | H74: 8344.7756 | I74: 0.0006107123966 | K74: 71 | L74: Estónia | M74: 18462.4906 | N74: 0.000722070278 | O74: -3065.941
A75: 72 | B75: Camarões | C75: 7358.4242 | D75: 0.0006181043314 | F75: 72 | G75: Luxemburgo | H75: 8142.1928 | I75: 0.0005958863746 | K75: 72 | L75: Mauritânia | M75: 18298.5564 | N75: 0.0007156587913 | O75: -13461.7116
A76: 73 | B76: Território Palestiniano Ocupado | C76: 7214.1248 | D76: 0.0006059832466 | F76: 73 | G76: Bangladesh | H76: 7873.722 | I76: 0.0005762383392 | K76: 73 | L76: Eslováquia | M76: 17031.3564 | N76: 0.0006660984435 | O76: 8255.0232
A77: 74 | B77: Geórgia | C77: 6993.3632 | D77: 0.0005874393712 | F77: 74 | G77: Moldava, República de | H77: 7870.6248 | I77: 0.0005760116707 | K77: 74 | L77: Maurícias | M77: 16714.9522 | N77: 0.0006537238363 | O77: -7186.7722
A78: 75 | B78: Peru | C78: 6678.1634 | D78: 0.0005609627294 | F78: 75 | G78: Panamá | H78: 7322.7584 | I78: 0.0005359160686 | K78: 75 | L78: Síria, República Árabe da | M78: 15864.7872 | N78: 0.0006204737786 | O78: 13764.4
A79: 76 | B79: Kuwait | C79: 6233.8548 | D79: 0.0005236410064 | F79: 76 | G79: Malásia | H79: 7168.8986 | I79: 0.0005246558392 | K79: 76 | L79: HongKong | M79: 15657.4266 | N79: 0.00061236388 | O79: 11325.6366
A80: 77 | B80: Taiwan | C80: 5981.3758 | D80: 0.0005024328836 | F80: 77 | G80: Honduras | H80: 6887.2594 | I80: 0.0005040440745 | K80: 77 | L80: Letónia | M80: 15614.4018 | N80: 0.0006106811748 | O80: 3559.2822
A81: 78 | B81: Gana | C81: 5828.3616 | D81: 0.0004895797595 | F81: 78 | G81: Suriname | H81: 6334.9824 | I81: 0.0004636256827 | K81: 78 | L81: Sérvia | M81: 15356.9838 | N81: 0.0006006135251 | O81: -7324.7758
A82: 79 | B82: Belarus | C82: 5737.0056 | D82: 0.0004819058965 | F82: 79 | G82: Gana | H82: 6241.1362 | I82: 0.0004567575486 | K82: 79 | L82: Tanzânia, República Unida da | M82: 15245.8152 | N82: 0.0005962657075 | O82: -14408.9704
A83: 80 | B83: Vietname | C83: 5476.0716 | D83: 0.0004599875575 | F83: 80 | G83: Quénia | H83: 6167.4246 | I83: 0.0004513629652 | K83: 80 | L83: Macau | M83: 14427.229 | N83: 0.0005642507006 | O83: 14402.6118
A84: 81 | B84: Guatemala | C84: 5397.603 | D84: 0.0004533962303 | F84: 81 | G84: Letónia | H84: 6027.5598 | I84: 0.0004411269599 | K84: 81 | L84: Suazilândia | M84: 14006.9532 | N84: 0.0005478136623 | O84: -10441.3168
A85: 82 | B85: Irão, República Islâmica do | C85: 5106.6698 | D85: 0.0004289579721 | F85: 82 | G85: Zimbabwe | H85: 5831.45 | I85: 0.0004267746643 | K85: 82 | L85: Guatemala | M85: 13742.3786 | N85: 0.0005374661172 | O85: -2947.1726
A86: 83 | B86: Cuba | C86: 4873.5028 | D86: 0.0004093720487 | F86: 83 | G86: Etiópia | H86: 5803.1934 | I86: 0.0004247067051 | K86: 83 | L86: Croácia | M86: 13684.269 | N86: 0.0005351934436 | O86: 4564.9666
A87: 84 | B87: Maurícias | C87: 4764.09 | D87: 0.0004001814226 | F87: 84 | G87: Suíça | H87: 5221.4842 | I87: 0.0003821343176 | K87: 84 | L87: Iraque | M87: 12346.4052 | N87: 0.0004828694258 | O87: 12342.726
A88: 85 | B88: Andorra | C88: 4423.9826 | D88: 0.0003716125536 | F88: 85 | G88: Malavi | H88: 4793.266 | I88: 0.000350795169 | K88: 85 | L88: Líbano | M88: 12070.5078 | N88: 0.0004720790446 | O88: 9305.469
A89: 86 | B89: Sudão | C89: 4410.8422 | D89: 0.0003705087659 | F89: 86 | G89: Congo | H89: 4791.522 | I89: 0.0003506675343 | K89: 86 | L89: Gana | M89: 12069.4978 | N89: 0.0004720395434 | O89: -412.7746
A90: 87 | B90: Singapura | C90: 4119.553 | D90: 0.0003460406037 | F90: 87 | G90: Nigéria | H90: 4738.4072 | I90: 0.0003467803277 | K90: 87 | L90: Filipinas | M90: 11982.923 | N90: 0.0004686535923 | O90: -5861.907
A91: 88 | B91: Catar | C91: 4025.621 | D91: 0.0003381503579 | F91: 88 | G91: Croácia | H91: 4559.6512 | I91: 0.00033369807 | K91: 88 | L91: Paquistão | M91: 11793.2996 | N91: 0.0004612373978 | O91: -4944.7924
A92: 89 | B92: Sérvia | C92: 4016.104 | D92: 0.0003373509342 | F92: 89 | G92: Eslováquia | H92: 4388.1666 | I92: 0.0003211479697 | K92: 89 | L92: Islândia | M92: 11279.7712 | N92: 0.0004411532389 | O92: -7935.3716
A93: 90 | B93: Omã | C93: 3949.3182 | D93: 0.0003317409569 | F93: 90 | G93: Camboja | H93: 4265.0406 | I93: 0.0003121369934 | K93: 90 | L93: Malásia | M93: 10825.188 | N93: 0.000423374434 | O93: -3512.6092
A94: 91 | B94: Nova Zelânda | C94: 3777.6524 | D94: 0.0003173211067 | F94: 91 | G94: Laos, República Democrática Popular do | H94: 4211.0262 | I94: 0.0003081839496 | K94: 91 | L94: Dominicana, República | M94: 10784.5692 | N94: 0.0004217858278 | O94: 8410.566
A95: 92 | B95: Malásia | C95: 3656.2894 | D95: 0.0003071266692 | F95: 92 | G95: Macedónia, Antiga República jugoslava da | H95: 4200.1808 | I95: 0.000307390229 | K95: 92 | L95: Moldava, República de | M95: 10779.4114 | N95: 0.0004215841056 | O95: -4961.8382
A96: 93 | B96: Costa Rica | C96: 3508.3726 | D96: 0.0002947017244 | F96: 93 | G96: Madagáscar | H96: 4084.438 | I96: 0.0002989195923 | K96: 93 | L96: Panamá | M96: 10701.1486 | N96: 0.0004185232379 | O96: -3944.3682
A97: 94 | B97: Paquistão | C97: 3424.2536 | D97: 0.0002876357661 | F97: 94 | G97: Mali | H97: 4003.5872 | I97: 0.0002930025265 | K97: 94 | L97: Chipre | M97: 10255.1782 | N97: 0.0004010812807 | O97: 6533.9206
A98: 95 | B98: Panamá | C98: 3378.3902 | D98: 0.0002837832611 | F98: 95 | G98: Sri Lanca | H98: 3938.009 | I98: 0.000288203186 | K98: 95 | L98: Taiwan | M98: 9768.7504 | N98: 0.0003820570296 | O98: 2194.0012
A99: 96 | B99: Quénia | C99: 3100.3966 | D99: 0.0002604319234 | F99: 96 | G99: Fiji, Ilhas | H99: 3840.3568 | I99: 0.0002810565098 | K99: 96 | L99: Belize | M99: 9511.2382 | N99: 0.0003719856958 | O99: -9505.7718
A100: 97 | B100: Filipinas | C100: 3060.508 | D100: 0.0002570812989 | F100: 97 | G100: Taiwan | H100: 3787.3746 | I100: 0.0002771790075 | K100: 97 | L100: Quénia | M100: 9267.8212 | N100: 0.000362465627 | O100: -3067.028
A101: 98 | B101: Burquina Faso | C101: 3000.44 | D101: 0.0002520356138 | F101: 98 | G101: Argélia | H101: 3622.7194 | I101: 0.0002651287168 | K101: 98 | L101: Bangladesh | M101: 9211.7082 | N101: 0.0003602710406 | O101: -6535.7358
A102: 99 | B102: Equador | C102: 2931.1056 | D102: 0.0002462115553 | F102: 99 | G102: Congo, República Democrática do | H102: 3603.5518 | I102: 0.000263725936 | K102: 99 | L102: Malta | M102: 9133.5702 | N102: 0.0003572150538 | O102: 7905.2358
A103: 100 | B103: Moldava, República de | C103: 2908.7866 | D103: 0.0002443367694 | F103: 100 | G103: Myanmar | H103: 3537.2152 | I103: 0.000258871092 | K103: 100 | L103: Líbia, Jamahira Árabe da | M103: 8921.9596 | N103: 0.0003489389372 | O103: 8909.9756
A104: 101 | B104: Uruguai | C104: 2850.3662 | D104: 0.000239429482 | F104: 101 | G104: Nicarágua | H104: 3329.2694 | I104: 0.0002436525788 | K104: 101 | L104: Etiópia | M104: 8473.4718 | N104: 0.0003313985242 | O104: -3132.915
A105: 102 | B105: Albânia | C105: 2833.3982 | D105: 0.0002380041776 | F105: 102 | G105: Papuásia-Nova Guiné | H105: 2870.9216 | I105: 0.0002101083954 | K105: 102 | L105: Honduras | M105: 8442.7258 | N105: 0.0003301960444 | O105: -5331.793
A106: 103 | B106: Timor-Leste | C106: 2809.4414 | D106: 0.0002359918171 | F106: 103 | G106: Gabão | H106: 2514.1636 | I106: 0.0001839990614 | K106: 103 | L106: Gibraltar | M106: 8282.946 | N106: 0.0003239470368 | O106: 8267.6068
A107: 104 | B107: Indonésia | C107: 2794.0444 | D107: 0.000234698476 | F107: 104 | G107: El Salvador | H107: 2499.955 | I107: 0.000182959205 | K107: 104 | L107: Território Palestiniano Ocupado | M107: 7214.61 | N107: 0.0002821642844 | O107: 7213.6396
A108: 105 | B108: Etiópia | C108: 2670.2784 | D108: 0.0002243021876 | F108: 105 | G108: HongKong | H108: 2165.895 | I108: 0.0001585110241 | K108: 105 | L108: Geórgia | M108: 7121.3982 | N108: 0.0002785187594 | O108: 6865.3282
A109: 106 | B109: Venezuela | C109: 2626.052 | D109: 0.0002205871898 | F109: 106 | G109: Reino Unido (Irlanda do Norte) pós-2020 | H109: 2096.6258 | I109: 0.0001534415578 | K109: 106 | L109: Kuwait | M109: 7042.6856 | N109: 0.0002754403 | O109: 5425.024
A110: 107 | B110: Mauritânia | C110: 2418.4224 | D110: 0.0002031463966 | F110: 107 | G110: Centro-Africana, República | H110: 2021.7964 | I110: 0.0001479651682 | K110: 107 | L110: Congo | M110: 6827.2468 | N110: 0.000267014462 | O110: -2755.7972
A111: 108 | B111: Arménia | C111: 2340.1142 | D111: 0.0001965685429 | F111: 108 | G111: Chade | H111: 1938.2016 | I111: 0.0001418472828 | K111: 108 | L111: Suriname | M111: 6797.4636 | N111: 0.0002658496374 | O111: -5872.5012
A112: 109 | B112: Gabão | C112: 2315.992 | D112: 0.0001945422889 | F112: 109 | G112: Chipre | H112: 1860.6288 | I112: 0.0001361701175 | K112: 109 | L112: Belarus | M112: 6087.4256 | N112: 0.0002380799639 | O112: 5386.5856
A113: 110 | B113: Guiné | C113: 2131.0968 | D113: 0.0001790111751 | F113: 110 | G113: Togo | H113: 1729.6156 | I113: 0.0001265819165 | K113: 110 | L113: Zimbabwe | M113: 5905.8012 | N113: 0.0002309766113 | O113: -5757.0988
A114: 111 | B114: Congo | C114: 2035.7248 | D114: 0.0001709999699 | F114: 111 | G114: Benim | H114: 1530.5358 | I114: 0.0001120122615 | K114: 111 | L114: Mali | M114: 5640.4516 | N114: 0.0002205987558 | O114: -2366.7228
A115: 112 | B115: Seychelles | C115: 1828.658 | D115: 0.0001536064516 | F115: 112 | G115: Líbano | H115: 1382.5194 | I115: 0.0001011796814 | K115: 112 | L115: Singapura | M115: 5318.201 | N115: 0.0002079954952 | O115: 2920.905
A116: 113 | B116: Suazilândia | C116: 1782.8182 | D116: 0.0001497559289 | F116: 113 | G116: Cabo Verde | H116: 1245.3346 | I116: 9.113981186e-05 | K116: 113 | L116: Irão, República Islâmica do | M116: 5298.0708 | N116: 0.0002072082006 | O116: 4915.2688
A117: 114 | B117: Islândia | C117: 1672.1998 | D117: 0.000140464033 | F117: 114 | G117: Singapura | H117: 1198.648 | I117: 8.772305307e-05 | K117: 114 | L117: Camboja | M117: 5155.2448 | N117: 0.0002016222582 | O117: -3374.8364
A118: 115 | B118: Bolívia | C118: 1661.4018 | D118: 0.0001395570058 | F118: 115 | G118: Dominicana, República | H118: 1187.0016 | I118: 8.687071129e-05 | K118: 115 | L118: Sri Lanca | M118: 5084.7076 | N118: 0.0001988635396 | O118: -2791.3104
A119: 116 | B119: Mali | C119: 1636.8644 | D119: 0.0001374958752 | F119: 116 | G119: Seychelles | H119: 1094.6802 | I119: 8.01141697e-05 | K119: 116 | L119: Macedónia, Antiga República jugoslava da | M119: 4978.3928 | N119: 0.0001947055547 | O119: -3421.9688
A120: 117 | B120: Honduras | C120: 1555.4664 | D120: 0.0001306584797 | F120: 117 | G120: Serra Leoa | H120: 1070.5168 | I120: 7.834577128e-05 | K120: 117 | L120: Congo, República Democrática do | M120: 4963.7182 | N120: 0.0001941316293 | O120: -2243.3854
A121: 118 | B121: Paraguai | C121: 1527.6862 | D121: 0.0001283249554 | F121: 118 | G121: Síria, República Árabe da | H121: 1050.1936 | I121: 7.685841791e-05 | K121: 118 | L121: Gabão | M121: 4830.1556 | N121: 0.0001889079796 | O121: -198.1716
A122: 119 | B122: Cazaquistão | C122: 1442.6386 | D122: 0.0001211809952 | F122: 119 | G122: Burquina Faso | H122: 994.137 | I122: 7.275591567e-05 | K122: 119 | L122: Malavi | M122: 4801.4944 | N122: 0.0001877870365 | O122: -4785.0376
A123: 120 | B123: Benim | C123: 1404.4874 | D123: 0.0001179763115 | F123: 120 | G123: Venezuela | H123: 938.2528 | I123: 6.866603053e-05 | K123: 120 | L123: Nicarágua | M123: 4535.6152 | N123: 0.0001773884683 | O123: -2122.9236
A124: 121 | B124: São Bartolomeu | C124: 1395.5314 | D124: 0.0001172240115 | F124: 121 | G124: Faroé, Ilhas | H124: 873.6002 | I124: 6.393443005e-05 | K124: 121 | L124: Andorra | M124: 4453.7392 | N124: 0.0001741862879 | O124: 4394.226
A125: 122 | B125: Guiné Equatorial | C125: 1393.2284 | D125: 0.0001170305605 | F125: 122 | G125: Kuwait | H125: 808.8308 | I125: 5.919428155e-05 | K125: 122 | L125: Sudão | M125: 4431.3248 | N125: 0.0001733096579 | O125: 4390.3596
A126: 123 | B126: Iémen | C126: 1386.267 | D126: 0.000116445806 | F126: 123 | G126: Turquemenistão | H126: 804.7756 | I126: 5.889750174e-05 | K126: 123 | L126: Madagáscar | M126: 4362.4826 | N126: 0.000170617231 | O126: -3806.3934
A127: 124 | B127: Congo, República Democrática do | C127: 1360.1664 | D127: 0.0001142533674 | F127: 124 | G127: Gâmbia | H127: 751.3528 | I127: 5.498775416e-05 | K127: 124 | L127: Omã | M127: 4347.6534 | N127: 0.0001700372592 | O127: 3550.983
A128: 125 | B128: Bangladesh | C128: 1337.9862 | D128: 0.0001123902405 | F128: 125 | G128: Iémen | H128: 726.202 | I128: 5.314709288e-05 | K128: 125 | L128: Laos, República Democrática Popular do | M128: 4227.0208 | N128: 0.0001653193034 | O128: -4195.0316
A129: 126 | B129: Jamaica | C129: 1333.1998 | D129: 0.0001119881851 | F129: 126 | G129: Zâmbia | H129: 694.9132 | I129: 5.085722207e-05 | K129: 126 | L129: Catar | M129: 4043.8844 | N129: 0.0001581568162 | O129: 4007.3576
A130: 127 | B130: Reino Unido (Irlanda do Norte) pós-2020 | C130: 1281.9302 | D130: 0.0001076815617 | F130: 127 | G130: São Tomé e Príncipe | H130: 691.7496 | I130: 5.062569401e-05 | K130: 127 | L130: Burquina Faso | M130: 3994.577 | N130: 0.0001562283978 | O130: 2006.303
A131: 128 | B131: Nicarágua | C131: 1206.3458 | D131: 0.000101332506 | F131: 128 | G131: Malta | H131: 614.1672 | I131: 4.494782612e-05 | K131: 128 | L131: Myanmar | M131: 3973.7446 | N131: 0.00015541364 | O131: -3100.6858
A132: 129 | B132: El Salvador | C132: 1197.894 | D132: 0.0001006225586 | F132: 129 | G132: Emirados Árabes Unidos | H132: 542.8824 | I132: 3.973084808e-05 | K132: 129 | L132: Fiji, Ilhas | M132: 3851.1788 | N132: 0.0001506200765 | O132: -3829.5348
A133: 130 | B133: Togo | C133: 1178.7066 | D133: 9.901082557e-05 | F133: 130 | G133: Bolívia | H133: 526.4276 | I133: 3.852660355e-05 | K133: 130 | L133: El Salvador | M133: 3697.849 | N133: 0.0001446233292 | O133: -1302.061
A134: 131 | B134: Sri Lanca | C134: 1146.6986 | D134: 9.632216793e-05 | F134: 131 | G134: Timor-Leste | H134: 508.2238 | I134: 3.719435846e-05 | K134: 131 | L134: Venezuela | M134: 3564.3048 | N134: 0.0001394003991 | O134: 1687.7992
A135: 132 | B135: Azerbaijão | C135: 1033.3848 | D135: 8.680385957e-05 | F135: 132 | G135: Bósnia-Herzegovina | H135: 500.8952 | I135: 3.665801487e-05 | K135: 132 | L135: Reino Unido (Irlanda do Norte) pós-2020 | M135: 3378.556 | N135: 0.0001321357407 | O135: -814.6956
A136: 133 | B136: Burundi | C136: 904.8058 | D136: 7.600328126e-05 | F136: 133 | G136: Gronelândia | H136: 495.2564 | I136: 3.62453393e-05 | K136: 133 | L136: Timor-Leste | M136: 3317.6652 | N136: 0.000129754294 | O136: 2301.2176
A137: 134 | B137: Camboja | C137: 890.2042 | D137: 7.477675341e-05 | F137: 134 | G137: Samoa Americana | H137: 410.8046 | I137: 3.006473437e-05 | K137: 134 | L137: Benim | M137: 2935.0232 | N137: 0.0001147891183 | O137: -126.0484
A138: 135 | B138: Montenegro | C138: 856.4244 | D138: 7.193926536e-05 | F138: 135 | G138: Omã | H138: 398.3352 | I138: 2.915216134e-05 | K138: 135 | L138: Albânia | M138: 2930.0936 | N138: 0.0001145963211 | O138: 2736.7028
A139: 136 | B139: Bermudas | C139: 850.8556 | D139: 7.147148866e-05 | F139: 136 | G139: Guiné-Bissau | H139: 392.0502 | I139: 2.869219362e-05 | K139: 136 | L139: Seychelles | M139: 2923.3382 | N139: 0.0001143321165 | O139: 733.9778
A140: 137 | B140: Ruanda | C140: 829.087 | D140: 6.964293603e-05 | F140: 137 | G140: Belarus | H140: 350.42 | I140: 2.564548746e-05 | K140: 137 | L140: Togo | M140: 2908.3222 | N140: 0.0001137448389 | O140: -550.909
A141: 138 | B141: Ceuta e Melilha | C141: 826.6862 | D141: 6.94412699e-05 | F141: 138 | G141: Usbequistão | H141: 287.6646 | I141: 2.105273356e-05 | K141: 138 | L141: Papuásia-Nova Guiné | M141: 2874.66 | N141: 0.0001124283061 | O141: -2867.1832
A142: 139 | B142: Uganda | C142: 820.8334 | D142: 6.894963733e-05 | F142: 139 | G142: Irão, República Islâmica do | H142: 191.401 | I142: 1.400768206e-05 | K142: 139 | L142: Arménia | M142: 2359.5046 | N142: 9.22805151e-05 | O142: 2320.7238
A143: 140 | B143: Barbados | C143: 786.448 | D143: 6.606127916e-05 | F143: 140 | G143: Jordânia | H143: 158.9758 | I143: 1.163464382e-05 | K143: 140 | L143: Guiné | M143: 2196.8182 | N143: 8.591782998e-05 | O143: 2065.3754
A144: 141 | B144: Macedónia, Antiga República jugoslava da | C144: 778.212 | D144: 6.536945885e-05 | F144: 141 | G144: São Pedro e Miquelon | H144: 147.7212 | I144: 1.081097592e-05 | K144: 141 | L144: Bolívia | M144: 2187.8294 | N144: 8.556627691e-05 | O144: 1134.9742
A145: 142 | B145: Niger | C145: 763.8452 | D145: 6.41626541e-05 | F145: 142 | G145: Geórgia | H145: 128.035 | I145: 9.370241388e-06 | K145: 142 | L145: Iémen | M145: 2112.469 | N145: 8.26189224e-05 | O145: 660.065
A146: 143 | B146: Barém | C146: 752.9698 | D146: 6.324912538e-05 | F146: 143 | G146: Albânia | H146: 96.6954 | I146: 7.076652784e-06 | K146: 143 | L146: Centro-Africana, República | M146: 2110.6384 | N146: 8.254732741e-05 | O146: -1932.9544
A147: 144 | B147: Turquemenistão | C147: 739.3476 | D147: 6.210486669e-05 | F147: 144 | G147: Azerbaijão | H147: 96.2476 | I147: 7.043880541e-06 | K147: 144 | L147: Chade | M147: 1947.8506 | N147: 7.618067653e-05 | O147: -1928.5526
A148: 145 | B148: Namíbia | C148: 645.6596 | D148: 5.423511672e-05 | F148: 145 | G148: Maldivas | H148: 81.5646 | I148: 5.969305196e-06 | K148: 145 | L148: Serra Leoa | M148: 1558.8604 | N148: 6.096722196e-05 | O148: -582.1732
A149: 146 | B149: Trindade e Tobago | C149: 631.2306 | D149: 5.30230872e-05 | F149: 146 | G149: Afeganistão | H149: 81.3718 | I149: 5.955195128e-06 | K149: 146 | L149: Turquemenistão | M149: 1544.1232 | N149: 6.039084826e-05 | O149: -65.428
A150: 147 | B150: Aruba | C150: 527.4078 | D150: 4.430201858e-05 | F150: 147 | G150: Santa Helena | H150: 66.474 | I150: 4.864899645e-06 | K150: 147 | L150: Cazaquistão | M150: 1448.653 | N150: 5.6656997e-05 | O150: 1436.6242
A151: 148 | B151: São Martinho (parte holandesa) | C151: 508.4474 | D151: 4.270935348e-05 | F151: 148 | G151: Guiné | H151: 65.7214 | I151: 4.809820615e-06 | K151: 148 | L151: Guiné Equatorial | M151: 1399.2148 | N151: 5.472346291e-05 | O151: 1387.242
A152: 149 | B152: Serra Leoa | C152: 488.3436 | D152: 4.10206433e-05 | F152: 149 | G152: Tajiquistão | H152: 53.4888 | I152: 3.914577792e-06 | K152: 149 | L152: São Bartolomeu | M152: 1395.5314 | N152: 5.457940469e-05 | O152: 1395.5314
A153: 150 | B153: Bósnia-Herzegovina | C153: 478.3422 | D153: 4.018053019e-05 | F153: 150 | G153: Ruanda | H153: 47.1688 | I153: 3.452048596e-06 | K153: 150 | L153: Jamaica | M153: 1338.002 | N153: 5.232942278e-05 | O153: 1328.3976
A154: 151 | B154: Suriname | C154: 462.4812 | D154: 3.884821331e-05 | F154: 151 | G154: São Marino | H154: 41.3718 | I154: 3.027795155e-06 | K154: 151 | L154: Gâmbia | M154: 1198.5586 | N154: 4.687577425e-05 | O154: -304.147
A155: 152 | B155: Curaçau | C155: 451.66 | D155: 3.793923736e-05 | F155: 152 | G155: Falkland Ilhas (Malvinas) | H155: 38.0622 | I155: 2.785582081e-06 | K155: 152 | L155: Azerbaijão | M155: 1129.6324 | N155: 4.41800621e-05 | O155: 937.1372
A156: 153 | B156: Gâmbia | C156: 447.2058 | D156: 3.756508656e-05 | F156: 153 | G156: Andorra | H156: 29.7566 | I156: 2.177736751e-06 | K156: 153 | L156: Bósnia-Herzegovina | M156: 979.2374 | N156: 3.829809515e-05 | O156: -22.553
A157: 154 | B157: Myanmar | C157: 436.5294 | D157: 3.666827375e-05 | F157: 154 | G157: Kiribati | H157: 28.0754 | I157: 2.05469813e-06 | K157: 154 | L157: Burundi | M157: 904.9198 | N157: 3.539152467e-05 | O157: 904.6918
A158: 155 | B158: Polinésia Francesa | C158: 421.137 | D158: 3.537531906e-05 | F158: 155 | G158: Arábia Saudita | H158: 21.1254 | I158: 1.546062385e-06 | K158: 155 | L158: Ruanda | M158: 876.2558 | N158: 3.427047211e-05 | O158: 781.9182
A159: 156 | B159: Tanzânia, República Unida da | C159: 418.4224 | D159: 3.514729387e-05 | F159: 156 | G159: Sudão | H159: 20.4826 | I159: 1.499019067e-06 | K159: 156 | L159: Faroé, Ilhas | M159: 874.2746 | N159: 3.419298713e-05 | O159: -872.9258
A160: 157 | B160: Libéria | C160: 375.6414 | D160: 3.155370907e-05 | F160: 157 | G160: Arménia | H160: 19.3904 | I160: 1.419086411e-06 | K160: 157 | L160: Montenegro | M160: 869.9724 | N160: 3.402472756e-05 | O160: 842.8764
A161: 158 | B161: Nova Caledónia | C161: 352.4566 | D161: 2.960619627e-05 | F161: 158 | G161: Catar | H161: 18.2634 | I161: 1.336606917e-06 | K161: 158 | L161: Bermudas | M161: 851.0518 | N161: 3.328474057e-05 | O161: 850.6594
A162: 159 | B162: Haiti | C162: 311.6872 | D162: 2.618158496e-05 | F162: 159 | G162: Quirguizistão | H162: 17.4752 | I162: 1.2789225e-06 | K162: 159 | L162: Ceuta e Melilha | M162: 826.6862 | N162: 3.233179895e-05 | O162: 826.6862
A163: 160 | B163: Antígua e Barbuda | C163: 297.9746 | D163: 2.502973271e-05 | F163: 160 | G163: Montenegro | H163: 13.548 | I163: 9.915103708e-07 | K163: 160 | L163: Barbados | M163: 796.8214 | N163: 3.116378295e-05 | O163: 776.0746
A164: 161 | B164: Comores | C164: 290.0546 | D164: 2.436445627e-05 | F164: 161 | G164: Macau | H164: 12.3086 | I164: 9.008048827e-07 | K164: 161 | L164: Zâmbia | M164: 773.6308 | N164: 3.025679574e-05 | O164: -616.1956
A165: 162 | B165: Madagáscar | C165: 278.0446 | D165: 2.335562165e-05 | F165: 162 | G165: Barbados | H165: 10.3734 | I165: 7.59177272e-07 | K165: 162 | L165: Niger | M165: 763.9392 | N165: 2.987775607e-05 | O165: 763.7512
A166: 163 | B166: Somália | C166: 236.5634 | D166: 1.987121946e-05 | F166: 163 | G166: Jibuti | H166: 9.3722 | I166: 6.859044507e-07 | K166: 163 | L166: Barém | M166: 757.452 | N166: 2.962404088e-05 | O166: 748.4876
A167: 164 | B167: Bahamas | C167: 201.3742 | D167: 1.691534245e-05 | F167: 164 | G167: Antígua e Barbuda | H167: 9.2108 | I167: 6.740923918e-07 | K167: 164 | L167: Trindade e Tobago | M167: 631.2306 | N167: 2.46875064e-05 | O167: 631.2306
A168: 165 | B168: Usbequistão | C168: 183.3836 | D168: 1.540414012e-05 | F168: 165 | G168: Nepal | H168: 9.1538 | I168: 6.699208468e-07 | K168: 165 | L168: Aruba | M168: 527.5884 | N168: 2.063404721e-05 | O168: 527.2272
A169: 166 | B169: Guiana | C169: 178.7446 | D169: 1.501446621e-05 | F169: 166 | G169: Kosovo | H169: 8.3722 | I169: 6.127194513e-07 | K169: 166 | L169: São Martinho (parte holandesa) | M169: 508.4502 | N169: 1.988554986e-05 | O169: 508.4446
A170: 167 | B170: São Marino | C170: 178.664 | D170: 1.500769584e-05 | F170: 167 | G170: Gibraltar | H170: 7.6696 | I170: 5.612996708e-07 | K170: 167 | L170: Gronelândia | M170: 495.5014 | N170: 1.937912069e-05 | O170: -495.0114
A171: 168 | B171: Bonaire, Santo Eustáquio e Saba | C171: 134.0798 | D171: 1.126264304e-05 | F171: 168 | G171: Cazaquistão | H171: 6.0144 | I171: 4.401638599e-07 | K171: 168 | L171: Usbequistão | M171: 471.0482 | N171: 1.842275304e-05 | O171: -104.281
A172: 169 | B172: Maldivas | C172: 129.4228 | D172: 1.087145713e-05 | F172: 169 | G172: Líbia, Jamahira Árabe da | H172: 5.992 | I172: 4.38524516e-07 | K172: 169 | L172: Curaçau | M172: 451.66 | N172: 1.766447815e-05 | O172: 451.66
A173: 170 | B173: Kosovo | C173: 127.1114 | D173: 1.067730057e-05 | F173: 170 | G173: Guiné Equatorial | H173: 5.9864 | I173: 4.3811468e-07 | K173: 170 | L173: Polinésia Francesa | M173: 421.5208 | N173: 1.648573033e-05 | O173: 420.7532
A174: 171 | B174: Quirguizistão | C174: 118.0478 | D174: 9.915962237e-06 | F174: 171 | G174: Marshall, Ilhas | H174: 4.9928 | I174: 3.653980646e-07 | K174: 171 | L174: Samoa Americana | M174: 410.8046 | N174: 1.606661843e-05 | O174: -410.8046
A175: 172 | B175: Santa Lúcia | C175: 114.8238 | D175: 9.645147684e-06 | F175: 172 | G175: Jamaica | H175: 4.8022 | I175: 3.514490038e-07 | K175: 172 | L175: Libéria | M175: 376.606 | N175: 1.472910698e-05 | O175: 374.6768
A176: 173 | B176: Afeganistão | C176: 109.4274 | D176: 9.191852505e-06 | F176: 173 | G176: Barém | H176: 4.4822 | I176: 3.28029804e-07 | K176: 173 | L176: Nova Caledónia | M176: 352.6114 | N176: 1.379067522e-05 | O176: 352.3018
A177: 174 | B177: Liechtenstein | C177: 96.538 | D177: 8.109148688e-06 | F177: 174 | G177: São Cristovão e Nevis | H177: 4.4378 | I177: 3.2478039e-07 | K177: 174 | L177: Haiti | M177: 311.9356 | N177: 1.219983968e-05 | O177: 311.4388
A178: 175 | B178: Centro-Africana, República | C178: 88.842 | D178: 7.462688141e-06 | F178: 175 | G178: Iraque | H178: 1.8396 | I178: 1.346311248e-07 | K178: 175 | L178: Antígua e Barbuda | M178: 307.1854 | N178: 1.201405877e-05 | O178: 288.7638
A179: 176 | B179: Botswana | C179: 82.1538 | D179: 6.900882341e-06 | F179: 176 | G179: Lesoto | H179: 1.7136 | I179: 1.254098148e-07 | K179: 176 | L179: Comores | M179: 290.0546 | N179: 1.134407108e-05 | O179: 290.0546
A180: 177 | B180: Nepal | C180: 81.2736 | D180: 6.826945936e-06 | F180: 177 | G180: Liechtenstein | H180: 1.2268 | I180: 8.978335717e-08 | K180: 177 | L180: Somália | M180: 236.5634 | N180: 9.252023668e-06 | O180: 236.5634
A181: 178 | B181: Zâmbia | C181: 78.7176 | D181: 6.612243083e-06 | F181: 178 | G181: Butão | H181: 1.2178 | I181: 8.912469218e-08 | K181: 178 | L181: São Marino | M181: 220.0358 | N181: 8.6056272e-06 | O181: 137.2922
A182: 179 | B182: Virgens Britânicas, Ilhas | C182: 76.305 | D182: 6.409585765e-06 | F182: 179 | G182: Libéria | H182: 0.9646 | I182: 7.059425035e-08 | K182: 179 | L182: Maldivas | M182: 210.9874 | N182: 8.251743163e-06 | O182: 47.8582
A183: 180 | B183: Zimbabwe | C183: 74.3512 | D183: 6.245467442e-06 | F183: 180 | G183: Território Palestiniano Ocupado | H183: 0.4852 | I183: 3.550936167e-08 | K183: 180 | L183: Bahamas | M183: 201.3742 | N183: 7.875769729e-06 | O183: 201.3742
A184: 181 | B184: Jibuti | C184: 58.3202 | D184: 4.898870634e-06 | F184: 181 | G184: Polinésia Francesa | H184: 0.3838 | I184: 2.808840274e-08 | K184: 181 | L184: Afeganistão | M184: 190.7992 | N184: 7.462180178e-06 | O184: 28.0556
A185: 182 | B185: Caimão, Ilhas | C185: 38.9392 | D185: 3.27087533e-06 | F185: 182 | G185: Haiti | H185: 0.2484 | I185: 1.817915383e-08 | K185: 182 | L185: São Pedro e Miquelon | M185: 148.037 | N185: 5.789745277e-06 | O185: -147.4054
A186: 183 | B186: Melilha | C186: 35.4978 | D186: 2.981799274e-06 | F186: 183 | G186: Bermudas | H186: 0.1962 | I186: 1.435889687e-08 | K186: 183 | L186: Quirguizistão | M186: 135.523 | N186: 5.300321198e-06 | O186: 100.5726
A187: 184 | B187: Mongólia | C187: 29.5782 | D187: 2.48455553e-06 | F187: 184 | G187: Aruba | H187: 0.1806 | I187: 1.321721088e-08 | K187: 184 | L187: Kosovo | M187: 135.4836 | N187: 5.298780259e-06 | O187: 118.7392
A188: 185 | B188: Laos, República Democrática Popular do | C188: 15.9946 | D188: 1.343539224e-06 | F188: 185 | G188: Nova Caledónia | H188: 0.1548 | I188: 1.13290379e-08 | K188: 185 | L188: Bonaire, Santo Eustáquio e Saba | M188: 134.0798 | N188: 5.243877468e-06 | O188: 134.0798
A189: 186 | B189: Turcas e Caicos, Ilhas | C189: 13.9152 | D189: 1.168870557e-06 | F189: 186 | G189: Burundi | H189: 0.114 | I189: 8.343089923e-09 | K189: 186 | L189: Santa Lúcia | M189: 114.8238 | N189: 4.49077294e-06 | O189: 114.8238
A190: 187 | B190: Fiji, Ilhas | C190: 10.822 | D190: 9.090431447e-07 | F190: 187 | G190: Niger | H190: 0.094 | I190: 6.879389936e-09 | K190: 187 | L190: Liechtenstein | M190: 97.7648 | N190: 3.823593352e-06 | O190: 95.3112
A191: 188 | B191: Chade | C191: 9.649 | D191: 8.105116709e-07 | F191: 188 | G191: Vanuatu | H191: 0.0546 | I191: 3.995900963e-09 | K191: 188 | L191: Nepal | M191: 90.4274 | N191: 3.536626735e-06 | O191: 72.1198
A192: 189 | B192: Malavi | C192: 8.2284 | D192: 6.911819083e-07 | F192: 189 | G192: Micronésia, Estados Federados da | H192: 0.039 | I192: 2.854214974e-09 | K192: 189 | L192: Botswana | M192: 82.1538 | N192: 3.213045222e-06 | O192: 82.1538
A193: 190 | B193: São Vicente e Granadinas | C193: 6.7852 | D193: 5.699537558e-07 | F193: 190 | G193: Mongólia | H193: 0.0112 | I193: 8.196719924e-10 | K193: 190 | L193: Virgens Britânicas, Ilhas | M193: 76.305 | N193: 2.984297935e-06 | O193: 76.305
A194: 191 | B194: Brunei Darussalam | C194: 6.6326 | D194: 5.571354243e-07 | F194: 191 | G194: São Martinho (parte holandesa) | H194: 0.0028 | I194: 2.049179981e-10 | K194: 191 | L194: Jibuti | M194: 67.6924 | N194: 2.647458089e-06 | O194: 48.948
A195: 192 | B195: Territórios Franceses do Sul | C195: 6.3102 | D195: 5.300539689e-07 | F195: 192 | G195: Anguila | H195: 0 | I195: 0 | K195: 192 | L195: Santa Helena | M195: 66.474 | N195: 2.599806315e-06 | O195: -66.474
A196: 193 | B196: Guam | C196: 5.125 | D196: 4.304977007e-07 | F196: 193 | G196: Antárctica | H196: 0 | I196: 0 | K196: 193 | L196: Tajiquistão | M196: 53.4888 | N196: 2.091953546e-06 | O196: -53.4888
A197: 194 | B197: Menores distantes dos Estados Unidos, lhas | C197: 4.5544 | D197: 3.825675567e-07 | F197: 194 | G197: Antilhas Holandesas | H197: 0 | I197: 0 | K197: 194 | L197: Caimão, Ilhas | M197: 38.9392 | N197: 1.522916901e-06 | O197: 38.9392
A198: 195 | B198: Sudão do Sul | C198: 3.771 | D198: 3.167623081e-07 | F198: 195 | G198: Bahamas | H198: 0 | I198: 0 | K198: 195 | L198: Falkland Ilhas (Malvinas) | M198: 38.0622 | N198: 1.488617323e-06 | O198: -38.0622
A199: 196 | B199: Papuásia-Nova Guiné | C199: 3.7384 | D199: 3.140239228e-07 | F199: 196 | G199: Bonaire, Santo Eustáquio e Saba | H199: 0 | I199: 0 | K199: 196 | L199: Melilha | M199: 35.4978 | N199: 1.388323324e-06 | O199: 35.4978
A200: 197 | B200: Marianas do Norte, Ilhas | C200: 3.715 | D200: 3.120583333e-07 | F200: 197 | G200: Botswana | H200: 0 | I200: 0 | K200: 197 | L200: Mongólia | M200: 29.5894 | N200: 1.157245073e-06 | O200: 29.567
... 59 more rows

Sheet 2AA
A1: Posição de Argélia entre os parceiros comerciais de Portugal (média 2017-2021 em milhares de euros) produtos agrícolas e agroalimentares
A2: Exportações | F2: Importações | K2: Trocas comerciais (total e saldo)
A3: P | B3: País | C3: média quinquénio | D3: % do Total | F3: P | G3: País | H3: média quinquénio | I3: % do Total | K3: P | L3: País | M3: Total (exp+imp) | N3: % do Total | O3: Saldo (exp-imp)
A4: 1 | B4: Espanha | C4: 2127929.014 | D4: =C4/$C$254 -> 0.3291608095 | F4: 1 | G4: Espanha | H4: 4305701.552 | I4: =H4/$H$254 -> 0.4633652304 | K4: 1 | L4: Espanha | M4: 6433630.566 | N4: =M4/$M$254 -> 0.4083042859 | O4: -2177772.538
A5: 2 | B5: França | C5: 627566.728 | D5: 0.09707578159 | F5: 2 | G5: França | H5: 739288.8532 | I5: 0.07955979895 | K5: 2 | L5: França | M5: 1366855.581 | N5: 0.08674619818 | O5: -111722.1252
A6: 3 | B6: Itália | C6: 392045.6 | D6: 0.06064396238 | F6: 3 | G6: Alemanha | H6: 654501.663 | I6: 0.07043528452 | K6: 3 | L6: Alemanha | M6: 889599.4814 | N6: 0.05645759067 | O6: -419403.8446
A7: 4 | B7: Brasil | C7: 347647.371 | D7: 0.0537761783 | F7: 4 | G7: Países Baixos | H7: 542272.2538 | I7: 0.05835753008 | K7: 4 | L7: Países Baixos | M7: 850133.2236 | N7: 0.05395290191 | O7: -234411.284
A8: 5 | B8: Países Baixos | C8: 307860.9698 | D8: 0.04762177938 | F8: 5 | G8: Brasil | H8: 420113.2732 | I8: 0.0452111883 | K8: 5 | L8: Brasil | M8: 767760.6442 | N8: 0.04872520397 | O8: -72465.9022
A9: 6 | B9: Angola | C9: 305805.486 | D9: 0.04730382483 | F9: 6 | G9: Itália | H9: 286485.821 | I9: 0.03083064789 | K9: 6 | L9: Itália | M9: 678531.421 | N9: 0.04306235562 | O9: 105559.779 | P9: Nota: Nesta listagem, o Reino Unido passa a ser constituído por três componentes: Reino Unido [até 2020] ; Reino Unido (sem Irlanda do Norte) pós-2020 e Reino Unido (Irlanda do Norte) pós-2020. Estas componentes são calculadas igualmente como média do quinquénio, embora a primeira corresponda a 2017-2020 e as duas últimas apenas ao ano de 2021.
A10: 7 | B10: Reino Unido | C10: 264080.8596 | D10: 0.04084960962 | F10: 7 | G10: Bélgica | H10: 231140.9168 | I10: 0.02487461401 | K10: 7 | L10: Reino Unido | M10: 407760.4688 | N10: 0.02587813294 | O10: 120401.2504
A11: 8 | B11: Alemanha | C11: 235097.8184 | D11: 0.03636633915 | F11: 8 | G11: Estados Unidos | H11: 201265.5746 | I11: 0.0216595294 | K11: 8 | L11: Bélgica | M11: 389766.9284 | N11: 0.02473618989 | O11: -72514.9052
A12: 9 | B12: Estados Unidos | C12: 165426.5542 | D12: 0.02558917057 | F12: 9 | G12: Ucrânia | H12: 189308.3772 | I12: 0.02037273572 | K12: 9 | L12: Estados Unidos | M12: 366692.1288 | N12: 0.02327176954 | O12: -35839.0204
A13: 10 | B13: Bélgica | C13: 158626.0116 | D13: 0.02453722189 | F13: 10 | G13: Polónia | H13: 154356.6484 | I13: 0.01661134732 | K13: 10 | L13: Angola | M13: 311183.2568 | N13: 0.01974895142 | O13: 300427.7152
A14: 11 | B14: Israel | C14: 134744.231 | D14: 0.02084304498 | F14: 11 | G14: Reino Unido | H14: 143679.6092 | I14: 0.01546232 | K14: 11 | L14: Polónia | M14: 284564.9668 | N14: 0.01805964679 | O14: -24148.33
A15: 12 | B15: Polónia | C15: 130208.3184 | D15: 0.02014140284 | F15: 12 | G15: Roménia | H15: 106523.9926 | I15: 0.01146375655 | K15: 12 | L15: Ucrânia | M15: 194602.4806 | N15: 0.01235026259 | O15: -184014.2738
A16: 13 | B16: Suíça | C16: 85392.1358 | D16: 0.0132089672 | F16: 13 | G16: Irlanda | H16: 105096.0304 | I16: 0.01131008403 | K16: 13 | L16: Canadá | M16: 158937.9946 | N16: 0.01008684968 | O16: -17378.7494
A17: 14 | B17: China, República Popular da | C17: 80714.3558 | D17: 0.01248538016 | F17: 14 | G17: África do Sul | H17: 102089.4548 | I17: 0.01098652639 | K17: 14 | L17: Israel | M17: 140201.307 | N17: 0.008897743499 | O17: 129287.155
A18: 15 | B18: Cabo Verde | C18: 78331.9314 | D18: 0.01211685248 | F18: 15 | G18: Canadá | H18: 88158.372 | I18: 0.009487309759 | K18: 15 | L18: Irlanda | M18: 129910.0874 | N18: 0.00824462097 | O18: -80281.9734
A19: 16 | B19: Reino Unido (sem Irlanda do Norte) pós 2020 | C19: 74581.0578 | D19: 0.01153664488 | F19: 16 | G19: Costa Rica | H19: 65622.737 | I19: 0.007062099935 | K19: 16 | L19: China, República Popular da | M19: 127042.6858 | N19: 0.008062644036 | O19: 34386.0258
A20: 17 | B20: Canadá | C20: 70779.6226 | D20: 0.0109486161 | F20: 17 | G20: Dinamarca | H20: 63017.912 | I20: 0.006781777362 | K20: 17 | L20: África do Sul | M20: 122941.4208 | N20: 0.007802361127 | O20: -81237.4888
A21: 18 | B21: Rússia, Federação da | C21: 51321.4378 | D21: 0.007938707495 | F21: 18 | G21: Argentina | H21: 62412.5758 | I21: 0.006716633101 | K21: 18 | L21: Roménia | M21: 122297.149 | N21: 0.007761473026 | O21: -90750.8362
A22: 19 | B22: Japão | C22: 50759.7006 | D22: 0.007851814619 | F22: 19 | G22: Bulgária | H22: 51997.6866 | I22: 0.005595817485 | K22: 19 | L22: Dinamarca | M22: 107986.5028 | N22: 0.006853261384 | O22: -18049.3212
A23: 20 | B23: Suécia | C23: 45783.803 | D23: 0.007082112965 | F23: 20 | G23: China, República Popular da | H23: 46328.33 | I23: 0.00498570025 | K23: 20 | L23: Reino Unido (sem Irlanda do Norte) pós 2020 | M23: 96975.7172 | N23: 0.006154472278 | O23: 52186.3984
A24: 21 | B24: Dinamarca | C24: 44968.5908 | D24: 0.006956011057 | F24: 21 | G24: Paraguai | H24: 33692.2338 | I24: 0.003625845751 | K24: 21 | L24: Suíça | M24: 88917.0348 | N24: 0.005643035613 | O24: 81867.2368
A25: 22 | B25: Luxemburgo | C25: 42074.4582 | D25: 0.006508329286 | F25: 22 | G25: Cuba | H25: 31194.4962 | I25: 0.003357047567 | K25: 22 | L25: Cabo Verde | M25: 78468.1992 | N25: 0.004979910133 | O25: 78195.6636
A26: 23 | B26: Marrocos | C26: 33631.4136 | D26: 0.00520230856 | F26: 23 | G26: Vietname | H26: 27756.1186 | I26: 0.002987020845 | K26: 23 | L26: Costa Rica | M26: 66714.1326 | N26: 0.0042339494 | O26: -64531.3414
A27: 24 | B27: Guiné-Bissau | C27: 26564.7912 | D27: 0.004109201068 | F27: 24 | G27: Guiana | H27: 26314.7806 | I27: 0.002831908861 | K27: 24 | L27: Japão | M27: 64169.5832 | N27: 0.004072461976 | O27: 37349.818
A28: 25 | B28: Irlanda | C28: 24814.057 | D28: 0.003838387012 | F28: 25 | G28: Colômbia | H28: 26175.5386 | I28: 0.002816924101 | K28: 25 | L28: Argentina | M28: 62615.6478 | N28: 0.003973842934 | O28: -62209.5038
A29: 26 | B29: Arábia Saudita | C29: 24421.467 | D29: 0.003777658838 | F29: 26 | G29: Chile | H29: 25781.1296 | I29: 0.002774479121 | K29: 26 | L29: Suécia | M29: 59590.6194 | N29: 0.003781862364 | O29: 31976.9866
A30: 27 | B30: São Tomé e Príncipe | C30: 24020.5178 | D30: 0.003715637614 | F30: 27 | G30: Grécia | H30: 25017.1 | I30: 0.002692256805 | K30: 27 | L30: Rússia, Federação da | M30: 59427.1552 | N30: 0.003771488263 | O30: 43215.7204
A31: 28 | B31: Moçambique | C31: 22615.0204 | D31: 0.003498226855 | F31: 28 | G31: Reino Unido (sem Irlanda do Norte) pós 2020 | H31: 22394.6594 | I31: 0.002410038501 | K31: 28 | L31: Bulgária | M31: 58767.2956 | N31: 0.003729610897 | O31: -45228.0776
A32: 29 | B32: África do Sul | C32: 20851.966 | D32: 0.003225507037 | F32: 29 | G32: Checa, República | H32: 20742.2624 | I32: 0.002232213051 | K32: 29 | L32: Luxemburgo | M32: 49838.522 | N32: 0.003162954716 | O32: 34310.3944
A33: 30 | B33: Grécia | C33: 20279.4276 | D33: 0.003136943367 | F33: 30 | G33: Índia | H33: 20739.1046 | I33: 0.002231873219 | K33: 30 | L33: Grécia | M33: 45296.5276 | N33: 0.002874701332 | O33: -4737.6724
A34: 31 | B34: Finlândia | C34: 17265.365 | D34: 0.002670710105 | F34: 31 | G34: Áustria | H34: 20052.3556 | I34: 0.002157967583 | K34: 31 | L34: Marrocos | M34: 43382.0786 | N34: 0.002753202635 | O34: 23880.7486
A35: 32 | B35: Checa, República | C35: 16875.8356 | D35: 0.002610455363 | F35: 32 | G35: Costa do Marfim | H35: 18028.2102 | I35: 0.001940135811 | K35: 32 | L35: Checa, República | M35: 37618.098 | N35: 0.002387397051 | O35: -3866.4268
A36: 33 | B36: Noruega | C36: 16036.7366 | D36: 0.002480658502 | F36: 33 | G36: Turquia | H36: 16291.5394 | I36: 0.001753241096 | K36: 33 | L36: Paraguai | M36: 34345.165 | N36: 0.002179683451 | O36: -33039.3026
A37: 34 | B37: Roménia | C37: 15773.1564 | D37: 0.002439886338 | F37: 34 | G37: Uruguai | H37: 16261.823 | I37: 0.001750043116 | K37: 34 | L37: Cuba | M37: 33461.8812 | N37: 0.002123626679 | O37: -28927.1112
A38: 35 | B38: Argélia | C38: 14208.38 | D38: 0.002197837349 | F38: 35 | G38: Uganda | H38: 15938.7994 | I38: 0.001715280394 | K38: 35 | L38: Áustria | M38: 33021.6536 | N38: 0.00209568805 | O38: -7083.0576
A39: 36 | B39: Áustria | C39: 12969.298 | D39: 0.002006168721 | F39: 36 | G39: Hungria | H39: 15162.8498 | I39: 0.001631775288 | K39: 36 | L39: Colômbia | M39: 31754.5188 | N39: 0.002015270537 | O39: -20596.5584
A40: 37 | B40: Austrália | C40: 12232.4712 | D40: 0.001892191937 | F40: 37 | G40: Suécia | H40: 13806.8164 | I40: 0.0014858435 | K40: 37 | L40: Moçambique | M40: 31289.6666 | N40: 0.001985769131 | O40: 13940.3742
A41: 38 | B41: Emirados Árabes Unidos | C41: 12204.509 | D41: 0.001887866576 | F41: 38 | G41: Indonésia | H41: 13530.5742 | I41: 0.001456115236 | K41: 38 | L41: Chile | M41: 31089.759 | N41: 0.001973082184 | O41: -20472.5002
A42: 39 | B42: Jordânia | C42: 11847.4364 | D42: 0.001832632447 | F42: 39 | G42: Japão | H42: 13409.8826 | I42: 0.001443126809 | K42: 39 | L42: Vietname | M42: 29515.2776 | N42: 0.00187315921 | O42: -25996.9596
A43: 40 | B43: Macau | C43: 11447.1872 | D43: 0.001770719503 | F43: 40 | G43: Austrália | H43: 12903.3608 | I43: 0.001388616623 | K43: 40 | L43: Guiné-Bissau | M43: 26954.3896 | N43: 0.001710634872 | O43: 26175.1928
A44: 41 | B44: Iraque | C44: 11145.8556 | D44: 0.001724107725 | F44: 41 | G44: Suazilândia | H44: 12224.135 | I44: 0.00131552061 | K44: 41 | L44: Guiana | M44: 26340.1006 | N44: 0.001671649601 | O44: -26289.4606
A45: 42 | B45: Coreia, República da | C45: 10066.0038 | D45: 0.001557069779 | F45: 42 | G45: México | H45: 11261.699 | I45: 0.00121194646 | K45: 42 | L45: Austrália | M45: 25135.832 | N45: 0.001595221832 | O45: -670.8896
A46: 43 | B46: Hungria | C46: 9729.225 | D46: 0.001504974816 | F46: 43 | G46: Lituânia | H46: 10386.3304 | I46: 0.001117742212 | K46: 43 | L46: Hungria | M46: 24892.0748 | N46: 0.001579752011 | O46: -5433.6248
A47: 44 | B47: Eslováquia | C47: 9405.402 | D47: 0.001454883934 | F47: 44 | G47: Tailândia | H47: 10089.4452 | I47: 0.001085792418 | K47: 44 | L47: São Tomé e Príncipe | M47: 24712.1598 | N47: 0.001568333876 | O47: 23328.8758
A48: 45 | B48: Nigéria | C48: 8671.4586 | D48: 0.001341353172 | F48: 45 | G48: Peru | H48: 10018.2046 | I48: 0.001078125743 | K48: 45 | L48: Turquia | M48: 24586.6134 | N48: 0.001560366192 | O48: -7996.4654
A49: 46 | B49: Turquia | C49: 8295.074 | D49: 0.001283131747 | F49: 46 | G49: Marrocos | H49: 9750.665 | I49: 0.001049334024 | K49: 46 | L49: Arábia Saudita | M49: 24433.324 | N49: 0.001550637825 | O49: 24409.61
A50: 47 | B50: Gibraltar | C50: 7935.4334 | D50: 0.001227500384 | F50: 47 | G50: Sérvia | H50: 8835.2344 | I50: 0.0009508184378 | K50: 47 | L50: Finlândia | M50: 23599.0258 | N50: 0.001497689878 | O50: 10931.7042
A51: 48 | B51: HongKong | C51: 7427.5176 | D51: 0.001148932925 | F51: 48 | G51: Moçambique | H51: 8674.6462 | I51: 0.0009335364717 | K51: 48 | L51: Índia | M51: 23327.9346 | N51: 0.001480485331 | O51: -18150.2746
A52: 49 | B52: Território Palestiniano Ocupado | C52: 7028.6564 | D52: 0.001087234685 | F52: 49 | G52: Paquistão | H52: 8301.2916 | I52: 0.0008933572958 | K52: 49 | L52: Costa do Marfim | M52: 21816.4544 | N52: 0.001384560668 | O52: -14239.966
A53: 50 | B53: Bulgária | C53: 6769.609 | D53: 0.001047163681 | F53: 50 | G53: Guatemala | H53: 8152.2626 | I53: 0.0008773192922 | K53: 50 | L53: Uruguai | M53: 17858.6134 | N53: 0.001133380028 | O53: -14665.0326
A54: 51 | B54: Senegal | C54: 6480.7152 | D54: 0.001002475857 | F54: 51 | G54: Rússia, Federação da | H54: 8105.7174 | I54: 0.0008723102531 | K54: 51 | L54: Noruega | M54: 16867.2874 | N54: 0.00107046646 | O54: 15206.1858
A55: 52 | B55: Líbia, Jamahira Árabe da | C55: 6351.2068 | D55: 0.0009824427215 | F55: 52 | G55: Egito | H55: 7873.318 | I55: 0.0008473002053 | K55: 52 | L55: Uganda | M55: 16334.5486 | N55: 0.001036656696 | O55: -15543.0502
A56: 53 | B56: Colômbia | C56: 5578.9802 | D56: 0.0008629900842 | F56: 53 | G56: Moldava, República de | H56: 7860.829 | I56: 0.0008459561808 | K56: 53 | L56: México | M56: 16145.9556 | N56: 0.001024687819 | O56: -6377.4424
A57: 54 | B57: Chile | C57: 5308.6294 | D57: 0.0008211706026 | F57: 54 | G57: Nova Zelânda | H57: 7839.3808 | I57: 0.0008436479971 | K57: 54 | L57: Lituânia | M57: 14656.118 | N57: 0.0009301366831 | O57: -6116.5428
A58: 55 | B58: Ucrânia | C58: 5294.1034 | D58: 0.0008189236339 | F58: 55 | G58: Luxemburgo | H58: 7764.0638 | I58: 0.000835542633 | K58: 55 | L58: Indonésia | M58: 14398.981 | N58: 0.0009138177263 | O58: -12662.1674
A59: 56 | B59: México | C59: 4884.2566 | D59: 0.0007555260752 | F59: 56 | G59: Belize | H59: 7019.7864 | I59: 0.0007554459833 | K59: 56 | L59: Argélia | M59: 14325.9984 | N59: 0.0009091859546 | O59: 14090.7616
A60: 57 | B60: Síria, República Árabe da | C60: 4794.0906 | D60: 0.0007415786581 | F60: 57 | G60: Equador | H60: 6998.787 | I60: 0.0007531860979 | K60: 57 | L60: Suazilândia | M60: 14006.578 | N60: 0.0008889142406 | O60: -10441.692
A61: 58 | B61: Maurícias | C61: 4588.6266 | D61: 0.0007097962555 | F61: 58 | G61: Honduras | H61: 6872.3582 | I61: 0.0007395802524 | K61: 58 | L61: Emirados Árabes Unidos | M61: 12601.2896 | N61: 0.0007997289399 | O61: 11807.7284
A62: 59 | B62: Estónia | C62: 4481.599 | D62: 0.0006932405851 | F62: 59 | G62: Camarões | H62: 6510.3296 | I62: 0.0007006199428 | K62: 59 | L62: Tailândia | M62: 12434.779 | N62: 0.000789161502 | O62: -7744.1114
A63: 60 | B63: Letónia | C63: 4454.8658 | D63: 0.0006891053336 | F63: 60 | G63: Malásia | H63: 6467.6302 | I63: 0.0006960247759 | K63: 60 | L63: Eslováquia | M63: 12196.6138 | N63: 0.0007740465726 | O63: 6614.1902
A64: 61 | B64: Kuwait | C64: 4454.3042 | D64: 0.0006890184619 | F64: 61 | G64: Finlândia | H64: 6333.6608 | I64: 0.0006816074362 | K64: 61 | L64: Jordânia | M64: 12005.5312 | N64: 0.0007619196959 | O64: 11689.3416
A65: 62 | B65: Andorra | C65: 4291.4996 | D65: 0.0006638348709 | F65: 62 | G65: Zimbabwe | H65: 5831.204 | I65: 0.0006275347124 | K65: 62 | L65: Peru | M65: 11727.3812 | N65: 0.0007442671689 | O65: -8309.028
A66: 63 | B66: Lituânia | C66: 4269.7876 | D66: 0.0006604763287 | F66: 63 | G66: Etiópia | H66: 5803.1934 | I66: 0.0006245203051 | K66: 63 | L66: Macau | M66: 11457.9822 | N66: 0.0007271700159 | O66: 11436.3922
A67: 64 | B67: Malta | C67: 3962.879 | D67: 0.0006130018676 | F67: 64 | G67: Israel | H67: 5457.076 | I67: 0.0005872723057 | K67: 64 | L67: Iraque | M67: 11147.6952 | N67: 0.0007074779445 | O67: 11144.016
A68: 65 | B68: Costa do Marfim | C68: 3788.2442 | D68: =C68/$C$254 -> 0.0005859883104 | F68: 65 | G68: Angola | H68: 5377.7708 | I68: =H68/$H$254 -> 0.0005787377448 | K68: 65 | L68: Coreia, República da | M68: 10895.9418 | N68: =M68/$M$254 -> 0.0006915006528 | O68: 9236.0658
A69: 66 | B69: Eslovénia | C69: 3563.4916 | D69: 0.0005512222316 | F69: 66 | G69: Filipinas | H69: 5297.1968 | I69: 0.0005700666398 | K69: 66 | L69: Sérvia | M69: 10225.2858 | N69: 0.0006489381034 | O69: -7445.183
A70: 67 | B70: Omã | C70: 3446.2538 | D70: 0.0005330871862 | F70: 67 | G70: Suriname | H70: 4821.0978 | I70: 0.0005188304544 | K70: 67 | L70: Nova Zelânda | M70: 9865.009 | N70: 0.0006260734766 | O70: -5813.7526
A71: 68 | B71: Líbano | C71: 3427.1012 | D71: 0.0005301245473 | F71: 68 | G71: Malavi | H71: 4790.755 | I71: 0.0005155650636 | K71: 68 | L71: Nigéria | M71: 9204.7544 | N71: 0.0005841710422 | O71: 8138.1628
A72: 69 | B72: Chipre | C72: 3381.6674 | D72: 0.0005230965749 | F72: 69 | G72: Tanzânia, República Unida da | H72: 4616.1504 | I72: 0.0004967746993 | K72: 69 | L72: Egito | M72: 8984.9512 | N72: 0.0005702214397 | O72: -6761.6848
A73: 70 | B73: Belarus | C73: 2848.8268 | D73: 0.0004406735984 | F73: 70 | G73: Camboja | H73: 4263.9402 | I73: 0.0004588710131 | K73: 70 | L73: Paquistão | M73: 8654.0974 | N73: 0.0005492241159 | O73: -7948.4858
A74: 71 | B74: Singapura | C74: 2596.298 | D74: 0.0004016109305 | F74: 71 | G74: Laos, República Democrática Popular do | H74: 4211.0262 | I74: 0.000453176585 | K74: 71 | L74: Letónia | M74: 8598.9792 | N74: 0.0005457260914 | O74: 310.7524
A75: 72 | B75: Índia | C75: 2588.83 | D75: 0.0004004557355 | F75: 72 | G75: Tunísia | H75: 4168.0548 | I75: 0.0004485521464 | K75: 72 | L75: Guatemala | M75: 8537.8026 | N75: 0.0005418435763 | O75: -7766.7226
A76: 73 | B76: Timor-Leste | C76: 2535.9008 | D76: 0.0003922683298 | F76: 73 | G76: Letónia | H76: 4144.1134 | I76: 0.0004459756528 | K76: 73 | L76: Camarões | M76: 8397.1486 | N76: 0.000532917103 | O76: -4623.5106
A77: 74 | B77: Taiwan | C77: 2522.246 | D77: 0.0003901561235 | F77: 74 | G77: Mali | H77: 4001.9918 | I77: 0.0004306810006 | K77: 74 | L77: Estónia | M77: 8314.0404 | N77: 0.0005276427196 | O77: 649.1576
A78: 75 | B78: Irão, República Islâmica do | C78: 2438.8444 | D78: 0.0003772550643 | F78: 75 | G78: Macedónia, Antiga República jugoslava da | H78: 3918.6146 | I78: 0.0004217082246 | K78: 75 | L78: HongKong | M78: 8041.26 | N78: 0.0005103309692 | O78: 6813.7752
A79: 76 | B79: Tailândia | C79: 2345.3338 | D79: 0.0003627902844 | F79: 76 | G79: Estónia | H79: 3832.4414 | I79: 0.0004124345524 | K79: 76 | L79: Moldava, República de | M79: 8013.6214 | N79: 0.0005085769116 | O79: -7708.0366
A80: 77 | B80: Cuba | C80: 2267.385 | D80: 0.000350732697 | F80: 77 | G80: Fiji, Ilhas | H80: 3681.2192 | I80: 0.0003961605239 | K80: 77 | L80: Gibraltar | M80: 7935.4334 | N80: 0.0005036147841 | O80: 7935.4334
A81: 78 | B81: Gana | C81: 2230.2102 | D81: 0.0003449822762 | F81: 78 | G81: Suíça | H81: 3524.899 | I81: 0.0003793378658 | K81: 78 | L81: Malásia | M81: 7872.9444 | N81: 0.0004996489787 | O81: -5062.316
A82: 79 | B82: Nova Zelânda | C82: 2025.6282 | D82: 0.0003133363067 | F82: 79 | G82: Myanmar | H82: 3388.3164 | I82: 0.0003646393022 | K82: 79 | L82: Honduras | M82: 7728.4804 | N82: 0.0004904807074 | O82: -6016.236
A83: 80 | B83: Guiné | C83: 1922.0304 | D83: 0.0002973111782 | F83: 80 | G83: Eslovénia | H83: 3319.042 | I83: 0.0003571842225 | K83: 80 | L83: Equador | M83: 7664.1646 | N83: 0.0004863989659 | O83: -6333.4094
A84: 81 | B84: Gabão | C84: 1895.6218 | D84: 0.0002932261378 | F84: 81 | G84: Nicarágua | H84: 3031.288 | I84: 0.0003262170974 | K84: 81 | L84: Filipinas | M84: 7157.7828 | N84: 0.0004542619234 | O84: -3436.6108
A85: 82 | B85: Albânia | C85: 1893.9118 | D85: 0.0002929616247 | F85: 82 | G85: Taiwan | H85: 2927.1362 | I85: 0.0003150086283 | K85: 82 | L85: Etiópia | M85: 7148.1922 | N85: 0.000453653265 | O85: -4458.1946
A86: 83 | B86: Camarões | C86: 1886.819 | D86: 0.0002918644679 | F86: 83 | G86: Sri Lanca | H86: 2919.1428 | I86: 0.0003141484053 | K86: 83 | L86: Território Palestiniano Ocupado | M86: 7029.1416 | N86: 0.0004460978312 | O86: 7028.1712
A87: 84 | B87: Filipinas | C87: 1860.586 | D87: 0.0002878065903 | F87: 84 | G87: Eslováquia | H87: 2791.2118 | I87: 0.000300380898 | K87: 84 | L87: Belize | M87: 7022.5196 | N87: 0.0004456775722 | O87: -7017.0532
A88: 85 | B88: Sudão | C88: 1846.0972 | D88: 0.0002855653759 | F88: 85 | G88: Quénia | H88: 2618.6524 | I88: 0.0002818106313 | K88: 85 | L88: Senegal | M88: 6959.9862 | N88: 0.000441708949 | O88: 6001.4442
A89: 86 | B89: Congo | C89: 1807.7984 | D89: 0.0002796410881 | F89: 86 | G89: Chade | H89: 1938.2016 | I89: 0.0002085827873 | K89: 86 | L89: Eslovénia | M89: 6882.5336 | N89: 0.0004367934929 | O89: 244.4496
A90: 87 | B90: Suazilândia | C90: 1782.443 | D90: 0.0002757189629 | F90: 87 | G90: Togo | H90: 1729.6156 | I90: 0.0001861354581 | K90: 87 | L90: Líbia, Jamahira Árabe da | M90: 6357.1568 | N90: 0.0004034509506 | O90: 6345.2568
A91: 88 | B91: Vietname | C91: 1759.159 | D91: 0.0002721172542 | F91: 88 | G91: Panamá | H91: 1602.5274 | I91: 0.0001724586502 | K91: 88 | L91: Zimbabwe | M91: 5905.0274 | N91: 0.0003747569854 | O91: -5757.3806
A92: 89 | B92: Peru | C92: 1709.1766 | D92: 0.0002643856771 | F92: 89 | G92: Benim | H92: 1530.532 | I92: 0.0001647107456 | K92: 89 | L92: Síria, República Árabe da | M92: 5844.2842 | N92: 0.0003709019756 | O92: 3743.897
A93: 90 | B93: Seychelles | C93: 1690.5274 | D93: 0.0002615009071 | F93: 90 | G93: Madagáscar | H93: 1483.9048 | I93: 0.0001596928819 | K93: 90 | L93: Maurícias | M93: 5710.2382 | N93: 0.0003623948728 | O93: 3467.015
A94: 91 | B94: Venezuela | C94: 1662.7172 | D94: 0.0002571990588 | F94: 91 | G94: Chipre | H94: 1453.644 | I94: 0.0001564363156 | K94: 91 | L94: Taiwan | M94: 5449.3822 | N94: 0.0003458398932 | O94: -404.8902
A95: 92 | B95: Uruguai | C95: 1596.7904 | D95: 0.0002470011063 | F95: 92 | G95: Croácia | H95: 1384.6026 | I95: 0.0001490063106 | K95: 92 | L95: Mali | M95: 5271.3696 | N95: 0.0003345424918 | O95: -2732.614
A96: 93 | B96: Catar | C96: 1419.0288 | D96: 0.000219503877 | F96: 93 | G96: Líbano | H96: 1376.7814 | I96: 0.0001481646192 | K96: 93 | L96: Kuwait | M96: 5262.8756 | N96: 0.0003340034281 | O96: 3645.7328
A97: 94 | B97: Malásia | C97: 1405.3142 | D97: 0.0002173824205 | F97: 94 | G97: Dominicana, República | H97: 1171.981 | I97: 0.0001261246836 | K97: 94 | L97: Tunísia | M97: 4989.1446 | N97: 0.0003166313487 | O97: -3346.965
A98: 95 | B98: Dominicana, República | C98: 1394.4666 | D98: 0.0002157044487 | F98: 95 | G98: Congo, República Democrática do | H98: 1154.8422 | I98: 0.0001242802632 | K98: 95 | L98: Suriname | M98: 4923.3426 | N98: 0.000312455287 | O98: -4718.853
A99: 96 | B99: Sérvia | C99: 1390.0514 | D99: 0.0002150214791 | F99: 96 | G99: Gana | H99: 1128.6306 | I99: 0.0001214594583 | K99: 96 | L99: Tanzânia, República Unida da | M99: 4890.9168 | N99: 0.0003103974142 | O99: -4341.384
A100: 97 | B100: Croácia | C100: 1355.767 | D100: 0.0002097181627 | F100: 97 | G100: Maurícias | H100: 1121.6116 | I100: 0.0001207040969 | K100: 97 | L100: Chipre | M100: 4835.3114 | N100: 0.00030686847 | O100: 1928.0234
A101: 98 | B101: Etiópia | C101: 1344.9988 | D101: 0.000208052473 | F101: 98 | G101: Reino Unido (Irlanda do Norte) pós-2020 | H101: 1094.1084 | I101: 0.0001177442943 | K101: 98 | L101: Líbano | M101: 4803.8826 | N101: 0.0003048738709 | O101: 2050.3198
A102: 99 | B102: Mali | C102: 1269.3778 | D102: 0.0001963549637 | F102: 99 | G102: Serra Leoa | H102: 1070.5168 | I102: 0.0001152054451 | K102: 99 | L102: Malavi | M102: 4796.774 | N102: 0.0003044227304 | O102: -4784.736
A103: 100 | B103: Benim | C103: 1145.602 | D103: 0.0001772085813 | F103: 100 | G103: Síria, República Árabe da | H103: 1050.1936 | I103: 0.0001130183301 | K103: 100 | L103: Camboja | M103: 4638.5844 | N103: 0.0002943833768 | O103: -3889.296
A104: 101 | B104: Egito | C104: 1111.6332 | D104: 0.0001719540838 | F104: 101 | G104: Burquina Faso | H104: 994.137 | I104: 0.0001069857059 | K104: 101 | L104: Malta | M104: 4405.9652 | N104: 0.0002796204191 | O104: 3519.7928
A105: 102 | B105: Costa Rica | C105: 1091.3956 | D105: 0.0001688236106 | F105: 102 | G105: Singapura | H105: 908.2562 | I105: 9.774350087e-05 | K105: 102 | L105: Andorra | M105: 4296.175 | N105: 0.0002726526877 | O105: 4286.8242
A106: 103 | B106: Bangladesh | C106: 1078.7874 | D106: 0.0001668732987 | F106: 103 | G106: Noruega | H106: 830.5508 | I106: 8.938110507e-05 | K106: 103 | L106: Laos, República Democrática Popular do | M106: 4225.5084 | N106: 0.0002681678987 | O106: -4196.544
A107: 104 | B107: Guiné Equatorial | C107: 1069.1446 | D107: 0.0001653816926 | F107: 104 | G107: Coreia, República da | H107: 829.938 | I107: 8.931515758e-05 | K107: 104 | L107: Macedónia, Antiga República jugoslava da | M107: 4129.6478 | N107: 0.0002620841963 | O107: -3707.5814
A108: 105 | B108: Burquina Faso | C108: 1038.9106 | D108: 0.0001607049163 | F108: 105 | G108: Kuwait | H108: 808.5714 | I108: 8.70157554e-05 | K108: 105 | L108: Omã | M108: 3815.2552 | N108: 0.000242131567 | O108: 3077.2524
A109: 106 | B109: Islândia | C109: 968.286 | D109: 0.00014978028 | F109: 106 | G109: Turquemenistão | H109: 804.7756 | I109: 8.660726407e-05 | K109: 106 | L109: Myanmar | M109: 3788.6072 | N109: 0.0002404403768 | O109: -2988.0256
A110: 107 | B110: Congo, República Democrática do | C110: 936.534 | D110: 0.0001448686904 | F110: 107 | G110: El Salvador | H110: 752.2 | I110: 8.094925347e-05 | K110: 107 | L110: Fiji, Ilhas | M110: 3684.8548 | N110: 0.0002338558288 | O110: -3677.5836
A111: 108 | B111: Burundi | C111: 904.8 | D111: 0.0001399598852 | F111: 108 | G111: Zâmbia | H111: 694.808 | I111: 7.477291798e-05 | K111: 108 | L111: Singapura | M111: 3504.5542 | N111: 0.0002224132215 | O111: 1688.0418
A112: 109 | B112: Iémen | C112: 893.6956 | D112: 0.00013824219 | F112: 109 | G112: São Tomé e Príncipe | H112: 691.642 | I112: 7.443220363e-05 | K112: 109 | L112: Nicarágua | M112: 3409.5078 | N112: 0.0002163811915 | O112: -2653.0682
A113: 110 | B113: Indonésia | C113: 868.4068 | D113: 0.0001343303669 | F113: 110 | G113: HongKong | H113: 613.7424 | I113: 6.604890867e-05 | K113: 110 | L113: Gana | M113: 3358.8408 | N113: 0.0002131656582 | O113: 1101.5796
A114: 111 | B114: Honduras | C114: 856.1222 | D114: 0.0001324301114 | F114: 111 | G114: Nigéria | H114: 533.2958 | I114: 5.739151408e-05 | K114: 111 | L114: Sri Lanca | M114: 3283.8334 | N114: 0.0002084053845 | O114: -2554.4522
A115: 112 | B115: Tunísia | C115: 821.0898 | D115: 0.0001270110899 | F115: 112 | G115: Timor-Leste | H115: 507.9458 | I115: 5.466343169e-05 | K115: 112 | L115: Belarus | M115: 3086.6088 | N115: 0.0001958887115 | O115: 2611.0448
A116: 113 | B116: Reino Unido (Irlanda do Norte) pós-2020 | C116: 771.472 | D116: 0.0001193359113 | F116: 113 | G116: Senegal | H116: 479.271 | I116: 5.157754542e-05 | K116: 113 | L116: Timor-Leste | M116: 3043.8466 | N116: 0.0001931748489 | O116: 2027.955
A117: 114 | B117: Bermudas | C117: 761.096 | D117: 0.0001177308894 | F117: 114 | G117: Malta | H117: 443.0862 | I117: 4.768345801e-05 | K117: 114 | L117: Quénia | M117: 2960.9734 | N117: 0.0001879153796 | O117: -2276.3314
A118: 115 | B118: Ruanda | C118: 731.3606 | D118: 0.0001131312396 | F118: 115 | G118: Emirados Árabes Unidos | H118: 396.7806 | I118: 4.270020389e-05 | K118: 115 | L118: Croácia | M118: 2740.3696 | N118: 0.0001739149678 | O118: -28.8356
A119: 116 | B119: Geórgia | C119: 726.893 | D119: 0.0001124401645 | F119: 116 | G119: Guiné-Bissau | H119: 389.5984 | I119: 4.192727949e-05 | K119: 116 | L119: Benim | M119: 2676.134 | N119: 0.0001698383161 | O119: -384.93
A120: 117 | B120: Equador | C120: 665.3776 | D120: 0.0001029245938 | F120: 117 | G120: Omã | H120: 369.0014 | I120: 3.97106991e-05 | K120: 117 | L120: Irão, República Islâmica do | M120: 2611.4938 | N120: 0.0001657359869 | O120: 2266.195
A121: 118 | B121: Paraguai | C121: 652.9312 | D121: 0.0001009993101 | F121: 118 | G121: Usbequistão | H121: 287.6288 | I121: 3.095365147e-05 | K121: 118 | L121: Dominicana, República | M121: 2566.4476 | N121: 0.0001628771724 | O121: 222.4856
A122: 119 | B122: Arménia | C122: 652.7818 | D122: 0.0001009762 | F122: 119 | G122: Bangladesh | H122: 250.5674 | I122: 2.69652273e-05 | K122: 119 | L122: Togo | M122: 2271.6694 | N122: 0.0001441693524 | O122: -1187.5618
A123: 120 | B123: Panamá | C123: 645.572 | D123: 9.986094495e-05 | F123: 120 | G123: Belarus | H123: 237.782 | I123: 2.558930522e-05 | K123: 120 | L123: Panamá | M123: 2248.0994 | N123: 0.0001426735046 | O123: -956.9554
A124: 121 | B124: Namíbia | C124: 565.9242 | D124: 8.754054603e-05 | F124: 121 | G124: Islândia | H124: 218.6164 | I124: 2.352676732e-05 | K124: 121 | L124: Congo, República Democrática do | M124: 2091.3762 | N124: 0.0001327272148 | O124: -218.3082
A125: 122 | B125: Togo | C125: 542.0538 | D125: 8.384812954e-05 | F125: 122 | G125: Congo | H125: 217.135 | I125: 2.336734399e-05 | K125: 122 | L125: Burquina Faso | M125: 2033.0476 | N125: 0.0001290254453 | O125: 44.7736
A126: 123 | B126: Azerbaijão | C126: 507.9702 | D126: 7.857587407e-05 | F126: 123 | G126: Irão, República Islâmica do | H126: 172.6494 | I126: 1.85799522e-05 | K126: 123 | L126: Congo | M126: 2024.9334 | N126: 0.0001285104853 | O126: 1590.6634
A127: 124 | B127: São Bartolomeu | C127: 491.0894 | D127: 7.596465079e-05 | F127: 124 | G127: Jordânia | H127: 158.0948 | I127: 1.701363472e-05 | K127: 124 | L127: Albânia | M127: 1989.8942 | N127: 0.0001262867555 | O127: 1797.9294
A128: 125 | B128: Serra Leoa | C128: 488.1254 | D128: 7.550616151e-05 | F128: 125 | G128: Cabo Verde | H128: 136.2678 | I128: 1.466468583e-05 | K128: 125 | L128: Guiné | M128: 1987.0614 | N128: 0.0001261069746 | O128: 1856.9994
A129: 126 | B129: Barém | C129: 487.7034 | D129: 7.544088402e-05 | F129: 126 | G129: Venezuela | H129: 124.9774 | I129: 1.344965067e-05 | K129: 126 | L129: Chade | M129: 1938.2056 | N129: 0.0001230063874 | O129: -1938.1976
A130: 127 | B130: Mauritânia | C130: 434.7768 | D130: 6.725388042e-05 | F130: 127 | G130: Bolívia | H130: 118.6962 | I130: 1.277368889e-05 | K130: 127 | L130: Gabão | M130: 1895.7268 | N130: 0.0001203105105 | O130: 1895.5168
A131: 128 | B131: Bolívia | C131: 433.0954 | D131: 6.699379139e-05 | F131: 128 | G131: Argélia | H131: 117.6184 | I131: 1.265769965e-05 | K131: 128 | L131: Reino Unido (Irlanda do Norte) pós-2020 | M131: 1865.5804 | N131: 0.0001183972977 | O131: -322.6364
A132: 129 | B132: Cazaquistão | C132: 431.263 | D132: =C132/$C$254 -> 6.671034478e-05 | F132: 129 | G132: Geórgia | H132: 112.496 | I132: =H132/$H$254 -> 1.210644406e-05 | K132: 129 | L132: Sudão | M132: 1862.6298 | N132: =M132/$M$254 -> 0.0001182100406 | O132: 1829.5646
A133: 130 | B133: Gâmbia | C133: 419.4628 | D133: 6.488501914e-05 | F133: 130 | G133: Albânia | H133: 95.9824 | I133: 1.032930554e-05 | K133: 130 | L133: Venezuela | M133: 1787.6946 | N133: 0.0001134543489 | O133: 1537.7398
A134: 131 | B134: Aruba | C134: 414.572 | D134: 6.41284809e-05 | F134: 131 | G134: Azerbaijão | H134: 95.1774 | I134: 1.024267413e-05 | K134: 131 | L134: Seychelles | M134: 1690.5274 | N134: 0.0001072877244 | O134: 1690.5274
A135: 132 | B135: Myanmar | C135: 400.2908 | D135: 6.191937931e-05 | F135: 132 | G135: Afeganistão | H135: 81.3718 | I135: 8.756961531e-06 | K135: 132 | L135: Madagáscar | M135: 1614.2252 | N135: 0.0001024452773 | O135: -1353.5844
A136: 133 | B136: Uganda | C136: 395.7492 | D136: 6.121685741e-05 | F136: 133 | G136: Namíbia | H136: 72.0918 | I136: 7.758278904e-06 | K136: 133 | L136: Serra Leoa | M136: 1558.6422 | N136: 9.891775476e-05 | O136: -582.3914
A137: 134 | B137: Guatemala | C137: 385.54 | D137: 5.963763719e-05 | F137: 134 | G137: Guiné | H137: 65.031 | I137: 6.998419174e-06 | K137: 134 | L137: Catar | M137: 1436.7008 | N137: 9.117885901e-05 | O137: 1401.3568
A138: 135 | B138: Nicarágua | C138: 378.2198 | D138: 5.850530479e-05 | F138: 135 | G138: Tajiquistão | H138: 53.4888 | I138: 5.756286133e-06 | K138: 135 | L138: Bangladesh | M138: 1329.3548 | N138: 8.436624653e-05 | O138: 828.22
A139: 136 | B139: Camboja | C139: 374.6442 | D139: 5.795220956e-05 | F139: 136 | G139: Ruanda | H139: 47.028 | I139: 5.0609964e-06 | K139: 136 | L139: Islândia | M139: 1186.9024 | N139: 7.532563954e-05 | O139: 749.6696
A140: 137 | B140: Sri Lanca | C140: 364.6906 | D140: 5.641252708e-05 | F140: 137 | G140: Papuásia-Nova Guiné | H140: 41.0468 | I140: 4.417319619e-06 | K140: 137 | L140: Guiné Equatorial | M140: 1069.1446 | N140: 6.785225201e-05 | O140: 1069.1446
A141: 138 | B141: Libéria | C141: 359.9704 | D141: 5.568237826e-05 | F141: 138 | G141: Bósnia-Herzegovina | H141: 30.1638 | I141: 3.246127482e-06 | K141: 138 | L141: El Salvador | M141: 947.8516 | N141: 6.015450635e-05 | O141: -556.5484
A142: 139 | B142: Paquistão | C142: 352.8058 | D142: 5.4574115e-05 | F142: 139 | G142: São Marino | H142: 29.5592 | I142: 3.181062448e-06 | K142: 139 | L142: Burundi | M142: 904.914 | N142: 5.742951213e-05 | O142: 904.686
A143: 140 | B143: São Martinho (parte holandesa) | C143: 349.9042 | D143: 5.412527813e-05 | F143: 140 | G143: Kiribati | H143: 28.0754 | I143: 3.021380844e-06 | K143: 140 | L143: Iémen | M143: 893.6956 | N143: 5.671754697e-05 | O143: 893.6956
A144: 141 | B144: Quénia | C144: 342.321 | D144: 5.295226332e-05 | F144: 141 | G144: Catar | H144: 17.672 | I144: 1.901801658e-06 | K144: 141 | L144: Geórgia | M144: 839.389 | N144: 5.327102991e-05 | O144: 614.397
A145: 142 | B145: Comores | C145: 290.0546 | D145: 4.486738341e-05 | F145: 142 | G145: Quirguizistão | H145: 17.4752 | I145: 1.880622699e-06 | K145: 142 | L145: Turquemenistão | M145: 816.6154 | N145: 5.18257249e-05 | O145: -792.9358
A146: 143 | B146: Tanzânia, República Unida da | C146: 274.7664 | D146: 4.250251303e-05 | F146: 143 | G146: Sudão | H146: 16.5326 | I146: 1.779183233e-06 | K146: 143 | L146: Ruanda | M146: 778.3886 | N146: 4.939969715e-05 | O146: 684.3326
A147: 144 | B147: Somália | C147: 236.563 | D147: 3.659298222e-05 | F147: 144 | G147: Arménia | H147: 15.3184 | I147: 1.648515082e-06 | K147: 144 | L147: Zâmbia | M147: 772.5982 | N147: 4.903221488e-05 | O147: -617.0178
A148: 145 | B148: Ceuta e Melilha | C148: 218.2844 | D148: 3.376553886e-05 | F148: 145 | G148: Arábia Saudita | H148: 11.857 | I148: 1.276010766e-06 | K148: 145 | L148: Bermudas | M148: 761.256 | N148: 4.831239287e-05 | O148: 760.936
A149: 146 | B149: Macedónia, Antiga República jugoslava da | C149: 211.0332 | D149: 3.26438798e-05 | F149: 146 | G149: Macau | H149: 10.795 | I149: 1.161721871e-06 | K149: 146 | L149: Arménia | M149: 668.1002 | N149: 4.240034803e-05 | O149: 637.4634
A150: 147 | B150: Antígua e Barbuda | C150: 210.131 | D150: 3.250432209e-05 | F150: 147 | G150: Kosovo | H150: 8.3722 | I150: 9.009882211e-07 | K150: 147 | L150: Namíbia | M150: 638.016 | N150: 4.04910827e-05 | O150: 493.8324
A151: 148 | B151: Curaçau | C151: 209.9818 | D151: 3.248124294e-05 | F151: 148 | G151: Líbia, Jamahira Árabe da | H151: 5.95 | I151: 6.403191414e-07 | K151: 148 | L151: Azerbaijão | M151: 603.1476 | N151: 3.827819264e-05 | O151: 412.7928
A152: 149 | B152: Jamaica | C152: 203.435 | D152: 3.146854469e-05 | F152: 149 | G152: Cazaquistão | H152: 5.7342 | I152: 6.170954657e-07 | K152: 149 | L152: Bolívia | M152: 551.7916 | N152: 3.501893261e-05 | O152: 314.3992
A153: 150 | B153: Argentina | C153: 203.072 | D153: 3.141239368e-05 | F153: 150 | G153: Jamaica | H153: 4.8022 | I153: 5.167967363e-07 | K153: 150 | L153: Barém | M153: 492.041 | N153: 3.122691723e-05 | O153: 483.3658
A154: 151 | B154: El Salvador | C154: 195.6516 | D154: 3.026456175e-05 | F154: 151 | G154: Andorra | H154: 4.6754 | I154: 5.031509435e-07 | K154: 151 | L154: São Bartolomeu | M154: 491.0894 | N154: 3.116652483e-05 | O154: 491.0894
A155: 152 | B155: Haiti | C155: 165.8866 | D155: 2.566033321e-05 | F155: 152 | G155: São Cristovão e Nevis | H155: 4.4378 | I155: 4.775812245e-07 | K155: 152 | L155: Cazaquistão | M155: 436.9972 | N155: 2.773361446e-05 | O155: 425.5288
A156: 153 | B156: Moldava, República de | C156: 152.7924 | D156: 2.36348439e-05 | F156: 153 | G156: Barém | H156: 4.3376 | I156: 4.667980349e-07 | K156: 153 | L156: Mauritânia | M156: 436.3508 | N156: 2.76925913e-05 | O156: 433.2028
A157: 154 | B157: Polinésia Francesa | C157: 150.2304 | D157: 2.323853839e-05 | F157: 154 | G157: Jibuti | H157: 4.0592 | I157: 4.368375561e-07 | K157: 154 | L157: Gâmbia | M157: 419.5722 | N157: 2.66277533e-05 | O157: 419.3534
A158: 155 | B158: Nova Caledónia | C158: 143.105 | D158: 2.213633882e-05 | F158: 155 | G158: Nepal | H158: 2.4598 | I158: 2.647154662e-07 | K158: 155 | L158: Aruba | M158: 414.7526 | N158: 2.632188194e-05 | O158: 414.3914
A159: 156 | B159: Madagáscar | C159: 130.3204 | D159: 2.01587403e-05 | F159: 156 | G159: Iraque | H159: 1.8396 | I159: 1.979716122e-07 | K159: 156 | L159: Libéria | M159: 360.935 | N159: 2.29063988e-05 | O159: 359.0058
A160: 157 | B160: Maldivas | C160: 128.5284 | D160: 1.9881543e-05 | F160: 157 | G160: Lesoto | H160: 1.7136 | I160: 1.844119127e-07 | K160: 157 | L160: São Martinho (parte holandesa) | M160: 349.9042 | N160: 2.22063395e-05 | O160: 349.9042
A161: 158 | B161: Trindade e Tobago | C161: 121.2186 | D161: 1.875081934e-05 | F161: 158 | G161: Mauritânia | H161: 1.574 | I161: 1.693886267e-07 | K161: 158 | L161: Usbequistão | M161: 318.4112 | N161: 2.0207666e-05 | O161: -256.8464
A162: 159 | B162: Suriname | C162: 102.2448 | D162: 1.581583827e-05 | F162: 159 | G162: Liechtenstein | H162: 1.1774 | I162: 1.267078583e-07 | K162: 159 | L162: Comores | M162: 290.0546 | N162: 1.840804117e-05 | O162: 290.0546
A163: 160 | B163: Kosovo | C163: 94.1708 | D163: 1.456690357e-05 | F163: 160 | G163: Libéria | H163: 0.9646 | I163: 1.038070326e-07 | K163: 160 | L163: Somália | M163: 236.563 | N163: 1.501324731e-05 | O163: 236.563
A164: 161 | B164: Niger | C164: 94.1142 | D164: 1.455814835e-05 | F164: 161 | G164: Território Palestiniano Ocupado | H164: 0.4852 | I164: 5.221560461e-08 | K164: 161 | L164: Ceuta e Melilha | M164: 218.2844 | N164: 1.385321323e-05 | O164: 218.2844
A165: 162 | B165: Liechtenstein | C165: 84.0422 | D165: 1.300015104e-05 | F165: 162 | G165: Montenegro | H165: 0.3086 | I165: 3.321050202e-08 | K165: 162 | L165: Antígua e Barbuda | M165: 210.131 | N165: 1.33357654e-05 | O165: 210.131
A166: 163 | B166: Zâmbia | C166: 77.7902 | D166: 1.203305422e-05 | F166: 163 | G166: Aruba | H166: 0.1806 | I166: 1.943556923e-08 | K166: 163 | L166: Curaçau | M166: 209.9818 | N166: 1.332629657e-05 | O166: 209.9818
A167: 164 | B167: Centro-Africana, República | C167: 75.2292 | D167: 1.16369034e-05 | F167: 164 | G167: Bermudas | H167: 0.16 | I167: 1.721866599e-08 | K167: 164 | L167: Jamaica | M167: 208.2372 | N167: 1.321557717e-05 | O167: 198.6328
A168: 165 | B168: Nepal | C168: 74.9902 | D168: 1.159993344e-05 | F168: 165 | G168: Burundi | H168: 0.114 | I168: 1.226829952e-08 | K168: 165 | L168: Haiti | M168: 165.8866 | N168: 1.052783635e-05 | O168: 165.8866
A169: 166 | B169: Zimbabwe | C169: 73.8234 | D169: 1.141944583e-05 | F169: 166 | G169: Gâmbia | H169: 0.1094 | I169: 1.177326287e-08 | K169: 166 | L169: Polinésia Francesa | M169: 150.2304 | N169: 9.534230412e-06 | O169: 150.2304
A170: 167 | B170: Bósnia-Herzegovina | C170: 42.5866 | D170: 6.587550448e-06 | F170: 167 | G170: Gabão | H170: 0.105 | I170: 1.129974955e-08 | K170: 167 | L170: Nova Caledónia | M170: 143.105 | N170: 9.082023632e-06 | O170: 143.105
A171: 168 | B171: Jibuti | C171: 39.2514 | D171: 6.071641729e-06 | F171: 168 | G171: Niger | H171: 0.094 | I171: 1.011596627e-08 | K171: 168 | L171: Maldivas | M171: 128.532 | N171: 8.157161955e-06 | O171: 128.5248
A172: 169 | B172: Caimão, Ilhas | C172: 38.7778 | D172: 5.998382444e-06 | F172: 169 | G172: Mongólia | H172: 0.0112 | I172: 1.205306619e-09 | K172: 169 | L172: Trindade e Tobago | M172: 121.2186 | N172: 7.693023933e-06 | O172: 121.2186
A173: 170 | B173: Bahamas | C173: 37.4034 | D173: 5.785782017e-06 | F173: 170 | G173: Maldivas | H173: 0.0036 | I173: 3.874199847e-10 | K173: 170 | L173: Kosovo | M173: 102.543 | N173: 6.507794622e-06 | O173: 85.7986
A174: 171 | B174: Montenegro | C174: 32.3216 | D174: 4.999698745e-06 | F174: 171 | G174: Anguila | H174: 0 | I174: 0 | K174: 171 | L174: Afeganistão | M174: 100.3202 | N174: 6.36672672e-06 | O174: -62.4234
A175: 172 | B175: Usbequistão | C175: 30.7824 | D175: 4.761606067e-06 | F175: 172 | G175: Antárctica | H175: 0 | I175: 0 | K175: 172 | L175: Niger | M175: 94.2082 | N175: 5.978834414e-06 | O175: 94.0202
A176: 173 | B176: Melilha | C176: 27.4002 | D176: 4.238427106e-06 | F176: 173 | G176: Antígua e Barbuda | H176: 0 | I176: 0 | K176: 173 | L176: Liechtenstein | M176: 85.2196 | N176: 5.408381406e-06 | O176: 82.8648
A177: 174 | B177: Guiana | C177: 25.32 | D177: 3.916649306e-06 | F177: 174 | G177: Antilhas Holandesas | H177: 0 | I177: 0 | K177: 174 | L177: Nepal | M177: 77.45 | N177: 4.915291082e-06 | O177: 72.5304
A178: 175 | B178: Mongólia | C178: 22.5308 | D178: 3.485199139e-06 | F178: 175 | G178: Bahamas | H178: 0 | I178: 0 | K178: 175 | L178: Centro-Africana, República | M178: 75.2292 | N178: 4.774350108e-06 | O178: 75.2292
A179: 176 | B179: Afeganistão | C179: 18.9484 | D179: 2.931052043e-06 | F179: 176 | G179: Barbados | H179: 0 | I179: 0 | K179: 176 | L179: Bósnia-Herzegovina | M179: 72.7504 | N179: 4.617035408e-06 | O179: 12.4228
A180: 177 | B180: Laos, República Democrática Popular do | C180: 14.4822 | D180: 2.240193467e-06 | F180: 177 | G180: Bonaire, Santo Eustáquio e Saba | H180: 0 | I180: 0 | K180: 177 | L180: Tajiquistão | M180: 53.4888 | N180: 3.394616161e-06 | O180: -53.4888
A181: 178 | B181: Turcas e Caicos, Ilhas | C181: 13.8882 | D181: 2.148309988e-06 | F181: 178 | G181: Botswana | H181: 0 | I181: 0 | K181: 178 | L181: Papuásia-Nova Guiné | M181: 43.9324 | N181: 2.788128263e-06 | O181: -38.1612
A182: 179 | B182: Turquemenistão | C182: 11.8398 | D182: 1.831451203e-06 | F182: 179 | G182: Bouvet, Ilha | H182: 0 | I182: 0 | K182: 179 | L182: Jibuti | M182: 43.3106 | N182: 2.748666313e-06 | O182: 35.1922
A183: 180 | B183: Santa Lúcia | C183: 7.138 | D183: 1.104148608e-06 | F183: 180 | G183: Brunei Darussalam | H183: 0 | I183: 0 | K183: 180 | L183: Caimão, Ilhas | M183: 38.7778 | N183: 2.460996443e-06 | O183: 38.7778
A184: 181 | B184: São Marino | C184: 7.0982 | D184: 1.097992105e-06 | F184: 181 | G184: Butão | H184: 0 | I184: 0 | K184: 181 | L184: Bahamas | M184: 37.4034 | N184: 2.373771446e-06 | O184: 37.4034
A185: 182 | B185: Malavi | C185: 6.019 | D185: 9.310549832e-07 | F185: 182 | G185: Caimão, Ilhas | H185: 0 | I185: 0 | K185: 182 | L185: São Marino | M185: 36.6574 | N185: 2.32642726e-06 | O185: -22.461
A186: 183 | B186: Brunei Darussalam | C186: 5.9044 | D186: 9.133279686e-07 | F186: 183 | G186: Centro-Africana, República | H186: 0 | I186: 0 | K186: 183 | L186: Montenegro | M186: 32.6302 | N186: 2.070844817e-06 | O186: 32.013
A187: 184 | B187: Guam | C187: 5.0388 | D187: 7.794317743e-07 | F187: 184 | G187: Ceuta | H187: 0 | I187: 0 | K187: 184 | L187: Kiribati | M187: 28.0754 | N187: 1.781778738e-06 | O187: -28.0754
A188: 185 | B188: São Vicente e Granadinas | C188: 4.8472 | D188: 7.497939383e-07 | F188: 185 | G188: Ceuta e Melilha | H188: 0 | I188: 0 | K188: 185 | L188: Melilha | M188: 27.4002 | N188: 1.738927808e-06 | O188: 27.4002
A189: 186 | B189: Menores distantes dos Estados Unidos, lhas | C189: 4.5542 | D189: 7.044709428e-07 | F189: 186 | G189: Christmas, Ilha | H189: 0 | I189: 0 | K189: 186 | L189: Mongólia | M189: 22.542 | N189: 1.430606734e-06 | O189: 22.5196
A190: 187 | B190: Barbados | C190: 4.2816 | D190: 6.623035415e-07 | F190: 187 | G190: Cocos (Keeling), Ilhas | H190: 0 | I190: 0 | K190: 187 | L190: Quirguizistão | M190: 21.3092 | N190: 1.352368247e-06 | O190: -13.6412
A191: 188 | B191: Virgens Britânicas, Ilhas | C191: 4.2198 | D191: 6.527439472e-07 | F191: 188 | G191: Comores | H191: 0 | I191: 0 | K191: 188 | L191: Turcas e Caicos, Ilhas | M191: 13.8882 | N191: 8.814014927e-07 | O191: 13.8882
A192: 189 | B192: Quirguizistão | C192: 3.834 | D192: 5.930660917e-07 | F192: 189 | G192: Cook, Ilhas | H192: 0 | I192: 0 | K192: 189 | L192: Santa Lúcia | M192: 7.138 | N192: 4.530064267e-07 | O192: 7.138
A193: 190 | B193: Sudão do Sul | C193: 3.771 | D193: 5.833208742e-07 | F193: 190 | G193: Coreia, República Popular Democrática da | H193: 0 | I193: 0 | K193: 190 | L193: Brunei Darussalam | M193: 5.9044 | N193: 3.747171681e-07 | O193: 5.9044
A194: 191 | B194: Marianas do Norte, Ilhas | C194: 3.715 | D194: 5.746584587e-07 | F194: 191 | G194: Curaçau | H194: 0 | I194: 0 | K194: 191 | L194: Guam | M194: 5.0388 | N194: 3.197826818e-07 | O194: 5.0388
A195: 192 | B195: Fiji, Ilhas | C195: 3.6356 | D195: 5.623763909e-07 | F195: 192 | G195: Domínica | H195: 0 | I195: 0 | K195: 192 | L195: São Vicente e Granadinas | M195: 4.8472 | N195: 3.076229688e-07 | O195: 4.8472
A196: 193 | B196: Papuásia-Nova Guiné | C196: 2.8856 | D196: =C196/$C$254 -> 4.463618973e-07 | F196: 193 | G196: Eritreia | H196: 0 | I196: =H196/$H$254 -> 0 | K196: 193 | L196: Menores distantes dos Estados Unidos, lhas | M196: 4.5542 | N196: =M196/$M$254 -> 2.890280006e-07 | O196: 4.5542
A197: 194 | B197: Belize | C197: 2.7332 | D197: 4.227877521e-07 | F197: 194 | G197: Falkland Ilhas (Malvinas) | H197: 0 | I197: 0 | K197: 194 | L197: São Cristovão e Nevis | M197: 4.4378 | N197: 2.816407846e-07 | O197: -4.4378
A198: 195 | B198: Botswana | C198: 1.85 | D198: 2.861690844e-07 | F198: 195 | G198: Faroé, Ilhas | H198: 0 | I198: 0 | K198: 195 | L198: Barbados | M198: 4.2816 | N198: 2.717276991e-07 | O198: 4.2816
A199: 196 | B199: Granada | C199: 1.1268 | D199: 1.743001753e-07 | F199: 196 | G199: Geórgia do Sul e Ilhas Sandwich do Sul | H199: 0 | I199: 0 | K199: 196 | L199: Virgens Britânicas, Ilhas | M199: 4.2198 | N199: 2.678056205e-07 | O199: 4.2198
A200: 197 | B200: Bonaire, Santo Eustáquio e Saba | C200: 0.987 | D200: 1.526750737e-07 | F200: 197 | G200: Gibraltar | H200: 0 | I200: 0 | K200: 197 | L200: Sudão do Sul | M200: 3.771 | N200: 2.393229525e-07 | O200: 3.771
... 59 more rows

Sheet 3
A1: Principais produtos agrícolas e agroalimentares, do mar e da floresta transacionados entre Portugal e Argélia em 2017-2021 (NC a 2 e 4 dígitos) em milhares de euros
AC4: P | AE4: Cód.NC | AF4: Descritivo | AG4: Média export quinquénio | AH4: % do total | AI4: % acumulada | AN4: P | AO4: NC | AP4: Exportações | AQ4: 2017 | AR4: 2018 | AS4: 2019 | AT4: 2020 | AU4: 2021 | AV4: média 2017-2021
AC5: 1 | AD5: º | AE5: 48 | AF5: Papel e cartão | AG5: 39965.7806 | AH5: 0.6061271716 | AN5: 1º | AO5: 48 | AP5: Papel e cartão | AQ5: 49561.905 | AR5: 41232.609 | AS5: 29081.299 | AT5: 27586.14 | AU5: 52366.95 | AV5: 39965.7806
AC6: 2 | AD6: º | AE6: 47 | AF6: Pastas de madeira | AG6: 6942.4472 | AH6: 0.1052902213 | AN6: 2º | AO6: 47 | AP6: Pastas de madeira | AQ6: 82.818 | AR6: 3528.828 | AS6: 3940.786 | AT6: 6782.217 | AU6: 20377.587 | AV6: 6942.4472
AC7: 3 | AD7: º | AE7: 24 | AF7: Tabaco | AG7: 4921.0308 | AH7: 0.07463310951 | AI7: 0.7860505024 | AN7: 3º | AO7: 24 | AP7: Tabaco | AQ7: 15124.476 | AR7: 9480.421 | AS7: 0 | AT7: 0 | AU7: 0.257 | AV7: 4921.0308
AC8: 4 | AD8: º | AE8: 44 | AF8: Madeira e suas obras | AG8: 4088.665 | AH8: 0.06200932185 | AO8: - | AP8: Outros | AQ8: 9596.179 | AR8: 18964.222 | AS8: 11356.902 | AT8: 12821.316 | AU8: 17796.568 | AV8: 14107.0374
AC9: 5 | AD9: º | AE9: 15 | AF9: Gorduras e óleos animais ou vegetais | AG9: 3843.3258 | AH9: 0.05828846983 | AP9: Total | AQ9: 74365.378 | AR9: 73206.08 | AS9: 44378.987 | AT9: 47189.673 | AU9: 90541.362 | AV9: 65936.296
AC10: 6 | AD10: º | AE10: 07 | AF10: Produtos hortícolas | AG10: 2298.1528 | AH10: 0.03485413861
AC11: 7 | AD11: º | AE11: 23a | AF11: Resíduos indústrias alimentares; alimentos p/ animais (exc. NC 230120) (a) | AG11: 740.8066 | AH11: 0.01123518676
AC12: 8 | AD12: º | AE12: 01 | AF12: Animais vivos | AG12: 497.2352 | AH12: 0.007541145472
AC13: 9 | AD13: º | AE13: 21 | AF13: Preparações alimentícias diversas | AG13: 451.5444 | AH13: 0.006848191776
AC14: 10 | AD14: º | AE14: 12 | AF14: Sementes e frutos oleaginosos | AG14: 417.591 | AH14: 0.006333249293 | AI14: 0.973160206
AE15: - | AF15: Outros | AG15: 1769.7166 | AH15: 0.02683979397
AE16: Total | AG16: 65936.296 | AH16: 1
AC38: P | AE38: Cód.NC | AF38: Descritivo | AG38: Média import quinquénio | AH38: % do total | AI38: % acumulada | AN38: P | AO38: NC | AP38: Importações | AQ38: 2017 | AR38: 2018 | AS38: 2019 | AT38: 2020 | AU38: 2021 | AV38: média 2017-2021
AC39: 1 | AD39: º | AE39: 45 | AF39: Cortiça e suas obras | AG39: 3471.3548 | AH39: 0.9582179619 | AN39: 1º | AO39: 45 | AP39: Cortiça e suas obras | AQ39: 1262.563 | AR39: 3669.65 | AS39: 4502.857 | AT39: 3718.108 | AU39: 4203.596 | AV39: 3471.3548
AC40: 2 | AD40: º | AE40: 15 | AF40: Gorduras e óleos animais ou vegetais | AG40: 101.4134 | AH40: 0.02799372206 | AN40: 2º | AO40: 15 | AP40: Gorduras e óleos animais ou vegetais | AQ40: 15.777 | AR40: 0 | AS40: 72.992 | AT40: 103.946 | AU40: 314.352 | AV40: 101.4134
AC41: 3 | AD41: º | AE41: 03 | AF41: Peixes e crustáceos | AG41: 22.7944 | AH41: 0.006292068881 | AI41: 0.9925037528 | AN41: 3º | AO41: 03 | AP41: Peixes e crustáceos | AQ41: 0 | AR41: 18.404 | AS41: 21.134 | AT41: 30.57 | AU41: 43.864 | AV41: 22.7944
AC42: 4 | AD42: º | AE42: 21 | AF42: Preparações alimentícias diversas | AG42: 13.616 | AH42: 0.003758502522 | AO42: - | AP42: Outros | AQ42: 0 | AR42: 3.123 | AS42: 0.034 | AT42: 81.976 | AU42: 50.651 | AV42: 27.1568
AC43: 5 | AD43: º | AE43: 38f | AF43: Tall oil, essências e colofónias (NC 3803,3805,3806) (f) | AG43: 8.24 | AH43: 0.002274534428 | AP43: Total | AQ43: 1278.34 | AR43: 3691.177 | AS43: 4597.017 | AT43: 3934.6 | AU43: 4612.463 | AV43: 3622.7194
AC44: 6 | AD44: º | AE44: 48 | AF44: Papel e cartão | AG44: 2.7118 | AH44: 0.000748553697
AC45: 7 | AD45: º | AE45: 52 | AF45: Algodão (NC 5201-5203) | AG45: 1.8688 | AH45: 0.0005158555752
AC46: 8 | AD46: º | AE46: 22 | AF46: Bebidas, líquidos alcoólicos e vinagres | AG46: 0.7164 | AH46: 0.0001977519981
AC47: 9 | AD47: º | AE47: 09 | AF47: Café, chá, mate e especiarias | AG47: 0.0038 | AH47: 1.04893578e-06
AC48: 10 | AD48: º | AG48: 0 | AH48: 0 | AI48: 1
AG49: 0 | AH49: 0
AE50: Total | AG50: 3622.7194 | AH50: 1
AC62: DESAGREGAÇÃO A 4 DÍGITOS | AN62: DESAGREGAÇÃO A 4 DÍGITOS
AC64: P | AE64: Cód.NC | AF64: Descritivo | AG64: Média export quinquénio | AH64: % do total | AI64: % acumulada | AN64: P | AO64: NC | AP64: Exportações | AQ64: 2017 | AR64: 2018 | AS64: 2019 | AT64: 2020 | AU64: 2021 | AV64: média 2017-2021
AC65: 1 | AD65: º | AE65: 4802 | AF65: Papel e cartão p/ escrita, etc. | AG65: 37803.6074 | AH65: 0.5733353205 | AN65: 1º | AO65: 4802 | AP65: Papel e cartão p/ escrita, etc. | AQ65: 48511.548 | AR65: 40377.538 | AS65: 27725.112 | AT65: 24991.995 | AU65: 47411.844 | AV65: 37803.6074
AC66: 2 | AD66: º | AE66: 4703 | AF66: Pastas químicas de madeira, à soda ou ao sulfato | AG66: 6942.4472 | AH66: 0.1052902213 | AN66: 2º | AO66: 4703 | AP66: Pastas químicas de madeira, à soda ou ao sulfato | AQ66: 82.818 | AR66: 3528.828 | AS66: 3940.786 | AT66: 6782.217 | AU66: 20377.587 | AV66: 6942.4472
AC67: 3 | AD67: º | AE67: 2403 | AF67: Outros produtos de tabaco | AG67: 4921.0308 | AH67: 0.07463310951 | AI67: 0.7532586514 | AN67: 3º | AO67: 2403 | AP67: Outros produtos de tabaco | AQ67: 15124.476 | AR67: 9480.421 | AS67: 0 | AT67: 0 | AU67: 0.257 | AV67: 4921.0308
AC68: 4 | AD68: º | AE68: 1507 | AF68: Óleo de soja e suas frações | AG68: 3843.2914 | AH68: 0.05828794811 | AN68: - | AO68: - | AP68: Outros | AQ68: 10646.536 | AR68: 19819.293 | AS68: 12713.089 | AT68: 15415.461 | AU68: 22751.674 | AV68: 16269.2106
AC69: 5 | AD69: º | AE69: 0710 | AF69: Produtos hortícolas congelados | AG69: 2211.1454 | AH69: 0.033534571 | AP69: Total | AQ69: 74365.378 | AR69: 73206.08 | AS69: 44378.987 | AT69: 47189.673 | AU69: 90541.362 | AV69: 65936.296
AC70: 6 | AD70: º | AE70: 4418 | AF70: Obras de marcenaria ou carpintaria | AG70: 2199.7092 | AH70: 0.03336112784
AC71: 7 | AD71: º | AE71: 4819 | AF71: Embalagens de papel, cartão etc. | AG71: 1344.4654 | AH71: 0.02039036891
AC72: 8 | AD72: º | AE72: 4407 | AF72: Madeira serrada, etc. | AG72: 1221.8756 | AH72: 0.01853115316
AC73: 9 | AD73: º | AE73: 2304 | AF73: Bagaços e outros resíduos sólidos de soja | AG73: 738.4094 | AH73: 0.01119883046
AC74: 10 | AD74: º | AE74: 0102 | AF74: Bovinos vivos | AG74: 467.6444 | AH74: 0.007092366851 | AI74: 0.9356550177
AE75: - | AF75: Outros | AG75: 4242.6698 | AH75: 0.06434498231
AE76: Total | AG76: 65936.296 | AH76: 1
AC89: DESAGREGAÇÃO A 4 DÍGITOS | AN89: DESAGREGAÇÃO A 4 DÍGITOS
G91: média 2017-2021 em milhares de euros | I91: Cód. NC | J91: Descritivo | K91: Export | L91: Import | M91: Saldo | AC91: P | AE91: Cód.NC | AF91: Descritivo | AG91: Média import quinquénio | AH91: % do total | AI91: % acumulada | AN91: P | AO91: NC | AP91: Importações | AQ91: 2017 | AR91: 2018 | AS91: 2019 | AT91: 2020 | AU91: 2021 | AV91: média 2017-2021
I92: 4802 | J92: Papel e cartão p/ escrita, etc. | K92: 37803.6074 | L92: 0 | M92: 37803.6074 | AC92: 1 | AD92: º | AE92: 4501 | AF92: Cortiça natural em bruto | AG92: 2611.5488 | AH92: 0.7208807836 | AN92: 1º | AO92: 4501 | AP92: Cortiça natural em bruto | AQ92: 602.868 | AR92: 2267.63 | AS92: 3677.999 | AT92: 3159.423 | AU92: 3349.824 | AV92: 2611.5488
I93: 4703 | J93: Pastas químicas de madeira, à soda ou ao sulfato | K93: 6942.4472 | L93: 0 | M93: 6942.4472 | AC93: 2 | AD93: º | AE93: 4503 | AF93: Obras de cortiça natural | AG93: 794.0318 | AH93: 0.2191811488 | AN93: 2º | AO93: 4503 | AP93: Obras de cortiça natural | AQ93: 630.648 | AR93: 1317.713 | AS93: 824.858 | AT93: 551.183 | AU93: 645.757 | AV93: 794.0318
I94: 2403 | J94: Outros produtos de tabaco | K94: 4921.0308 | L94: 0 | M94: 4921.0308 | AC94: 3 | AD94: º | AE94: 1518 | AF94: Gorduras e óleos, animais ou vegetais, processados de outras formas | AG94: 101.4134 | AH94: 0.02799372206 | AI94: 0.9680556545 | AN94: 3º | AO94: 1518 | AP94: Gorduras e óleos, animais ou vegetais, processados de outras formas | AQ94: 15.777 | AR94: 0 | AS94: 72.992 | AT94: 103.946 | AU94: 314.352 | AV94: 101.4134
I95: 1507 | J95: Óleo de soja e suas frações | K95: 3843.2914 | L95: 0 | M95: 3843.2914 | AC95: 4 | AD95: º | AE95: 4504 | AF95: Cortiça aglomerada e suas obras | AG95: 60.3142 | AH95: 0.01664887432 | AN95: - | AO95: - | AP95: Outros | AQ95: 29.047 | AR95: 105.834 | AS95: 21.168 | AT95: 120.048 | AU95: 302.53 | AV95: 115.7254
I96: 0710 | J96: Produtos hortícolas congelados | K96: 2211.1454 | L96: 0 | M96: 2211.1454 | AC96: 5 | AD96: º | AE96: 0306 | AF96: Crustáceos | AG96: 18.271 | AH96: 0.005043448852 | AP96: Total | AQ96: 1278.34 | AR96: 3691.177 | AS96: 4597.017 | AT96: 3934.6 | AU96: 4612.463 | AV96: 3622.7194
I97: 4418 | J97: Obras de marcenaria ou carpintaria | K97: 2199.7092 | L97: 0 | M97: 2199.7092 | AC97: 6 | AD97: º | AE97: 2106 | AF97: Outras preparações alimentícias | AG97: 13.616 | AH97: 0.003758502522
I98: 4819 | J98: Embalagens de papel, cartão etc. | K98: 1344.4654 | L98: 0.0176 | M98: 1344.4478 | AC98: 7 | AD98: º | AE98: 3806 | AF98: Colofónias e derivados | AG98: 8.24 | AH98: 0.002274534428
I99: 4407 | J99: Madeira serrada, etc. | K99: 1221.8756 | L99: 0 | M99: 1221.8756 | AC99: 8 | AD99: º | AE99: 4502 | AF99: Cortiça natural, sem crosta, etc., para rolhas | AG99: 5.46 | AH99: 0.001507155095
I100: 2304 | J100: Bagaços e outros resíduos sólidos de soja | K100: 738.4094 | L100: 0 | M100: 738.4094 | AC100: 9 | AD100: º | AE100: 0307 | AF100: Moluscos | AG100: 4.5234 | AH100: 0.001248620028
I101: 0102 | J101: Bovinos vivos | K101: 467.6444 | L101: 0 | M101: 467.6444 | AC101: 10 | AD101: º | AE101: 4823 | AF101: Papéis, cartões, pasta de celulose, etc. | AG101: 2.6874 | AH101: 0.0007418184251 | AI101: 0.9992786082
I102: - | J102: Outros | K102: 3996.2298 | L102: 87.444 | M102: 3908.7858 | AE102: - | AF102: Outros | AG102: 2.6134 | AH102: 0.000721391781
K103: 0 | L103: 0 | M103: 0 | AE103: Total | AG103: 3622.7194 | AH103: 1
K104: 0 | L104: 0 | M104: 0
I105: 0910 | J105: Gengibre, açafrão, tomilho, louro, etc. | K105: 0 | L105: 0.0024 | M105: -0.0024
I106: 2208 | J106: Álcool etílico <80%; aguardentes, etc. | K106: 0 | L106: 0.007 | M106: -0.007
I107: 0307 | J107: Moluscos | K107: 0 | L107: 4.5234 | M107: -4.5234
I108: 4502 | J108: Cortiça natural, sem crosta, etc., para rolhas | K108: 0 | L108: 5.46 | M108: -5.46
I109: 0306 | J109: Crustáceos | K109: 0 | L109: 18.271 | M109: -18.271
I110: 1518 | J110: Gorduras e óleos, animais ou vegetais, processados de outras formas | K110: 0 | L110: 101.4134 | M110: -101.4134
I111: 4503 | J111: Obras de cortiça natural | K111: 221.4662 | L111: 794.0318 | M111: -572.5656
I112: 4501 | J112: Cortiça natural em bruto | K112: 24.9738 | L112: 2611.5488 | M112: -2586.575
I113: Total | K113: 65936.296 | L113: 3622.7194 | M113: 62313.5766
A116: Fonte: GPP a partir de dados INE/Comércio Internacional (2020 provisórios; 2021 preliminares) | Y116: 2022-08-04T16:23:26.670

Sheet 3A
A1: Principais produtos agrícolas e agroalimentares transacionados entre Portugal e Argélia em 2017-2021 (NC a 2 e 4 dígitos) em milhares de euros
AC4: P | AE4: Cód.NC | AF4: Descritivo | AG4: Média export quinquénio | AH4: % do total | AI4: % acumulada | AN4: P | AO4: NC | AP4: Exportações | AQ4: 2017 | AR4: 2018 | AS4: 2019 | AT4: 2020 | AU4: 2021 | AV4: média 2017-2021
AC5: 1 | AD5: º | AE5: 24 | AF5: Tabaco | AG5: 4921.0308 | AH5: 0.3463470712 | AN5: 1º | AO5: 24 | AP5: Tabaco | AQ5: 15124.476 | AR5: 9480.421 | AS5: 0 | AT5: 0 | AU5: 0.257 | AV5: 4921.0308
AC6: 2 | AD6: º | AE6: 15 | AF6: Gorduras e óleos animais ou vegetais | AG6: 3843.3258 | AH6: 0.2704971151 | AN6: 2º | AO6: 15 | AP6: Gorduras e óleos animais ou vegetais | AQ6: 0.159 | AR6: 543.655 | AS6: 2428 | AT6: 4738.182 | AU6: 11506.633 | AV6: 3843.3258
AC7: 3 | AD7: º | AE7: 07 | AF7: Produtos hortícolas | AG7: 2298.1528 | AH7: 0.1617462934 | AI7: 0.7785904797 | AN7: 3º | AO7: 07 | AP7: Produtos hortícolas | AQ7: 3116.456 | AR7: 2113.972 | AS7: 1873.204 | AT7: 1569.199 | AU7: 2817.933 | AV7: 2298.1528
AC8: 4 | AD8: º | AE8: 23a | AF8: Resíduos indústrias alimentares; alimentos p/ animais (exc. NC 230120) (a) | AG8: 740.8066 | AH8: 0.05213870969 | AO8: - | AP8: Outros | AQ8: 1399.957 | AR8: 6046.154 | AS8: 2739.586 | AT8: 3832.979 | AU8: 1710.677 | AV8: 3145.8706
AC9: 5 | AD9: º | AE9: 01 | AF9: Animais vivos | AG9: 497.2352 | AH9: 0.03499591086 | AP9: Total | AQ9: 19641.048 | AR9: 18184.202 | AS9: 7040.79 | AT9: 10140.36 | AU9: 16035.5 | AV9: 14208.38
AC10: 6 | AD10: º | AE10: 21 | AF10: Preparações alimentícias diversas | AG10: 451.5444 | AH10: 0.03178014665
AC11: 7 | AD11: º | AE11: 12 | AF11: Sementes e frutos oleaginosos | AG11: 417.591 | AH11: 0.02939047238
AC12: 8 | AD12: º | AE12: 18 | AF12: Cacau e suas preparações | AG12: 373.3938 | AH12: 0.02627982923
AC13: 9 | AD13: º | AE13: 04 | AF13: Leite e laticínios; ovos; mel, etc. | AG13: 302.1874 | AH13: 0.02126825155
AC14: 10 | AD14: º | AE14: 22 | AF14: Bebidas, líquidos alcoólicos e vinagres | AG14: 95.2708 | AH14: 0.006705254223 | AI14: 0.9811490543
AE15: - | AF15: Outros | AG15: 267.8414 | AH15: 0.01885094571
AE16: Total | AG16: 14208.38 | AH16: 1
AC38: P | AE38: Cód.NC | AF38: Descritivo | AG38: Média import quinquénio | AH38: % do total | AI38: % acumulada | AN38: P | AO38: NC | AP38: Importações | AQ38: 2017 | AR38: 2018 | AS38: 2019 | AT38: 2020 | AU38: 2021 | AV38: média 2017-2021
AC39: 1 | AD39: º | AE39: 15 | AF39: Gorduras e óleos animais ou vegetais | AG39: 101.4134 | AH39: 0.8622239378 | AN39: 1º | AO39: 15 | AP39: Gorduras e óleos animais ou vegetais | AQ39: 15.777 | AR39: 0 | AS39: 72.992 | AT39: 103.946 | AU39: 314.352 | AV39: 101.4134
AC40: 2 | AD40: º | AE40: 21 | AF40: Preparações alimentícias diversas | AG40: 13.616 | AH40: 0.1157642002 | AN40: 2º | AO40: 21 | AP40: Preparações alimentícias diversas | AQ40: 0 | AR40: 0 | AS40: 0 | AT40: 68.08 | AU40: 0 | AV40: 13.616
AC41: 3 | AD41: º | AE41: 52 | AF41: Algodão (NC 5201-5203) | AG41: 1.8688 | AH41: 0.01588867048 | AI41: 0.9938768084 | AN41: 3º | AO41: 52 | AP41: Algodão (NC 5201-5203) | AQ41: 0 | AR41: 0 | AS41: 0 | AT41: 0 | AU41: 9.344 | AV41: 1.8688
AC42: 4 | AD42: º | AE42: 22 | AF42: Bebidas, líquidos alcoólicos e vinagres | AG42: 0.7164 | AH42: 0.006090883739 | AO42: - | AP42: Outros | AQ42: 0 | AR42: 3.123 | AS42: 0 | AT42: 0.459 | AU42: 0.019 | AV42: 0.7202
AC43: 5 | AD43: º | AE43: 09 | AF43: Café, chá, mate e especiarias | AG43: 0.0038 | AH43: 3.23078702e-05 | AP43: Total | AQ43: 15.777 | AR43: 3.123 | AS43: 72.992 | AT43: 172.485 | AU43: 323.715 | AV43: 117.6184
AC44: 6 | AD44: º | AG44: 0 | AH44: 0
AC45: 7 | AD45: º | AG45: 0 | AH45: 0
AC46: 8 | AD46: º | AG46: 0 | AH46: 0
AC47: 9 | AD47: º | AG47: 0 | AH47: 0
AC48: 10 | AD48: º | AG48: 0 | AH48: 0 | AI48: 1
AG49: 0 | AH49: 0
AE50: Total | AG50: 117.6184 | AH50: 1
AC62: DESAGREGAÇÃO A 4 DÍGITOS | AN62: DESAGREGAÇÃO A 4 DÍGITOS
AC64: P | AE64: Cód.NC | AF64: Descritivo | AG64: Média export quinquénio | AH64: % do total | AI64: % acumulada | AN64: P | AO64: NC | AP64: Exportações | AQ64: 2017 | AR64: 2018 | AS64: 2019 | AT64: 2020 | AU64: 2021 | AV64: média 2017-2021
AC65: 1 | AD65: º | AE65: 2403 | AF65: Outros produtos de tabaco | AG65: 4921.0308 | AH65: 0.3463470712 | AN65: 1º | AO65: 2403 | AP65: Outros produtos de tabaco | AQ65: 15124.476 | AR65: 9480.421 | AS65: 0 | AT65: 0 | AU65: 0.257 | AV65: 4921.0308
AC66: 2 | AD66: º | AE66: 1507 | AF66: Óleo de soja e suas frações | AG66: 3843.2914 | AH66: 0.270494694 | AN66: 2º | AO66: 1507 | AP66: Óleo de soja e suas frações | AQ66: 0 | AR66: 543.655 | AS66: 2428 | AT66: 4738.169 | AU66: 11506.633 | AV66: 3843.2914
AC67: 3 | AD67: º | AE67: 0710 | AF67: Produtos hortícolas congelados | AG67: 2211.1454 | AH67: 0.1556226255 | AI67: 0.7724643907 | AN67: 3º | AO67: 0710 | AP67: Produtos hortícolas congelados | AQ67: 2959.177 | AR67: 1877.092 | AS67: 1832.326 | AT67: 1569.199 | AU67: 2817.933 | AV67: 2211.1454
AC68: 4 | AD68: º | AE68: 2304 | AF68: Bagaços e outros resíduos sólidos de soja | AG68: 738.4094 | AH68: 0.05196999236 | AN68: - | AO68: - | AP68: Outros | AQ68: 1557.395 | AR68: 6283.034 | AS68: 2780.464 | AT68: 3832.992 | AU68: 1710.677 | AV68: 3232.9124
AC69: 5 | AD69: º | AE69: 0102 | AF69: Bovinos vivos | AG69: 467.6444 | AH69: 0.03291328075 | AP69: Total | AQ69: 19641.048 | AR69: 18184.202 | AS69: 7040.79 | AT69: 10140.36 | AU69: 16035.5 | AV69: 14208.38
AC70: 6 | AD70: º | AE70: 1212 | AF70: Alfarroba, algas, beterraba sacarina, etc. | AG70: 416.91 | AH70: 0.02934254292
AC71: 7 | AD71: º | AE71: 1806 | AF71: Chocolate e outras preparações com cacau | AG71: 373.3938 | AH71: 0.02627982923
AC72: 8 | AD72: º | AE72: 2106 | AF72: Outras preparações alimentícias | AG72: 341.4572 | AH72: 0.02403209937
AC73: 9 | AD73: º | AE73: 0402 | AF73: Leite e nata, concentrados | AG73: 173.3736 | AH73: 0.01220220743
AC74: 10 | AD74: º | AE74: 0405 | AF74: Manteiga | AG74: 128.813 | AH74: 0.009065987818 | AI74: 0.9582703306
AE75: - | AF75: Outros | AG75: 592.911 | AH75: 0.04172966939
AE76: Total | AG76: 14208.38 | AH76: 1
AC89: DESAGREGAÇÃO A 4 DÍGITOS | AN89: DESAGREGAÇÃO A 4 DÍGITOS
G91: média 2017-2021 em milhares de euros | I91: Cód. NC | J91: Descritivo | K91: Export | L91: Import | M91: Saldo | AC91: P | AE91: Cód.NC | AF91: Descritivo | AG91: Média import quinquénio | AH91: % do total | AI91: % acumulada | AN91: P | AO91: NC | AP91: Importações | AQ91: 2017 | AR91: 2018 | AS91: 2019 | AT91: 2020 | AU91: 2021 | AV91: média 2017-2021
I92: 2403 | J92: Outros produtos de tabaco | K92: 4921.0308 | L92: 0 | M92: 4921.0308 | AC92: 1 | AD92: º | AE92: 1518 | AF92: Gorduras e óleos, animais ou vegetais, processados de outras formas | AG92: 101.4134 | AH92: 0.8622239378 | AN92: 1º | AO92: 1518 | AP92: Gorduras e óleos, animais ou vegetais, processados de outras formas | AQ92: 15.777 | AR92: 0 | AS92: 72.992 | AT92: 103.946 | AU92: 314.352 | AV92: 101.4134
I93: 1507 | J93: Óleo de soja e suas frações | K93: 3843.2914 | L93: 0 | M93: 3843.2914 | AC93: 2 | AD93: º | AE93: 2106 | AF93: Outras preparações alimentícias | AG93: 13.616 | AH93: 0.1157642002 | AN93: 2º | AO93: 2106 | AP93: Outras preparações alimentícias | AQ93: 0 | AR93: 0 | AS93: 0 | AT93: 68.08 | AU93: 0 | AV93: 13.616
I94: 0710 | J94: Produtos hortícolas congelados | K94: 2211.1454 | L94: 0 | M94: 2211.1454 | AC94: 3 | AD94: º | AE94: 5201 | AF94: Algodão não cardado nem penteado | AG94: 1.8688 | AH94: 0.01588867048 | AI94: 0.9938768084 | AN94: 3º | AO94: 5201 | AP94: Algodão não cardado nem penteado | AQ94: 0 | AR94: 0 | AS94: 0 | AT94: 0 | AU94: 9.344 | AV94: 1.8688
I95: 2304 | J95: Bagaços e outros resíduos sólidos de soja | K95: 738.4094 | L95: 0 | M95: 738.4094 | AC95: 4 | AD95: º | AE95: 2202 | AF95: Águas com açúcar ou outros produtos; outras bebidas | AG95: 0.6246 | AH95: 0.005310393612 | AN95: - | AO95: - | AP95: Outros | AQ95: 0 | AR95: 3.123 | AS95: 0 | AT95: 0.459 | AU95: 0.019 | AV95: 0.7202
I96: 0102 | J96: Bovinos vivos | K96: 467.6444 | L96: 0 | M96: 467.6444 | AC96: 5 | AD96: º | AE96: 2204 | AF96: Vinhos de uvas frescas | AG96: 0.0848 | AH96: 0.0007209756297 | AP96: Total | AQ96: 15.777 | AR96: 3.123 | AS96: 72.992 | AT96: 172.485 | AU96: 323.715 | AV96: 117.6184
I97: 1212 | J97: Alfarroba, algas, beterraba sacarina, etc. | K97: 416.91 | L97: 0 | M97: 416.91 | AC97: 6 | AD97: º | AE97: 2208 | AF97: Álcool etílico <80%; aguardentes, etc. | AG97: 0.007 | AH97: 5.951449773e-05
I98: 1806 | J98: Chocolate e outras preparações com cacau | K98: 373.3938 | L98: 0 | M98: 373.3938 | AC98: 7 | AD98: º | AE98: 0910 | AF98: Gengibre, açafrão, tomilho, louro, etc. | AG98: 0.0024 | AH98: 2.040497065e-05
I99: 2106 | J99: Outras preparações alimentícias | K99: 341.4572 | L99: 13.616 | M99: 327.8412 | AC99: 8 | AD99: º | AE99: 0901 | AF99: Café | AG99: 0.0012 | AH99: 1.020248533e-05
I100: 0402 | J100: Leite e nata, concentrados | K100: 173.3736 | L100: 0 | M100: 173.3736 | AC100: 9 | AD100: º | AE100: 0902 | AF100: Chá | AG100: 0.0002 | AH100: 1.700414221e-06
I101: 0405 | J101: Manteiga | K101: 128.813 | L101: 0 | M101: 128.813 | AC101: 10 | AD101: º | AG101: 0 | AH101: 0 | AI101: 1
I102: - | J102: Outros | K102: 592.911 | L102: 2.5796 | M102: 590.3314 | AG102: 0 | AH102: 0
K103: 0 | L103: 0 | M103: 0 | AE103: Total | AG103: 117.6184 | AH103: 1
K104: 0 | L104: 0 | M104: 0
K105: 0 | L105: 0 | M105: 0
K106: 0 | L106: 0 | M106: 0
K107: 0 | L107: 0 | M107: 0
K108: 0 | L108: 0 | M108: 0
K109: 0 | L109: 0 | M109: 0
I110: 0910 | J110: Gengibre, açafrão, tomilho, louro, etc. | K110: 0 | L110: 0.0024 | M110: -0.0024
I111: 2208 | J111: Álcool etílico <80%; aguardentes, etc. | K111: 0 | L111: 0.007 | M111: -0.007
I112: 1518 | J112: Gorduras e óleos, animais ou vegetais, processados de outras formas | K112: 0 | L112: 101.4134 | M112: -101.4134
I113: Total | K113: 14208.38 | L113: 117.6184 | M113: 14090.7616
A116: Fonte: GPP a partir de dados INE/Comércio Internacional (2020 provisórios; 2021 preliminares) | Y116: 2022-08-04T16:23:26.670

Sheet 4
A1: Evolução da balança comercial Portugal-Argélia 2017-2021 por produto em euros (NC 2 dígitos)
A3: =+aux!A31 -> Evolução da balança comercial Portugal-Argélia para Tabaco
A5: Selecione o produto:
Q7: Para obter uma maior desagregação deste produto, clique no botão respetivo:
A20: =+aux!A43 -> Evolução da balança comercial Portugal-Argélia para Gorduras e óleos animais ou vegetais
A22: Selecione o produto:
A38: Fonte: GPP a partir de dados INE/Comércio Internacional (2020 provisórios; 2021 preliminares) | M38: 2022-08-04T16:23:26.670

Sheet 5
A1: Trocas comerciais Portugal-Argélia 2017-2021 em euros (NC 2 dígitos) | C1: Produtos agrícolas e agroalimentares, do mar e da floresta (em destaque, produto mais transacionado - importação e exportação)
A2: Cód. NC | B2: Descritivo | C2: Importações | K2: Exportações | S2: Saldo quinquénio (exp-imp) | T2: Evolução das importações | U2: =+"Variação das Importações " & INDEX(K3:N3,1,aux!AL1) & "-"& '5'!O3 &"" -> Variação das Importações 2017-2021 | Z2: Evolução das exportações | AA2: ="Variação das Exportações " & INDEX(K3:N3,1,aux!AL1) & "-"& '5'!O3 &"" -> Variação das Exportações 2017-2021
C3: 2017 | D3: 2018 | E3: 2019 | F3: 2020 | G3: 2021 | H3: média quinquénio | I3: % Subtot | J3: % Total | K3: 2017 | L3: 2018 | M3: 2019 | N3: 2020 | O3: 2021 | P3: média quinquénio | Q3: % Subtot | R3: % Total | U3: variação total em valor | V3: % no subtotal de variação | W3: % no total de variação | X3: taxa de variação média anual | Y3: taxa de variação total | AA3: variação total em valor | AB3: % no subtotal de variação | AC3: % no total de variação | AD3: taxa de variação média anual | AE3: taxa de variação total
A4: 01 | B4: Animais vivos | C4: 0 | D4: 0 | E4: 0 | F4: 0 | G4: 0 | H4: 0 | I4: 0 | J4: 0 | K4: 0 | L4: 1634574 | M4: 851602 | N4: 0 | O4: 0 | P4: 497235.2 | Q4: 0.03499591086 | R4: 0.007541145472 | S4: 497235.2 | U4: =G4-INDEX($C4:$G4,1,aux!$AL$1) -> 0 | V4: =IF($U$37<>0,U4/$U$37, "n.d.") -> 0 | W4: =IF($U$53<>0,U4/$U$53, "n.d.") -> 0 | X4: =+IF(INDEX($C4:$G4,1,aux!$AL$1)>0,(G4/INDEX($C4:$G4,1,aux!$AL$1))^(1/($G$3-INDEX($C$3:$G$3,1,aux!$AL$1)))-1,"n.d.") -> n.d. | Y4: =IF(INDEX($C4:$G4,1,aux!$AL$1)>0,(G4-INDEX($C4:$G4,1,aux!$AL$1))/INDEX($C4:$G4,1,aux!$AL$1),"n.d.") -> n.d. | AA4: =O4-INDEX($K4:$O4,1,aux!$AL$1) -> 0 | AB4: =IF($AA$37<>0,AA4/$AA$37, "n.d.") -> 0 | AC4: =IF($AA$53<>0,AA4/$AA$53, "n.d.") -> 0 | AD4: =+IF(INDEX($K4:$O4,1,aux!$AL$1)>0,(O4/INDEX($K4:$O4,1,aux!$AL$1))^(1/($O$3-INDEX($K$3:$O$3,1,aux!$AL$1)))-1,"n.d.") -> n.d. | AE4: =IF(INDEX($K4:$O4,1,aux!$AL$1)>0,(O4-INDEX($K4:$O4,1,aux!$AL$1))/INDEX($K4:$O4,1,aux!$AL$1),"n.d.") -> n.d.
A5: 02 | B5: Carnes e miudezas | C5: 0 | D5: 0 | E5: 0 | F5: 0 | G5: 0 | H5: 0 | I5: 0 | J5: 0 | K5: 0 | L5: 0 | M5: 0 | N5: 11 | O5: 0 | P5: 2.2 | Q5: 1.548382011e-07 | R5: 3.336553816e-08 | S5: 2.2 | U5: =G5-INDEX($C5:$G5,1,aux!$AL$1) -> 0 | V5: 0 | W5: 0 | X5: =+IF(INDEX($C5:$G5,1,aux!$AL$1)>0,(G5/INDEX($C5:$G5,1,aux!$AL$1))^(1/($G$3-INDEX($C$3:$G$3,1,aux!$AL$1)))-1,"n.d.") -> n.d. | Y5: =IF(INDEX($C5:$G5,1,aux!$AL$1)>0,(G5-INDEX($C5:$G5,1,aux!$AL$1))/INDEX($C5:$G5,1,aux!$AL$1),"n.d.") -> n.d. | AA5: =O5-INDEX($K5:$O5,1,aux!$AL$1) -> 0 | AB5: 0 | AC5: 0 | AD5: =+IF(INDEX($K5:$O5,1,aux!$AL$1)>0,(O5/INDEX($K5:$O5,1,aux!$AL$1))^(1/($O$3-INDEX($K$3:$O$3,1,aux!$AL$1)))-1,"n.d.") -> n.d. | AE5: =IF(INDEX($K5:$O5,1,aux!$AL$1)>0,(O5-INDEX($K5:$O5,1,aux!$AL$1))/INDEX($K5:$O5,1,aux!$AL$1),"n.d.") -> n.d.
A6: 04 | B6: Leite e laticínios; ovos; mel, etc. | C6: 0 | D6: 0 | E6: 0 | F6: 0 | G6: 0 | H6: 0 | I6: 0 | J6: 0 | K6: 0 | L6: 564600 | M6: 630568 | N6: 134215 | O6: 181554 | P6: 302187.4 | Q6: 0.02126825155 | R6: 0.004583020557 | S6: 302187.4 | U6: =G6-INDEX($C6:$G6,1,aux!$AL$1) -> 0 | V6: 0 | W6: 0 | X6: =+IF(INDEX($C6:$G6,1,aux!$AL$1)>0,(G6/INDEX($C6:$G6,1,aux!$AL$1))^(1/($G$3-INDEX($C$3:$G$3,1,aux!$AL$1)))-1,"n.d.") -> n.d. | Y6: =IF(INDEX($C6:$G6,1,aux!$AL$1)>0,(G6-INDEX($C6:$G6,1,aux!$AL$1))/INDEX($C6:$G6,1,aux!$AL$1),"n.d.") -> n.d. | AA6: =O6-INDEX($K6:$O6,1,aux!$AL$1) -> 181554 | AB6: -0.05035406546 | AC6: 0.01122367579 | AD6: =+IF(INDEX($K6:$O6,1,aux!$AL$1)>0,(O6/INDEX($K6:$O6,1,aux!$AL$1))^(1/($O$3-INDEX($K$3:$O$3,1,aux!$AL$1)))-1,"n.d.") -> n.d. | AE6: =IF(INDEX($K6:$O6,1,aux!$AL$1)>0,(O6-INDEX($K6:$O6,1,aux!$AL$1))/INDEX($K6:$O6,1,aux!$AL$1),"n.d.") -> n.d.
A7: 05a | B7: Outros produtos de origem animal (exc. NC 0508, 051191) (a) | C7: 0 | D7: 0 | E7: 0 | F7: 0 | G7: 0 | H7: 0 | I7: 0 | J7: 0 | K7: 0 | L7: 0 | M7: 0 | N7: 0 | O7: 0 | P7: 0 | Q7: 0 | R7: 0 | S7: 0 | U7: =G7-INDEX($C7:$G7,1,aux!$AL$1) -> 0 | V7: 0 | W7: 0 | X7: =+IF(INDEX($C7:$G7,1,aux!$AL$1)>0,(G7/INDEX($C7:$G7,1,aux!$AL$1))^(1/($G$3-INDEX($C$3:$G$3,1,aux!$AL$1)))-1,"n.d.") -> n.d. | Y7: =IF(INDEX($C7:$G7,1,aux!$AL$1)>0,(G7-INDEX($C7:$G7,1,aux!$AL$1))/INDEX($C7:$G7,1,aux!$AL$1),"n.d.") -> n.d. | AA7: =O7-INDEX($K7:$O7,1,aux!$AL$1) -> 0 | AB7: 0 | AC7: 0 | AD7: =+IF(INDEX($K7:$O7,1,aux!$AL$1)>0,(O7/INDEX($K7:$O7,1,aux!$AL$1))^(1/($O$3-INDEX($K$3:$O$3,1,aux!$AL$1)))-1,"n.d.") -> n.d. | AE7: =IF(INDEX($K7:$O7,1,aux!$AL$1)>0,(O7-INDEX($K7:$O7,1,aux!$AL$1))/INDEX($K7:$O7,1,aux!$AL$1),"n.d.") -> n.d.
A8: 06 | B8: Plantas vivas e produtos de floricultura | C8: 0 | D8: 0 | E8: 0 | F8: 0 | G8: 0 | H8: 0 | I8: 0 | J8: 0 | K8: 0 | L8: 0 | M8: 0 | N8: 0 | O8: 0 | P8: 0 | Q8: 0 | R8: 0 | S8: 0 | U8: =G8-INDEX($C8:$G8,1,aux!$AL$1) -> 0 | V8: 0 | W8: 0 | X8: =+IF(INDEX($C8:$G8,1,aux!$AL$1)>0,(G8/INDEX($C8:$G8,1,aux!$AL$1))^(1/($G$3-INDEX($C$3:$G$3,1,aux!$AL$1)))-1,"n.d.") -> n.d. | Y8: =IF(INDEX($C8:$G8,1,aux!$AL$1)>0,(G8-INDEX($C8:$G8,1,aux!$AL$1))/INDEX($C8:$G8,1,aux!$AL$1),"n.d.") -> n.d. | AA8: =O8-INDEX($K8:$O8,1,aux!$AL$1) -> 0 | AB8: 0 | AC8: 0 | AD8: =+IF(INDEX($K8:$O8,1,aux!$AL$1)>0,(O8/INDEX($K8:$O8,1,aux!$AL$1))^(1/($O$3-INDEX($K$3:$O$3,1,aux!$AL$1)))-1,"n.d.") -> n.d. | AE8: =IF(INDEX($K8:$O8,1,aux!$AL$1)>0,(O8-INDEX($K8:$O8,1,aux!$AL$1))/INDEX($K8:$O8,1,aux!$AL$1),"n.d.") -> n.d.
A9: 07 | B9: Produtos hortícolas | C9: 0 | D9: 0 | E9: 0 | F9: 0 | G9: 0 | H9: 0 | I9: 0 | J9: 0 | K9: 3116456 | L9: 2113972 | M9: 1873204 | N9: 1569199 | O9: 2817933 | P9: 2298152.8 | Q9: 0.1617462934 | R9: 0.03485413861 | S9: 2298152.8 | U9: =G9-INDEX($C9:$G9,1,aux!$AL$1) -> 0 | V9: 0 | W9: 0 | X9: =+IF(INDEX($C9:$G9,1,aux!$AL$1)>0,(G9/INDEX($C9:$G9,1,aux!$AL$1))^(1/($G$3-INDEX($C$3:$G$3,1,aux!$AL$1)))-1,"n.d.") -> n.d. | Y9: =IF(INDEX($C9:$G9,1,aux!$AL$1)>0,(G9-INDEX($C9:$G9,1,aux!$AL$1))/INDEX($C9:$G9,1,aux!$AL$1),"n.d.") -> n.d. | AA9: =O9-INDEX($K9:$O9,1,aux!$AL$1) -> -298523 | AB9: 0.08279545855 | AC9: -0.01845470421 | AD9: =+IF(INDEX($K9:$O9,1,aux!$AL$1)>0,(O9/INDEX($K9:$O9,1,aux!$AL$1))^(1/($O$3-INDEX($K$3:$O$3,1,aux!$AL$1)))-1,"n.d.") -> -0.02485900221 | AE9: =IF(INDEX($K9:$O9,1,aux!$AL$1)>0,(O9-INDEX($K9:$O9,1,aux!$AL$1))/INDEX($K9:$O9,1,aux!$AL$1),"n.d.") -> -0.09578925549
A10: 08 | B10: Frutas | C10: 0 | D10: 0 | E10: 0 | F10: 0 | G10: 0 | H10: 0 | I10: 0 | J10: 0 | K10: 0 | L10: 0 | M10: 44388 | N10: 0 | O10: 0 | P10: 8877.6 | Q10: 0.0006248143701 | R10: 0.0001346390461 | S10: 8877.6 | U10: =G10-INDEX($C10:$G10,1,aux!$AL$1) -> 0 | V10: 0 | W10: 0 | X10: =+IF(INDEX($C10:$G10,1,aux!$AL$1)>0,(G10/INDEX($C10:$G10,1,aux!$AL$1))^(1/($G$3-INDEX($C$3:$G$3,1,aux!$AL$1)))-1,"n.d.") -> n.d. | Y10: =IF(INDEX($C10:$G10,1,aux!$AL$1)>0,(G10-INDEX($C10:$G10,1,aux!$AL$1))/INDEX($C10:$G10,1,aux!$AL$1),"n.d.") -> n.d. | AA10: =O10-INDEX($K10:$O10,1,aux!$AL$1) -> 0 | AB10: 0 | AC10: 0 | AD10: =+IF(INDEX($K10:$O10,1,aux!$AL$1)>0,(O10/INDEX($K10:$O10,1,aux!$AL$1))^(1/($O$3-INDEX($K$3:$O$3,1,aux!$AL$1)))-1,"n.d.") -> n.d. | AE10: =IF(INDEX($K10:$O10,1,aux!$AL$1)>0,(O10-INDEX($K10:$O10,1,aux!$AL$1))/INDEX($K10:$O10,1,aux!$AL$1),"n.d.") -> n.d.
A11: 09 | B11: Café, chá, mate e especiarias | C11: 0 | D11: 0 | E11: 0 | F11: 0 | G11: 19 | H11: 3.8 | I11: 3.23078702e-05 | J11: 1.04893578e-06 | K11: 23 | L11: 0 | M11: 0 | N11: 0 | O11: 29988 | P11: 6002.2 | Q11: 0.0004224408413 | R11: 9.103028778e-05 | S11: 5998.4 | U11: =G11-INDEX($C11:$G11,1,aux!$AL$1) -> 19 | V11: 6.170073197e-05 | W11: 5.69864999e-06 | X11: =+IF(INDEX($C11:$G11,1,aux!$AL$1)>0,(G11/INDEX($C11:$G11,1,aux!$AL$1))^(1/($G$3-INDEX($C$3:$G$3,1,aux!$AL$1)))-1,"n.d.") -> n.d. | Y11: =IF(INDEX($C11:$G11,1,aux!$AL$1)>0,(G11-INDEX($C11:$G11,1,aux!$AL$1))/INDEX($C11:$G11,1,aux!$AL$1),"n.d.") -> n.d. | AA11: =O11-INDEX($K11:$O11,1,aux!$AL$1) -> 29965 | AB11: -0.00831080324 | AC11: 0.00185243754 | AD11: =+IF(INDEX($K11:$O11,1,aux!$AL$1)>0,(O11/INDEX($K11:$O11,1,aux!$AL$1))^(1/($O$3-INDEX($K$3:$O$3,1,aux!$AL$1)))-1,"n.d.") -> 5.009037531 | AE11: =IF(INDEX($K11:$O11,1,aux!$AL$1)>0,(O11-INDEX($K11:$O11,1,aux!$AL$1))/INDEX($K11:$O11,1,aux!$AL$1),"n.d.") -> 1302.826087
A12: 10 | B12: Cereais | C12: 0 | D12: 0 | E12: 0 | F12: 0 | G12: 0 | H12: 0 | I12: 0 | J12: 0 | K12: 221363 | L12: 13925 | M12: 0 | N12: 0 | O12: 0 | P12: 47057.6 | Q12: 0.00331196097 | R12: 0.0007136827947 | S12: 47057.6 | U12: =G12-INDEX($C12:$G12,1,aux!$AL$1) -> 0 | V12: 0 | W12: 0 | X12: =+IF(INDEX($C12:$G12,1,aux!$AL$1)>0,(G12/INDEX($C12:$G12,1,aux!$AL$1))^(1/($G$3-INDEX($C$3:$G$3,1,aux!$AL$1)))-1,"n.d.") -> n.d. | Y12: =IF(INDEX($C12:$G12,1,aux!$AL$1)>0,(G12-INDEX($C12:$G12,1,aux!$AL$1))/INDEX($C12:$G12,1,aux!$AL$1),"n.d.") -> n.d. | AA12: =O12-INDEX($K12:$O12,1,aux!$AL$1) -> -221363 | AB12: 0.06139510554 | AC12: -0.01368466982 | AD12: =+IF(INDEX($K12:$O12,1,aux!$AL$1)>0,(O12/INDEX($K12:$O12,1,aux!$AL$1))^(1/($O$3-INDEX($K$3:$O$3,1,aux!$AL$1)))-1,"n.d.") -> -1 | AE12: =IF(INDEX($K12:$O12,1,aux!$AL$1)>0,(O12-INDEX($K12:$O12,1,aux!$AL$1))/INDEX($K12:$O12,1,aux!$AL$1),"n.d.") -> -1
A13: 11 | B13: Produtos da indústria de moagem e outros | C13: 0 | D13: 0 | E13: 0 | F13: 0 | G13: 0 | H13: 0 | I13: 0 | J13: 0 | K13: 0 | L13: 400206 | M13: 0 | N13: 0 | O13: 0 | P13: 80041.2 | Q13: 0.005633379738 | R13: 0.001213917142 | S13: 80041.2 | U13: =G13-INDEX($C13:$G13,1,aux!$AL$1) -> 0 | V13: 0 | W13: 0 | X13: =+IF(INDEX($C13:$G13,1,aux!$AL$1)>0,(G13/INDEX($C13:$G13,1,aux!$AL$1))^(1/($G$3-INDEX($C$3:$G$3,1,aux!$AL$1)))-1,"n.d.") -> n.d. | Y13: =IF(INDEX($C13:$G13,1,aux!$AL$1)>0,(G13-INDEX($C13:$G13,1,aux!$AL$1))/INDEX($C13:$G13,1,aux!$AL$1),"n.d.") -> n.d. | AA13: =O13-INDEX($K13:$O13,1,aux!$AL$1) -> 0 | AB13: 0 | AC13: 0 | AD13: =+IF(INDEX($K13:$O13,1,aux!$AL$1)>0,(O13/INDEX($K13:$O13,1,aux!$AL$1))^(1/($O$3-INDEX($K$3:$O$3,1,aux!$AL$1)))-1,"n.d.") -> n.d. | AE13: =IF(INDEX($K13:$O13,1,aux!$AL$1)>0,(O13-INDEX($K13:$O13,1,aux!$AL$1))/INDEX($K13:$O13,1,aux!$AL$1),"n.d.") -> n.d.
A14: 12 | B14: Sementes e frutos oleaginosos | C14: 0 | D14: 0 | E14: 0 | F14: 0 | G14: 0 | H14: 0 | I14: 0 | J14: 0 | K14: 228000 | L14: 857892 | M14: 1216 | N14: 331247 | O14: 669600 | P14: 417591 | Q14: 0.02939047238 | R14: 0.006333249293 | S14: 417591 | U14: =G14-INDEX($C14:$G14,1,aux!$AL$1) -> 0 | V14: 0 | W14: 0 | X14: =+IF(INDEX($C14:$G14,1,aux!$AL$1)>0,(G14/INDEX($C14:$G14,1,aux!$AL$1))^(1/($G$3-INDEX($C$3:$G$3,1,aux!$AL$1)))-1,"n.d.") -> n.d. | Y14: =IF(INDEX($C14:$G14,1,aux!$AL$1)>0,(G14-INDEX($C14:$G14,1,aux!$AL$1))/INDEX($C14:$G14,1,aux!$AL$1),"n.d.") -> n.d. | AA14: =O14-INDEX($K14:$O14,1,aux!$AL$1) -> 441600 | AB14: -0.1224779146 | AC14: 0.02729973027 | AD14: =+IF(INDEX($K14:$O14,1,aux!$AL$1)>0,(O14/INDEX($K14:$O14,1,aux!$AL$1))^(1/($O$3-INDEX($K$3:$O$3,1,aux!$AL$1)))-1,"n.d.") -> 0.3090919417 | AE14: =IF(INDEX($K14:$O14,1,aux!$AL$1)>0,(O14-INDEX($K14:$O14,1,aux!$AL$1))/INDEX($K14:$O14,1,aux!$AL$1),"n.d.") -> 1.936842105
A15: 13a | B15: Sucos e extratos vegetais (exc. NC 1301) (a) | C15: 0 | D15: 0 | E15: 0 | F15: 0 | G15: 0 | H15: 0 | I15: 0 | J15: 0 | K15: 0 | L15: 0 | M15: 0 | N15: 0 | O15: 0 | P15: 0 | Q15: 0 | R15: 0 | S15: 0 | U15: =G15-INDEX($C15:$G15,1,aux!$AL$1) -> 0 | V15: 0 | W15: 0 | X15: =+IF(INDEX($C15:$G15,1,aux!$AL$1)>0,(G15/INDEX($C15:$G15,1,aux!$AL$1))^(1/($G$3-INDEX($C$3:$G$3,1,aux!$AL$1)))-1,"n.d.") -> n.d. | Y15: =IF(INDEX($C15:$G15,1,aux!$AL$1)>0,(G15-INDEX($C15:$G15,1,aux!$AL$1))/INDEX($C15:$G15,1,aux!$AL$1),"n.d.") -> n.d. | AA15: =O15-INDEX($K15:$O15,1,aux!$AL$1) -> 0 | AB15: 0 | AC15: 0 | AD15: =+IF(INDEX($K15:$O15,1,aux!$AL$1)>0,(O15/INDEX($K15:$O15,1,aux!$AL$1))^(1/($O$3-INDEX($K$3:$O$3,1,aux!$AL$1)))-1,"n.d.") -> n.d. | AE15: =IF(INDEX($K15:$O15,1,aux!$AL$1)>0,(O15-INDEX($K15:$O15,1,aux!$AL$1))/INDEX($K15:$O15,1,aux!$AL$1),"n.d.") -> n.d.
A16: 14 | B16: Matérias para entrançar e outros | C16: 0 | D16: 0 | E16: 0 | F16: 0 | G16: 0 | H16: 0 | I16: 0 | J16: 0 | K16: 0 | L16: 0 | M16: 0 | N16: 0 | O16: 0 | P16: 0 | Q16: 0 | R16: 0 | S16: 0 | U16: =G16-INDEX($C16:$G16,1,aux!$AL$1) -> 0 | V16: 0 | W16: 0 | X16: =+IF(INDEX($C16:$G16,1,aux!$AL$1)>0,(G16/INDEX($C16:$G16,1,aux!$AL$1))^(1/($G$3-INDEX($C$3:$G$3,1,aux!$AL$1)))-1,"n.d.") -> n.d. | Y16: =IF(INDEX($C16:$G16,1,aux!$AL$1)>0,(G16-INDEX($C16:$G16,1,aux!$AL$1))/INDEX($C16:$G16,1,aux!$AL$1),"n.d.") -> n.d. | AA16: =O16-INDEX($K16:$O16,1,aux!$AL$1) -> 0 | AB16: 0 | AC16: 0 | AD16: =+IF(INDEX($K16:$O16,1,aux!$AL$1)>0,(O16/INDEX($K16:$O16,1,aux!$AL$1))^(1/($O$3-INDEX($K$3:$O$3,1,aux!$AL$1)))-1,"n.d.") -> n.d. | AE16: =IF(INDEX($K16:$O16,1,aux!$AL$1)>0,(O16-INDEX($K16:$O16,1,aux!$AL$1))/INDEX($K16:$O16,1,aux!$AL$1),"n.d.") -> n.d.
A17: 15 | B17: Gorduras e óleos animais ou vegetais | C17: 15777 | D17: 0 | E17: 72992 | F17: 103946 | G17: 314352 | H17: 101413.4 | I17: 0.8622239378 | J17: 0.02799372206 | K17: 159 | L17: 543655 | M17: 2428000 | N17: 4738182 | O17: 11506633 | P17: 3843325.8 | Q17: 0.2704971151 | R17: 0.05828846983 | S17: 3741912.4 | U17: =G17-INDEX($C17:$G17,1,aux!$AL$1) -> 298575 | V17: 0.9695945288 | W17: 0.0895512853 | X17: =+IF(INDEX($C17:$G17,1,aux!$AL$1)>0,(G17/INDEX($C17:$G17,1,aux!$AL$1))^(1/($G$3-INDEX($C$3:$G$3,1,aux!$AL$1)))-1,"n.d.") -> 1.112749223 | Y17: =IF(INDEX($C17:$G17,1,aux!$AL$1)>0,(G17-INDEX($C17:$G17,1,aux!$AL$1))/INDEX($C17:$G17,1,aux!$AL$1),"n.d.") -> 18.92470051 | AA17: =O17-INDEX($K17:$O17,1,aux!$AL$1) -> 11506474 | AB17: -3.191324592 | AC17: 0.7113306986 | AD17: =+IF(INDEX($K17:$O17,1,aux!$AL$1)>0,(O17/INDEX($K17:$O17,1,aux!$AL$1))^(1/($O$3-INDEX($K$3:$O$3,1,aux!$AL$1)))-1,"n.d.") -> 15.40165922 | AE17: =IF(INDEX($K17:$O17,1,aux!$AL$1)>0,(O17-INDEX($K17:$O17,1,aux!$AL$1))/INDEX($K17:$O17,1,aux!$AL$1),"n.d.") -> 72367.76101
A18: 16a | B18: Preparações de carnes (exc. NC 1604-05) (a) | C18: 0 | D18: 0 | E18: 0 | F18: 0 | G18: 0 | H18: 0 | I18: 0 | J18: 0 | K18: 0 | L18: 0 | M18: 0 | N18: 0 | O18: 0 | P18: 0 | Q18: 0 | R18: 0 | S18: 0 | U18: =G18-INDEX($C18:$G18,1,aux!$AL$1) -> 0 | V18: 0 | W18: 0 | X18: =+IF(INDEX($C18:$G18,1,aux!$AL$1)>0,(G18/INDEX($C18:$G18,1,aux!$AL$1))^(1/($G$3-INDEX($C$3:$G$3,1,aux!$AL$1)))-1,"n.d.") -> n.d. | Y18: =IF(INDEX($C18:$G18,1,aux!$AL$1)>0,(G18-INDEX($C18:$G18,1,aux!$AL$1))/INDEX($C18:$G18,1,aux!$AL$1),"n.d.") -> n.d. | AA18: =O18-INDEX($K18:$O18,1,aux!$AL$1) -> 0 | AB18: 0 | AC18: 0 | AD18: =+IF(INDEX($K18:$O18,1,aux!$AL$1)>0,(O18/INDEX($K18:$O18,1,aux!$AL$1))^(1/($O$3-INDEX($K$3:$O$3,1,aux!$AL$1)))-1,"n.d.") -> n.d. | AE18: =IF(INDEX($K18:$O18,1,aux!$AL$1)>0,(O18-INDEX($K18:$O18,1,aux!$AL$1))/INDEX($K18:$O18,1,aux!$AL$1),"n.d.") -> n.d.
A19: 17 | B19: Açúcares e produtos de confeitaria | C19: 0 | D19: 0 | E19: 0 | F19: 0 | G19: 0 | H19: 0 | I19: 0 | J19: 0 | K19: 42841 | L19: 0 | M19: 0 | N19: 0 | O19: 0 | P19: 8568.2 | Q19: 0.0006030384886 | R19: 0.0001299466382 | S19: 8568.2 | U19: =G19-INDEX($C19:$G19,1,aux!$AL$1) -> 0 | V19: 0 | W19: 0 | X19: =+IF(INDEX($C19:$G19,1,aux!$AL$1)>0,(G19/INDEX($C19:$G19,1,aux!$AL$1))^(1/($G$3-INDEX($C$3:$G$3,1,aux!$AL$1)))-1,"n.d.") -> n.d. | Y19: =IF(INDEX($C19:$G19,1,aux!$AL$1)>0,(G19-INDEX($C19:$G19,1,aux!$AL$1))/INDEX($C19:$G19,1,aux!$AL$1),"n.d.") -> n.d. | AA19: =O19-INDEX($K19:$O19,1,aux!$AL$1) -> -42841 | AB19: 0.01188196635 | AC19: -0.002648432392 | AD19: =+IF(INDEX($K19:$O19,1,aux!$AL$1)>0,(O19/INDEX($K19:$O19,1,aux!$AL$1))^(1/($O$3-INDEX($K$3:$O$3,1,aux!$AL$1)))-1,"n.d.") -> -1 | AE19: =IF(INDEX($K19:$O19,1,aux!$AL$1)>0,(O19-INDEX($K19:$O19,1,aux!$AL$1))/INDEX($K19:$O19,1,aux!$AL$1),"n.d.") -> -1
A20: 18 | B20: Cacau e suas preparações | C20: 0 | D20: 0 | E20: 0 | F20: 0 | G20: 0 | H20: 0 | I20: 0 | J20: 0 | K20: 184507 | L20: 0 | M20: 379085 | N20: 1006550 | O20: 296827 | P20: 373393.8 | Q20: 0.02627982923 | R20: 0.005662947764 | S20: 373393.8 | U20: =G20-INDEX($C20:$G20,1,aux!$AL$1) -> 0 | V20: 0 | W20: 0 | X20: =+IF(INDEX($C20:$G20,1,aux!$AL$1)>0,(G20/INDEX($C20:$G20,1,aux!$AL$1))^(1/($G$3-INDEX($C$3:$G$3,1,aux!$AL$1)))-1,"n.d.") -> n.d. | Y20: =IF(INDEX($C20:$G20,1,aux!$AL$1)>0,(G20-INDEX($C20:$G20,1,aux!$AL$1))/INDEX($C20:$G20,1,aux!$AL$1),"n.d.") -> n.d. | AA20: =O20-INDEX($K20:$O20,1,aux!$AL$1) -> 112320 | AB20: -0.03115199132 | AC20: 0.006943627046 | AD20: =+IF(INDEX($K20:$O20,1,aux!$AL$1)>0,(O20/INDEX($K20:$O20,1,aux!$AL$1))^(1/($O$3-INDEX($K$3:$O$3,1,aux!$AL$1)))-1,"n.d.") -> 0.1262184527 | AE20: =IF(INDEX($K20:$O20,1,aux!$AL$1)>0,(O20-INDEX($K20:$O20,1,aux!$AL$1))/INDEX($K20:$O20,1,aux!$AL$1),"n.d.") -> 0.6087573913
A21: 19a | B21: Preparações à base de cereais (exc. NC 19022010) (a) | C21: 0 | D21: 0 | E21: 0 | F21: 0 | G21: 0 | H21: 0 | I21: 0 | J21: 0 | K21: 54825 | L21: 55343 | M21: 110119 | N21: 5 | O21: 14452 | P21: 46948.8 | Q21: 0.003304303517 | R21: 0.0007120327172 | S21: 46948.8 | U21: =G21-INDEX($C21:$G21,1,aux!$AL$1) -> 0 | V21: 0 | W21: 0 | X21: =+IF(INDEX($C21:$G21,1,aux!$AL$1)>0,(G21/INDEX($C21:$G21,1,aux!$AL$1))^(1/($G$3-INDEX($C$3:$G$3,1,aux!$AL$1)))-1,"n.d.") -> n.d. | Y21: =IF(INDEX($C21:$G21,1,aux!$AL$1)>0,(G21-INDEX($C21:$G21,1,aux!$AL$1))/INDEX($C21:$G21,1,aux!$AL$1),"n.d.") -> n.d. | AA21: =O21-INDEX($K21:$O21,1,aux!$AL$1) -> -40373 | AB21: 0.01119746568 | AC21: -0.00249586053 | AD21: =+IF(INDEX($K21:$O21,1,aux!$AL$1)>0,(O21/INDEX($K21:$O21,1,aux!$AL$1))^(1/($O$3-INDEX($K$3:$O$3,1,aux!$AL$1)))-1,"n.d.") -> -0.2834651332 | AE21: =IF(INDEX($K21:$O21,1,aux!$AL$1)>0,(O21-INDEX($K21:$O21,1,aux!$AL$1))/INDEX($K21:$O21,1,aux!$AL$1),"n.d.") -> -0.7363976288
A22: 20 | B22: Preparações de produtos vegetais | C22: 0 | D22: 0 | E22: 0 | F22: 0 | G22: 0 | H22: 0 | I22: 0 | J22: 0 | K22: 289564 | L22: 0 | M22: 0 | N22: 0 | O22: 3 | P22: 57913.4 | Q22: 0.004076003035 | R22: 0.0008783235261 | S22: 57913.4 | U22: =G22-INDEX($C22:$G22,1,aux!$AL$1) -> 0 | V22: 0 | W22: 0 | X22: =+IF(INDEX($C22:$G22,1,aux!$AL$1)>0,(G22/INDEX($C22:$G22,1,aux!$AL$1))^(1/($G$3-INDEX($C$3:$G$3,1,aux!$AL$1)))-1,"n.d.") -> n.d. | Y22: =IF(INDEX($C22:$G22,1,aux!$AL$1)>0,(G22-INDEX($C22:$G22,1,aux!$AL$1))/INDEX($C22:$G22,1,aux!$AL$1),"n.d.") -> n.d. | AA22: =O22-INDEX($K22:$O22,1,aux!$AL$1) -> -289561 | AB22: 0.08030984472 | AC22: -0.017900673 | AD22: =+IF(INDEX($K22:$O22,1,aux!$AL$1)>0,(O22/INDEX($K22:$O22,1,aux!$AL$1))^(1/($O$3-INDEX($K$3:$O$3,1,aux!$AL$1)))-1,"n.d.") -> -0.9432658997 | AE22: =IF(INDEX($K22:$O22,1,aux!$AL$1)>0,(O22-INDEX($K22:$O22,1,aux!$AL$1))/INDEX($K22:$O22,1,aux!$AL$1),"n.d.") -> -0.9999896396
A23: 21 | B23: Preparações alimentícias diversas | C23: 0 | D23: 0 | E23: 0 | F23: 68080 | G23: 0 | H23: 13616 | I23: 0.1157642002 | J23: 0.003758502522 | K23: 285557 | L23: 480161 | M23: 581046 | N23: 453720 | O23: 457238 | P23: 451544.4 | Q23: 0.03178014665 | R23: 0.006848191776 | S23: 437928.4 | U23: =G23-INDEX($C23:$G23,1,aux!$AL$1) -> 0 | V23: 0 | W23: 0 | X23: =+IF(INDEX($C23:$G23,1,aux!$AL$1)>0,(G23/INDEX($C23:$G23,1,aux!$AL$1))^(1/($G$3-INDEX($C$3:$G$3,1,aux!$AL$1)))-1,"n.d.") -> n.d. | Y23: =IF(INDEX($C23:$G23,1,aux!$AL$1)>0,(G23-INDEX($C23:$G23,1,aux!$AL$1))/INDEX($C23:$G23,1,aux!$AL$1),"n.d.") -> n.d. | AA23: =O23-INDEX($K23:$O23,1,aux!$AL$1) -> 171681 | AB23: -0.04761578545 | AC23: 0.01061332652 | AD23: =+IF(INDEX($K23:$O23,1,aux!$AL$1)>0,(O23/INDEX($K23:$O23,1,aux!$AL$1))^(1/($O$3-INDEX($K$3:$O$3,1,aux!$AL$1)))-1,"n.d.") -> 0.1248960102 | AE23: =IF(INDEX($K23:$O23,1,aux!$AL$1)>0,(O23-INDEX($K23:$O23,1,aux!$AL$1))/INDEX($K23:$O23,1,aux!$AL$1),"n.d.") -> 0.6012144686
A24: 22 | B24: Bebidas, líquidos alcoólicos e vinagres | C24: 0 | D24: 3123 | E24: 0 | F24: 459 | G24: 0 | H24: 716.4 | I24: 0.006090883739 | J24: 0.0001977519981 | K24: 86930 | L24: 47419 | M24: 118988 | N24: 164297 | O24: 58720 | P24: 95270.8 | Q24: 0.006705254223 | R24: 0.001444891597 | S24: 94554.4 | U24: =G24-INDEX($C24:$G24,1,aux!$AL$1) -> 0 | V24: 0 | W24: 0 | X24: =+IF(INDEX($C24:$G24,1,aux!$AL$1)>0,(G24/INDEX($C24:$G24,1,aux!$AL$1))^(1/($G$3-INDEX($C$3:$G$3,1,aux!$AL$1)))-1,"n.d.") -> n.d. | Y24: =IF(INDEX($C24:$G24,1,aux!$AL$1)>0,(G24-INDEX($C24:$G24,1,aux!$AL$1))/INDEX($C24:$G24,1,aux!$AL$1),"n.d.") -> n.d. | AA24: =O24-INDEX($K24:$O24,1,aux!$AL$1) -> -28210 | AB24: 0.007824053376 | AC24: -0.001743943367 | AD24: =+IF(INDEX($K24:$O24,1,aux!$AL$1)>0,(O24/INDEX($K24:$O24,1,aux!$AL$1))^(1/($O$3-INDEX($K$3:$O$3,1,aux!$AL$1)))-1,"n.d.") -> -0.09342426276 | AE24: =IF(INDEX($K24:$O24,1,aux!$AL$1)>0,(O24-INDEX($K24:$O24,1,aux!$AL$1))/INDEX($K24:$O24,1,aux!$AL$1),"n.d.") -> -0.3245139768
A25: 23a | B25: Resíduos indústrias alimentares; alimentos p/ animais (exc. NC 230120) (a) | C25: 0 | D25: 0 | E25: 0 | F25: 0 | G25: 0 | H25: 0 | I25: 0 | J25: 0 | K25: 0 | L25: 1957795 | M25: 3305 | N25: 1742933 | O25: 0 | P25: 740806.6 | Q25: 0.05213870969 | R25: 0.01123518676 | S25: 740806.6 | U25: =G25-INDEX($C25:$G25,1,aux!$AL$1) -> 0 | V25: 0 | W25: 0 | X25: =+IF(INDEX($C25:$G25,1,aux!$AL$1)>0,(G25/INDEX($C25:$G25,1,aux!$AL$1))^(1/($G$3-INDEX($C$3:$G$3,1,aux!$AL$1)))-1,"n.d.") -> n.d. | Y25: =IF(INDEX($C25:$G25,1,aux!$AL$1)>0,(G25-INDEX($C25:$G25,1,aux!$AL$1))/INDEX($C25:$G25,1,aux!$AL$1),"n.d.") -> n.d. | AA25: =O25-INDEX($K25:$O25,1,aux!$AL$1) -> 0 | AB25: 0 | AC25: 0 | AD25: =+IF(INDEX($K25:$O25,1,aux!$AL$1)>0,(O25/INDEX($K25:$O25,1,aux!$AL$1))^(1/($O$3-INDEX($K$3:$O$3,1,aux!$AL$1)))-1,"n.d.") -> n.d. | AE25: =IF(INDEX($K25:$O25,1,aux!$AL$1)>0,(O25-INDEX($K25:$O25,1,aux!$AL$1))/INDEX($K25:$O25,1,aux!$AL$1),"n.d.") -> n.d.
A26: 24 | B26: Tabaco | C26: 0 | D26: 0 | E26: 0 | F26: 0 | G26: 0 | H26: 0 | I26: 0 | J26: 0 | K26: 15124476 | L26: 9480421 | M26: 0 | N26: 0 | O26: 257 | P26: 4921030.8 | Q26: 0.3463470712 | R26: 0.07463310951 | S26: 4921030.8 | U26: =G26-INDEX($C26:$G26,1,aux!$AL$1) -> 0 | V26: 0 | W26: 0 | X26: =+IF(INDEX($C26:$G26,1,aux!$AL$1)>0,(G26/INDEX($C26:$G26,1,aux!$AL$1))^(1/($G$3-INDEX($C$3:$G$3,1,aux!$AL$1)))-1,"n.d.") -> n.d. | Y26: =IF(INDEX($C26:$G26,1,aux!$AL$1)>0,(G26-INDEX($C26:$G26,1,aux!$AL$1))/INDEX($C26:$G26,1,aux!$AL$1),"n.d.") -> n.d. | AA26: =O26-INDEX($K26:$O26,1,aux!$AL$1) -> -15124219 | AB26: 4.194707434 | AC26: -0.9349798442 | AD26: =+IF(INDEX($K26:$O26,1,aux!$AL$1)>0,(O26/INDEX($K26:$O26,1,aux!$AL$1))^(1/($O$3-INDEX($K$3:$O$3,1,aux!$AL$1)))-1,"n.d.") -> -0.9357958358 | AE26: =IF(INDEX($K26:$O26,1,aux!$AL$1)>0,(O26-INDEX($K26:$O26,1,aux!$AL$1))/INDEX($K26:$O26,1,aux!$AL$1),"n.d.") -> -0.9999830077
A27: 29 | B27: Manitol e sorbitol (NC 290543; 290544) | C27: 0 | D27: 0 | E27: 0 | F27: 0 | G27: 0 | H27: 0 | I27: 0 | J27: 0 | K27: 0 | L27: 0 | M27: 0 | N27: 0 | O27: 0 | P27: 0 | Q27: 0 | R27: 0 | S27: 0 | U27: =G27-INDEX($C27:$G27,1,aux!$AL$1) -> 0 | V27: 0 | W27: 0 | X27: =+IF(INDEX($C27:$G27,1,aux!$AL$1)>0,(G27/INDEX($C27:$G27,1,aux!$AL$1))^(1/($G$3-INDEX($C$3:$G$3,1,aux!$AL$1)))-1,"n.d.") -> n.d. | Y27: =IF(INDEX($C27:$G27,1,aux!$AL$1)>0,(G27-INDEX($C27:$G27,1,aux!$AL$1))/INDEX($C27:$G27,1,aux!$AL$1),"n.d.") -> n.d. | AA27: =O27-INDEX($K27:$O27,1,aux!$AL$1) -> 0 | AB27: 0 | AC27: 0 | AD27: =+IF(INDEX($K27:$O27,1,aux!$AL$1)>0,(O27/INDEX($K27:$O27,1,aux!$AL$1))^(1/($O$3-INDEX($K$3:$O$3,1,aux!$AL$1)))-1,"n.d.") -> n.d. | AE27: =IF(INDEX($K27:$O27,1,aux!$AL$1)>0,(O27-INDEX($K27:$O27,1,aux!$AL$1))/INDEX($K27:$O27,1,aux!$AL$1),"n.d.") -> n.d.
A28: 33 | B28: Óleos essenciais e resinóides (NC 3301) | C28: 0 | D28: 0 | E28: 0 | F28: 0 | G28: 0 | H28: 0 | I28: 0 | J28: 0 | K28: 0 | L28: 0 | M28: 0 | N28: 1 | O28: 0 | P28: 0.2 | Q28: 1.40762001e-08 | R28: 3.033230741e-09 | S28: 0.2 | U28: =G28-INDEX($C28:$G28,1,aux!$AL$1) -> 0 | V28: 0 | W28: 0 | X28: =+IF(INDEX($C28:$G28,1,aux!$AL$1)>0,(G28/INDEX($C28:$G28,1,aux!$AL$1))^(1/($G$3-INDEX($C$3:$G$3,1,aux!$AL$1)))-1,"n.d.") -> n.d. | Y28: =IF(INDEX($C28:$G28,1,aux!$AL$1)>0,(G28-INDEX($C28:$G28,1,aux!$AL$1))/INDEX($C28:$G28,1,aux!$AL$1),"n.d.") -> n.d. | AA28: =O28-INDEX($K28:$O28,1,aux!$AL$1) -> 0 | AB28: 0 | AC28: 0 | AD28: =+IF(INDEX($K28:$O28,1,aux!$AL$1)>0,(O28/INDEX($K28:$O28,1,aux!$AL$1))^(1/($O$3-INDEX($K$3:$O$3,1,aux!$AL$1)))-1,"n.d.") -> n.d. | AE28: =IF(INDEX($K28:$O28,1,aux!$AL$1)>0,(O28-INDEX($K28:$O28,1,aux!$AL$1))/INDEX($K28:$O28,1,aux!$AL$1),"n.d.") -> n.d.
A29: 35 | B29: Caseínas, albuminas, gelatinas, peptonas, dextrinas (NC 3501 a 3505) | C29: 0 | D29: 0 | E29: 0 | F29: 0 | G29: 0 | H29: 0 | I29: 0 | J29: 0 | K29: 0 | L29: 584 | M29: 0 | N29: 0 | O29: 0 | P29: 116.8 | Q29: 8.220500859e-06 | R29: 1.771406753e-06 | S29: 116.8 | U29: =G29-INDEX($C29:$G29,1,aux!$AL$1) -> 0 | V29: 0 | W29: 0 | X29: =+IF(INDEX($C29:$G29,1,aux!$AL$1)>0,(G29/INDEX($C29:$G29,1,aux!$AL$1))^(1/($G$3-INDEX($C$3:$G$3,1,aux!$AL$1)))-1,"n.d.") -> n.d. | Y29: =IF(INDEX($C29:$G29,1,aux!$AL$1)>0,(G29-INDEX($C29:$G29,1,aux!$AL$1))/INDEX($C29:$G29,1,aux!$AL$1),"n.d.") -> n.d. | AA29: =O29-INDEX($K29:$O29,1,aux!$AL$1) -> 0 | AB29: 0 | AC29: 0 | AD29: =+IF(INDEX($K29:$O29,1,aux!$AL$1)>0,(O29/INDEX($K29:$O29,1,aux!$AL$1))^(1/($O$3-INDEX($K$3:$O$3,1,aux!$AL$1)))-1,"n.d.") -> n.d. | AE29: =IF(INDEX($K29:$O29,1,aux!$AL$1)>0,(O29-INDEX($K29:$O29,1,aux!$AL$1))/INDEX($K29:$O29,1,aux!$AL$1),"n.d.") -> n.d.
A30: 38a | B30: Agentes de acabamento, ácidos gordos, sorbitol (NC 380910, 382311-12-13-19-70, 382460) (a) | C30: 0 | D30: 0 | E30: 0 | F30: 0 | G30: 0 | H30: 0 | I30: 0 | J30: 0 | K30: 6347 | L30: 0 | M30: 3170 | N30: 0 | O30: 2295 | P30: 2362.4 | Q30: 0.0001662680756 | R30: 3.582852152e-05 | S30: 2362.4 | U30: =G30-INDEX($C30:$G30,1,aux!$AL$1) -> 0 | V30: 0 | W30: 0 | X30: =+IF(INDEX($C30:$G30,1,aux!$AL$1)>0,(G30/INDEX($C30:$G30,1,aux!$AL$1))^(1/($G$3-INDEX($C$3:$G$3,1,aux!$AL$1)))-1,"n.d.") -> n.d. | Y30: =IF(INDEX($C30:$G30,1,aux!$AL$1)>0,(G30-INDEX($C30:$G30,1,aux!$AL$1))/INDEX($C30:$G30,1,aux!$AL$1),"n.d.") -> n.d. | AA30: =O30-INDEX($K30:$O30,1,aux!$AL$1) -> -4052 | AB30: 0.001123823618 | AC30: -0.0002504948076 | AD30: =+IF(INDEX($K30:$O30,1,aux!$AL$1)>0,(O30/INDEX($K30:$O30,1,aux!$AL$1))^(1/($O$3-INDEX($K$3:$O$3,1,aux!$AL$1)))-1,"n.d.") -> -0.2245504507 | AE30: =IF(INDEX($K30:$O30,1,aux!$AL$1)>0,(O30-INDEX($K30:$O30,1,aux!$AL$1))/INDEX($K30:$O30,1,aux!$AL$1),"n.d.") -> -0.6384118481
A31: 41 | B31: Couro e peles em bruto (NC 4101 a 4103) | C31: 0 | D31: 0 | E31: 0 | F31: 0 | G31: 0 | H31: 0 | I31: 0 | J31: 0 | K31: 0 | L31: 0 | M31: 0 | N31: 0 | O31: 0 | P31: 0 | Q31: 0 | R31: 0 | S31: 0 | U31: =G31-INDEX($C31:$G31,1,aux!$AL$1) -> 0 | V31: 0 | W31: 0 | X31: =+IF(INDEX($C31:$G31,1,aux!$AL$1)>0,(G31/INDEX($C31:$G31,1,aux!$AL$1))^(1/($G$3-INDEX($C$3:$G$3,1,aux!$AL$1)))-1,"n.d.") -> n.d. | Y31: =IF(INDEX($C31:$G31,1,aux!$AL$1)>0,(G31-INDEX($C31:$G31,1,aux!$AL$1))/INDEX($C31:$G31,1,aux!$AL$1),"n.d.") -> n.d. | AA31: =O31-INDEX($K31:$O31,1,aux!$AL$1) -> 0 | AB31: 0 | AC31: 0 | AD31: =+IF(INDEX($K31:$O31,1,aux!$AL$1)>0,(O31/INDEX($K31:$O31,1,aux!$AL$1))^(1/($O$3-INDEX($K$3:$O$3,1,aux!$AL$1)))-1,"n.d.") -> n.d. | AE31: =IF(INDEX($K31:$O31,1,aux!$AL$1)>0,(O31-INDEX($K31:$O31,1,aux!$AL$1))/INDEX($K31:$O31,1,aux!$AL$1),"n.d.") -> n.d.
A32: 43 | B32: Peles com pelo em bruto (NC 4301) | C32: 0 | D32: 0 | E32: 0 | F32: 0 | G32: 0 | H32: 0 | I32: 0 | J32: 0 | K32: 0 | L32: 0 | M32: 0 | N32: 0 | O32: 0 | P32: 0 | Q32: 0 | R32: 0 | S32: 0 | U32: =G32-INDEX($C32:$G32,1,aux!$AL$1) -> 0 | V32: 0 | W32: 0 | X32: =+IF(INDEX($C32:$G32,1,aux!$AL$1)>0,(G32/INDEX($C32:$G32,1,aux!$AL$1))^(1/($G$3-INDEX($C$3:$G$3,1,aux!$AL$1)))-1,"n.d.") -> n.d. | Y32: =IF(INDEX($C32:$G32,1,aux!$AL$1)>0,(G32-INDEX($C32:$G32,1,aux!$AL$1))/INDEX($C32:$G32,1,aux!$AL$1),"n.d.") -> n.d. | AA32: =O32-INDEX($K32:$O32,1,aux!$AL$1) -> 0 | AB32: 0 | AC32: 0 | AD32: =+IF(INDEX($K32:$O32,1,aux!$AL$1)>0,(O32/INDEX($K32:$O32,1,aux!$AL$1))^(1/($O$3-INDEX($K$3:$O$3,1,aux!$AL$1)))-1,"n.d.") -> n.d. | AE32: =IF(INDEX($K32:$O32,1,aux!$AL$1)>0,(O32-INDEX($K32:$O32,1,aux!$AL$1))/INDEX($K32:$O32,1,aux!$AL$1),"n.d.") -> n.d.
A33: 50 | B33: Seda crua (NC 5001-5003) | C33: 0 | D33: 0 | E33: 0 | F33: 0 | G33: 0 | H33: 0 | I33: 0 | J33: 0 | K33: 0 | L33: 0 | M33: 0 | N33: 0 | O33: 0 | P33: 0 | Q33: 0 | R33: 0 | S33: 0 | U33: =G33-INDEX($C33:$G33,1,aux!$AL$1) -> 0 | V33: 0 | W33: 0 | X33: =+IF(INDEX($C33:$G33,1,aux!$AL$1)>0,(G33/INDEX($C33:$G33,1,aux!$AL$1))^(1/($G$3-INDEX($C$3:$G$3,1,aux!$AL$1)))-1,"n.d.") -> n.d. | Y33: =IF(INDEX($C33:$G33,1,aux!$AL$1)>0,(G33-INDEX($C33:$G33,1,aux!$AL$1))/INDEX($C33:$G33,1,aux!$AL$1),"n.d.") -> n.d. | AA33: =O33-INDEX($K33:$O33,1,aux!$AL$1) -> 0 | AB33: 0 | AC33: 0 | AD33: =+IF(INDEX($K33:$O33,1,aux!$AL$1)>0,(O33/INDEX($K33:$O33,1,aux!$AL$1))^(1/($O$3-INDEX($K$3:$O$3,1,aux!$AL$1)))-1,"n.d.") -> n.d. | AE33: =IF(INDEX($K33:$O33,1,aux!$AL$1)>0,(O33-INDEX($K33:$O33,1,aux!$AL$1))/INDEX($K33:$O33,1,aux!$AL$1),"n.d.") -> n.d.
A34: 51 | B34: Lã não cardada (NC 5101-5103) | C34: 0 | D34: 0 | E34: 0 | F34: 0 | G34: 0 | H34: 0 | I34: 0 | J34: 0 | K34: 0 | L34: 0 | M34: 0 | N34: 0 | O34: 0 | P34: 0 | Q34: 0 | R34: 0 | S34: 0 | U34: =G34-INDEX($C34:$G34,1,aux!$AL$1) -> 0 | V34: 0 | W34: 0 | X34: =+IF(INDEX($C34:$G34,1,aux!$AL$1)>0,(G34/INDEX($C34:$G34,1,aux!$AL$1))^(1/($G$3-INDEX($C$3:$G$3,1,aux!$AL$1)))-1,"n.d.") -> n.d. | Y34: =IF(INDEX($C34:$G34,1,aux!$AL$1)>0,(G34-INDEX($C34:$G34,1,aux!$AL$1))/INDEX($C34:$G34,1,aux!$AL$1),"n.d.") -> n.d. | AA34: =O34-INDEX($K34:$O34,1,aux!$AL$1) -> 0 | AB34: 0 | AC34: 0 | AD34: =+IF(INDEX($K34:$O34,1,aux!$AL$1)>0,(O34/INDEX($K34:$O34,1,aux!$AL$1))^(1/($O$3-INDEX($K$3:$O$3,1,aux!$AL$1)))-1,"n.d.") -> n.d. | AE34: =IF(INDEX($K34:$O34,1,aux!$AL$1)>0,(O34-INDEX($K34:$O34,1,aux!$AL$1))/INDEX($K34:$O34,1,aux!$AL$1),"n.d.") -> n.d.
A35: 52 | B35: Algodão (NC 5201-5203) | C35: 0 | D35: 0 | E35: 0 | F35: 0 | G35: 9344 | H35: 1868.8 | I35: 0.01588867048 | J35: 0.0005158555752 | K35: 0 | L35: 33568 | M35: 16099 | N35: 0 | O35: 0 | P35: 9933.4 | Q35: 0.0006991226304 | R35: 0.0001506514712 | S35: 8064.6 | U35: =G35-INDEX($C35:$G35,1,aux!$AL$1) -> 9344 | V35: 0.0303437705 | W35: 0.002802536079 | X35: =+IF(INDEX($C35:$G35,1,aux!$AL$1)>0,(G35/INDEX($C35:$G35,1,aux!$AL$1))^(1/($G$3-INDEX($C$3:$G$3,1,aux!$AL$1)))-1,"n.d.") -> n.d. | Y35: =IF(INDEX($C35:$G35,1,aux!$AL$1)>0,(G35-INDEX($C35:$G35,1,aux!$AL$1))/INDEX($C35:$G35,1,aux!$AL$1),"n.d.") -> n.d. | AA35: =O35-INDEX($K35:$O35,1,aux!$AL$1) -> 0 | AB35: 0 | AC35: 0 | AD35: =+IF(INDEX($K35:$O35,1,aux!$AL$1)>0,(O35/INDEX($K35:$O35,1,aux!$AL$1))^(1/($O$3-INDEX($K$3:$O$3,1,aux!$AL$1)))-1,"n.d.") -> n.d. | AE35: =IF(INDEX($K35:$O35,1,aux!$AL$1)>0,(O35-INDEX($K35:$O35,1,aux!$AL$1))/INDEX($K35:$O35,1,aux!$AL$1),"n.d.") -> n.d.
A36: 53 | B36: Linho e cânhamo em bruto (NC 5301-5302) | C36: 0 | D36: 0 | E36: 0 | F36: 0 | G36: 0 | H36: 0 | I36: 0 | J36: 0 | K36: 0 | L36: 87 | M36: 0 | N36: 0 | O36: 0 | P36: 17.4 | Q36: 1.224629409e-06 | R36: 2.638910745e-07 | S36: 17.4 | U36: =G36-INDEX($C36:$G36,1,aux!$AL$1) -> 0 | V36: 0 | W36: =IF($U$53<>0,U36/$U$53, "n.d.") -> 0 | X36: =+IF(INDEX($C36:$G36,1,aux!$AL$1)>0,(G36/INDEX($C36:$G36,1,aux!$AL$1))^(1/($G$3-INDEX($C$3:$G$3,1,aux!$AL$1)))-1,"n.d.") -> n.d. | Y36: =IF(INDEX($C36:$G36,1,aux!$AL$1)>0,(G36-INDEX($C36:$G36,1,aux!$AL$1))/INDEX($C36:$G36,1,aux!$AL$1),"n.d.") -> n.d. | AA36: =O36-INDEX($K36:$O36,1,aux!$AL$1) -> 0 | AB36: 0 | AC36: =IF($AA$53<>0,AA36/$AA$53, "n.d.") -> 0 | AD36: =+IF(INDEX($K36:$O36,1,aux!$AL$1)>0,(O36/INDEX($K36:$O36,1,aux!$AL$1))^(1/($O$3-INDEX($K$3:$O$3,1,aux!$AL$1)))-1,"n.d.") -> n.d. | AE36: =IF(INDEX($K36:$O36,1,aux!$AL$1)>0,(O36-INDEX($K36:$O36,1,aux!$AL$1))/INDEX($K36:$O36,1,aux!$AL$1),"n.d.") -> n.d.
A37: Subtotal Agrícola e Agroalimentar | C37: 15777 | D37: 3123 | E37: 72992 | F37: 172485 | G37: 323715 | H37: 117618.4 | I37: 1 | J37: 0.03246688109 | K37: 19641048 | L37: 18184202 | M37: 7040790 | N37: 10140360 | O37: 16035500 | P37: 14208380 | Q37: 1 | R37: 0.215486475 | S37: 14090761.6 | U37: =G37-INDEX($C37:$G37,1,aux!$AL$1) -> 307938 | V37: 1 | W37: 0.09235952003 | X37: =+IF(INDEX($C37:$G37,1,aux!$AL$1)>0,(G37/INDEX($C37:$G37,1,aux!$AL$1))^(1/($G$3-INDEX($C$3:$G$3,1,aux!$AL$1)))-1,"n.d.") -> 1.128308598 | Y37: =IF(INDEX($C37:$G37,1,aux!$AL$1)>0,(G37-INDEX($C37:$G37,1,aux!$AL$1))/INDEX($C37:$G37,1,aux!$AL$1),"n.d.") -> 19.51815935 | AA37: =O37-INDEX($K37:$O37,1,aux!$AL$1) -> -3605548 | AB37: 1 | AC37: -0.2228951265 | AD37: =+IF(INDEX($K37:$O37,1,aux!$AL$1)>0,(O37/INDEX($K37:$O37,1,aux!$AL$1))^(1/($O$3-INDEX($K$3:$O$3,1,aux!$AL$1)))-1,"n.d.") -> -0.04944015923 | AE37: =IF(INDEX($K37:$O37,1,aux!$AL$1)>0,(O37-INDEX($K37:$O37,1,aux!$AL$1))/INDEX($K37:$O37,1,aux!$AL$1),"n.d.") -> -0.1835720782
A38: 03 | B38: Peixes e crustáceos | C38: 0 | D38: 18404 | E38: 21134 | F38: 30570 | G38: 43864 | H38: 22794.4 | I38: 1 | J38: 0.006292068881 | K38: 0 | L38: 10 | M38: 0 | N38: 0 | O38: 0 | P38: 2 | Q38: 3.026048223e-05 | R38: 3.033230741e-08 | S38: -22792.4 | U38: =G38-INDEX($C38:$G38,1,aux!$AL$1) -> 43864 | V38: =IF($U$44<>0,U38/$U$44, "n.d.") -> 1 | W38: 0.01315608332 | X38: =+IF(INDEX($C38:$G38,1,aux!$AL$1)>0,(G38/INDEX($C38:$G38,1,aux!$AL$1))^(1/($G$3-INDEX($C$3:$G$3,1,aux!$AL$1)))-1,"n.d.") -> n.d. | Y38: =IF(INDEX($C38:$G38,1,aux!$AL$1)>0,(G38-INDEX($C38:$G38,1,aux!$AL$1))/INDEX($C38:$G38,1,aux!$AL$1),"n.d.") -> n.d. | AA38: =O38-INDEX($K38:$O38,1,aux!$AL$1) -> 0 | AB38: =IF($AA$44<>0,AA38/$AA$44, "n.d.") -> 0 | AC38: 0 | AD38: =+IF(INDEX($K38:$O38,1,aux!$AL$1)>0,(O38/INDEX($K38:$O38,1,aux!$AL$1))^(1/($O$3-INDEX($K$3:$O$3,1,aux!$AL$1)))-1,"n.d.") -> n.d. | AE38: =IF(INDEX($K38:$O38,1,aux!$AL$1)>0,(O38-INDEX($K38:$O38,1,aux!$AL$1))/INDEX($K38:$O38,1,aux!$AL$1),"n.d.") -> n.d.
A39: 05p | B39: Outros produtos de pescado (NC 0508, 051191) (p) | C39: 0 | D39: 0 | E39: 0 | F39: 0 | G39: 0 | H39: 0 | I39: 0 | J39: 0 | K39: 0 | L39: 0 | M39: 0 | N39: 0 | O39: 0 | P39: 0 | Q39: 0 | R39: 0 | S39: 0 | U39: =G39-INDEX($C39:$G39,1,aux!$AL$1) -> 0 | V39: 0 | W39: 0 | X39: =+IF(INDEX($C39:$G39,1,aux!$AL$1)>0,(G39/INDEX($C39:$G39,1,aux!$AL$1))^(1/($G$3-INDEX($C$3:$G$3,1,aux!$AL$1)))-1,"n.d.") -> n.d. | Y39: =IF(INDEX($C39:$G39,1,aux!$AL$1)>0,(G39-INDEX($C39:$G39,1,aux!$AL$1))/INDEX($C39:$G39,1,aux!$AL$1),"n.d.") -> n.d. | AA39: =O39-INDEX($K39:$O39,1,aux!$AL$1) -> 0 | AB39: 0 | AC39: 0 | AD39: =+IF(INDEX($K39:$O39,1,aux!$AL$1)>0,(O39/INDEX($K39:$O39,1,aux!$AL$1))^(1/($O$3-INDEX($K$3:$O$3,1,aux!$AL$1)))-1,"n.d.") -> n.d. | AE39: =IF(INDEX($K39:$O39,1,aux!$AL$1)>0,(O39-INDEX($K39:$O39,1,aux!$AL$1))/INDEX($K39:$O39,1,aux!$AL$1),"n.d.") -> n.d.
A40: 16p | B40: Preparações e conservas de peixes ou crustáceos (NC 1604-05) (p) | C40: 0 | D40: 0 | E40: 0 | F40: 0 | G40: 0 | H40: 0 | I40: 0 | J40: 0 | K40: 330348 | L40: 0 | M40: 0 | N40: 0 | O40: 0 | P40: 66069.6 | Q40: 0.9996489784 | R40: 0.001002021709 | S40: 66069.6 | U40: =G40-INDEX($C40:$G40,1,aux!$AL$1) -> 0 | V40: 0 | W40: 0 | X40: =+IF(INDEX($C40:$G40,1,aux!$AL$1)>0,(G40/INDEX($C40:$G40,1,aux!$AL$1))^(1/($G$3-INDEX($C$3:$G$3,1,aux!$AL$1)))-1,"n.d.") -> n.d. | Y40: =IF(INDEX($C40:$G40,1,aux!$AL$1)>0,(G40-INDEX($C40:$G40,1,aux!$AL$1))/INDEX($C40:$G40,1,aux!$AL$1),"n.d.") -> n.d. | AA40: =O40-INDEX($K40:$O40,1,aux!$AL$1) -> -330348 | AB40: 1 | AC40: -0.02042212702 | AD40: =+IF(INDEX($K40:$O40,1,aux!$AL$1)>0,(O40/INDEX($K40:$O40,1,aux!$AL$1))^(1/($O$3-INDEX($K$3:$O$3,1,aux!$AL$1)))-1,"n.d.") -> -1 | AE40: =IF(INDEX($K40:$O40,1,aux!$AL$1)>0,(O40-INDEX($K40:$O40,1,aux!$AL$1))/INDEX($K40:$O40,1,aux!$AL$1),"n.d.") -> -1
A41: 19p | B41: Massas recheadas com pescado (NC 19022010) (p) | C41: 0 | D41: 0 | E41: 0 | F41: 0 | G41: 0 | H41: 0 | I41: 0 | J41: 0 | K41: 0 | L41: 0 | M41: 0 | N41: 0 | O41: 0 | P41: 0 | Q41: 0 | R41: 0 | S41: 0 | U41: =G41-INDEX($C41:$G41,1,aux!$AL$1) -> 0 | V41: 0 | W41: 0 | X41: =+IF(INDEX($C41:$G41,1,aux!$AL$1)>0,(G41/INDEX($C41:$G41,1,aux!$AL$1))^(1/($G$3-INDEX($C$3:$G$3,1,aux!$AL$1)))-1,"n.d.") -> n.d. | Y41: =IF(INDEX($C41:$G41,1,aux!$AL$1)>0,(G41-INDEX($C41:$G41,1,aux!$AL$1))/INDEX($C41:$G41,1,aux!$AL$1),"n.d.") -> n.d. | AA41: =O41-INDEX($K41:$O41,1,aux!$AL$1) -> 0 | AB41: 0 | AC41: 0 | AD41: =+IF(INDEX($K41:$O41,1,aux!$AL$1)>0,(O41/INDEX($K41:$O41,1,aux!$AL$1))^(1/($O$3-INDEX($K$3:$O$3,1,aux!$AL$1)))-1,"n.d.") -> n.d. | AE41: =IF(INDEX($K41:$O41,1,aux!$AL$1)>0,(O41-INDEX($K41:$O41,1,aux!$AL$1))/INDEX($K41:$O41,1,aux!$AL$1),"n.d.") -> n.d.
A42: 23p | B42: Farinhas de pescado (NC 230120) (p) | C42: 0 | D42: 0 | E42: 0 | F42: 0 | G42: 0 | H42: 0 | I42: 0 | J42: 0 | K42: 0 | L42: 0 | M42: 0 | N42: 0 | O42: 0 | P42: 0 | Q42: 0 | R42: 0 | S42: 0 | U42: =G42-INDEX($C42:$G42,1,aux!$AL$1) -> 0 | V42: 0 | W42: 0 | X42: =+IF(INDEX($C42:$G42,1,aux!$AL$1)>0,(G42/INDEX($C42:$G42,1,aux!$AL$1))^(1/($G$3-INDEX($C$3:$G$3,1,aux!$AL$1)))-1,"n.d.") -> n.d. | Y42: =IF(INDEX($C42:$G42,1,aux!$AL$1)>0,(G42-INDEX($C42:$G42,1,aux!$AL$1))/INDEX($C42:$G42,1,aux!$AL$1),"n.d.") -> n.d. | AA42: =O42-INDEX($K42:$O42,1,aux!$AL$1) -> 0 | AB42: 0 | AC42: 0 | AD42: =+IF(INDEX($K42:$O42,1,aux!$AL$1)>0,(O42/INDEX($K42:$O42,1,aux!$AL$1))^(1/($O$3-INDEX($K$3:$O$3,1,aux!$AL$1)))-1,"n.d.") -> n.d. | AE42: =IF(INDEX($K42:$O42,1,aux!$AL$1)>0,(O42-INDEX($K42:$O42,1,aux!$AL$1))/INDEX($K42:$O42,1,aux!$AL$1),"n.d.") -> n.d.
A43: 25 | B43: Sal e cloreto de sódio puro; água do mar (NC 2501) | C43: 0 | D43: 0 | E43: 0 | F43: 0 | G43: 0 | H43: 0 | I43: 0 | J43: 0 | K43: 0 | L43: 106 | M43: 0 | N43: 0 | O43: 0 | P43: 21.2 | Q43: 0.0003207611116 | R43: 3.215224586e-07 | S43: 21.2 | U43: =G43-INDEX($C43:$G43,1,aux!$AL$1) -> 0 | V43: 0 | W43: 0 | X43: =+IF(INDEX($C43:$G43,1,aux!$AL$1)>0,(G43/INDEX($C43:$G43,1,aux!$AL$1))^(1/($G$3-INDEX($C$3:$G$3,1,aux!$AL$1)))-1,"n.d.") -> n.d. | Y43: =IF(INDEX($C43:$G43,1,aux!$AL$1)>0,(G43-INDEX($C43:$G43,1,aux!$AL$1))/INDEX($C43:$G43,1,aux!$AL$1),"n.d.") -> n.d. | AA43: =O43-INDEX($K43:$O43,1,aux!$AL$1) -> 0 | AB43: 0 | AC43: 0 | AD43: =+IF(INDEX($K43:$O43,1,aux!$AL$1)>0,(O43/INDEX($K43:$O43,1,aux!$AL$1))^(1/($O$3-INDEX($K$3:$O$3,1,aux!$AL$1)))-1,"n.d.") -> n.d. | AE43: =IF(INDEX($K43:$O43,1,aux!$AL$1)>0,(O43-INDEX($K43:$O43,1,aux!$AL$1))/INDEX($K43:$O43,1,aux!$AL$1),"n.d.") -> n.d.
A44: Subtotal Mar | C44: 0 | D44: 18404 | E44: 21134 | F44: 30570 | G44: 43864 | H44: 22794.4 | I44: 1 | J44: 0.006292068881 | K44: 330348 | L44: 116 | M44: 0 | N44: 0 | O44: 0 | P44: 66092.8 | Q44: 1 | R44: 0.001002373564 | S44: 43298.4 | U44: =G44-INDEX($C44:$G44,1,aux!$AL$1) -> 43864 | V44: 1 | W44: 0.01315608332 | X44: =+IF(INDEX($C44:$G44,1,aux!$AL$1)>0,(G44/INDEX($C44:$G44,1,aux!$AL$1))^(1/($G$3-INDEX($C$3:$G$3,1,aux!$AL$1)))-1,"n.d.") -> n.d. | Y44: =IF(INDEX($C44:$G44,1,aux!$AL$1)>0,(G44-INDEX($C44:$G44,1,aux!$AL$1))/INDEX($C44:$G44,1,aux!$AL$1),"n.d.") -> n.d. | AA44: =O44-INDEX($K44:$O44,1,aux!$AL$1) -> -330348 | AB44: 1 | AC44: -0.02042212702 | AD44: =+IF(INDEX($K44:$O44,1,aux!$AL$1)>0,(O44/INDEX($K44:$O44,1,aux!$AL$1))^(1/($O$3-INDEX($K$3:$O$3,1,aux!$AL$1)))-1,"n.d.") -> -1 | AE44: =IF(INDEX($K44:$O44,1,aux!$AL$1)>0,(O44-INDEX($K44:$O44,1,aux!$AL$1))/INDEX($K44:$O44,1,aux!$AL$1),"n.d.") -> -1
A45: 13f | B45: Gomas e resinas (NC 1301) (f) | C45: 0 | D45: 0 | E45: 0 | F45: 0 | G45: 0 | H45: 0 | I45: 0 | J45: 0 | K45: 0 | L45: 0 | M45: 330 | N45: 0 | O45: 0 | P45: 66 | Q45: 1.277539117e-06 | R45: 1.000966145e-06 | S45: 66 | U45: =G45-INDEX($C45:$G45,1,aux!$AL$1) -> 0 | V45: =IF($U$52<>0,U45/$U$52, "n.d.") -> 0 | W45: 0 | X45: =+IF(INDEX($C45:$G45,1,aux!$AL$1)>0,(G45/INDEX($C45:$G45,1,aux!$AL$1))^(1/($G$3-INDEX($C$3:$G$3,1,aux!$AL$1)))-1,"n.d.") -> n.d. | Y45: =IF(INDEX($C45:$G45,1,aux!$AL$1)>0,(G45-INDEX($C45:$G45,1,aux!$AL$1))/INDEX($C45:$G45,1,aux!$AL$1),"n.d.") -> n.d. | AA45: =O45-INDEX($K45:$O45,1,aux!$AL$1) -> 0 | AB45: =IF($AA$52<>0,AA45/$AA$52, "n.d.") -> 0 | AC45: 0 | AD45: =+IF(INDEX($K45:$O45,1,aux!$AL$1)>0,(O45/INDEX($K45:$O45,1,aux!$AL$1))^(1/($O$3-INDEX($K$3:$O$3,1,aux!$AL$1)))-1,"n.d.") -> n.d. | AE45: =IF(INDEX($K45:$O45,1,aux!$AL$1)>0,(O45-INDEX($K45:$O45,1,aux!$AL$1))/INDEX($K45:$O45,1,aux!$AL$1),"n.d.") -> n.d.
A46: 38f | B46: Tall oil, essências e colofónias (NC 3803,3805,3806) (f) | C46: 0 | D46: 0 | E46: 0 | F46: 0 | G46: 41200 | H46: 8240 | I46: 0.002366247705 | J46: 0.002274534428 | K46: 360621 | L46: 259595 | M46: 303890 | N46: 371786 | O46: 489651 | P46: 357108.6 | Q46: 0.006912427357 | R46: 0.005415963918 | S46: 348868.6 | U46: =G46-INDEX($C46:$G46,1,aux!$AL$1) -> 41200 | V46: 0.01381474362 | W46: 0.01235707261 | X46: =+IF(INDEX($C46:$G46,1,aux!$AL$1)>0,(G46/INDEX($C46:$G46,1,aux!$AL$1))^(1/($G$3-INDEX($C$3:$G$3,1,aux!$AL$1)))-1,"n.d.") -> n.d. | Y46: =IF(INDEX($C46:$G46,1,aux!$AL$1)>0,(G46-INDEX($C46:$G46,1,aux!$AL$1))/INDEX($C46:$G46,1,aux!$AL$1),"n.d.") -> n.d. | AA46: =O46-INDEX($K46:$O46,1,aux!$AL$1) -> 129030 | AB46: 0.006415611072 | AC46: 0.007976639937 | AD46: =+IF(INDEX($K46:$O46,1,aux!$AL$1)>0,(O46/INDEX($K46:$O46,1,aux!$AL$1))^(1/($O$3-INDEX($K$3:$O$3,1,aux!$AL$1)))-1,"n.d.") -> 0.07946585142 | AE46: =IF(INDEX($K46:$O46,1,aux!$AL$1)>0,(O46-INDEX($K46:$O46,1,aux!$AL$1))/INDEX($K46:$O46,1,aux!$AL$1),"n.d.") -> 0.3577994626
A47: 44 | B47: Madeira e suas obras | C47: 0 | D47: 0 | E47: 0 | F47: 0 | G47: 0 | H47: 0 | I47: 0 | J47: 0 | K47: 4087003 | L47: 9676565 | M47: 3664135 | N47: 2125777 | O47: 889845 | P47: 4088665 | Q47: 0.07914287082 | R47: 0.06200932185 | S47: 4088665 | U47: =G47-INDEX($C47:$G47,1,aux!$AL$1) -> 0 | V47: 0 | W47: 0 | X47: =+IF(INDEX($C47:$G47,1,aux!$AL$1)>0,(G47/INDEX($C47:$G47,1,aux!$AL$1))^(1/($G$3-INDEX($C$3:$G$3,1,aux!$AL$1)))-1,"n.d.") -> n.d. | Y47: =IF(INDEX($C47:$G47,1,aux!$AL$1)>0,(G47-INDEX($C47:$G47,1,aux!$AL$1))/INDEX($C47:$G47,1,aux!$AL$1),"n.d.") -> n.d. | AA47: =O47-INDEX($K47:$O47,1,aux!$AL$1) -> -3197158 | AB47: -0.1589686295 | AC47: -0.1976484398 | AD47: =+IF(INDEX($K47:$O47,1,aux!$AL$1)>0,(O47/INDEX($K47:$O47,1,aux!$AL$1))^(1/($O$3-INDEX($K$3:$O$3,1,aux!$AL$1)))-1,"n.d.") -> -0.3169109053 | AE47: =IF(INDEX($K47:$O47,1,aux!$AL$1)>0,(O47-INDEX($K47:$O47,1,aux!$AL$1))/INDEX($K47:$O47,1,aux!$AL$1),"n.d.") -> -0.7822744441
A48: 45 | B48: Cortiça e suas obras | C48: 1262563 | D48: 3669650 | E48: 4502857 | F48: 3718108 | G48: 4203596 | H48: 3471354.8 | I48: 0.9968550156 | J48: 0.9582179619 | K48: 301635 | L48: 323974 | M48: 347757 | N48: 183375 | O48: 381829 | P48: 307714 | Q48: 0.00595631321 | R48: 0.004666837822 | S48: -3163640.8 | U48: =G48-INDEX($C48:$G48,1,aux!$AL$1) -> 2941033 | V48: 0.9861557492 | W48: 0.8821009303 | X48: =+IF(INDEX($C48:$G48,1,aux!$AL$1)>0,(G48/INDEX($C48:$G48,1,aux!$AL$1))^(1/($G$3-INDEX($C$3:$G$3,1,aux!$AL$1)))-1,"n.d.") -> 0.3508028804 | Y48: =IF(INDEX($C48:$G48,1,aux!$AL$1)>0,(G48-INDEX($C48:$G48,1,aux!$AL$1))/INDEX($C48:$G48,1,aux!$AL$1),"n.d.") -> 2.329414849 | AA48: =O48-INDEX($K48:$O48,1,aux!$AL$1) -> 80194 | AB48: 0.003987394515 | AC48: 0.004957596397 | AD48: =+IF(INDEX($K48:$O48,1,aux!$AL$1)>0,(O48/INDEX($K48:$O48,1,aux!$AL$1))^(1/($O$3-INDEX($K$3:$O$3,1,aux!$AL$1)))-1,"n.d.") -> 0.0607103199 | AE48: =IF(INDEX($K48:$O48,1,aux!$AL$1)>0,(O48-INDEX($K48:$O48,1,aux!$AL$1))/INDEX($K48:$O48,1,aux!$AL$1),"n.d.") -> 0.2658643725
A49: 46 | B49: Obras de espartaria ou de cestaria | C49: 0 | D49: 0 | E49: 0 | F49: 0 | G49: 0 | H49: 0 | I49: 0 | J49: 0 | K49: 0 | L49: 191 | M49: 0 | N49: 18 | O49: 0 | P49: 41.8 | Q49: 8.091081075e-07 | R49: 6.339452249e-07 | S49: 41.8 | U49: =G49-INDEX($C49:$G49,1,aux!$AL$1) -> 0 | V49: 0 | W49: 0 | X49: =+IF(INDEX($C49:$G49,1,aux!$AL$1)>0,(G49/INDEX($C49:$G49,1,aux!$AL$1))^(1/($G$3-INDEX($C$3:$G$3,1,aux!$AL$1)))-1,"n.d.") -> n.d. | Y49: =IF(INDEX($C49:$G49,1,aux!$AL$1)>0,(G49-INDEX($C49:$G49,1,aux!$AL$1))/INDEX($C49:$G49,1,aux!$AL$1),"n.d.") -> n.d. | AA49: =O49-INDEX($K49:$O49,1,aux!$AL$1) -> 0 | AB49: 0 | AC49: 0 | AD49: =+IF(INDEX($K49:$O49,1,aux!$AL$1)>0,(O49/INDEX($K49:$O49,1,aux!$AL$1))^(1/($O$3-INDEX($K$3:$O$3,1,aux!$AL$1)))-1,"n.d.") -> n.d. | AE49: =IF(INDEX($K49:$O49,1,aux!$AL$1)>0,(O49-INDEX($K49:$O49,1,aux!$AL$1))/INDEX($K49:$O49,1,aux!$AL$1),"n.d.") -> n.d.
A50: 47 | B50: Pastas de madeira | C50: 0 | D50: 0 | E50: 0 | F50: 0 | G50: 0 | H50: 0 | I50: 0 | J50: 0 | K50: 82818 | L50: 3528828 | M50: 3940786 | N50: 6782217 | O50: 20377587 | P50: 6942447.2 | Q50: 0.1343825434 | R50: 0.1052902213 | S50: 6942447.2 | U50: =G50-INDEX($C50:$G50,1,aux!$AL$1) -> 0 | V50: 0 | W50: 0 | X50: =+IF(INDEX($C50:$G50,1,aux!$AL$1)>0,(G50/INDEX($C50:$G50,1,aux!$AL$1))^(1/($G$3-INDEX($C$3:$G$3,1,aux!$AL$1)))-1,"n.d.") -> n.d. | Y50: =IF(INDEX($C50:$G50,1,aux!$AL$1)>0,(G50-INDEX($C50:$G50,1,aux!$AL$1))/INDEX($C50:$G50,1,aux!$AL$1),"n.d.") -> n.d. | AA50: =O50-INDEX($K50:$O50,1,aux!$AL$1) -> 20294769 | AB50: 1.009093581 | AC50: 1.254623459 | AD50: =+IF(INDEX($K50:$O50,1,aux!$AL$1)>0,(O50/INDEX($K50:$O50,1,aux!$AL$1))^(1/($O$3-INDEX($K$3:$O$3,1,aux!$AL$1)))-1,"n.d.") -> 2.960563716 | AE50: =IF(INDEX($K50:$O50,1,aux!$AL$1)>0,(O50-INDEX($K50:$O50,1,aux!$AL$1))/INDEX($K50:$O50,1,aux!$AL$1),"n.d.") -> 245.0526335
A51: 48 | B51: Papel e cartão | C51: 0 | D51: 0 | E51: 34 | F51: 13437 | G51: 88 | H51: 2711.8 | I51: 0.0007787367143 | J51: 0.000748553697 | K51: 49561905 | L51: 41232609 | M51: 29081299 | N51: 27586140 | O51: 52366950 | P51: 39965780.6 | Q51: 0.7736037585 | R51: 0.6061271716 | S51: 39963068.8 | U51: =G51-INDEX($C51:$G51,1,aux!$AL$1) -> 88 | V51: 2.950721938e-05 | W51: 2.639374732e-05 | X51: =+IF(INDEX($C51:$G51,1,aux!$AL$1)>0,(G51/INDEX($C51:$G51,1,aux!$AL$1))^(1/($G$3-INDEX($C$3:$G$3,1,aux!$AL$1)))-1,"n.d.") -> n.d. | Y51: =IF(INDEX($C51:$G51,1,aux!$AL$1)>0,(G51-INDEX($C51:$G51,1,aux!$AL$1))/INDEX($C51:$G51,1,aux!$AL$1),"n.d.") -> n.d. | AA51: =O51-INDEX($K51:$O51,1,aux!$AL$1) -> 2805045 | AB51: 0.1394720434 | AC51: 0.1734079979 | AD51: =+IF(INDEX($K51:$O51,1,aux!$AL$1)>0,(O51/INDEX($K51:$O51,1,aux!$AL$1))^(1/($O$3-INDEX($K$3:$O$3,1,aux!$AL$1)))-1,"n.d.") -> 0.01385844336 | AE51: =IF(INDEX($K51:$O51,1,aux!$AL$1)>0,(O51-INDEX($K51:$O51,1,aux!$AL$1))/INDEX($K51:$O51,1,aux!$AL$1),"n.d.") -> 0.05659679546
A52: Subtotal Florestas | C52: 1262563 | D52: 3669650 | E52: 4502891 | F52: 3731545 | G52: 4244884 | H52: 3482306.6 | I52: 1 | J52: 0.96124105 | K52: 54393982 | L52: 55021762 | M52: 37338197 | N52: 37049313 | O52: 74505862 | P52: 51661823.2 | Q52: 1 | R52: 0.7835111514 | S52: 48179516.6 | U52: =G52-INDEX($C52:$G52,1,aux!$AL$1) -> 2982321 | V52: 1 | W52: 0.8944843966 | X52: =+IF(INDEX($C52:$G52,1,aux!$AL$1)>0,(G52/INDEX($C52:$G52,1,aux!$AL$1))^(1/($G$3-INDEX($C$3:$G$3,1,aux!$AL$1)))-1,"n.d.") -> 0.3541076518 | Y52: =IF(INDEX($C52:$G52,1,aux!$AL$1)>0,(G52-INDEX($C52:$G52,1,aux!$AL$1))/INDEX($C52:$G52,1,aux!$AL$1),"n.d.") -> 2.362116583 | AA52: =O52-INDEX($K52:$O52,1,aux!$AL$1) -> 20111880 | AB52: 1 | AC52: 1.243317254 | AD52: =+IF(INDEX($K52:$O52,1,aux!$AL$1)>0,(O52/INDEX($K52:$O52,1,aux!$AL$1))^(1/($O$3-INDEX($K$3:$O$3,1,aux!$AL$1)))-1,"n.d.") -> 0.08183218465 | AE52: =IF(INDEX($K52:$O52,1,aux!$AL$1)>0,(O52-INDEX($K52:$O52,1,aux!$AL$1))/INDEX($K52:$O52,1,aux!$AL$1),"n.d.") -> 0.3697445795
A53: TOTAL | C53: 1278340 | D53: 3691177 | E53: 4597017 | F53: 3934600 | G53: 4612463 | H53: 3622719.4 | J53: 1 | K53: 74365378 | L53: 73206080 | M53: 44378987 | N53: 47189673 | O53: 90541362 | P53: 65936296 | R53: 1 | S53: 62313576.6 | U53: =G53-INDEX($C53:$G53,1,aux!$AL$1) -> 3334123 | W53: 1 | X53: =+IF(INDEX($C53:$G53,1,aux!$AL$1)>0,(G53/INDEX($C53:$G53,1,aux!$AL$1))^(1/($G$3-INDEX($C$3:$G$3,1,aux!$AL$1)))-1,"n.d.") -> 0.3782297786 | Y53: =IF(INDEX($C53:$G53,1,aux!$AL$1)>0,(G53-INDEX($C53:$G53,1,aux!$AL$1))/INDEX($C53:$G53,1,aux!$AL$1),"n.d.") -> 2.608166059 | AA53: =O53-INDEX($K53:$O53,1,aux!$AL$1) -> 16175984 | AC53: 1 | AD53: =+IF(INDEX($K53:$O53,1,aux!$AL$1)>0,(O53/INDEX($K53:$O53,1,aux!$AL$1))^(1/($O$3-INDEX($K$3:$O$3,1,aux!$AL$1)))-1,"n.d.") -> 0.05043469657 | AE53: =IF(INDEX($K53:$O53,1,aux!$AL$1)>0,(O53-INDEX($K53:$O53,1,aux!$AL$1))/INDEX($K53:$O53,1,aux!$AL$1),"n.d.") -> 0.2175203628
B54: a - agrícola e agroalimentar; p - mar; f - florestas
A55: Fonte: GPP a partir de dados INE/Comércio Internacional (2020 provisórios; 2021 preliminares) | S55: 2022-08-04T16:23:26.670

Sheet 5_var
A1: ="Principais contributos por produto para a variação das trocas comerciais PT-Argélia_x000D_ no período " & INDEX('5'!K3:N3,1,aux!AL1) & "-2021 (NC 2 dígitos - valores em euros) Produtos agrícolas e agroalimentares, do mar e da floresta" -> Principais contributos por produto para a variação das trocas comerciais PT-Argélia no período 2017-2021 (NC 2 dígitos - valores em euros) Produtos agrícolas e agroalimentares, do mar e da floresta
E5: aumento das importações | J5: aumento das exportações
E17: redução das importações | J17: redução das exportações
A28: Fonte: GPP a partir de dados INE/Comércio Internacional (2020 provisórios; 2021 preliminares) | F28: a - agrícola e agroalimentar; p - mar; f - florestas | H28: ='3'!Y116 -> 2022-08-04T16:23:26.670
A29: Cód. NC | B29: Descritivo | C29: ="Variação das Importações " & INDEX('5'!K3:N3,1,aux!AL1) & "-"& '5'!O3 &"" -> Variação das Importações 2017-2021 | F29: Cód. NC | G29: Descritivo | H29: ="Variação das Exportações " & INDEX('5'!K3:N3,1,aux!AL1) & "-"& '5'!O3 &"" -> Variação das Exportações 2017-2021
C30: variação total em valor | D30: % do aumento/ redução total | H30: variação total em valor | I30: % do aumento/ redução total
A31: =IF(C31>0,aux!AU6,"") -> 45 | B31: =IF(C31>0,aux!AV6,"") -> Cortiça e suas obras | C31: =IF(aux!AW6>0,aux!AW6,0) -> 2941033 | D31: =IF(SUM($C$31:$C$41)<>0,C31/SUM($C$31:$C$41),0) -> 0.8821009303 | F31: =IF(H31>0,aux!AZ6,"") -> 47 | G31: =IF(H31>0,aux!BA6,"") -> Pastas de madeira | H31: =IF(aux!BB6>0,aux!BB6,0) -> 20294769 | I31: =IF(SUM($H$31:$H$41)<>0,H31/SUM($H$31:$H$41),0) -> 0.5676440548
A32: =IF(C32>0,aux!AU7,"") -> 15 | B32: =IF(C32>0,aux!AV7,"") -> Gorduras e óleos animais ou vegetais | C32: =IF(aux!AW7>0,aux!AW7,0) -> 298575 | D32: =IF(SUM($C$31:$C$41)<>0,C32/SUM($C$31:$C$41),0) -> 0.0895512853 | F32: =IF(H32>0,aux!AZ7,"") -> 15 | G32: =IF(H32>0,aux!BA7,"") -> Gorduras e óleos animais ou vegetais | H32: =IF(aux!BB7>0,aux!BB7,0) -> 11506474 | I32: =IF(SUM($H$31:$H$41)<>0,H32/SUM($H$31:$H$41),0) -> 0.3218357183
A33: =IF(C33>0,aux!AU8,"") -> 03 | B33: =IF(C33>0,aux!AV8,"") -> Peixes e crustáceos | C33: =IF(aux!AW8>0,aux!AW8,0) -> 43864 | D33: 0.01315608332 | F33: =IF(H33>0,aux!AZ8,"") -> 48 | G33: =IF(H33>0,aux!BA8,"") -> Papel e cartão | H33: =IF(aux!BB8>0,aux!BB8,0) -> 9579-12-13 | I33: 0.07845702101
A34: =IF(C34>0,aux!AU9,"") -> 38f | B34: =IF(C34>0,aux!AV9,"") -> Tall oil, essências e colofónias (NC 3803,3805,3806) (f) | C34: =IF(aux!AW9>0,aux!AW9,0) -> 41200 | D34: 0.01235707261 | F34: =IF(H34>0,aux!AZ9,"") -> 12 | G34: =IF(H34>0,aux!BA9,"") -> Sementes e frutos oleaginosos | H34: =IF(aux!BB9>0,aux!BB9,0) -> 3109-01-21 | I34: 0.0123515382
A35: =IF(C35>0,aux!AU10,"") -> 52 | B35: =IF(C35>0,aux!AV10,"") -> Algodão (NC 5201-5203) | C35: =IF(aux!AW10>0,aux!AW10,0) -> 9344 | D35: 0.002802536079 | F35: =IF(H35>0,aux!AZ10,"") -> 04 | G35: =IF(H35>0,aux!BA10,"") -> Leite e laticínios; ovos; mel, etc. | H35: =IF(aux!BB10>0,aux!BB10,0) -> 2397-01-27 | I35: 0.005078059708
A36: =IF(C36>0,aux!AU11,"") -> 48 | B36: =IF(C36>0,aux!AV11,"") -> Papel e cartão | C36: =IF(aux!AW11>0,aux!AW11,0) -> 88 | D36: 2.639374732e-05 | F36: =IF(H36>0,aux!AZ11,"") -> 21 | G36: =IF(H36>0,aux!BA11,"") -> Preparações alimentícias diversas | H36: =IF(aux!BB11>0,aux!BB11,0) -> 2370-01-16 | I36: 0.004801912206
A37: =IF(C37>0,aux!AU12,"") -> 09 | B37: =IF(C37>0,aux!AV12,"") -> Café, chá, mate e especiarias | C37: =IF(aux!AW12>0,aux!AW12,0) -> 19 | D37: 5.69864999e-06 | F37: =IF(H37>0,aux!AZ12,"") -> 38f | G37: =IF(H37>0,aux!BA12,"") -> Tall oil, essências e colofónias (NC 3803,3805,3806) (f) | H37: =IF(aux!BB12>0,aux!BB12,0) -> 2253-04-08 | I37: 0.003608965069
A38: =IF(C38>0,aux!AU13,"") ->  | B38: =IF(C38>0,aux!AV13,"") ->  | C38: =IF(aux!AW13>0,aux!AW13,0) -> 0 | D38: 0 | F38: =IF(H38>0,aux!AZ13,"") -> 18 | G38: =IF(H38>0,aux!BA13,"") -> Cacau e suas preparações | H38: =IF(aux!BB13>0,aux!BB13,0) -> 2207-07-09 | I38: 0.003141586891
A39: =IF(C39>0,aux!AU14,"") ->  | B39: =IF(C39>0,aux!AV14,"") ->  | C39: =IF(aux!AW14>0,aux!AW14,0) -> 0 | D39: 0 | F39: =IF(H39>0,aux!AZ14,"") -> 45 | G39: =IF(H39>0,aux!BA14,"") -> Cortiça e suas obras | H39: =IF(aux!BB14>0,aux!BB14,0) -> 2119-07-24 | I39: 0.002243023674
A40: =IF(C40>0,aux!AU15,"") ->  | B40: =IF(C40>0,aux!AV15,"") ->  | C40: =IF(aux!AW15>0,aux!AW15,0) -> 0 | D40: 0 | F40: =IF(H40>0,aux!AZ15,"") -> 09 | G40: =IF(H40>0,aux!BA15,"") -> Café, chá, mate e especiarias | H40: =IF(aux!BB15>0,aux!BB15,0) -> 1982-01-14 | I40: 0.0008381201138
B41: Outros contributos para o aumento das importações | C41: =SUMIF(aux!AW16:AW51,">0") -> 0 | D41: 0 | G41: Outros contributos para o aumento das exportações | H41: =SUMIF(aux!BB16:BB51,">0") -> 00:00:00 | I41: 0
B42: Outros contributos para a redução das importações | C42: =SUMIF(aux!AW6:AW41,"<0") -> 0 | D42: =IF(SUM($C$42:$C$52)<>0,C42/SUM($C$42:$C$52),0) -> 0 | G42: Outros contributos para a redução das exportações | H42: =SUMIF(aux!BB6:BB41,"<0") -> 00:00:00 | I42: =IF(SUM($H$42:$H$52)<>0,H42/SUM($H$42:$H$52),0) -> 0
A43: =IF(C43<>0,aux!AU42,"") ->  | B43: =IF(C43<0,aux!AV42,"") ->  | C43: =IF(aux!AW42<0,aux!AW42,0) -> 0 | D43: =IF(SUM($C$42:$C$52)<>0,C43/SUM($C$42:$C$52),0) -> 0 | F43: =IF(H43<>0,aux!AZ42,"") -> 38a | G43: =IF(H43<>0,aux!BA42,"") -> Agentes de acabamento, ácidos gordos, sorbitol (NC 380910, 382311-12-13-19-70, 382460) (a) | H43: =IF(aux!BB42<0,aux!BB42,0) -> -4052 | I43: =IF(SUM($H$42:$H$52)<>0,H43/SUM($H$42:$H$52),0) -> 0.0002069812973
A44: =IF(C44<>0,aux!AU43,"") ->  | B44: =IF(C44<0,aux!AV43,"") ->  | C44: =IF(aux!AW43<0,aux!AW43,0) -> 0 | D44: 0 | F44: =IF(H44<>0,aux!AZ43,"") -> 22 | G44: =IF(H44<>0,aux!BA43,"") -> Bebidas, líquidos alcoólicos e vinagres | H44: =IF(aux!BB43<0,aux!BB43,0) -> -28210 | I44: 0.001441002566
A45: =IF(C45<>0,aux!AU44,"") ->  | B45: =IF(C45<0,aux!AV44,"") ->  | C45: =IF(aux!AW44<0,aux!AW44,0) -> 0 | D45: 0 | F45: =IF(H45<>0,aux!AZ44,"") -> 19a | G45: =IF(H45<>0,aux!BA44,"") -> Preparações à base de cereais (exc. NC 19022010) (a) | H45: =IF(aux!BB44<0,aux!BB44,0) -> -40373 | I45: 0.002062304027
A46: =IF(C46<>0,aux!AU45,"") ->  | B46: =IF(C46<0,aux!AV45,"") ->  | C46: =IF(aux!AW45<0,aux!AW45,0) -> 0 | D46: 0 | F46: =IF(H46<>0,aux!AZ45,"") -> 17 | G46: =IF(H46<>0,aux!BA45,"") -> Açúcares e produtos de confeitaria | H46: =IF(aux!BB45<0,aux!BB45,0) -> -42841 | I46: 0.002188372596
A47: =IF(C47<>0,aux!AU46,"") ->  | B47: =IF(C47<0,aux!AV46,"") ->  | C47: =IF(aux!AW46<0,aux!AW46,0) -> 0 | D47: 0 | F47: =IF(H47<>0,aux!AZ46,"") -> 10 | G47: =IF(H47<>0,aux!BA46,"") -> Cereais | H47: =IF(aux!BB46<0,aux!BB46,0) -> -221363 | I47: 0.01130750269
A48: =IF(C48<>0,aux!AU47,"") ->  | B48: =IF(C48<0,aux!AV47,"") ->  | C48: =IF(aux!AW47<0,aux!AW47,0) -> 0 | D48: 0 | F48: =IF(H48<>0,aux!AZ47,"") -> 20 | G48: =IF(H48<>0,aux!BA47,"") -> Preparações de produtos vegetais | H48: =IF(aux!BB47<0,aux!BB47,0) -> -289561 | I48: 0.014791143
A49: =IF(C49<>0,aux!AU48,"") ->  | B49: =IF(C49<0,aux!AV48,"") ->  | C49: =IF(aux!AW48<0,aux!AW48,0) -> 0 | D49: 0 | F49: =IF(H49<>0,aux!AZ48,"") -> 07 | G49: =IF(H49<>0,aux!BA48,"") -> Produtos hortícolas | H49: =IF(aux!BB48<0,aux!BB48,0) -> -298523 | I49: 0.01524893332
A50: =IF(C50<>0,aux!AU49,"") ->  | B50: =IF(C50<0,aux!AV49,"") ->  | C50: =IF(aux!AW49<0,aux!AW49,0) -> 0 | D50: 0 | F50: =IF(H50<>0,aux!AZ49,"") -> 16p | G50: =IF(H50<>0,aux!BA49,"") -> Preparações e conservas de peixes ou crustáceos (NC 1604-05) (p) | H50: =IF(aux!BB49<0,aux!BB49,0) -> -330348 | I50: 0.01687459467
A51: =IF(C51<>0,aux!AU50,"") ->  | B51: =IF(C51<0,aux!AV50,"") ->  | C51: =IF(aux!AW50<0,aux!AW50,0) -> 0 | D51: 0 | F51: =IF(H51<>0,aux!AZ50,"") -> 44 | G51: =IF(H51<>0,aux!BA50,"") -> Madeira e suas obras | H51: =IF(aux!BB50<0,aux!BB50,0) -> -3197158 | I51: 0.1633148841
A52: =IF(C52<>0,aux!AU51,"") ->  | B52: =IF(C52<0,aux!AV51,"") ->  | C52: =IF(aux!AW51<0,aux!AW51,0) -> 0 | D52: 0 | F52: =IF(H52<>0,aux!AZ51,"") -> 24 | G52: =IF(H52<>0,aux!BA51,"") -> Tabaco | H52: =IF(aux!BB51<0,aux!BB51,0) -> -15124219 | I52: 0.7725642817
A53: TOTAL | C53: =SUM(C31:C52) -> 3334123 | F53: TOTAL | H53: =SUM(H31:H52) -> 16175984

Sheet 5A
A1: Trocas comerciais Portugal-Argélia 2017-2021 em euros (NC 4 dígitos) | G1: Produtos agrícolas e agroalimentares, do mar e da floresta
A2: Cód. NC | B2: Descritivo | C2: Importações | K2: Exportações | S2: Saldo quinquénio (exp-imp) | T2: Evolução das importações | U2: =+"Variação das Importações " & INDEX(K3:N3,1,aux!AL1) & "-"& '5'!O3 &"" -> Variação das Importações 2017-2021 | Z2: Evolução das exportações | AA2: ="Variação das Exportações " & INDEX(K3:N3,1,aux!AL1) & "-"& '5'!O3 &"" -> Variação das Exportações 2017-2021
C3: 2017 | D3: 2018 | E3: 2019 | F3: 2020 | G3: 2021 | H3: média quinquénio | I3: % Subtot | J3: % Total | K3: 2017 | L3: 2018 | M3: 2019 | N3: 2020 | O3: 2021 | P3: média quinquénio | Q3: % Subtot | R3: % Total | U3: variação total em valor | V3: % no subtotal de variação | W3: % no total de variação | X3: taxa de variação média anual | Y3: taxa de variação total | AA3: variação total em valor | AB3: % no subtotal de variação | AC3: % no total de variação | AD3: taxa de variação média anual | AE3: taxa de variação total | AX3: filtro
A4: 0101 | B4: Equídeos vivos | C4: 0 | D4: 0 | E4: 0 | F4: 0 | G4: 0 | H4: 0 | I4: 0 | J4: 0 | K4: 0 | L4: 0 | M4: 0 | N4: 0 | O4: 0 | P4: 0 | Q4: 0 | R4: 0 | S4: 0 | U4: =G4-INDEX($C4:$G4,1,aux!$AL$1) -> 0 | V4: =IF($U$236<>0,U4/$U$236, "n.d.") -> 0 | W4: =IF($U$320<>0,U4/$U$320, "n.d.") -> 0 | X4: =+IF(INDEX($C4:$G4,1,aux!$AL$1)>0,(G4/INDEX($C4:$G4,1,aux!$AL$1))^(1/($G$3-INDEX($C$3:$G$3,1,aux!$AL$1)))-1,"n.d.") -> n.d. | Y4: =IF(INDEX($C4:$G4,1,aux!$AL$1)>0,(G4-INDEX($C4:$G4,1,aux!$AL$1))/INDEX($C4:$G4,1,aux!$AL$1),"n.d.") -> n.d. | AA4: =O4-INDEX($K4:$O4,1,aux!$AL$1) -> 0 | AB4: =IF($AA$236<>0,AA4/$AA$236, "n.d.") -> 0 | AC4: =IF($AA$320<>0,AA4/$AA$320, "n.d.") -> 0 | AD4: =+IF(INDEX($K4:$O4,1,aux!$AL$1)>0,(O4/INDEX($K4:$O4,1,aux!$AL$1))^(1/($O$3-INDEX($K$3:$O$3,1,aux!$AL$1)))-1,"n.d.") -> n.d. | AE4: =IF(INDEX($K4:$O4,1,aux!$AL$1)>0,(O4-INDEX($K4:$O4,1,aux!$AL$1))/INDEX($K4:$O4,1,aux!$AL$1),"n.d.") -> n.d. | AX4: =+LEFT(A4,2) -> 01
A5: 0102 | B5: Bovinos vivos | C5: 0 | D5: 0 | E5: 0 | F5: 0 | G5: 0 | H5: 0 | I5: 0 | J5: 0 | K5: 0 | L5: 1594790 | M5: 743432 | N5: 0 | O5: 0 | P5: 467644.4 | Q5: 0.03291328075 | R5: 0.007092366851 | S5: 467644.4 | U5: =G5-INDEX($C5:$G5,1,aux!$AL$1) -> 0 | V5: 0 | W5: 0 | X5: =+IF(INDEX($C5:$G5,1,aux!$AL$1)>0,(G5/INDEX($C5:$G5,1,aux!$AL$1))^(1/($G$3-INDEX($C$3:$G$3,1,aux!$AL$1)))-1,"n.d.") -> n.d. | Y5: =IF(INDEX($C5:$G5,1,aux!$AL$1)>0,(G5-INDEX($C5:$G5,1,aux!$AL$1))/INDEX($C5:$G5,1,aux!$AL$1),"n.d.") -> n.d. | AA5: =O5-INDEX($K5:$O5,1,aux!$AL$1) -> 0 | AB5: 0 | AC5: 0 | AD5: =+IF(INDEX($K5:$O5,1,aux!$AL$1)>0,(O5/INDEX($K5:$O5,1,aux!$AL$1))^(1/($O$3-INDEX($K$3:$O$3,1,aux!$AL$1)))-1,"n.d.") -> n.d. | AE5: =IF(INDEX($K5:$O5,1,aux!$AL$1)>0,(O5-INDEX($K5:$O5,1,aux!$AL$1))/INDEX($K5:$O5,1,aux!$AL$1),"n.d.") -> n.d. | AX5: =+LEFT(A5,2) -> 01
A6: 0103 | B6: Suínos vivos | C6: 0 | D6: 0 | E6: 0 | F6: 0 | G6: 0 | H6: 0 | I6: 0 | J6: 0 | K6: 0 | L6: 0 | M6: 0 | N6: 0 | O6: 0 | P6: 0 | Q6: 0 | R6: 0 | S6: 0 | U6: =G6-INDEX($C6:$G6,1,aux!$AL$1) -> 0 | V6: 0 | W6: 0 | X6: =+IF(INDEX($C6:$G6,1,aux!$AL$1)>0,(G6/INDEX($C6:$G6,1,aux!$AL$1))^(1/($G$3-INDEX($C$3:$G$3,1,aux!$AL$1)))-1,"n.d.") -> n.d. | Y6: =IF(INDEX($C6:$G6,1,aux!$AL$1)>0,(G6-INDEX($C6:$G6,1,aux!$AL$1))/INDEX($C6:$G6,1,aux!$AL$1),"n.d.") -> n.d. | AA6: =O6-INDEX($K6:$O6,1,aux!$AL$1) -> 0 | AB6: 0 | AC6: 0 | AD6: =+IF(INDEX($K6:$O6,1,aux!$AL$1)>0,(O6/INDEX($K6:$O6,1,aux!$AL$1))^(1/($O$3-INDEX($K$3:$O$3,1,aux!$AL$1)))-1,"n.d.") -> n.d. | AE6: =IF(INDEX($K6:$O6,1,aux!$AL$1)>0,(O6-INDEX($K6:$O6,1,aux!$AL$1))/INDEX($K6:$O6,1,aux!$AL$1),"n.d.") -> n.d. | AX6: 01
A7: 0104 | B7: Ovinos ou caprinos vivos | C7: 0 | D7: 0 | E7: 0 | F7: 0 | G7: 0 | H7: 0 | I7: 0 | J7: 0 | K7: 0 | L7: 0 | M7: 0 | N7: 0 | O7: 0 | P7: 0 | Q7: 0 | R7: 0 | S7: 0 | U7: =G7-INDEX($C7:$G7,1,aux!$AL$1) -> 0 | V7: 0 | W7: 0 | X7: =+IF(INDEX($C7:$G7,1,aux!$AL$1)>0,(G7/INDEX($C7:$G7,1,aux!$AL$1))^(1/($G$3-INDEX($C$3:$G$3,1,aux!$AL$1)))-1,"n.d.") -> n.d. | Y7: =IF(INDEX($C7:$G7,1,aux!$AL$1)>0,(G7-INDEX($C7:$G7,1,aux!$AL$1))/INDEX($C7:$G7,1,aux!$AL$1),"n.d.") -> n.d. | AA7: =O7-INDEX($K7:$O7,1,aux!$AL$1) -> 0 | AB7: 0 | AC7: 0 | AD7: =+IF(INDEX($K7:$O7,1,aux!$AL$1)>0,(O7/INDEX($K7:$O7,1,aux!$AL$1))^(1/($O$3-INDEX($K$3:$O$3,1,aux!$AL$1)))-1,"n.d.") -> n.d. | AE7: =IF(INDEX($K7:$O7,1,aux!$AL$1)>0,(O7-INDEX($K7:$O7,1,aux!$AL$1))/INDEX($K7:$O7,1,aux!$AL$1),"n.d.") -> n.d. | AX7: 01
A8: 0105 | B8: Aves de capoeira vivas | C8: 0 | D8: 0 | E8: 0 | F8: 0 | G8: 0 | H8: 0 | I8: 0 | J8: 0 | K8: 0 | L8: 39784 | M8: 108170 | N8: 0 | O8: 0 | P8: 29590.8 | Q8: 0.00208263011 | R8: 0.0004487786211 | S8: 29590.8 | U8: =G8-INDEX($C8:$G8,1,aux!$AL$1) -> 0 | V8: 0 | W8: 0 | X8: =+IF(INDEX($C8:$G8,1,aux!$AL$1)>0,(G8/INDEX($C8:$G8,1,aux!$AL$1))^(1/($G$3-INDEX($C$3:$G$3,1,aux!$AL$1)))-1,"n.d.") -> n.d. | Y8: =IF(INDEX($C8:$G8,1,aux!$AL$1)>0,(G8-INDEX($C8:$G8,1,aux!$AL$1))/INDEX($C8:$G8,1,aux!$AL$1),"n.d.") -> n.d. | AA8: =O8-INDEX($K8:$O8,1,aux!$AL$1) -> 0 | AB8: 0 | AC8: 0 | AD8: =+IF(INDEX($K8:$O8,1,aux!$AL$1)>0,(O8/INDEX($K8:$O8,1,aux!$AL$1))^(1/($O$3-INDEX($K$3:$O$3,1,aux!$AL$1)))-1,"n.d.") -> n.d. | AE8: =IF(INDEX($K8:$O8,1,aux!$AL$1)>0,(O8-INDEX($K8:$O8,1,aux!$AL$1))/INDEX($K8:$O8,1,aux!$AL$1),"n.d.") -> n.d. | AX8: 01
A9: 0106 | B9: Outros animais vivos | C9: 0 | D9: 0 | E9: 0 | F9: 0 | G9: 0 | H9: 0 | I9: 0 | J9: 0 | K9: 0 | L9: 0 | M9: 0 | N9: 0 | O9: 0 | P9: 0 | Q9: 0 | R9: 0 | S9: 0 | U9: =G9-INDEX($C9:$G9,1,aux!$AL$1) -> 0 | V9: 0 | W9: 0 | X9: =+IF(INDEX($C9:$G9,1,aux!$AL$1)>0,(G9/INDEX($C9:$G9,1,aux!$AL$1))^(1/($G$3-INDEX($C$3:$G$3,1,aux!$AL$1)))-1,"n.d.") -> n.d. | Y9: =IF(INDEX($C9:$G9,1,aux!$AL$1)>0,(G9-INDEX($C9:$G9,1,aux!$AL$1))/INDEX($C9:$G9,1,aux!$AL$1),"n.d.") -> n.d. | AA9: =O9-INDEX($K9:$O9,1,aux!$AL$1) -> 0 | AB9: 0 | AC9: 0 | AD9: =+IF(INDEX($K9:$O9,1,aux!$AL$1)>0,(O9/INDEX($K9:$O9,1,aux!$AL$1))^(1/($O$3-INDEX($K$3:$O$3,1,aux!$AL$1)))-1,"n.d.") -> n.d. | AE9: =IF(INDEX($K9:$O9,1,aux!$AL$1)>0,(O9-INDEX($K9:$O9,1,aux!$AL$1))/INDEX($K9:$O9,1,aux!$AL$1),"n.d.") -> n.d. | AX9: 01
A10: 01SS | B10: Animais vivos | C10: 0 | D10: 0 | E10: 0 | F10: 0 | G10: 0 | H10: 0 | I10: 0 | J10: 0 | K10: 0 | L10: 0 | M10: 0 | N10: 0 | O10: 0 | P10: 0 | Q10: 0 | R10: 0 | S10: 0 | U10: =G10-INDEX($C10:$G10,1,aux!$AL$1) -> 0 | V10: 0 | W10: 0 | X10: =+IF(INDEX($C10:$G10,1,aux!$AL$1)>0,(G10/INDEX($C10:$G10,1,aux!$AL$1))^(1/($G$3-INDEX($C$3:$G$3,1,aux!$AL$1)))-1,"n.d.") -> n.d. | Y10: =IF(INDEX($C10:$G10,1,aux!$AL$1)>0,(G10-INDEX($C10:$G10,1,aux!$AL$1))/INDEX($C10:$G10,1,aux!$AL$1),"n.d.") -> n.d. | AA10: =O10-INDEX($K10:$O10,1,aux!$AL$1) -> 0 | AB10: 0 | AC10: 0 | AD10: =+IF(INDEX($K10:$O10,1,aux!$AL$1)>0,(O10/INDEX($K10:$O10,1,aux!$AL$1))^(1/($O$3-INDEX($K$3:$O$3,1,aux!$AL$1)))-1,"n.d.") -> n.d. | AE10: =IF(INDEX($K10:$O10,1,aux!$AL$1)>0,(O10-INDEX($K10:$O10,1,aux!$AL$1))/INDEX($K10:$O10,1,aux!$AL$1),"n.d.") -> n.d. | AX10: 01
A11: 0201 | B11: Carnes de bovino, frescas ou refrigeradas | C11: 0 | D11: 0 | E11: 0 | F11: 0 | G11: 0 | H11: 0 | I11: 0 | J11: 0 | K11: 0 | L11: 0 | M11: 0 | N11: 0 | O11: 0 | P11: 0 | Q11: 0 | R11: 0 | S11: 0 | U11: =G11-INDEX($C11:$G11,1,aux!$AL$1) -> 0 | V11: 0 | W11: 0 | X11: =+IF(INDEX($C11:$G11,1,aux!$AL$1)>0,(G11/INDEX($C11:$G11,1,aux!$AL$1))^(1/($G$3-INDEX($C$3:$G$3,1,aux!$AL$1)))-1,"n.d.") -> n.d. | Y11: =IF(INDEX($C11:$G11,1,aux!$AL$1)>0,(G11-INDEX($C11:$G11,1,aux!$AL$1))/INDEX($C11:$G11,1,aux!$AL$1),"n.d.") -> n.d. | AA11: =O11-INDEX($K11:$O11,1,aux!$AL$1) -> 0 | AB11: 0 | AC11: 0 | AD11: =+IF(INDEX($K11:$O11,1,aux!$AL$1)>0,(O11/INDEX($K11:$O11,1,aux!$AL$1))^(1/($O$3-INDEX($K$3:$O$3,1,aux!$AL$1)))-1,"n.d.") -> n.d. | AE11: =IF(INDEX($K11:$O11,1,aux!$AL$1)>0,(O11-INDEX($K11:$O11,1,aux!$AL$1))/INDEX($K11:$O11,1,aux!$AL$1),"n.d.") -> n.d. | AX11: 02
A12: 0202 | B12: Carnes de bovino, congeladas | C12: 0 | D12: 0 | E12: 0 | F12: 0 | G12: 0 | H12: 0 | I12: 0 | J12: 0 | K12: 0 | L12: 0 | M12: 0 | N12: 0 | O12: 0 | P12: 0 | Q12: 0 | R12: 0 | S12: 0 | U12: =G12-INDEX($C12:$G12,1,aux!$AL$1) -> 0 | V12: 0 | W12: 0 | X12: =+IF(INDEX($C12:$G12,1,aux!$AL$1)>0,(G12/INDEX($C12:$G12,1,aux!$AL$1))^(1/($G$3-INDEX($C$3:$G$3,1,aux!$AL$1)))-1,"n.d.") -> n.d. | Y12: =IF(INDEX($C12:$G12,1,aux!$AL$1)>0,(G12-INDEX($C12:$G12,1,aux!$AL$1))/INDEX($C12:$G12,1,aux!$AL$1),"n.d.") -> n.d. | AA12: =O12-INDEX($K12:$O12,1,aux!$AL$1) -> 0 | AB12: 0 | AC12: 0 | AD12: =+IF(INDEX($K12:$O12,1,aux!$AL$1)>0,(O12/INDEX($K12:$O12,1,aux!$AL$1))^(1/($O$3-INDEX($K$3:$O$3,1,aux!$AL$1)))-1,"n.d.") -> n.d. | AE12: =IF(INDEX($K12:$O12,1,aux!$AL$1)>0,(O12-INDEX($K12:$O12,1,aux!$AL$1))/INDEX($K12:$O12,1,aux!$AL$1),"n.d.") -> n.d. | AX12: 02
A13: 0203 | B13: Carnes de suíno | C13: 0 | D13: 0 | E13: 0 | F13: 0 | G13: 0 | H13: 0 | I13: 0 | J13: 0 | K13: 0 | L13: 0 | M13: 0 | N13: 0 | O13: 0 | P13: 0 | Q13: 0 | R13: 0 | S13: 0 | U13: =G13-INDEX($C13:$G13,1,aux!$AL$1) -> 0 | V13: 0 | W13: 0 | X13: =+IF(INDEX($C13:$G13,1,aux!$AL$1)>0,(G13/INDEX($C13:$G13,1,aux!$AL$1))^(1/($G$3-INDEX($C$3:$G$3,1,aux!$AL$1)))-1,"n.d.") -> n.d. | Y13: =IF(INDEX($C13:$G13,1,aux!$AL$1)>0,(G13-INDEX($C13:$G13,1,aux!$AL$1))/INDEX($C13:$G13,1,aux!$AL$1),"n.d.") -> n.d. | AA13: =O13-INDEX($K13:$O13,1,aux!$AL$1) -> 0 | AB13: 0 | AC13: 0 | AD13: =+IF(INDEX($K13:$O13,1,aux!$AL$1)>0,(O13/INDEX($K13:$O13,1,aux!$AL$1))^(1/($O$3-INDEX($K$3:$O$3,1,aux!$AL$1)))-1,"n.d.") -> n.d. | AE13: =IF(INDEX($K13:$O13,1,aux!$AL$1)>0,(O13-INDEX($K13:$O13,1,aux!$AL$1))/INDEX($K13:$O13,1,aux!$AL$1),"n.d.") -> n.d. | AX13: 02
A14: 0204 | B14: Carnes de ovino ou caprino | C14: 0 | D14: 0 | E14: 0 | F14: 0 | G14: 0 | H14: 0 | I14: 0 | J14: 0 | K14: 0 | L14: 0 | M14: 0 | N14: 0 | O14: 0 | P14: 0 | Q14: 0 | R14: 0 | S14: 0 | U14: =G14-INDEX($C14:$G14,1,aux!$AL$1) -> 0 | V14: 0 | W14: 0 | X14: =+IF(INDEX($C14:$G14,1,aux!$AL$1)>0,(G14/INDEX($C14:$G14,1,aux!$AL$1))^(1/($G$3-INDEX($C$3:$G$3,1,aux!$AL$1)))-1,"n.d.") -> n.d. | Y14: =IF(INDEX($C14:$G14,1,aux!$AL$1)>0,(G14-INDEX($C14:$G14,1,aux!$AL$1))/INDEX($C14:$G14,1,aux!$AL$1),"n.d.") -> n.d. | AA14: =O14-INDEX($K14:$O14,1,aux!$AL$1) -> 0 | AB14: 0 | AC14: 0 | AD14: =+IF(INDEX($K14:$O14,1,aux!$AL$1)>0,(O14/INDEX($K14:$O14,1,aux!$AL$1))^(1/($O$3-INDEX($K$3:$O$3,1,aux!$AL$1)))-1,"n.d.") -> n.d. | AE14: =IF(INDEX($K14:$O14,1,aux!$AL$1)>0,(O14-INDEX($K14:$O14,1,aux!$AL$1))/INDEX($K14:$O14,1,aux!$AL$1),"n.d.") -> n.d. | AX14: 02
A15: 0205 | B15: Carnes de equídeo | C15: 0 | D15: 0 | E15: 0 | F15: 0 | G15: 0 | H15: 0 | I15: 0 | J15: 0 | K15: 0 | L15: 0 | M15: 0 | N15: 0 | O15: 0 | P15: 0 | Q15: 0 | R15: 0 | S15: 0 | U15: =G15-INDEX($C15:$G15,1,aux!$AL$1) -> 0 | V15: 0 | W15: 0 | X15: =+IF(INDEX($C15:$G15,1,aux!$AL$1)>0,(G15/INDEX($C15:$G15,1,aux!$AL$1))^(1/($G$3-INDEX($C$3:$G$3,1,aux!$AL$1)))-1,"n.d.") -> n.d. | Y15: =IF(INDEX($C15:$G15,1,aux!$AL$1)>0,(G15-INDEX($C15:$G15,1,aux!$AL$1))/INDEX($C15:$G15,1,aux!$AL$1),"n.d.") -> n.d. | AA15: =O15-INDEX($K15:$O15,1,aux!$AL$1) -> 0 | AB15: 0 | AC15: 0 | AD15: =+IF(INDEX($K15:$O15,1,aux!$AL$1)>0,(O15/INDEX($K15:$O15,1,aux!$AL$1))^(1/($O$3-INDEX($K$3:$O$3,1,aux!$AL$1)))-1,"n.d.") -> n.d. | AE15: =IF(INDEX($K15:$O15,1,aux!$AL$1)>0,(O15-INDEX($K15:$O15,1,aux!$AL$1))/INDEX($K15:$O15,1,aux!$AL$1),"n.d.") -> n.d. | AX15: 02
A16: 0206 | B16: Miudezas de bovino, suíno, ovino, caprino,equídeo | C16: 0 | D16: 0 | E16: 0 | F16: 0 | G16: 0 | H16: 0 | I16: 0 | J16: 0 | K16: 0 | L16: 0 | M16: 0 | N16: 0 | O16: 0 | P16: 0 | Q16: 0 | R16: 0 | S16: 0 | U16: =G16-INDEX($C16:$G16,1,aux!$AL$1) -> 0 | V16: 0 | W16: 0 | X16: =+IF(INDEX($C16:$G16,1,aux!$AL$1)>0,(G16/INDEX($C16:$G16,1,aux!$AL$1))^(1/($G$3-INDEX($C$3:$G$3,1,aux!$AL$1)))-1,"n.d.") -> n.d. | Y16: =IF(INDEX($C16:$G16,1,aux!$AL$1)>0,(G16-INDEX($C16:$G16,1,aux!$AL$1))/INDEX($C16:$G16,1,aux!$AL$1),"n.d.") -> n.d. | AA16: =O16-INDEX($K16:$O16,1,aux!$AL$1) -> 0 | AB16: 0 | AC16: 0 | AD16: =+IF(INDEX($K16:$O16,1,aux!$AL$1)>0,(O16/INDEX($K16:$O16,1,aux!$AL$1))^(1/($O$3-INDEX($K$3:$O$3,1,aux!$AL$1)))-1,"n.d.") -> n.d. | AE16: =IF(INDEX($K16:$O16,1,aux!$AL$1)>0,(O16-INDEX($K16:$O16,1,aux!$AL$1))/INDEX($K16:$O16,1,aux!$AL$1),"n.d.") -> n.d. | AX16: 02
A17: 0207 | B17: Carnes e miudezas de aves de capoeira | C17: 0 | D17: 0 | E17: 0 | F17: 0 | G17: 0 | H17: 0 | I17: 0 | J17: 0 | K17: 0 | L17: 0 | M17: 0 | N17: 0 | O17: 0 | P17: 0 | Q17: 0 | R17: 0 | S17: 0 | U17: =G17-INDEX($C17:$G17,1,aux!$AL$1) -> 0 | V17: 0 | W17: 0 | X17: =+IF(INDEX($C17:$G17,1,aux!$AL$1)>0,(G17/INDEX($C17:$G17,1,aux!$AL$1))^(1/($G$3-INDEX($C$3:$G$3,1,aux!$AL$1)))-1,"n.d.") -> n.d. | Y17: =IF(INDEX($C17:$G17,1,aux!$AL$1)>0,(G17-INDEX($C17:$G17,1,aux!$AL$1))/INDEX($C17:$G17,1,aux!$AL$1),"n.d.") -> n.d. | AA17: =O17-INDEX($K17:$O17,1,aux!$AL$1) -> 0 | AB17: 0 | AC17: 0 | AD17: =+IF(INDEX($K17:$O17,1,aux!$AL$1)>0,(O17/INDEX($K17:$O17,1,aux!$AL$1))^(1/($O$3-INDEX($K$3:$O$3,1,aux!$AL$1)))-1,"n.d.") -> n.d. | AE17: =IF(INDEX($K17:$O17,1,aux!$AL$1)>0,(O17-INDEX($K17:$O17,1,aux!$AL$1))/INDEX($K17:$O17,1,aux!$AL$1),"n.d.") -> n.d. | AX17: 02
A18: 0208 | B18: Outras carnes e miudezas | C18: 0 | D18: 0 | E18: 0 | F18: 0 | G18: 0 | H18: 0 | I18: 0 | J18: 0 | K18: 0 | L18: 0 | M18: 0 | N18: 0 | O18: 0 | P18: 0 | Q18: 0 | R18: 0 | S18: 0 | U18: =G18-INDEX($C18:$G18,1,aux!$AL$1) -> 0 | V18: 0 | W18: 0 | X18: =+IF(INDEX($C18:$G18,1,aux!$AL$1)>0,(G18/INDEX($C18:$G18,1,aux!$AL$1))^(1/($G$3-INDEX($C$3:$G$3,1,aux!$AL$1)))-1,"n.d.") -> n.d. | Y18: =IF(INDEX($C18:$G18,1,aux!$AL$1)>0,(G18-INDEX($C18:$G18,1,aux!$AL$1))/INDEX($C18:$G18,1,aux!$AL$1),"n.d.") -> n.d. | AA18: =O18-INDEX($K18:$O18,1,aux!$AL$1) -> 0 | AB18: 0 | AC18: 0 | AD18: =+IF(INDEX($K18:$O18,1,aux!$AL$1)>0,(O18/INDEX($K18:$O18,1,aux!$AL$1))^(1/($O$3-INDEX($K$3:$O$3,1,aux!$AL$1)))-1,"n.d.") -> n.d. | AE18: =IF(INDEX($K18:$O18,1,aux!$AL$1)>0,(O18-INDEX($K18:$O18,1,aux!$AL$1))/INDEX($K18:$O18,1,aux!$AL$1),"n.d.") -> n.d. | AX18: 02
A19: 0209 | B19: Toucinho, gorduras de porco e de aves | C19: 0 | D19: 0 | E19: 0 | F19: 0 | G19: 0 | H19: 0 | I19: 0 | J19: 0 | K19: 0 | L19: 0 | M19: 0 | N19: 0 | O19: 0 | P19: 0 | Q19: 0 | R19: 0 | S19: 0 | U19: =G19-INDEX($C19:$G19,1,aux!$AL$1) -> 0 | V19: 0 | W19: 0 | X19: =+IF(INDEX($C19:$G19,1,aux!$AL$1)>0,(G19/INDEX($C19:$G19,1,aux!$AL$1))^(1/($G$3-INDEX($C$3:$G$3,1,aux!$AL$1)))-1,"n.d.") -> n.d. | Y19: =IF(INDEX($C19:$G19,1,aux!$AL$1)>0,(G19-INDEX($C19:$G19,1,aux!$AL$1))/INDEX($C19:$G19,1,aux!$AL$1),"n.d.") -> n.d. | AA19: =O19-INDEX($K19:$O19,1,aux!$AL$1) -> 0 | AB19: 0 | AC19: 0 | AD19: =+IF(INDEX($K19:$O19,1,aux!$AL$1)>0,(O19/INDEX($K19:$O19,1,aux!$AL$1))^(1/($O$3-INDEX($K$3:$O$3,1,aux!$AL$1)))-1,"n.d.") -> n.d. | AE19: =IF(INDEX($K19:$O19,1,aux!$AL$1)>0,(O19-INDEX($K19:$O19,1,aux!$AL$1))/INDEX($K19:$O19,1,aux!$AL$1),"n.d.") -> n.d. | AX19: 02
A20: 0210 | B20: Carnes e miudezas processadas; farinhas de carnes | C20: 0 | D20: 0 | E20: 0 | F20: 0 | G20: 0 | H20: 0 | I20: 0 | J20: 0 | K20: 0 | L20: 0 | M20: 0 | N20: 11 | O20: 0 | P20: 2.2 | Q20: 1.548382011e-07 | R20: 3.336553816e-08 | S20: 2.2 | U20: =G20-INDEX($C20:$G20,1,aux!$AL$1) -> 0 | V20: 0 | W20: 0 | X20: =+IF(INDEX($C20:$G20,1,aux!$AL$1)>0,(G20/INDEX($C20:$G20,1,aux!$AL$1))^(1/($G$3-INDEX($C$3:$G$3,1,aux!$AL$1)))-1,"n.d.") -> n.d. | Y20: =IF(INDEX($C20:$G20,1,aux!$AL$1)>0,(G20-INDEX($C20:$G20,1,aux!$AL$1))/INDEX($C20:$G20,1,aux!$AL$1),"n.d.") -> n.d. | AA20: =O20-INDEX($K20:$O20,1,aux!$AL$1) -> 0 | AB20: 0 | AC20: 0 | AD20: =+IF(INDEX($K20:$O20,1,aux!$AL$1)>0,(O20/INDEX($K20:$O20,1,aux!$AL$1))^(1/($O$3-INDEX($K$3:$O$3,1,aux!$AL$1)))-1,"n.d.") -> n.d. | AE20: =IF(INDEX($K20:$O20,1,aux!$AL$1)>0,(O20-INDEX($K20:$O20,1,aux!$AL$1))/INDEX($K20:$O20,1,aux!$AL$1),"n.d.") -> n.d. | AX20: 02
A21: 02SS | B21: Carnes e miudezas, comestíveis | C21: 0 | D21: 0 | E21: 0 | F21: 0 | G21: 0 | H21: 0 | I21: 0 | J21: 0 | K21: 0 | L21: 0 | M21: 0 | N21: 0 | O21: 0 | P21: 0 | Q21: 0 | R21: 0 | S21: 0 | U21: =G21-INDEX($C21:$G21,1,aux!$AL$1) -> 0 | V21: 0 | W21: 0 | X21: =+IF(INDEX($C21:$G21,1,aux!$AL$1)>0,(G21/INDEX($C21:$G21,1,aux!$AL$1))^(1/($G$3-INDEX($C$3:$G$3,1,aux!$AL$1)))-1,"n.d.") -> n.d. | Y21: =IF(INDEX($C21:$G21,1,aux!$AL$1)>0,(G21-INDEX($C21:$G21,1,aux!$AL$1))/INDEX($C21:$G21,1,aux!$AL$1),"n.d.") -> n.d. | AA21: =O21-INDEX($K21:$O21,1,aux!$AL$1) -> 0 | AB21: 0 | AC21: 0 | AD21: =+IF(INDEX($K21:$O21,1,aux!$AL$1)>0,(O21/INDEX($K21:$O21,1,aux!$AL$1))^(1/($O$3-INDEX($K$3:$O$3,1,aux!$AL$1)))-1,"n.d.") -> n.d. | AE21: =IF(INDEX($K21:$O21,1,aux!$AL$1)>0,(O21-INDEX($K21:$O21,1,aux!$AL$1))/INDEX($K21:$O21,1,aux!$AL$1),"n.d.") -> n.d. | AX21: 02
A22: 0401 | B22: Leite e nata, não concentrados | C22: 0 | D22: 0 | E22: 0 | F22: 0 | G22: 0 | H22: 0 | I22: 0 | J22: 0 | K22: 0 | L22: 0 | M22: 0 | N22: 0 | O22: 0 | P22: 0 | Q22: 0 | R22: 0 | S22: 0 | U22: =G22-INDEX($C22:$G22,1,aux!$AL$1) -> 0 | V22: 0 | W22: 0 | X22: =+IF(INDEX($C22:$G22,1,aux!$AL$1)>0,(G22/INDEX($C22:$G22,1,aux!$AL$1))^(1/($G$3-INDEX($C$3:$G$3,1,aux!$AL$1)))-1,"n.d.") -> n.d. | Y22: =IF(INDEX($C22:$G22,1,aux!$AL$1)>0,(G22-INDEX($C22:$G22,1,aux!$AL$1))/INDEX($C22:$G22,1,aux!$AL$1),"n.d.") -> n.d. | AA22: =O22-INDEX($K22:$O22,1,aux!$AL$1) -> 0 | AB22: 0 | AC22: 0 | AD22: =+IF(INDEX($K22:$O22,1,aux!$AL$1)>0,(O22/INDEX($K22:$O22,1,aux!$AL$1))^(1/($O$3-INDEX($K$3:$O$3,1,aux!$AL$1)))-1,"n.d.") -> n.d. | AE22: =IF(INDEX($K22:$O22,1,aux!$AL$1)>0,(O22-INDEX($K22:$O22,1,aux!$AL$1))/INDEX($K22:$O22,1,aux!$AL$1),"n.d.") -> n.d. | AX22: 04
A23: 0402 | B23: Leite e nata, concentrados | C23: 0 | D23: 0 | E23: 0 | F23: 0 | G23: 0 | H23: 0 | I23: 0 | J23: 0 | K23: 0 | L23: 0 | M23: 630568 | N23: 54750 | O23: 181550 | P23: 173373.6 | Q23: 0.01220220743 | R23: 0.002629410666 | S23: 173373.6 | U23: =G23-INDEX($C23:$G23,1,aux!$AL$1) -> 0 | V23: 0 | W23: 0 | X23: =+IF(INDEX($C23:$G23,1,aux!$AL$1)>0,(G23/INDEX($C23:$G23,1,aux!$AL$1))^(1/($G$3-INDEX($C$3:$G$3,1,aux!$AL$1)))-1,"n.d.") -> n.d. | Y23: =IF(INDEX($C23:$G23,1,aux!$AL$1)>0,(G23-INDEX($C23:$G23,1,aux!$AL$1))/INDEX($C23:$G23,1,aux!$AL$1),"n.d.") -> n.d. | AA23: =O23-INDEX($K23:$O23,1,aux!$AL$1) -> 181550 | AB23: -0.05035295606 | AC23: 0.01122342851 | AD23: =+IF(INDEX($K23:$O23,1,aux!$AL$1)>0,(O23/INDEX($K23:$O23,1,aux!$AL$1))^(1/($O$3-INDEX($K$3:$O$3,1,aux!$AL$1)))-1,"n.d.") -> n.d. | AE23: =IF(INDEX($K23:$O23,1,aux!$AL$1)>0,(O23-INDEX($K23:$O23,1,aux!$AL$1))/INDEX($K23:$O23,1,aux!$AL$1),"n.d.") -> n.d. | AX23: 04
A24: 0403 | B24: Leitelho, leite coalhado, iogurte, etc. | C24: 0 | D24: 0 | E24: 0 | F24: 0 | G24: 0 | H24: 0 | I24: 0 | J24: 0 | K24: 0 | L24: 0 | M24: 0 | N24: 0 | O24: 0 | P24: 0 | Q24: 0 | R24: 0 | S24: 0 | U24: =G24-INDEX($C24:$G24,1,aux!$AL$1) -> 0 | V24: 0 | W24: 0 | X24: =+IF(INDEX($C24:$G24,1,aux!$AL$1)>0,(G24/INDEX($C24:$G24,1,aux!$AL$1))^(1/($G$3-INDEX($C$3:$G$3,1,aux!$AL$1)))-1,"n.d.") -> n.d. | Y24: =IF(INDEX($C24:$G24,1,aux!$AL$1)>0,(G24-INDEX($C24:$G24,1,aux!$AL$1))/INDEX($C24:$G24,1,aux!$AL$1),"n.d.") -> n.d. | AA24: =O24-INDEX($K24:$O24,1,aux!$AL$1) -> 0 | AB24: 0 | AC24: 0 | AD24: =+IF(INDEX($K24:$O24,1,aux!$AL$1)>0,(O24/INDEX($K24:$O24,1,aux!$AL$1))^(1/($O$3-INDEX($K$3:$O$3,1,aux!$AL$1)))-1,"n.d.") -> n.d. | AE24: =IF(INDEX($K24:$O24,1,aux!$AL$1)>0,(O24-INDEX($K24:$O24,1,aux!$AL$1))/INDEX($K24:$O24,1,aux!$AL$1),"n.d.") -> n.d. | AX24: 04
A25: 0404 | B25: Soro de leite e outros produtos do leite | C25: 0 | D25: 0 | E25: 0 | F25: 0 | G25: 0 | H25: 0 | I25: 0 | J25: 0 | K25: 0 | L25: 0 | M25: 0 | N25: 0 | O25: 0 | P25: 0 | Q25: 0 | R25: 0 | S25: 0 | U25: =G25-INDEX($C25:$G25,1,aux!$AL$1) -> 0 | V25: 0 | W25: 0 | X25: =+IF(INDEX($C25:$G25,1,aux!$AL$1)>0,(G25/INDEX($C25:$G25,1,aux!$AL$1))^(1/($G$3-INDEX($C$3:$G$3,1,aux!$AL$1)))-1,"n.d.") -> n.d. | Y25: =IF(INDEX($C25:$G25,1,aux!$AL$1)>0,(G25-INDEX($C25:$G25,1,aux!$AL$1))/INDEX($C25:$G25,1,aux!$AL$1),"n.d.") -> n.d. | AA25: =O25-INDEX($K25:$O25,1,aux!$AL$1) -> 0 | AB25: 0 | AC25: 0 | AD25: =+IF(INDEX($K25:$O25,1,aux!$AL$1)>0,(O25/INDEX($K25:$O25,1,aux!$AL$1))^(1/($O$3-INDEX($K$3:$O$3,1,aux!$AL$1)))-1,"n.d.") -> n.d. | AE25: =IF(INDEX($K25:$O25,1,aux!$AL$1)>0,(O25-INDEX($K25:$O25,1,aux!$AL$1))/INDEX($K25:$O25,1,aux!$AL$1),"n.d.") -> n.d. | AX25: 04
A26: 0405 | B26: Manteiga | C26: 0 | D26: 0 | E26: 0 | F26: 0 | G26: 0 | H26: 0 | I26: 0 | J26: 0 | K26: 0 | L26: 564600 | M26: 0 | N26: 79465 | O26: 0 | P26: 128813 | Q26: 0.009065987818 | R26: 0.001953597757 | S26: 128813 | U26: =G26-INDEX($C26:$G26,1,aux!$AL$1) -> 0 | V26: 0 | W26: 0 | X26: =+IF(INDEX($C26:$G26,1,aux!$AL$1)>0,(G26/INDEX($C26:$G26,1,aux!$AL$1))^(1/($G$3-INDEX($C$3:$G$3,1,aux!$AL$1)))-1,"n.d.") -> n.d. | Y26: =IF(INDEX($C26:$G26,1,aux!$AL$1)>0,(G26-INDEX($C26:$G26,1,aux!$AL$1))/INDEX($C26:$G26,1,aux!$AL$1),"n.d.") -> n.d. | AA26: =O26-INDEX($K26:$O26,1,aux!$AL$1) -> 0 | AB26: 0 | AC26: 0 | AD26: =+IF(INDEX($K26:$O26,1,aux!$AL$1)>0,(O26/INDEX($K26:$O26,1,aux!$AL$1))^(1/($O$3-INDEX($K$3:$O$3,1,aux!$AL$1)))-1,"n.d.") -> n.d. | AE26: =IF(INDEX($K26:$O26,1,aux!$AL$1)>0,(O26-INDEX($K26:$O26,1,aux!$AL$1))/INDEX($K26:$O26,1,aux!$AL$1),"n.d.") -> n.d. | AX26: 04
A27: 0406 | B27: Queijos e requeijão | C27: 0 | D27: 0 | E27: 0 | F27: 0 | G27: 0 | H27: 0 | I27: 0 | J27: 0 | K27: 0 | L27: 0 | M27: 0 | N27: 0 | O27: 0 | P27: 0 | Q27: 0 | R27: 0 | S27: 0 | U27: =G27-INDEX($C27:$G27,1,aux!$AL$1) -> 0 | V27: 0 | W27: 0 | X27: =+IF(INDEX($C27:$G27,1,aux!$AL$1)>0,(G27/INDEX($C27:$G27,1,aux!$AL$1))^(1/($G$3-INDEX($C$3:$G$3,1,aux!$AL$1)))-1,"n.d.") -> n.d. | Y27: =IF(INDEX($C27:$G27,1,aux!$AL$1)>0,(G27-INDEX($C27:$G27,1,aux!$AL$1))/INDEX($C27:$G27,1,aux!$AL$1),"n.d.") -> n.d. | AA27: =O27-INDEX($K27:$O27,1,aux!$AL$1) -> 0 | AB27: 0 | AC27: 0 | AD27: =+IF(INDEX($K27:$O27,1,aux!$AL$1)>0,(O27/INDEX($K27:$O27,1,aux!$AL$1))^(1/($O$3-INDEX($K$3:$O$3,1,aux!$AL$1)))-1,"n.d.") -> n.d. | AE27: =IF(INDEX($K27:$O27,1,aux!$AL$1)>0,(O27-INDEX($K27:$O27,1,aux!$AL$1))/INDEX($K27:$O27,1,aux!$AL$1),"n.d.") -> n.d. | AX27: 04
A28: 0407 | B28: Ovos de aves, com cascas | C28: 0 | D28: 0 | E28: 0 | F28: 0 | G28: 0 | H28: 0 | I28: 0 | J28: 0 | K28: 0 | L28: 0 | M28: 0 | N28: 0 | O28: 0 | P28: 0 | Q28: 0 | R28: 0 | S28: 0 | U28: =G28-INDEX($C28:$G28,1,aux!$AL$1) -> 0 | V28: 0 | W28: 0 | X28: =+IF(INDEX($C28:$G28,1,aux!$AL$1)>0,(G28/INDEX($C28:$G28,1,aux!$AL$1))^(1/($G$3-INDEX($C$3:$G$3,1,aux!$AL$1)))-1,"n.d.") -> n.d. | Y28: =IF(INDEX($C28:$G28,1,aux!$AL$1)>0,(G28-INDEX($C28:$G28,1,aux!$AL$1))/INDEX($C28:$G28,1,aux!$AL$1),"n.d.") -> n.d. | AA28: =O28-INDEX($K28:$O28,1,aux!$AL$1) -> 0 | AB28: 0 | AC28: 0 | AD28: =+IF(INDEX($K28:$O28,1,aux!$AL$1)>0,(O28/INDEX($K28:$O28,1,aux!$AL$1))^(1/($O$3-INDEX($K$3:$O$3,1,aux!$AL$1)))-1,"n.d.") -> n.d. | AE28: =IF(INDEX($K28:$O28,1,aux!$AL$1)>0,(O28-INDEX($K28:$O28,1,aux!$AL$1))/INDEX($K28:$O28,1,aux!$AL$1),"n.d.") -> n.d. | AX28: 04
A29: 0408 | B29: Ovos de aves, sem casca | C29: 0 | D29: 0 | E29: 0 | F29: 0 | G29: 0 | H29: 0 | I29: 0 | J29: 0 | K29: 0 | L29: 0 | M29: 0 | N29: 0 | O29: 0 | P29: 0 | Q29: 0 | R29: 0 | S29: 0 | U29: =G29-INDEX($C29:$G29,1,aux!$AL$1) -> 0 | V29: 0 | W29: 0 | X29: =+IF(INDEX($C29:$G29,1,aux!$AL$1)>0,(G29/INDEX($C29:$G29,1,aux!$AL$1))^(1/($G$3-INDEX($C$3:$G$3,1,aux!$AL$1)))-1,"n.d.") -> n.d. | Y29: =IF(INDEX($C29:$G29,1,aux!$AL$1)>0,(G29-INDEX($C29:$G29,1,aux!$AL$1))/INDEX($C29:$G29,1,aux!$AL$1),"n.d.") -> n.d. | AA29: =O29-INDEX($K29:$O29,1,aux!$AL$1) -> 0 | AB29: 0 | AC29: 0 | AD29: =+IF(INDEX($K29:$O29,1,aux!$AL$1)>0,(O29/INDEX($K29:$O29,1,aux!$AL$1))^(1/($O$3-INDEX($K$3:$O$3,1,aux!$AL$1)))-1,"n.d.") -> n.d. | AE29: =IF(INDEX($K29:$O29,1,aux!$AL$1)>0,(O29-INDEX($K29:$O29,1,aux!$AL$1))/INDEX($K29:$O29,1,aux!$AL$1),"n.d.") -> n.d. | AX29: 04
A30: 0409 | B30: Mel natural | C30: 0 | D30: 0 | E30: 0 | F30: 0 | G30: 0 | H30: 0 | I30: 0 | J30: 0 | K30: 0 | L30: 0 | M30: 0 | N30: 0 | O30: 4 | P30: 0.8 | Q30: 5.630480041e-08 | R30: 1.213292297e-08 | S30: 0.8 | U30: =G30-INDEX($C30:$G30,1,aux!$AL$1) -> 0 | V30: 0 | W30: 0 | X30: =+IF(INDEX($C30:$G30,1,aux!$AL$1)>0,(G30/INDEX($C30:$G30,1,aux!$AL$1))^(1/($G$3-INDEX($C$3:$G$3,1,aux!$AL$1)))-1,"n.d.") -> n.d. | Y30: =IF(INDEX($C30:$G30,1,aux!$AL$1)>0,(G30-INDEX($C30:$G30,1,aux!$AL$1))/INDEX($C30:$G30,1,aux!$AL$1),"n.d.") -> n.d. | AA30: =O30-INDEX($K30:$O30,1,aux!$AL$1) -> 4 | AB30: -1.1094014e-06 | AC30: 2.472801655e-07 | AD30: =+IF(INDEX($K30:$O30,1,aux!$AL$1)>0,(O30/INDEX($K30:$O30,1,aux!$AL$1))^(1/($O$3-INDEX($K$3:$O$3,1,aux!$AL$1)))-1,"n.d.") -> n.d. | AE30: =IF(INDEX($K30:$O30,1,aux!$AL$1)>0,(O30-INDEX($K30:$O30,1,aux!$AL$1))/INDEX($K30:$O30,1,aux!$AL$1),"n.d.") -> n.d. | AX30: 04
A31: 0410 | B31: Outros produtos comestíveis de origem animal | C31: 0 | D31: 0 | E31: 0 | F31: 0 | G31: 0 | H31: 0 | I31: 0 | J31: 0 | K31: 0 | L31: 0 | M31: 0 | N31: 0 | O31: 0 | P31: 0 | Q31: 0 | R31: 0 | S31: 0 | U31: =G31-INDEX($C31:$G31,1,aux!$AL$1) -> 0 | V31: 0 | W31: 0 | X31: =+IF(INDEX($C31:$G31,1,aux!$AL$1)>0,(G31/INDEX($C31:$G31,1,aux!$AL$1))^(1/($G$3-INDEX($C$3:$G$3,1,aux!$AL$1)))-1,"n.d.") -> n.d. | Y31: =IF(INDEX($C31:$G31,1,aux!$AL$1)>0,(G31-INDEX($C31:$G31,1,aux!$AL$1))/INDEX($C31:$G31,1,aux!$AL$1),"n.d.") -> n.d. | AA31: =O31-INDEX($K31:$O31,1,aux!$AL$1) -> 0 | AB31: 0 | AC31: 0 | AD31: =+IF(INDEX($K31:$O31,1,aux!$AL$1)>0,(O31/INDEX($K31:$O31,1,aux!$AL$1))^(1/($O$3-INDEX($K$3:$O$3,1,aux!$AL$1)))-1,"n.d.") -> n.d. | AE31: =IF(INDEX($K31:$O31,1,aux!$AL$1)>0,(O31-INDEX($K31:$O31,1,aux!$AL$1))/INDEX($K31:$O31,1,aux!$AL$1),"n.d.") -> n.d. | AX31: 04
A32: 04SS | B32: Leite e lacticínios; ovos de aves; mel natural; etc. | C32: 0 | D32: 0 | E32: 0 | F32: 0 | G32: 0 | H32: 0 | I32: 0 | J32: 0 | K32: 0 | L32: 0 | M32: 0 | N32: 0 | O32: 0 | P32: 0 | Q32: 0 | R32: 0 | S32: 0 | U32: =G32-INDEX($C32:$G32,1,aux!$AL$1) -> 0 | V32: 0 | W32: 0 | X32: =+IF(INDEX($C32:$G32,1,aux!$AL$1)>0,(G32/INDEX($C32:$G32,1,aux!$AL$1))^(1/($G$3-INDEX($C$3:$G$3,1,aux!$AL$1)))-1,"n.d.") -> n.d. | Y32: =IF(INDEX($C32:$G32,1,aux!$AL$1)>0,(G32-INDEX($C32:$G32,1,aux!$AL$1))/INDEX($C32:$G32,1,aux!$AL$1),"n.d.") -> n.d. | AA32: =O32-INDEX($K32:$O32,1,aux!$AL$1) -> 0 | AB32: 0 | AC32: 0 | AD32: =+IF(INDEX($K32:$O32,1,aux!$AL$1)>0,(O32/INDEX($K32:$O32,1,aux!$AL$1))^(1/($O$3-INDEX($K$3:$O$3,1,aux!$AL$1)))-1,"n.d.") -> n.d. | AE32: =IF(INDEX($K32:$O32,1,aux!$AL$1)>0,(O32-INDEX($K32:$O32,1,aux!$AL$1))/INDEX($K32:$O32,1,aux!$AL$1),"n.d.") -> n.d. | AX32: 04
A33: 0501 | B33: Cabelos em bruto | C33: 0 | D33: 0 | E33: 0 | F33: 0 | G33: 0 | H33: 0 | I33: 0 | J33: 0 | K33: 0 | L33: 0 | M33: 0 | N33: 0 | O33: 0 | P33: 0 | Q33: 0 | R33: 0 | S33: 0 | U33: =G33-INDEX($C33:$G33,1,aux!$AL$1) -> 0 | V33: 0 | W33: 0 | X33: =+IF(INDEX($C33:$G33,1,aux!$AL$1)>0,(G33/INDEX($C33:$G33,1,aux!$AL$1))^(1/($G$3-INDEX($C$3:$G$3,1,aux!$AL$1)))-1,"n.d.") -> n.d. | Y33: =IF(INDEX($C33:$G33,1,aux!$AL$1)>0,(G33-INDEX($C33:$G33,1,aux!$AL$1))/INDEX($C33:$G33,1,aux!$AL$1),"n.d.") -> n.d. | AA33: =O33-INDEX($K33:$O33,1,aux!$AL$1) -> 0 | AB33: 0 | AC33: 0 | AD33: =+IF(INDEX($K33:$O33,1,aux!$AL$1)>0,(O33/INDEX($K33:$O33,1,aux!$AL$1))^(1/($O$3-INDEX($K$3:$O$3,1,aux!$AL$1)))-1,"n.d.") -> n.d. | AE33: =IF(INDEX($K33:$O33,1,aux!$AL$1)>0,(O33-INDEX($K33:$O33,1,aux!$AL$1))/INDEX($K33:$O33,1,aux!$AL$1),"n.d.") -> n.d. | AX33: 05
A34: 0502 | B34: Cerdas de porco ou de javali, etc. | C34: 0 | D34: 0 | E34: 0 | F34: 0 | G34: 0 | H34: 0 | I34: 0 | J34: 0 | K34: 0 | L34: 0 | M34: 0 | N34: 0 | O34: 0 | P34: 0 | Q34: 0 | R34: 0 | S34: 0 | U34: =G34-INDEX($C34:$G34,1,aux!$AL$1) -> 0 | V34: 0 | W34: 0 | X34: =+IF(INDEX($C34:$G34,1,aux!$AL$1)>0,(G34/INDEX($C34:$G34,1,aux!$AL$1))^(1/($G$3-INDEX($C$3:$G$3,1,aux!$AL$1)))-1,"n.d.") -> n.d. | Y34: =IF(INDEX($C34:$G34,1,aux!$AL$1)>0,(G34-INDEX($C34:$G34,1,aux!$AL$1))/INDEX($C34:$G34,1,aux!$AL$1),"n.d.") -> n.d. | AA34: =O34-INDEX($K34:$O34,1,aux!$AL$1) -> 0 | AB34: 0 | AC34: 0 | AD34: =+IF(INDEX($K34:$O34,1,aux!$AL$1)>0,(O34/INDEX($K34:$O34,1,aux!$AL$1))^(1/($O$3-INDEX($K$3:$O$3,1,aux!$AL$1)))-1,"n.d.") -> n.d. | AE34: =IF(INDEX($K34:$O34,1,aux!$AL$1)>0,(O34-INDEX($K34:$O34,1,aux!$AL$1))/INDEX($K34:$O34,1,aux!$AL$1),"n.d.") -> n.d. | AX34: 05
A35: 0504 | B35: Tripas de animais (excepto peixes) | C35: 0 | D35: 0 | E35: 0 | F35: 0 | G35: 0 | H35: 0 | I35: 0 | J35: 0 | K35: 0 | L35: 0 | M35: 0 | N35: 0 | O35: 0 | P35: 0 | Q35: 0 | R35: 0 | S35: 0 | U35: =G35-INDEX($C35:$G35,1,aux!$AL$1) -> 0 | V35: 0 | W35: 0 | X35: =+IF(INDEX($C35:$G35,1,aux!$AL$1)>0,(G35/INDEX($C35:$G35,1,aux!$AL$1))^(1/($G$3-INDEX($C$3:$G$3,1,aux!$AL$1)))-1,"n.d.") -> n.d. | Y35: =IF(INDEX($C35:$G35,1,aux!$AL$1)>0,(G35-INDEX($C35:$G35,1,aux!$AL$1))/INDEX($C35:$G35,1,aux!$AL$1),"n.d.") -> n.d. | AA35: =O35-INDEX($K35:$O35,1,aux!$AL$1) -> 0 | AB35: 0 | AC35: 0 | AD35: =+IF(INDEX($K35:$O35,1,aux!$AL$1)>0,(O35/INDEX($K35:$O35,1,aux!$AL$1))^(1/($O$3-INDEX($K$3:$O$3,1,aux!$AL$1)))-1,"n.d.") -> n.d. | AE35: =IF(INDEX($K35:$O35,1,aux!$AL$1)>0,(O35-INDEX($K35:$O35,1,aux!$AL$1))/INDEX($K35:$O35,1,aux!$AL$1),"n.d.") -> n.d. | AX35: 05
A36: 0505 | B36: Peles e outras partes de aves | C36: 0 | D36: 0 | E36: 0 | F36: 0 | G36: 0 | H36: 0 | I36: 0 | J36: 0 | K36: 0 | L36: 0 | M36: 0 | N36: 0 | O36: 0 | P36: 0 | Q36: 0 | R36: 0 | S36: 0 | U36: =G36-INDEX($C36:$G36,1,aux!$AL$1) -> 0 | V36: =IF($U$236<>0,U36/$U$236, "n.d.") -> 0 | W36: =IF($U$320<>0,U36/$U$320, "n.d.") -> 0 | X36: =+IF(INDEX($C36:$G36,1,aux!$AL$1)>0,(G36/INDEX($C36:$G36,1,aux!$AL$1))^(1/($G$3-INDEX($C$3:$G$3,1,aux!$AL$1)))-1,"n.d.") -> n.d. | Y36: =IF(INDEX($C36:$G36,1,aux!$AL$1)>0,(G36-INDEX($C36:$G36,1,aux!$AL$1))/INDEX($C36:$G36,1,aux!$AL$1),"n.d.") -> n.d. | AA36: =O36-INDEX($K36:$O36,1,aux!$AL$1) -> 0 | AB36: =IF($AA$236<>0,AA36/$AA$236, "n.d.") -> 0 | AC36: =IF($AA$320<>0,AA36/$AA$320, "n.d.") -> 0 | AD36: =+IF(INDEX($K36:$O36,1,aux!$AL$1)>0,(O36/INDEX($K36:$O36,1,aux!$AL$1))^(1/($O$3-INDEX($K$3:$O$3,1,aux!$AL$1)))-1,"n.d.") -> n.d. | AE36: =IF(INDEX($K36:$O36,1,aux!$AL$1)>0,(O36-INDEX($K36:$O36,1,aux!$AL$1))/INDEX($K36:$O36,1,aux!$AL$1),"n.d.") -> n.d. | AX36: 05
A37: 0506 | B37: Ossos e núcleos córneos, em bruto | C37: 0 | D37: 0 | E37: 0 | F37: 0 | G37: 0 | H37: 0 | I37: 0 | J37: 0 | K37: 0 | L37: 0 | M37: 0 | N37: 0 | O37: 0 | P37: 0 | Q37: 0 | R37: 0 | S37: 0 | U37: =G37-INDEX($C37:$G37,1,aux!$AL$1) -> 0 | V37: 0 | W37: 0 | X37: =+IF(INDEX($C37:$G37,1,aux!$AL$1)>0,(G37/INDEX($C37:$G37,1,aux!$AL$1))^(1/($G$3-INDEX($C$3:$G$3,1,aux!$AL$1)))-1,"n.d.") -> n.d. | Y37: =IF(INDEX($C37:$G37,1,aux!$AL$1)>0,(G37-INDEX($C37:$G37,1,aux!$AL$1))/INDEX($C37:$G37,1,aux!$AL$1),"n.d.") -> n.d. | AA37: =O37-INDEX($K37:$O37,1,aux!$AL$1) -> 0 | AB37: 0 | AC37: 0 | AD37: =+IF(INDEX($K37:$O37,1,aux!$AL$1)>0,(O37/INDEX($K37:$O37,1,aux!$AL$1))^(1/($O$3-INDEX($K$3:$O$3,1,aux!$AL$1)))-1,"n.d.") -> n.d. | AE37: =IF(INDEX($K37:$O37,1,aux!$AL$1)>0,(O37-INDEX($K37:$O37,1,aux!$AL$1))/INDEX($K37:$O37,1,aux!$AL$1),"n.d.") -> n.d. | AX37: 05
A38: 0507 | B38: Marfim, carapaças de tartaruga, etc. | C38: 0 | D38: 0 | E38: 0 | F38: 0 | G38: 0 | H38: 0 | I38: 0 | J38: 0 | K38: 0 | L38: 0 | M38: 0 | N38: 0 | O38: 0 | P38: 0 | Q38: 0 | R38: 0 | S38: 0 | U38: =G38-INDEX($C38:$G38,1,aux!$AL$1) -> 0 | V38: 0 | W38: 0 | X38: =+IF(INDEX($C38:$G38,1,aux!$AL$1)>0,(G38/INDEX($C38:$G38,1,aux!$AL$1))^(1/($G$3-INDEX($C$3:$G$3,1,aux!$AL$1)))-1,"n.d.") -> n.d. | Y38: =IF(INDEX($C38:$G38,1,aux!$AL$1)>0,(G38-INDEX($C38:$G38,1,aux!$AL$1))/INDEX($C38:$G38,1,aux!$AL$1),"n.d.") -> n.d. | AA38: =O38-INDEX($K38:$O38,1,aux!$AL$1) -> 0 | AB38: 0 | AC38: 0 | AD38: =+IF(INDEX($K38:$O38,1,aux!$AL$1)>0,(O38/INDEX($K38:$O38,1,aux!$AL$1))^(1/($O$3-INDEX($K$3:$O$3,1,aux!$AL$1)))-1,"n.d.") -> n.d. | AE38: =IF(INDEX($K38:$O38,1,aux!$AL$1)>0,(O38-INDEX($K38:$O38,1,aux!$AL$1))/INDEX($K38:$O38,1,aux!$AL$1),"n.d.") -> n.d. | AX38: 05
A39: 0510 | B39: Âmbar-cinzento, castóreo, algália e almíscar, etc. | C39: 0 | D39: 0 | E39: 0 | F39: 0 | G39: 0 | H39: 0 | I39: 0 | J39: 0 | K39: 0 | L39: 0 | M39: 0 | N39: 0 | O39: 0 | P39: 0 | Q39: 0 | R39: 0 | S39: 0 | U39: =G39-INDEX($C39:$G39,1,aux!$AL$1) -> 0 | V39: 0 | W39: 0 | X39: =+IF(INDEX($C39:$G39,1,aux!$AL$1)>0,(G39/INDEX($C39:$G39,1,aux!$AL$1))^(1/($G$3-INDEX($C$3:$G$3,1,aux!$AL$1)))-1,"n.d.") -> n.d. | Y39: =IF(INDEX($C39:$G39,1,aux!$AL$1)>0,(G39-INDEX($C39:$G39,1,aux!$AL$1))/INDEX($C39:$G39,1,aux!$AL$1),"n.d.") -> n.d. | AA39: =O39-INDEX($K39:$O39,1,aux!$AL$1) -> 0 | AB39: 0 | AC39: 0 | AD39: =+IF(INDEX($K39:$O39,1,aux!$AL$1)>0,(O39/INDEX($K39:$O39,1,aux!$AL$1))^(1/($O$3-INDEX($K$3:$O$3,1,aux!$AL$1)))-1,"n.d.") -> n.d. | AE39: =IF(INDEX($K39:$O39,1,aux!$AL$1)>0,(O39-INDEX($K39:$O39,1,aux!$AL$1))/INDEX($K39:$O39,1,aux!$AL$1),"n.d.") -> n.d. | AX39: =+LEFT(A39,2) -> 05
A40: 0511 | B40: Outros produtos de origem animal (exc. NC 0511 91) (a) | C40: 0 | D40: 0 | E40: 0 | F40: 0 | G40: 0 | H40: 0 | I40: 0 | J40: 0 | K40: 0 | L40: 0 | M40: 0 | N40: 0 | O40: 0 | P40: 0 | Q40: 0 | R40: 0 | S40: 0 | U40: =G40-INDEX($C40:$G40,1,aux!$AL$1) -> 0 | V40: 0 | W40: 0 | X40: =+IF(INDEX($C40:$G40,1,aux!$AL$1)>0,(G40/INDEX($C40:$G40,1,aux!$AL$1))^(1/($G$3-INDEX($C$3:$G$3,1,aux!$AL$1)))-1,"n.d.") -> n.d. | Y40: =IF(INDEX($C40:$G40,1,aux!$AL$1)>0,(G40-INDEX($C40:$G40,1,aux!$AL$1))/INDEX($C40:$G40,1,aux!$AL$1),"n.d.") -> n.d. | AA40: =O40-INDEX($K40:$O40,1,aux!$AL$1) -> 0 | AB40: 0 | AC40: 0 | AD40: =+IF(INDEX($K40:$O40,1,aux!$AL$1)>0,(O40/INDEX($K40:$O40,1,aux!$AL$1))^(1/($O$3-INDEX($K$3:$O$3,1,aux!$AL$1)))-1,"n.d.") -> n.d. | AE40: =IF(INDEX($K40:$O40,1,aux!$AL$1)>0,(O40-INDEX($K40:$O40,1,aux!$AL$1))/INDEX($K40:$O40,1,aux!$AL$1),"n.d.") -> n.d. | AX40: 05
A41: 05SS | B41: Outros produtos de origem animal | C41: 0 | D41: 0 | E41: 0 | F41: 0 | G41: 0 | H41: 0 | I41: 0 | J41: 0 | K41: 0 | L41: 0 | M41: 0 | N41: 0 | O41: 0 | P41: 0 | Q41: 0 | R41: 0 | S41: 0 | U41: =G41-INDEX($C41:$G41,1,aux!$AL$1) -> 0 | V41: 0 | W41: 0 | X41: =+IF(INDEX($C41:$G41,1,aux!$AL$1)>0,(G41/INDEX($C41:$G41,1,aux!$AL$1))^(1/($G$3-INDEX($C$3:$G$3,1,aux!$AL$1)))-1,"n.d.") -> n.d. | Y41: =IF(INDEX($C41:$G41,1,aux!$AL$1)>0,(G41-INDEX($C41:$G41,1,aux!$AL$1))/INDEX($C41:$G41,1,aux!$AL$1),"n.d.") -> n.d. | AA41: =O41-INDEX($K41:$O41,1,aux!$AL$1) -> 0 | AB41: 0 | AC41: 0 | AD41: =+IF(INDEX($K41:$O41,1,aux!$AL$1)>0,(O41/INDEX($K41:$O41,1,aux!$AL$1))^(1/($O$3-INDEX($K$3:$O$3,1,aux!$AL$1)))-1,"n.d.") -> n.d. | AE41: =IF(INDEX($K41:$O41,1,aux!$AL$1)>0,(O41-INDEX($K41:$O41,1,aux!$AL$1))/INDEX($K41:$O41,1,aux!$AL$1),"n.d.") -> n.d. | AX41: 05
A42: 0601 | B42: Bolbos, tubérculos, raízes, etc. | C42: 0 | D42: 0 | E42: 0 | F42: 0 | G42: 0 | H42: 0 | I42: 0 | J42: 0 | K42: 0 | L42: 0 | M42: 0 | N42: 0 | O42: 0 | P42: 0 | Q42: 0 | R42: 0 | S42: 0 | U42: =G42-INDEX($C42:$G42,1,aux!$AL$1) -> 0 | V42: 0 | W42: 0 | X42: =+IF(INDEX($C42:$G42,1,aux!$AL$1)>0,(G42/INDEX($C42:$G42,1,aux!$AL$1))^(1/($G$3-INDEX($C$3:$G$3,1,aux!$AL$1)))-1,"n.d.") -> n.d. | Y42: =IF(INDEX($C42:$G42,1,aux!$AL$1)>0,(G42-INDEX($C42:$G42,1,aux!$AL$1))/INDEX($C42:$G42,1,aux!$AL$1),"n.d.") -> n.d. | AA42: =O42-INDEX($K42:$O42,1,aux!$AL$1) -> 0 | AB42: 0 | AC42: 0 | AD42: =+IF(INDEX($K42:$O42,1,aux!$AL$1)>0,(O42/INDEX($K42:$O42,1,aux!$AL$1))^(1/($O$3-INDEX($K$3:$O$3,1,aux!$AL$1)))-1,"n.d.") -> n.d. | AE42: =IF(INDEX($K42:$O42,1,aux!$AL$1)>0,(O42-INDEX($K42:$O42,1,aux!$AL$1))/INDEX($K42:$O42,1,aux!$AL$1),"n.d.") -> n.d. | AX42: 06
A43: 0602 | B43: Plantas vivas | C43: 0 | D43: 0 | E43: 0 | F43: 0 | G43: 0 | H43: 0 | I43: 0 | J43: 0 | K43: 0 | L43: 0 | M43: 0 | N43: 0 | O43: 0 | P43: 0 | Q43: 0 | R43: 0 | S43: 0 | U43: =G43-INDEX($C43:$G43,1,aux!$AL$1) -> 0 | V43: 0 | W43: 0 | X43: =+IF(INDEX($C43:$G43,1,aux!$AL$1)>0,(G43/INDEX($C43:$G43,1,aux!$AL$1))^(1/($G$3-INDEX($C$3:$G$3,1,aux!$AL$1)))-1,"n.d.") -> n.d. | Y43: =IF(INDEX($C43:$G43,1,aux!$AL$1)>0,(G43-INDEX($C43:$G43,1,aux!$AL$1))/INDEX($C43:$G43,1,aux!$AL$1),"n.d.") -> n.d. | AA43: =O43-INDEX($K43:$O43,1,aux!$AL$1) -> 0 | AB43: 0 | AC43: 0 | AD43: =+IF(INDEX($K43:$O43,1,aux!$AL$1)>0,(O43/INDEX($K43:$O43,1,aux!$AL$1))^(1/($O$3-INDEX($K$3:$O$3,1,aux!$AL$1)))-1,"n.d.") -> n.d. | AE43: =IF(INDEX($K43:$O43,1,aux!$AL$1)>0,(O43-INDEX($K43:$O43,1,aux!$AL$1))/INDEX($K43:$O43,1,aux!$AL$1),"n.d.") -> n.d. | AX43: 06
A44: 0603 | B44: Flores e seus botões | C44: 0 | D44: 0 | E44: 0 | F44: 0 | G44: 0 | H44: 0 | I44: 0 | J44: 0 | K44: 0 | L44: 0 | M44: 0 | N44: 0 | O44: 0 | P44: 0 | Q44: 0 | R44: 0 | S44: 0 | U44: =G44-INDEX($C44:$G44,1,aux!$AL$1) -> 0 | V44: 0 | W44: 0 | X44: =+IF(INDEX($C44:$G44,1,aux!$AL$1)>0,(G44/INDEX($C44:$G44,1,aux!$AL$1))^(1/($G$3-INDEX($C$3:$G$3,1,aux!$AL$1)))-1,"n.d.") -> n.d. | Y44: =IF(INDEX($C44:$G44,1,aux!$AL$1)>0,(G44-INDEX($C44:$G44,1,aux!$AL$1))/INDEX($C44:$G44,1,aux!$AL$1),"n.d.") -> n.d. | AA44: =O44-INDEX($K44:$O44,1,aux!$AL$1) -> 0 | AB44: 0 | AC44: 0 | AD44: =+IF(INDEX($K44:$O44,1,aux!$AL$1)>0,(O44/INDEX($K44:$O44,1,aux!$AL$1))^(1/($O$3-INDEX($K$3:$O$3,1,aux!$AL$1)))-1,"n.d.") -> n.d. | AE44: =IF(INDEX($K44:$O44,1,aux!$AL$1)>0,(O44-INDEX($K44:$O44,1,aux!$AL$1))/INDEX($K44:$O44,1,aux!$AL$1),"n.d.") -> n.d. | AX44: 06
A45: 0604 | B45: Folhagem, folhas, ramos e outras partes de plantas | C45: 0 | D45: 0 | E45: 0 | F45: 0 | G45: 0 | H45: 0 | I45: 0 | J45: 0 | K45: 0 | L45: 0 | M45: 0 | N45: 0 | O45: 0 | P45: 0 | Q45: 0 | R45: 0 | S45: 0 | U45: =G45-INDEX($C45:$G45,1,aux!$AL$1) -> 0 | V45: 0 | W45: 0 | X45: =+IF(INDEX($C45:$G45,1,aux!$AL$1)>0,(G45/INDEX($C45:$G45,1,aux!$AL$1))^(1/($G$3-INDEX($C$3:$G$3,1,aux!$AL$1)))-1,"n.d.") -> n.d. | Y45: =IF(INDEX($C45:$G45,1,aux!$AL$1)>0,(G45-INDEX($C45:$G45,1,aux!$AL$1))/INDEX($C45:$G45,1,aux!$AL$1),"n.d.") -> n.d. | AA45: =O45-INDEX($K45:$O45,1,aux!$AL$1) -> 0 | AB45: 0 | AC45: 0 | AD45: =+IF(INDEX($K45:$O45,1,aux!$AL$1)>0,(O45/INDEX($K45:$O45,1,aux!$AL$1))^(1/($O$3-INDEX($K$3:$O$3,1,aux!$AL$1)))-1,"n.d.") -> n.d. | AE45: =IF(INDEX($K45:$O45,1,aux!$AL$1)>0,(O45-INDEX($K45:$O45,1,aux!$AL$1))/INDEX($K45:$O45,1,aux!$AL$1),"n.d.") -> n.d. | AX45: 06
A46: 06SS | B46: Plantas vivas e produtos de floricultura | C46: 0 | D46: 0 | E46: 0 | F46: 0 | G46: 0 | H46: 0 | I46: 0 | J46: 0 | K46: 0 | L46: 0 | M46: 0 | N46: 0 | O46: 0 | P46: 0 | Q46: 0 | R46: 0 | S46: 0 | U46: =G46-INDEX($C46:$G46,1,aux!$AL$1) -> 0 | V46: 0 | W46: 0 | X46: =+IF(INDEX($C46:$G46,1,aux!$AL$1)>0,(G46/INDEX($C46:$G46,1,aux!$AL$1))^(1/($G$3-INDEX($C$3:$G$3,1,aux!$AL$1)))-1,"n.d.") -> n.d. | Y46: =IF(INDEX($C46:$G46,1,aux!$AL$1)>0,(G46-INDEX($C46:$G46,1,aux!$AL$1))/INDEX($C46:$G46,1,aux!$AL$1),"n.d.") -> n.d. | AA46: =O46-INDEX($K46:$O46,1,aux!$AL$1) -> 0 | AB46: 0 | AC46: 0 | AD46: =+IF(INDEX($K46:$O46,1,aux!$AL$1)>0,(O46/INDEX($K46:$O46,1,aux!$AL$1))^(1/($O$3-INDEX($K$3:$O$3,1,aux!$AL$1)))-1,"n.d.") -> n.d. | AE46: =IF(INDEX($K46:$O46,1,aux!$AL$1)>0,(O46-INDEX($K46:$O46,1,aux!$AL$1))/INDEX($K46:$O46,1,aux!$AL$1),"n.d.") -> n.d. | AX46: 06
A47: 0701 | B47: Batatas, frescas ou refrigeradas | C47: 0 | D47: 0 | E47: 0 | F47: 0 | G47: 0 | H47: 0 | I47: 0 | J47: 0 | K47: 0 | L47: 0 | M47: 0 | N47: 0 | O47: 0 | P47: 0 | Q47: 0 | R47: 0 | S47: 0 | U47: =G47-INDEX($C47:$G47,1,aux!$AL$1) -> 0 | V47: 0 | W47: 0 | X47: =+IF(INDEX($C47:$G47,1,aux!$AL$1)>0,(G47/INDEX($C47:$G47,1,aux!$AL$1))^(1/($G$3-INDEX($C$3:$G$3,1,aux!$AL$1)))-1,"n.d.") -> n.d. | Y47: =IF(INDEX($C47:$G47,1,aux!$AL$1)>0,(G47-INDEX($C47:$G47,1,aux!$AL$1))/INDEX($C47:$G47,1,aux!$AL$1),"n.d.") -> n.d. | AA47: =O47-INDEX($K47:$O47,1,aux!$AL$1) -> 0 | AB47: 0 | AC47: 0 | AD47: =+IF(INDEX($K47:$O47,1,aux!$AL$1)>0,(O47/INDEX($K47:$O47,1,aux!$AL$1))^(1/($O$3-INDEX($K$3:$O$3,1,aux!$AL$1)))-1,"n.d.") -> n.d. | AE47: =IF(INDEX($K47:$O47,1,aux!$AL$1)>0,(O47-INDEX($K47:$O47,1,aux!$AL$1))/INDEX($K47:$O47,1,aux!$AL$1),"n.d.") -> n.d. | AX47: 07
A48: 0702 | B48: Tomates, frescos ou refrigerados | C48: 0 | D48: 0 | E48: 0 | F48: 0 | G48: 0 | H48: 0 | I48: 0 | J48: 0 | K48: 0 | L48: 0 | M48: 0 | N48: 0 | O48: 0 | P48: 0 | Q48: 0 | R48: 0 | S48: 0 | U48: =G48-INDEX($C48:$G48,1,aux!$AL$1) -> 0 | V48: 0 | W48: 0 | X48: =+IF(INDEX($C48:$G48,1,aux!$AL$1)>0,(G48/INDEX($C48:$G48,1,aux!$AL$1))^(1/($G$3-INDEX($C$3:$G$3,1,aux!$AL$1)))-1,"n.d.") -> n.d. | Y48: =IF(INDEX($C48:$G48,1,aux!$AL$1)>0,(G48-INDEX($C48:$G48,1,aux!$AL$1))/INDEX($C48:$G48,1,aux!$AL$1),"n.d.") -> n.d. | AA48: =O48-INDEX($K48:$O48,1,aux!$AL$1) -> 0 | AB48: 0 | AC48: 0 | AD48: =+IF(INDEX($K48:$O48,1,aux!$AL$1)>0,(O48/INDEX($K48:$O48,1,aux!$AL$1))^(1/($O$3-INDEX($K$3:$O$3,1,aux!$AL$1)))-1,"n.d.") -> n.d. | AE48: =IF(INDEX($K48:$O48,1,aux!$AL$1)>0,(O48-INDEX($K48:$O48,1,aux!$AL$1))/INDEX($K48:$O48,1,aux!$AL$1),"n.d.") -> n.d. | AX48: 07
A49: 0703 | B49: Cebolas, alhos, etc., frescos ou refrigerados | C49: 0 | D49: 0 | E49: 0 | F49: 0 | G49: 0 | H49: 0 | I49: 0 | J49: 0 | K49: 0 | L49: 0 | M49: 0 | N49: 0 | O49: 0 | P49: 0 | Q49: 0 | R49: 0 | S49: 0 | U49: =G49-INDEX($C49:$G49,1,aux!$AL$1) -> 0 | V49: 0 | W49: 0 | X49: =+IF(INDEX($C49:$G49,1,aux!$AL$1)>0,(G49/INDEX($C49:$G49,1,aux!$AL$1))^(1/($G$3-INDEX($C$3:$G$3,1,aux!$AL$1)))-1,"n.d.") -> n.d. | Y49: =IF(INDEX($C49:$G49,1,aux!$AL$1)>0,(G49-INDEX($C49:$G49,1,aux!$AL$1))/INDEX($C49:$G49,1,aux!$AL$1),"n.d.") -> n.d. | AA49: =O49-INDEX($K49:$O49,1,aux!$AL$1) -> 0 | AB49: 0 | AC49: 0 | AD49: =+IF(INDEX($K49:$O49,1,aux!$AL$1)>0,(O49/INDEX($K49:$O49,1,aux!$AL$1))^(1/($O$3-INDEX($K$3:$O$3,1,aux!$AL$1)))-1,"n.d.") -> n.d. | AE49: =IF(INDEX($K49:$O49,1,aux!$AL$1)>0,(O49-INDEX($K49:$O49,1,aux!$AL$1))/INDEX($K49:$O49,1,aux!$AL$1),"n.d.") -> n.d. | AX49: 07
A50: 0704 | B50: Couves, frescas ou refrigeradas | C50: 0 | D50: 0 | E50: 0 | F50: 0 | G50: 0 | H50: 0 | I50: 0 | J50: 0 | K50: 0 | L50: 0 | M50: 0 | N50: 0 | O50: 0 | P50: 0 | Q50: 0 | R50: 0 | S50: 0 | U50: =G50-INDEX($C50:$G50,1,aux!$AL$1) -> 0 | V50: 0 | W50: 0 | X50: =+IF(INDEX($C50:$G50,1,aux!$AL$1)>0,(G50/INDEX($C50:$G50,1,aux!$AL$1))^(1/($G$3-INDEX($C$3:$G$3,1,aux!$AL$1)))-1,"n.d.") -> n.d. | Y50: =IF(INDEX($C50:$G50,1,aux!$AL$1)>0,(G50-INDEX($C50:$G50,1,aux!$AL$1))/INDEX($C50:$G50,1,aux!$AL$1),"n.d.") -> n.d. | AA50: =O50-INDEX($K50:$O50,1,aux!$AL$1) -> 0 | AB50: 0 | AC50: 0 | AD50: =+IF(INDEX($K50:$O50,1,aux!$AL$1)>0,(O50/INDEX($K50:$O50,1,aux!$AL$1))^(1/($O$3-INDEX($K$3:$O$3,1,aux!$AL$1)))-1,"n.d.") -> n.d. | AE50: =IF(INDEX($K50:$O50,1,aux!$AL$1)>0,(O50-INDEX($K50:$O50,1,aux!$AL$1))/INDEX($K50:$O50,1,aux!$AL$1),"n.d.") -> n.d. | AX50: 07
A51: 0705 | B51: Alfaces, frescas ou refrigeradas | C51: 0 | D51: 0 | E51: 0 | F51: 0 | G51: 0 | H51: 0 | I51: 0 | J51: 0 | K51: 0 | L51: 0 | M51: 0 | N51: 0 | O51: 0 | P51: 0 | Q51: 0 | R51: 0 | S51: 0 | U51: =G51-INDEX($C51:$G51,1,aux!$AL$1) -> 0 | V51: 0 | W51: 0 | X51: =+IF(INDEX($C51:$G51,1,aux!$AL$1)>0,(G51/INDEX($C51:$G51,1,aux!$AL$1))^(1/($G$3-INDEX($C$3:$G$3,1,aux!$AL$1)))-1,"n.d.") -> n.d. | Y51: =IF(INDEX($C51:$G51,1,aux!$AL$1)>0,(G51-INDEX($C51:$G51,1,aux!$AL$1))/INDEX($C51:$G51,1,aux!$AL$1),"n.d.") -> n.d. | AA51: =O51-INDEX($K51:$O51,1,aux!$AL$1) -> 0 | AB51: 0 | AC51: 0 | AD51: =+IF(INDEX($K51:$O51,1,aux!$AL$1)>0,(O51/INDEX($K51:$O51,1,aux!$AL$1))^(1/($O$3-INDEX($K$3:$O$3,1,aux!$AL$1)))-1,"n.d.") -> n.d. | AE51: =IF(INDEX($K51:$O51,1,aux!$AL$1)>0,(O51-INDEX($K51:$O51,1,aux!$AL$1))/INDEX($K51:$O51,1,aux!$AL$1),"n.d.") -> n.d. | AX51: 07
A52: 0706 | B52: Cenouras, nabos, beterrabas, etc., frescos ou refrigerados | C52: 0 | D52: 0 | E52: 0 | F52: 0 | G52: 0 | H52: 0 | I52: 0 | J52: 0 | K52: 0 | L52: 0 | M52: 0 | N52: 0 | O52: 0 | P52: 0 | Q52: 0 | R52: 0 | S52: 0 | U52: =G52-INDEX($C52:$G52,1,aux!$AL$1) -> 0 | V52: 0 | W52: 0 | X52: =+IF(INDEX($C52:$G52,1,aux!$AL$1)>0,(G52/INDEX($C52:$G52,1,aux!$AL$1))^(1/($G$3-INDEX($C$3:$G$3,1,aux!$AL$1)))-1,"n.d.") -> n.d. | Y52: =IF(INDEX($C52:$G52,1,aux!$AL$1)>0,(G52-INDEX($C52:$G52,1,aux!$AL$1))/INDEX($C52:$G52,1,aux!$AL$1),"n.d.") -> n.d. | AA52: =O52-INDEX($K52:$O52,1,aux!$AL$1) -> 0 | AB52: 0 | AC52: 0 | AD52: =+IF(INDEX($K52:$O52,1,aux!$AL$1)>0,(O52/INDEX($K52:$O52,1,aux!$AL$1))^(1/($O$3-INDEX($K$3:$O$3,1,aux!$AL$1)))-1,"n.d.") -> n.d. | AE52: =IF(INDEX($K52:$O52,1,aux!$AL$1)>0,(O52-INDEX($K52:$O52,1,aux!$AL$1))/INDEX($K52:$O52,1,aux!$AL$1),"n.d.") -> n.d. | AX52: 07
A53: 0707 | B53: Pepinos e pepininhos, frescos ou refrigerados | C53: 0 | D53: 0 | E53: 0 | F53: 0 | G53: 0 | H53: 0 | I53: 0 | J53: 0 | K53: 0 | L53: 0 | M53: 0 | N53: 0 | O53: 0 | P53: 0 | Q53: 0 | R53: 0 | S53: 0 | U53: =G53-INDEX($C53:$G53,1,aux!$AL$1) -> 0 | V53: 0 | W53: 0 | X53: =+IF(INDEX($C53:$G53,1,aux!$AL$1)>0,(G53/INDEX($C53:$G53,1,aux!$AL$1))^(1/($G$3-INDEX($C$3:$G$3,1,aux!$AL$1)))-1,"n.d.") -> n.d. | Y53: =IF(INDEX($C53:$G53,1,aux!$AL$1)>0,(G53-INDEX($C53:$G53,1,aux!$AL$1))/INDEX($C53:$G53,1,aux!$AL$1),"n.d.") -> n.d. | AA53: =O53-INDEX($K53:$O53,1,aux!$AL$1) -> 0 | AB53: 0 | AC53: 0 | AD53: =+IF(INDEX($K53:$O53,1,aux!$AL$1)>0,(O53/INDEX($K53:$O53,1,aux!$AL$1))^(1/($O$3-INDEX($K$3:$O$3,1,aux!$AL$1)))-1,"n.d.") -> n.d. | AE53: =IF(INDEX($K53:$O53,1,aux!$AL$1)>0,(O53-INDEX($K53:$O53,1,aux!$AL$1))/INDEX($K53:$O53,1,aux!$AL$1),"n.d.") -> n.d. | AX53: 07
A54: 0708 | B54: Legumes de vagem, frescos ou refrigerados | C54: 0 | D54: 0 | E54: 0 | F54: 0 | G54: 0 | H54: 0 | I54: 0 | J54: 0 | K54: 0 | L54: 0 | M54: 40878 | N54: 0 | O54: 0 | P54: 8175.6 | Q54: 0.0005754069078 | R54: 0.0001239924062 | S54: 8175.6 | U54: =G54-INDEX($C54:$G54,1,aux!$AL$1) -> 0 | V54: 0 | W54: 0 | X54: =+IF(INDEX($C54:$G54,1,aux!$AL$1)>0,(G54/INDEX($C54:$G54,1,aux!$AL$1))^(1/($G$3-INDEX($C$3:$G$3,1,aux!$AL$1)))-1,"n.d.") -> n.d. | Y54: =IF(INDEX($C54:$G54,1,aux!$AL$1)>0,(G54-INDEX($C54:$G54,1,aux!$AL$1))/INDEX($C54:$G54,1,aux!$AL$1),"n.d.") -> n.d. | AA54: =O54-INDEX($K54:$O54,1,aux!$AL$1) -> 0 | AB54: 0 | AC54: 0 | AD54: =+IF(INDEX($K54:$O54,1,aux!$AL$1)>0,(O54/INDEX($K54:$O54,1,aux!$AL$1))^(1/($O$3-INDEX($K$3:$O$3,1,aux!$AL$1)))-1,"n.d.") -> n.d. | AE54: =IF(INDEX($K54:$O54,1,aux!$AL$1)>0,(O54-INDEX($K54:$O54,1,aux!$AL$1))/INDEX($K54:$O54,1,aux!$AL$1),"n.d.") -> n.d. | AX54: 07
A55: 0709 | B55: Outros produtos hortícolas, frescos ou refrigerados | C55: 0 | D55: 0 | E55: 0 | F55: 0 | G55: 0 | H55: 0 | I55: 0 | J55: 0 | K55: 0 | L55: 0 | M55: 0 | N55: 0 | O55: 0 | P55: 0 | Q55: 0 | R55: 0 | S55: 0 | U55: =G55-INDEX($C55:$G55,1,aux!$AL$1) -> 0 | V55: 0 | W55: 0 | X55: =+IF(INDEX($C55:$G55,1,aux!$AL$1)>0,(G55/INDEX($C55:$G55,1,aux!$AL$1))^(1/($G$3-INDEX($C$3:$G$3,1,aux!$AL$1)))-1,"n.d.") -> n.d. | Y55: =IF(INDEX($C55:$G55,1,aux!$AL$1)>0,(G55-INDEX($C55:$G55,1,aux!$AL$1))/INDEX($C55:$G55,1,aux!$AL$1),"n.d.") -> n.d. | AA55: =O55-INDEX($K55:$O55,1,aux!$AL$1) -> 0 | AB55: 0 | AC55: 0 | AD55: =+IF(INDEX($K55:$O55,1,aux!$AL$1)>0,(O55/INDEX($K55:$O55,1,aux!$AL$1))^(1/($O$3-INDEX($K$3:$O$3,1,aux!$AL$1)))-1,"n.d.") -> n.d. | AE55: =IF(INDEX($K55:$O55,1,aux!$AL$1)>0,(O55-INDEX($K55:$O55,1,aux!$AL$1))/INDEX($K55:$O55,1,aux!$AL$1),"n.d.") -> n.d. | AX55: 07
A56: 0710 | B56: Produtos hortícolas congelados | C56: 0 | D56: 0 | E56: 0 | F56: 0 | G56: 0 | H56: 0 | I56: 0 | J56: 0 | K56: 2959177 | L56: 1877092 | M56: 1832326 | N56: 1569199 | O56: 2817933 | P56: 2211145.4 | Q56: 0.1556226255 | R56: 0.033534571 | S56: 2211145.4 | U56: =G56-INDEX($C56:$G56,1,aux!$AL$1) -> 0 | V56: 0 | W56: 0 | X56: =+IF(INDEX($C56:$G56,1,aux!$AL$1)>0,(G56/INDEX($C56:$G56,1,aux!$AL$1))^(1/($G$3-INDEX($C$3:$G$3,1,aux!$AL$1)))-1,"n.d.") -> n.d. | Y56: =IF(INDEX($C56:$G56,1,aux!$AL$1)>0,(G56-INDEX($C56:$G56,1,aux!$AL$1))/INDEX($C56:$G56,1,aux!$AL$1),"n.d.") -> n.d. | AA56: =O56-INDEX($K56:$O56,1,aux!$AL$1) -> -141244 | AB56: 0.03917407285 | AC56: -0.008731709923 | AD56: =+IF(INDEX($K56:$O56,1,aux!$AL$1)>0,(O56/INDEX($K56:$O56,1,aux!$AL$1))^(1/($O$3-INDEX($K$3:$O$3,1,aux!$AL$1)))-1,"n.d.") -> -0.01215244324 | AE56: =IF(INDEX($K56:$O56,1,aux!$AL$1)>0,(O56-INDEX($K56:$O56,1,aux!$AL$1))/INDEX($K56:$O56,1,aux!$AL$1),"n.d.") -> -0.04773083868 | AX56: 07
A57: 0711 | B57: Produtos hortícolas conservados transitoriamente | C57: 0 | D57: 0 | E57: 0 | F57: 0 | G57: 0 | H57: 0 | I57: 0 | J57: 0 | K57: 0 | L57: 0 | M57: 0 | N57: 0 | O57: 0 | P57: 0 | Q57: 0 | R57: 0 | S57: 0 | U57: =G57-INDEX($C57:$G57,1,aux!$AL$1) -> 0 | V57: 0 | W57: 0 | X57: =+IF(INDEX($C57:$G57,1,aux!$AL$1)>0,(G57/INDEX($C57:$G57,1,aux!$AL$1))^(1/($G$3-INDEX($C$3:$G$3,1,aux!$AL$1)))-1,"n.d.") -> n.d. | Y57: =IF(INDEX($C57:$G57,1,aux!$AL$1)>0,(G57-INDEX($C57:$G57,1,aux!$AL$1))/INDEX($C57:$G57,1,aux!$AL$1),"n.d.") -> n.d. | AA57: =O57-INDEX($K57:$O57,1,aux!$AL$1) -> 0 | AB57: 0 | AC57: 0 | AD57: =+IF(INDEX($K57:$O57,1,aux!$AL$1)>0,(O57/INDEX($K57:$O57,1,aux!$AL$1))^(1/($O$3-INDEX($K$3:$O$3,1,aux!$AL$1)))-1,"n.d.") -> n.d. | AE57: =IF(INDEX($K57:$O57,1,aux!$AL$1)>0,(O57-INDEX($K57:$O57,1,aux!$AL$1))/INDEX($K57:$O57,1,aux!$AL$1),"n.d.") -> n.d. | AX57: 07
A58: 0712 | B58: Produtos hortícolas secos | C58: 0 | D58: 0 | E58: 0 | F58: 0 | G58: 0 | H58: 0 | I58: 0 | J58: 0 | K58: 0 | L58: 0 | M58: 0 | N58: 0 | O58: 0 | P58: 0 | Q58: 0 | R58: 0 | S58: 0 | U58: =G58-INDEX($C58:$G58,1,aux!$AL$1) -> 0 | V58: 0 | W58: 0 | X58: =+IF(INDEX($C58:$G58,1,aux!$AL$1)>0,(G58/INDEX($C58:$G58,1,aux!$AL$1))^(1/($G$3-INDEX($C$3:$G$3,1,aux!$AL$1)))-1,"n.d.") -> n.d. | Y58: =IF(INDEX($C58:$G58,1,aux!$AL$1)>0,(G58-INDEX($C58:$G58,1,aux!$AL$1))/INDEX($C58:$G58,1,aux!$AL$1),"n.d.") -> n.d. | AA58: =O58-INDEX($K58:$O58,1,aux!$AL$1) -> 0 | AB58: 0 | AC58: 0 | AD58: =+IF(INDEX($K58:$O58,1,aux!$AL$1)>0,(O58/INDEX($K58:$O58,1,aux!$AL$1))^(1/($O$3-INDEX($K$3:$O$3,1,aux!$AL$1)))-1,"n.d.") -> n.d. | AE58: =IF(INDEX($K58:$O58,1,aux!$AL$1)>0,(O58-INDEX($K58:$O58,1,aux!$AL$1))/INDEX($K58:$O58,1,aux!$AL$1),"n.d.") -> n.d. | AX58: 07
A59: 0713 | B59: Legumes de vagem, secos, em grão | C59: 0 | D59: 0 | E59: 0 | F59: 0 | G59: 0 | H59: 0 | I59: 0 | J59: 0 | K59: 157279 | L59: 236880 | M59: 0 | N59: 0 | O59: 0 | P59: 78831.8 | Q59: 0.005548260956 | R59: 0.001195575196 | S59: 78831.8 | U59: =G59-INDEX($C59:$G59,1,aux!$AL$1) -> 0 | V59: 0 | W59: 0 | X59: =+IF(INDEX($C59:$G59,1,aux!$AL$1)>0,(G59/INDEX($C59:$G59,1,aux!$AL$1))^(1/($G$3-INDEX($C$3:$G$3,1,aux!$AL$1)))-1,"n.d.") -> n.d. | Y59: =IF(INDEX($C59:$G59,1,aux!$AL$1)>0,(G59-INDEX($C59:$G59,1,aux!$AL$1))/INDEX($C59:$G59,1,aux!$AL$1),"n.d.") -> n.d. | AA59: =O59-INDEX($K59:$O59,1,aux!$AL$1) -> -157279 | AB59: 0.04362138571 | AC59: -0.009722994286 | AD59: =+IF(INDEX($K59:$O59,1,aux!$AL$1)>0,(O59/INDEX($K59:$O59,1,aux!$AL$1))^(1/($O$3-INDEX($K$3:$O$3,1,aux!$AL$1)))-1,"n.d.") -> -1 | AE59: =IF(INDEX($K59:$O59,1,aux!$AL$1)>0,(O59-INDEX($K59:$O59,1,aux!$AL$1))/INDEX($K59:$O59,1,aux!$AL$1),"n.d.") -> -1 | AX59: 07
A60: 0714 | B60: Raízes de mandioca, de araruta, batata-doce, etc. | C60: 0 | D60: 0 | E60: 0 | F60: 0 | G60: 0 | H60: 0 | I60: 0 | J60: 0 | K60: 0 | L60: 0 | M60: 0 | N60: 0 | O60: 0 | P60: 0 | Q60: 0 | R60: 0 | S60: 0 | U60: =G60-INDEX($C60:$G60,1,aux!$AL$1) -> 0 | V60: 0 | W60: 0 | X60: =+IF(INDEX($C60:$G60,1,aux!$AL$1)>0,(G60/INDEX($C60:$G60,1,aux!$AL$1))^(1/($G$3-INDEX($C$3:$G$3,1,aux!$AL$1)))-1,"n.d.") -> n.d. | Y60: =IF(INDEX($C60:$G60,1,aux!$AL$1)>0,(G60-INDEX($C60:$G60,1,aux!$AL$1))/INDEX($C60:$G60,1,aux!$AL$1),"n.d.") -> n.d. | AA60: =O60-INDEX($K60:$O60,1,aux!$AL$1) -> 0 | AB60: 0 | AC60: 0 | AD60: =+IF(INDEX($K60:$O60,1,aux!$AL$1)>0,(O60/INDEX($K60:$O60,1,aux!$AL$1))^(1/($O$3-INDEX($K$3:$O$3,1,aux!$AL$1)))-1,"n.d.") -> n.d. | AE60: =IF(INDEX($K60:$O60,1,aux!$AL$1)>0,(O60-INDEX($K60:$O60,1,aux!$AL$1))/INDEX($K60:$O60,1,aux!$AL$1),"n.d.") -> n.d. | AX60: 07
A61: 07SS | B61: Produtos hortícolas, plantas, raízes e tubérculos, comestíveis | C61: 0 | D61: 0 | E61: 0 | F61: 0 | G61: 0 | H61: 0 | I61: 0 | J61: 0 | K61: 0 | L61: 0 | M61: 0 | N61: 0 | O61: 0 | P61: 0 | Q61: 0 | R61: 0 | S61: 0 | U61: =G61-INDEX($C61:$G61,1,aux!$AL$1) -> 0 | V61: 0 | W61: 0 | X61: =+IF(INDEX($C61:$G61,1,aux!$AL$1)>0,(G61/INDEX($C61:$G61,1,aux!$AL$1))^(1/($G$3-INDEX($C$3:$G$3,1,aux!$AL$1)))-1,"n.d.") -> n.d. | Y61: =IF(INDEX($C61:$G61,1,aux!$AL$1)>0,(G61-INDEX($C61:$G61,1,aux!$AL$1))/INDEX($C61:$G61,1,aux!$AL$1),"n.d.") -> n.d. | AA61: =O61-INDEX($K61:$O61,1,aux!$AL$1) -> 0 | AB61: 0 | AC61: 0 | AD61: =+IF(INDEX($K61:$O61,1,aux!$AL$1)>0,(O61/INDEX($K61:$O61,1,aux!$AL$1))^(1/($O$3-INDEX($K$3:$O$3,1,aux!$AL$1)))-1,"n.d.") -> n.d. | AE61: =IF(INDEX($K61:$O61,1,aux!$AL$1)>0,(O61-INDEX($K61:$O61,1,aux!$AL$1))/INDEX($K61:$O61,1,aux!$AL$1),"n.d.") -> n.d. | AX61: 07
A62: 0801 | B62: Cocos, castanhas do brasil e castanha de cajú | C62: 0 | D62: 0 | E62: 0 | F62: 0 | G62: 0 | H62: 0 | I62: 0 | J62: 0 | K62: 0 | L62: 0 | M62: 0 | N62: 0 | O62: 0 | P62: 0 | Q62: 0 | R62: 0 | S62: 0 | U62: =G62-INDEX($C62:$G62,1,aux!$AL$1) -> 0 | V62: 0 | W62: 0 | X62: =+IF(INDEX($C62:$G62,1,aux!$AL$1)>0,(G62/INDEX($C62:$G62,1,aux!$AL$1))^(1/($G$3-INDEX($C$3:$G$3,1,aux!$AL$1)))-1,"n.d.") -> n.d. | Y62: =IF(INDEX($C62:$G62,1,aux!$AL$1)>0,(G62-INDEX($C62:$G62,1,aux!$AL$1))/INDEX($C62:$G62,1,aux!$AL$1),"n.d.") -> n.d. | AA62: =O62-INDEX($K62:$O62,1,aux!$AL$1) -> 0 | AB62: 0 | AC62: 0 | AD62: =+IF(INDEX($K62:$O62,1,aux!$AL$1)>0,(O62/INDEX($K62:$O62,1,aux!$AL$1))^(1/($O$3-INDEX($K$3:$O$3,1,aux!$AL$1)))-1,"n.d.") -> n.d. | AE62: =IF(INDEX($K62:$O62,1,aux!$AL$1)>0,(O62-INDEX($K62:$O62,1,aux!$AL$1))/INDEX($K62:$O62,1,aux!$AL$1),"n.d.") -> n.d. | AX62: 08
A63: 0802 | B63: Frutas de casca rija | C63: 0 | D63: 0 | E63: 0 | F63: 0 | G63: 0 | H63: 0 | I63: 0 | J63: 0 | K63: 0 | L63: 0 | M63: 44388 | N63: 0 | O63: 0 | P63: 8877.6 | Q63: 0.0006248143701 | R63: 0.0001346390461 | S63: 8877.6 | U63: =G63-INDEX($C63:$G63,1,aux!$AL$1) -> 0 | V63: 0 | W63: 0 | X63: =+IF(INDEX($C63:$G63,1,aux!$AL$1)>0,(G63/INDEX($C63:$G63,1,aux!$AL$1))^(1/($G$3-INDEX($C$3:$G$3,1,aux!$AL$1)))-1,"n.d.") -> n.d. | Y63: =IF(INDEX($C63:$G63,1,aux!$AL$1)>0,(G63-INDEX($C63:$G63,1,aux!$AL$1))/INDEX($C63:$G63,1,aux!$AL$1),"n.d.") -> n.d. | AA63: =O63-INDEX($K63:$O63,1,aux!$AL$1) -> 0 | AB63: 0 | AC63: 0 | AD63: =+IF(INDEX($K63:$O63,1,aux!$AL$1)>0,(O63/INDEX($K63:$O63,1,aux!$AL$1))^(1/($O$3-INDEX($K$3:$O$3,1,aux!$AL$1)))-1,"n.d.") -> n.d. | AE63: =IF(INDEX($K63:$O63,1,aux!$AL$1)>0,(O63-INDEX($K63:$O63,1,aux!$AL$1))/INDEX($K63:$O63,1,aux!$AL$1),"n.d.") -> n.d. | AX63: 08
A64: 0803 | B64: Bananas, frescas ou secas | C64: 0 | D64: 0 | E64: 0 | F64: 0 | G64: 0 | H64: 0 | I64: 0 | J64: 0 | K64: 0 | L64: 0 | M64: 0 | N64: 0 | O64: 0 | P64: 0 | Q64: 0 | R64: 0 | S64: 0 | U64: =G64-INDEX($C64:$G64,1,aux!$AL$1) -> 0 | V64: 0 | W64: 0 | X64: =+IF(INDEX($C64:$G64,1,aux!$AL$1)>0,(G64/INDEX($C64:$G64,1,aux!$AL$1))^(1/($G$3-INDEX($C$3:$G$3,1,aux!$AL$1)))-1,"n.d.") -> n.d. | Y64: =IF(INDEX($C64:$G64,1,aux!$AL$1)>0,(G64-INDEX($C64:$G64,1,aux!$AL$1))/INDEX($C64:$G64,1,aux!$AL$1),"n.d.") -> n.d. | AA64: =O64-INDEX($K64:$O64,1,aux!$AL$1) -> 0 | AB64: 0 | AC64: 0 | AD64: =+IF(INDEX($K64:$O64,1,aux!$AL$1)>0,(O64/INDEX($K64:$O64,1,aux!$AL$1))^(1/($O$3-INDEX($K$3:$O$3,1,aux!$AL$1)))-1,"n.d.") -> n.d. | AE64: =IF(INDEX($K64:$O64,1,aux!$AL$1)>0,(O64-INDEX($K64:$O64,1,aux!$AL$1))/INDEX($K64:$O64,1,aux!$AL$1),"n.d.") -> n.d. | AX64: 08
A65: 0804 | B65: Tâmaras, figos, ananases, abacates, goiabas, mangas | C65: 0 | D65: 0 | E65: 0 | F65: 0 | G65: 0 | H65: 0 | I65: 0 | J65: 0 | K65: 0 | L65: 0 | M65: 0 | N65: 0 | O65: 0 | P65: 0 | Q65: 0 | R65: 0 | S65: 0 | U65: =G65-INDEX($C65:$G65,1,aux!$AL$1) -> 0 | V65: 0 | W65: 0 | X65: =+IF(INDEX($C65:$G65,1,aux!$AL$1)>0,(G65/INDEX($C65:$G65,1,aux!$AL$1))^(1/($G$3-INDEX($C$3:$G$3,1,aux!$AL$1)))-1,"n.d.") -> n.d. | Y65: =IF(INDEX($C65:$G65,1,aux!$AL$1)>0,(G65-INDEX($C65:$G65,1,aux!$AL$1))/INDEX($C65:$G65,1,aux!$AL$1),"n.d.") -> n.d. | AA65: =O65-INDEX($K65:$O65,1,aux!$AL$1) -> 0 | AB65: 0 | AC65: 0 | AD65: =+IF(INDEX($K65:$O65,1,aux!$AL$1)>0,(O65/INDEX($K65:$O65,1,aux!$AL$1))^(1/($O$3-INDEX($K$3:$O$3,1,aux!$AL$1)))-1,"n.d.") -> n.d. | AE65: =IF(INDEX($K65:$O65,1,aux!$AL$1)>0,(O65-INDEX($K65:$O65,1,aux!$AL$1))/INDEX($K65:$O65,1,aux!$AL$1),"n.d.") -> n.d. | AX65: 08
A66: 0805 | B66: Citrinos, frescos ou secos | C66: 0 | D66: 0 | E66: 0 | F66: 0 | G66: 0 | H66: 0 | I66: 0 | J66: 0 | K66: 0 | L66: 0 | M66: 0 | N66: 0 | O66: 0 | P66: 0 | Q66: 0 | R66: 0 | S66: 0 | U66: =G66-INDEX($C66:$G66,1,aux!$AL$1) -> 0 | V66: 0 | W66: 0 | X66: =+IF(INDEX($C66:$G66,1,aux!$AL$1)>0,(G66/INDEX($C66:$G66,1,aux!$AL$1))^(1/($G$3-INDEX($C$3:$G$3,1,aux!$AL$1)))-1,"n.d.") -> n.d. | Y66: =IF(INDEX($C66:$G66,1,aux!$AL$1)>0,(G66-INDEX($C66:$G66,1,aux!$AL$1))/INDEX($C66:$G66,1,aux!$AL$1),"n.d.") -> n.d. | AA66: =O66-INDEX($K66:$O66,1,aux!$AL$1) -> 0 | AB66: 0 | AC66: 0 | AD66: =+IF(INDEX($K66:$O66,1,aux!$AL$1)>0,(O66/INDEX($K66:$O66,1,aux!$AL$1))^(1/($O$3-INDEX($K$3:$O$3,1,aux!$AL$1)))-1,"n.d.") -> n.d. | AE66: =IF(INDEX($K66:$O66,1,aux!$AL$1)>0,(O66-INDEX($K66:$O66,1,aux!$AL$1))/INDEX($K66:$O66,1,aux!$AL$1),"n.d.") -> n.d. | AX66: 08
A67: 0806 | B67: Uvas, frescas ou secas | C67: 0 | D67: 0 | E67: 0 | F67: 0 | G67: 0 | H67: 0 | I67: 0 | J67: 0 | K67: 0 | L67: 0 | M67: 0 | N67: 0 | O67: 0 | P67: 0 | Q67: 0 | R67: 0 | S67: 0 | U67: =G67-INDEX($C67:$G67,1,aux!$AL$1) -> 0 | V67: 0 | W67: 0 | X67: =+IF(INDEX($C67:$G67,1,aux!$AL$1)>0,(G67/INDEX($C67:$G67,1,aux!$AL$1))^(1/($G$3-INDEX($C$3:$G$3,1,aux!$AL$1)))-1,"n.d.") -> n.d. | Y67: =IF(INDEX($C67:$G67,1,aux!$AL$1)>0,(G67-INDEX($C67:$G67,1,aux!$AL$1))/INDEX($C67:$G67,1,aux!$AL$1),"n.d.") -> n.d. | AA67: =O67-INDEX($K67:$O67,1,aux!$AL$1) -> 0 | AB67: 0 | AC67: 0 | AD67: =+IF(INDEX($K67:$O67,1,aux!$AL$1)>0,(O67/INDEX($K67:$O67,1,aux!$AL$1))^(1/($O$3-INDEX($K$3:$O$3,1,aux!$AL$1)))-1,"n.d.") -> n.d. | AE67: =IF(INDEX($K67:$O67,1,aux!$AL$1)>0,(O67-INDEX($K67:$O67,1,aux!$AL$1))/INDEX($K67:$O67,1,aux!$AL$1),"n.d.") -> n.d. | AX67: 08
A68: 0807 | B68: Melões, melancias e papaia, frescos | C68: 0 | D68: 0 | E68: 0 | F68: 0 | G68: 0 | H68: 0 | I68: 0 | J68: 0 | K68: 0 | L68: 0 | M68: 0 | N68: 0 | O68: 0 | P68: 0 | Q68: 0 | R68: 0 | S68: 0 | U68: =G68-INDEX($C68:$G68,1,aux!$AL$1) -> 0 | V68: =IF($U$236<>0,U68/$U$236, "n.d.") -> 0 | W68: =IF($U$320<>0,U68/$U$320, "n.d.") -> 0 | X68: =+IF(INDEX($C68:$G68,1,aux!$AL$1)>0,(G68/INDEX($C68:$G68,1,aux!$AL$1))^(1/($G$3-INDEX($C$3:$G$3,1,aux!$AL$1)))-1,"n.d.") -> n.d. | Y68: =IF(INDEX($C68:$G68,1,aux!$AL$1)>0,(G68-INDEX($C68:$G68,1,aux!$AL$1))/INDEX($C68:$G68,1,aux!$AL$1),"n.d.") -> n.d. | AA68: =O68-INDEX($K68:$O68,1,aux!$AL$1) -> 0 | AB68: =IF($AA$236<>0,AA68/$AA$236, "n.d.") -> 0 | AC68: =IF($AA$320<>0,AA68/$AA$320, "n.d.") -> 0 | AD68: =+IF(INDEX($K68:$O68,1,aux!$AL$1)>0,(O68/INDEX($K68:$O68,1,aux!$AL$1))^(1/($O$3-INDEX($K$3:$O$3,1,aux!$AL$1)))-1,"n.d.") -> n.d. | AE68: =IF(INDEX($K68:$O68,1,aux!$AL$1)>0,(O68-INDEX($K68:$O68,1,aux!$AL$1))/INDEX($K68:$O68,1,aux!$AL$1),"n.d.") -> n.d. | AX68: 08
A69: 0808 | B69: Maçãs, peras e marmelos, frescos | C69: 0 | D69: 0 | E69: 0 | F69: 0 | G69: 0 | H69: 0 | I69: 0 | J69: 0 | K69: 0 | L69: 0 | M69: 0 | N69: 0 | O69: 0 | P69: 0 | Q69: 0 | R69: 0 | S69: 0 | U69: =G69-INDEX($C69:$G69,1,aux!$AL$1) -> 0 | V69: 0 | W69: 0 | X69: =+IF(INDEX($C69:$G69,1,aux!$AL$1)>0,(G69/INDEX($C69:$G69,1,aux!$AL$1))^(1/($G$3-INDEX($C$3:$G$3,1,aux!$AL$1)))-1,"n.d.") -> n.d. | Y69: =IF(INDEX($C69:$G69,1,aux!$AL$1)>0,(G69-INDEX($C69:$G69,1,aux!$AL$1))/INDEX($C69:$G69,1,aux!$AL$1),"n.d.") -> n.d. | AA69: =O69-INDEX($K69:$O69,1,aux!$AL$1) -> 0 | AB69: 0 | AC69: 0 | AD69: =+IF(INDEX($K69:$O69,1,aux!$AL$1)>0,(O69/INDEX($K69:$O69,1,aux!$AL$1))^(1/($O$3-INDEX($K$3:$O$3,1,aux!$AL$1)))-1,"n.d.") -> n.d. | AE69: =IF(INDEX($K69:$O69,1,aux!$AL$1)>0,(O69-INDEX($K69:$O69,1,aux!$AL$1))/INDEX($K69:$O69,1,aux!$AL$1),"n.d.") -> n.d. | AX69: 08
A70: 0809 | B70: Damascos, cerejas, pêssegos, etc., frescos | C70: 0 | D70: 0 | E70: 0 | F70: 0 | G70: 0 | H70: 0 | I70: 0 | J70: 0 | K70: 0 | L70: 0 | M70: 0 | N70: 0 | O70: 0 | P70: 0 | Q70: 0 | R70: 0 | S70: 0 | U70: =G70-INDEX($C70:$G70,1,aux!$AL$1) -> 0 | V70: 0 | W70: 0 | X70: =+IF(INDEX($C70:$G70,1,aux!$AL$1)>0,(G70/INDEX($C70:$G70,1,aux!$AL$1))^(1/($G$3-INDEX($C$3:$G$3,1,aux!$AL$1)))-1,"n.d.") -> n.d. | Y70: =IF(INDEX($C70:$G70,1,aux!$AL$1)>0,(G70-INDEX($C70:$G70,1,aux!$AL$1))/INDEX($C70:$G70,1,aux!$AL$1),"n.d.") -> n.d. | AA70: =O70-INDEX($K70:$O70,1,aux!$AL$1) -> 0 | AB70: 0 | AC70: 0 | AD70: =+IF(INDEX($K70:$O70,1,aux!$AL$1)>0,(O70/INDEX($K70:$O70,1,aux!$AL$1))^(1/($O$3-INDEX($K$3:$O$3,1,aux!$AL$1)))-1,"n.d.") -> n.d. | AE70: =IF(INDEX($K70:$O70,1,aux!$AL$1)>0,(O70-INDEX($K70:$O70,1,aux!$AL$1))/INDEX($K70:$O70,1,aux!$AL$1),"n.d.") -> n.d. | AX70: 08
A71: 0810 | B71: Outras frutas frescas | C71: 0 | D71: 0 | E71: 0 | F71: 0 | G71: 0 | H71: 0 | I71: 0 | J71: 0 | K71: 0 | L71: 0 | M71: 0 | N71: 0 | O71: 0 | P71: 0 | Q71: 0 | R71: 0 | S71: 0 | U71: =G71-INDEX($C71:$G71,1,aux!$AL$1) -> 0 | V71: 0 | W71: 0 | X71: =+IF(INDEX($C71:$G71,1,aux!$AL$1)>0,(G71/INDEX($C71:$G71,1,aux!$AL$1))^(1/($G$3-INDEX($C$3:$G$3,1,aux!$AL$1)))-1,"n.d.") -> n.d. | Y71: =IF(INDEX($C71:$G71,1,aux!$AL$1)>0,(G71-INDEX($C71:$G71,1,aux!$AL$1))/INDEX($C71:$G71,1,aux!$AL$1),"n.d.") -> n.d. | AA71: =O71-INDEX($K71:$O71,1,aux!$AL$1) -> 0 | AB71: 0 | AC71: 0 | AD71: =+IF(INDEX($K71:$O71,1,aux!$AL$1)>0,(O71/INDEX($K71:$O71,1,aux!$AL$1))^(1/($O$3-INDEX($K$3:$O$3,1,aux!$AL$1)))-1,"n.d.") -> n.d. | AE71: =IF(INDEX($K71:$O71,1,aux!$AL$1)>0,(O71-INDEX($K71:$O71,1,aux!$AL$1))/INDEX($K71:$O71,1,aux!$AL$1),"n.d.") -> n.d. | AX71: =+LEFT(A71,2) -> 08
A72: 0811 | B72: Frutas não cozidas ou cozidas em água ou vapor, congeladas | C72: 0 | D72: 0 | E72: 0 | F72: 0 | G72: 0 | H72: 0 | I72: 0 | J72: 0 | K72: 0 | L72: 0 | M72: 0 | N72: 0 | O72: 0 | P72: 0 | Q72: 0 | R72: 0 | S72: 0 | U72: =G72-INDEX($C72:$G72,1,aux!$AL$1) -> 0 | V72: 0 | W72: 0 | X72: =+IF(INDEX($C72:$G72,1,aux!$AL$1)>0,(G72/INDEX($C72:$G72,1,aux!$AL$1))^(1/($G$3-INDEX($C$3:$G$3,1,aux!$AL$1)))-1,"n.d.") -> n.d. | Y72: =IF(INDEX($C72:$G72,1,aux!$AL$1)>0,(G72-INDEX($C72:$G72,1,aux!$AL$1))/INDEX($C72:$G72,1,aux!$AL$1),"n.d.") -> n.d. | AA72: =O72-INDEX($K72:$O72,1,aux!$AL$1) -> 0 | AB72: 0 | AC72: 0 | AD72: =+IF(INDEX($K72:$O72,1,aux!$AL$1)>0,(O72/INDEX($K72:$O72,1,aux!$AL$1))^(1/($O$3-INDEX($K$3:$O$3,1,aux!$AL$1)))-1,"n.d.") -> n.d. | AE72: =IF(INDEX($K72:$O72,1,aux!$AL$1)>0,(O72-INDEX($K72:$O72,1,aux!$AL$1))/INDEX($K72:$O72,1,aux!$AL$1),"n.d.") -> n.d. | AX72: 08
A73: 0812 | B73: Frutas conservadas transitoriamente | C73: 0 | D73: 0 | E73: 0 | F73: 0 | G73: 0 | H73: 0 | I73: 0 | J73: 0 | K73: 0 | L73: 0 | M73: 0 | N73: 0 | O73: 0 | P73: 0 | Q73: 0 | R73: 0 | S73: 0 | U73: =G73-INDEX($C73:$G73,1,aux!$AL$1) -> 0 | V73: 0 | W73: 0 | X73: =+IF(INDEX($C73:$G73,1,aux!$AL$1)>0,(G73/INDEX($C73:$G73,1,aux!$AL$1))^(1/($G$3-INDEX($C$3:$G$3,1,aux!$AL$1)))-1,"n.d.") -> n.d. | Y73: =IF(INDEX($C73:$G73,1,aux!$AL$1)>0,(G73-INDEX($C73:$G73,1,aux!$AL$1))/INDEX($C73:$G73,1,aux!$AL$1),"n.d.") -> n.d. | AA73: =O73-INDEX($K73:$O73,1,aux!$AL$1) -> 0 | AB73: 0 | AC73: 0 | AD73: =+IF(INDEX($K73:$O73,1,aux!$AL$1)>0,(O73/INDEX($K73:$O73,1,aux!$AL$1))^(1/($O$3-INDEX($K$3:$O$3,1,aux!$AL$1)))-1,"n.d.") -> n.d. | AE73: =IF(INDEX($K73:$O73,1,aux!$AL$1)>0,(O73-INDEX($K73:$O73,1,aux!$AL$1))/INDEX($K73:$O73,1,aux!$AL$1),"n.d.") -> n.d. | AX73: 08
A74: 0813 | B74: Outras frutas secas | C74: 0 | D74: 0 | E74: 0 | F74: 0 | G74: 0 | H74: 0 | I74: 0 | J74: 0 | K74: 0 | L74: 0 | M74: 0 | N74: 0 | O74: 0 | P74: 0 | Q74: 0 | R74: 0 | S74: 0 | U74: =G74-INDEX($C74:$G74,1,aux!$AL$1) -> 0 | V74: 0 | W74: 0 | X74: =+IF(INDEX($C74:$G74,1,aux!$AL$1)>0,(G74/INDEX($C74:$G74,1,aux!$AL$1))^(1/($G$3-INDEX($C$3:$G$3,1,aux!$AL$1)))-1,"n.d.") -> n.d. | Y74: =IF(INDEX($C74:$G74,1,aux!$AL$1)>0,(G74-INDEX($C74:$G74,1,aux!$AL$1))/INDEX($C74:$G74,1,aux!$AL$1),"n.d.") -> n.d. | AA74: =O74-INDEX($K74:$O74,1,aux!$AL$1) -> 0 | AB74: 0 | AC74: 0 | AD74: =+IF(INDEX($K74:$O74,1,aux!$AL$1)>0,(O74/INDEX($K74:$O74,1,aux!$AL$1))^(1/($O$3-INDEX($K$3:$O$3,1,aux!$AL$1)))-1,"n.d.") -> n.d. | AE74: =IF(INDEX($K74:$O74,1,aux!$AL$1)>0,(O74-INDEX($K74:$O74,1,aux!$AL$1))/INDEX($K74:$O74,1,aux!$AL$1),"n.d.") -> n.d. | AX74: 08
A75: 0814 | B75: Cascas de citrinos, melões ou melancias | C75: 0 | D75: 0 | E75: 0 | F75: 0 | G75: 0 | H75: 0 | I75: 0 | J75: 0 | K75: 0 | L75: 0 | M75: 0 | N75: 0 | O75: 0 | P75: 0 | Q75: 0 | R75: 0 | S75: 0 | U75: =G75-INDEX($C75:$G75,1,aux!$AL$1) -> 0 | V75: 0 | W75: 0 | X75: =+IF(INDEX($C75:$G75,1,aux!$AL$1)>0,(G75/INDEX($C75:$G75,1,aux!$AL$1))^(1/($G$3-INDEX($C$3:$G$3,1,aux!$AL$1)))-1,"n.d.") -> n.d. | Y75: =IF(INDEX($C75:$G75,1,aux!$AL$1)>0,(G75-INDEX($C75:$G75,1,aux!$AL$1))/INDEX($C75:$G75,1,aux!$AL$1),"n.d.") -> n.d. | AA75: =O75-INDEX($K75:$O75,1,aux!$AL$1) -> 0 | AB75: 0 | AC75: 0 | AD75: =+IF(INDEX($K75:$O75,1,aux!$AL$1)>0,(O75/INDEX($K75:$O75,1,aux!$AL$1))^(1/($O$3-INDEX($K$3:$O$3,1,aux!$AL$1)))-1,"n.d.") -> n.d. | AE75: =IF(INDEX($K75:$O75,1,aux!$AL$1)>0,(O75-INDEX($K75:$O75,1,aux!$AL$1))/INDEX($K75:$O75,1,aux!$AL$1),"n.d.") -> n.d. | AX75: 08
A76: 08SS | B76: Frutas; cascas de citrinos e de melões | C76: 0 | D76: 0 | E76: 0 | F76: 0 | G76: 0 | H76: 0 | I76: 0 | J76: 0 | K76: 0 | L76: 0 | M76: 0 | N76: 0 | O76: 0 | P76: 0 | Q76: 0 | R76: 0 | S76: 0 | U76: =G76-INDEX($C76:$G76,1,aux!$AL$1) -> 0 | V76: 0 | W76: 0 | X76: =+IF(INDEX($C76:$G76,1,aux!$AL$1)>0,(G76/INDEX($C76:$G76,1,aux!$AL$1))^(1/($G$3-INDEX($C$3:$G$3,1,aux!$AL$1)))-1,"n.d.") -> n.d. | Y76: =IF(INDEX($C76:$G76,1,aux!$AL$1)>0,(G76-INDEX($C76:$G76,1,aux!$AL$1))/INDEX($C76:$G76,1,aux!$AL$1),"n.d.") -> n.d. | AA76: =O76-INDEX($K76:$O76,1,aux!$AL$1) -> 0 | AB76: 0 | AC76: 0 | AD76: =+IF(INDEX($K76:$O76,1,aux!$AL$1)>0,(O76/INDEX($K76:$O76,1,aux!$AL$1))^(1/($O$3-INDEX($K$3:$O$3,1,aux!$AL$1)))-1,"n.d.") -> n.d. | AE76: =IF(INDEX($K76:$O76,1,aux!$AL$1)>0,(O76-INDEX($K76:$O76,1,aux!$AL$1))/INDEX($K76:$O76,1,aux!$AL$1),"n.d.") -> n.d. | AX76: 08
A77: 0901 | B77: Café | C77: 0 | D77: 0 | E77: 0 | F77: 0 | G77: 6 | H77: 1.2 | I77: 1.020248533e-05 | J77: 3.312428779e-07 | K77: 23 | L77: 0 | M77: 0 | N77: 0 | O77: 29985 | P77: 6001.6 | Q77: 0.0004223986126 | R77: 9.102118809e-05 | S77: 6000.4 | U77: =G77-INDEX($C77:$G77,1,aux!$AL$1) -> 6 | V77: 1.948444167e-05 | W77: 1.799573681e-06 | X77: =+IF(INDEX($C77:$G77,1,aux!$AL$1)>0,(G77/INDEX($C77:$G77,1,aux!$AL$1))^(1/($G$3-INDEX($C$3:$G$3,1,aux!$AL$1)))-1,"n.d.") -> n.d. | Y77: =IF(INDEX($C77:$G77,1,aux!$AL$1)>0,(G77-INDEX($C77:$G77,1,aux!$AL$1))/INDEX($C77:$G77,1,aux!$AL$1),"n.d.") -> n.d. | AA77: =O77-INDEX($K77:$O77,1,aux!$AL$1) -> 29962 | AB77: -0.008309971189 | AC77: 0.001852252079 | AD77: =+IF(INDEX($K77:$O77,1,aux!$AL$1)>0,(O77/INDEX($K77:$O77,1,aux!$AL$1))^(1/($O$3-INDEX($K$3:$O$3,1,aux!$AL$1)))-1,"n.d.") -> 5.00888724 | AE77: =IF(INDEX($K77:$O77,1,aux!$AL$1)>0,(O77-INDEX($K77:$O77,1,aux!$AL$1))/INDEX($K77:$O77,1,aux!$AL$1),"n.d.") -> 1302.695652 | AX77: 09
A78: 0902 | B78: Chá | C78: 0 | D78: 0 | E78: 0 | F78: 0 | G78: 1 | H78: 0.2 | I78: 1.700414221e-06 | J78: 5.520714632e-08 | K78: 0 | L78: 0 | M78: 0 | N78: 0 | O78: 3 | P78: 0.6 | Q78: 4.22286003e-08 | R78: 9.099692224e-09 | S78: 0.4 | U78: =G78-INDEX($C78:$G78,1,aux!$AL$1) -> 1 | V78: 3.247406946e-06 | W78: 2.999289468e-07 | X78: =+IF(INDEX($C78:$G78,1,aux!$AL$1)>0,(G78/INDEX($C78:$G78,1,aux!$AL$1))^(1/($G$3-INDEX($C$3:$G$3,1,aux!$AL$1)))-1,"n.d.") -> n.d. | Y78: =IF(INDEX($C78:$G78,1,aux!$AL$1)>0,(G78-INDEX($C78:$G78,1,aux!$AL$1))/INDEX($C78:$G78,1,aux!$AL$1),"n.d.") -> n.d. | AA78: =O78-INDEX($K78:$O78,1,aux!$AL$1) -> 3 | AB78: -8.320510502e-07 | AC78: 1.854601241e-07 | AD78: =+IF(INDEX($K78:$O78,1,aux!$AL$1)>0,(O78/INDEX($K78:$O78,1,aux!$AL$1))^(1/($O$3-INDEX($K$3:$O$3,1,aux!$AL$1)))-1,"n.d.") -> n.d. | AE78: =IF(INDEX($K78:$O78,1,aux!$AL$1)>0,(O78-INDEX($K78:$O78,1,aux!$AL$1))/INDEX($K78:$O78,1,aux!$AL$1),"n.d.") -> n.d. | AX78: 09
A79: 0903 | B79: Mate | C79: 0 | D79: 0 | E79: 0 | F79: 0 | G79: 0 | H79: 0 | I79: 0 | J79: 0 | K79: 0 | L79: 0 | M79: 0 | N79: 0 | O79: 0 | P79: 0 | Q79: 0 | R79: 0 | S79: 0 | U79: =G79-INDEX($C79:$G79,1,aux!$AL$1) -> 0 | V79: 0 | W79: 0 | X79: =+IF(INDEX($C79:$G79,1,aux!$AL$1)>0,(G79/INDEX($C79:$G79,1,aux!$AL$1))^(1/($G$3-INDEX($C$3:$G$3,1,aux!$AL$1)))-1,"n.d.") -> n.d. | Y79: =IF(INDEX($C79:$G79,1,aux!$AL$1)>0,(G79-INDEX($C79:$G79,1,aux!$AL$1))/INDEX($C79:$G79,1,aux!$AL$1),"n.d.") -> n.d. | AA79: =O79-INDEX($K79:$O79,1,aux!$AL$1) -> 0 | AB79: 0 | AC79: 0 | AD79: =+IF(INDEX($K79:$O79,1,aux!$AL$1)>0,(O79/INDEX($K79:$O79,1,aux!$AL$1))^(1/($O$3-INDEX($K$3:$O$3,1,aux!$AL$1)))-1,"n.d.") -> n.d. | AE79: =IF(INDEX($K79:$O79,1,aux!$AL$1)>0,(O79-INDEX($K79:$O79,1,aux!$AL$1))/INDEX($K79:$O79,1,aux!$AL$1),"n.d.") -> n.d. | AX79: 09
A80: 0904 | B80: Pimenta | C80: 0 | D80: 0 | E80: 0 | F80: 0 | G80: 0 | H80: 0 | I80: 0 | J80: 0 | K80: 0 | L80: 0 | M80: 0 | N80: 0 | O80: 0 | P80: 0 | Q80: 0 | R80: 0 | S80: 0 | U80: =G80-INDEX($C80:$G80,1,aux!$AL$1) -> 0 | V80: 0 | W80: 0 | X80: =+IF(INDEX($C80:$G80,1,aux!$AL$1)>0,(G80/INDEX($C80:$G80,1,aux!$AL$1))^(1/($G$3-INDEX($C$3:$G$3,1,aux!$AL$1)))-1,"n.d.") -> n.d. | Y80: =IF(INDEX($C80:$G80,1,aux!$AL$1)>0,(G80-INDEX($C80:$G80,1,aux!$AL$1))/INDEX($C80:$G80,1,aux!$AL$1),"n.d.") -> n.d. | AA80: =O80-INDEX($K80:$O80,1,aux!$AL$1) -> 0 | AB80: 0 | AC80: 0 | AD80: =+IF(INDEX($K80:$O80,1,aux!$AL$1)>0,(O80/INDEX($K80:$O80,1,aux!$AL$1))^(1/($O$3-INDEX($K$3:$O$3,1,aux!$AL$1)))-1,"n.d.") -> n.d. | AE80: =IF(INDEX($K80:$O80,1,aux!$AL$1)>0,(O80-INDEX($K80:$O80,1,aux!$AL$1))/INDEX($K80:$O80,1,aux!$AL$1),"n.d.") -> n.d. | AX80: 09
A81: 0905 | B81: Baunilha | C81: 0 | D81: 0 | E81: 0 | F81: 0 | G81: 0 | H81: 0 | I81: 0 | J81: 0 | K81: 0 | L81: 0 | M81: 0 | N81: 0 | O81: 0 | P81: 0 | Q81: 0 | R81: 0 | S81: 0 | U81: =G81-INDEX($C81:$G81,1,aux!$AL$1) -> 0 | V81: 0 | W81: 0 | X81: =+IF(INDEX($C81:$G81,1,aux!$AL$1)>0,(G81/INDEX($C81:$G81,1,aux!$AL$1))^(1/($G$3-INDEX($C$3:$G$3,1,aux!$AL$1)))-1,"n.d.") -> n.d. | Y81: =IF(INDEX($C81:$G81,1,aux!$AL$1)>0,(G81-INDEX($C81:$G81,1,aux!$AL$1))/INDEX($C81:$G81,1,aux!$AL$1),"n.d.") -> n.d. | AA81: =O81-INDEX($K81:$O81,1,aux!$AL$1) -> 0 | AB81: 0 | AC81: 0 | AD81: =+IF(INDEX($K81:$O81,1,aux!$AL$1)>0,(O81/INDEX($K81:$O81,1,aux!$AL$1))^(1/($O$3-INDEX($K$3:$O$3,1,aux!$AL$1)))-1,"n.d.") -> n.d. | AE81: =IF(INDEX($K81:$O81,1,aux!$AL$1)>0,(O81-INDEX($K81:$O81,1,aux!$AL$1))/INDEX($K81:$O81,1,aux!$AL$1),"n.d.") -> n.d. | AX81: 09
A82: 0906 | B82: Canela | C82: 0 | D82: 0 | E82: 0 | F82: 0 | G82: 0 | H82: 0 | I82: 0 | J82: 0 | K82: 0 | L82: 0 | M82: 0 | N82: 0 | O82: 0 | P82: 0 | Q82: 0 | R82: 0 | S82: 0 | U82: =G82-INDEX($C82:$G82,1,aux!$AL$1) -> 0 | V82: 0 | W82: 0 | X82: =+IF(INDEX($C82:$G82,1,aux!$AL$1)>0,(G82/INDEX($C82:$G82,1,aux!$AL$1))^(1/($G$3-INDEX($C$3:$G$3,1,aux!$AL$1)))-1,"n.d.") -> n.d. | Y82: =IF(INDEX($C82:$G82,1,aux!$AL$1)>0,(G82-INDEX($C82:$G82,1,aux!$AL$1))/INDEX($C82:$G82,1,aux!$AL$1),"n.d.") -> n.d. | AA82: =O82-INDEX($K82:$O82,1,aux!$AL$1) -> 0 | AB82: 0 | AC82: 0 | AD82: =+IF(INDEX($K82:$O82,1,aux!$AL$1)>0,(O82/INDEX($K82:$O82,1,aux!$AL$1))^(1/($O$3-INDEX($K$3:$O$3,1,aux!$AL$1)))-1,"n.d.") -> n.d. | AE82: =IF(INDEX($K82:$O82,1,aux!$AL$1)>0,(O82-INDEX($K82:$O82,1,aux!$AL$1))/INDEX($K82:$O82,1,aux!$AL$1),"n.d.") -> n.d. | AX82: 09
A83: 0907 | B83: Cravo-da-índia | C83: 0 | D83: 0 | E83: 0 | F83: 0 | G83: 0 | H83: 0 | I83: 0 | J83: 0 | K83: 0 | L83: 0 | M83: 0 | N83: 0 | O83: 0 | P83: 0 | Q83: 0 | R83: 0 | S83: 0 | U83: =G83-INDEX($C83:$G83,1,aux!$AL$1) -> 0 | V83: 0 | W83: 0 | X83: =+IF(INDEX($C83:$G83,1,aux!$AL$1)>0,(G83/INDEX($C83:$G83,1,aux!$AL$1))^(1/($G$3-INDEX($C$3:$G$3,1,aux!$AL$1)))-1,"n.d.") -> n.d. | Y83: =IF(INDEX($C83:$G83,1,aux!$AL$1)>0,(G83-INDEX($C83:$G83,1,aux!$AL$1))/INDEX($C83:$G83,1,aux!$AL$1),"n.d.") -> n.d. | AA83: =O83-INDEX($K83:$O83,1,aux!$AL$1) -> 0 | AB83: 0 | AC83: 0 | AD83: =+IF(INDEX($K83:$O83,1,aux!$AL$1)>0,(O83/INDEX($K83:$O83,1,aux!$AL$1))^(1/($O$3-INDEX($K$3:$O$3,1,aux!$AL$1)))-1,"n.d.") -> n.d. | AE83: =IF(INDEX($K83:$O83,1,aux!$AL$1)>0,(O83-INDEX($K83:$O83,1,aux!$AL$1))/INDEX($K83:$O83,1,aux!$AL$1),"n.d.") -> n.d. | AX83: 09
A84: 0908 | B84: Noz-moscada, etc. | C84: 0 | D84: 0 | E84: 0 | F84: 0 | G84: 0 | H84: 0 | I84: 0 | J84: 0 | K84: 0 | L84: 0 | M84: 0 | N84: 0 | O84: 0 | P84: 0 | Q84: 0 | R84: 0 | S84: 0 | U84: =G84-INDEX($C84:$G84,1,aux!$AL$1) -> 0 | V84: 0 | W84: 0 | X84: =+IF(INDEX($C84:$G84,1,aux!$AL$1)>0,(G84/INDEX($C84:$G84,1,aux!$AL$1))^(1/($G$3-INDEX($C$3:$G$3,1,aux!$AL$1)))-1,"n.d.") -> n.d. | Y84: =IF(INDEX($C84:$G84,1,aux!$AL$1)>0,(G84-INDEX($C84:$G84,1,aux!$AL$1))/INDEX($C84:$G84,1,aux!$AL$1),"n.d.") -> n.d. | AA84: =O84-INDEX($K84:$O84,1,aux!$AL$1) -> 0 | AB84: 0 | AC84: 0 | AD84: =+IF(INDEX($K84:$O84,1,aux!$AL$1)>0,(O84/INDEX($K84:$O84,1,aux!$AL$1))^(1/($O$3-INDEX($K$3:$O$3,1,aux!$AL$1)))-1,"n.d.") -> n.d. | AE84: =IF(INDEX($K84:$O84,1,aux!$AL$1)>0,(O84-INDEX($K84:$O84,1,aux!$AL$1))/INDEX($K84:$O84,1,aux!$AL$1),"n.d.") -> n.d. | AX84: 09
A85: 0909 | B85: Sementes de anis, funcho, etc. | C85: 0 | D85: 0 | E85: 0 | F85: 0 | G85: 0 | H85: 0 | I85: 0 | J85: 0 | K85: 0 | L85: 0 | M85: 0 | N85: 0 | O85: 0 | P85: 0 | Q85: 0 | R85: 0 | S85: 0 | U85: =G85-INDEX($C85:$G85,1,aux!$AL$1) -> 0 | V85: 0 | W85: 0 | X85: =+IF(INDEX($C85:$G85,1,aux!$AL$1)>0,(G85/INDEX($C85:$G85,1,aux!$AL$1))^(1/($G$3-INDEX($C$3:$G$3,1,aux!$AL$1)))-1,"n.d.") -> n.d. | Y85: =IF(INDEX($C85:$G85,1,aux!$AL$1)>0,(G85-INDEX($C85:$G85,1,aux!$AL$1))/INDEX($C85:$G85,1,aux!$AL$1),"n.d.") -> n.d. | AA85: =O85-INDEX($K85:$O85,1,aux!$AL$1) -> 0 | AB85: 0 | AC85: 0 | AD85: =+IF(INDEX($K85:$O85,1,aux!$AL$1)>0,(O85/INDEX($K85:$O85,1,aux!$AL$1))^(1/($O$3-INDEX($K$3:$O$3,1,aux!$AL$1)))-1,"n.d.") -> n.d. | AE85: =IF(INDEX($K85:$O85,1,aux!$AL$1)>0,(O85-INDEX($K85:$O85,1,aux!$AL$1))/INDEX($K85:$O85,1,aux!$AL$1),"n.d.") -> n.d. | AX85: 09
A86: 0910 | B86: Gengibre, açafrão, tomilho, louro, etc. | C86: 0 | D86: 0 | E86: 0 | F86: 0 | G86: 12 | H86: 2.4 | I86: 2.040497065e-05 | J86: 6.624857559e-07 | K86: 0 | L86: 0 | M86: 0 | N86: 0 | O86: 0 | P86: 0 | Q86: 0 | R86: 0 | S86: -2.4 | U86: =G86-INDEX($C86:$G86,1,aux!$AL$1) -> 12 | V86: 3.896888335e-05 | W86: 3.599147362e-06 | X86: =+IF(INDEX($C86:$G86,1,aux!$AL$1)>0,(G86/INDEX($C86:$G86,1,aux!$AL$1))^(1/($G$3-INDEX($C$3:$G$3,1,aux!$AL$1)))-1,"n.d.") -> n.d. | Y86: =IF(INDEX($C86:$G86,1,aux!$AL$1)>0,(G86-INDEX($C86:$G86,1,aux!$AL$1))/INDEX($C86:$G86,1,aux!$AL$1),"n.d.") -> n.d. | AA86: =O86-INDEX($K86:$O86,1,aux!$AL$1) -> 0 | AB86: 0 | AC86: 0 | AD86: =+IF(INDEX($K86:$O86,1,aux!$AL$1)>0,(O86/INDEX($K86:$O86,1,aux!$AL$1))^(1/($O$3-INDEX($K$3:$O$3,1,aux!$AL$1)))-1,"n.d.") -> n.d. | AE86: =IF(INDEX($K86:$O86,1,aux!$AL$1)>0,(O86-INDEX($K86:$O86,1,aux!$AL$1))/INDEX($K86:$O86,1,aux!$AL$1),"n.d.") -> n.d. | AX86: 09
A87: 09SS | B87: Café, chá, mate e especiarias | C87: 0 | D87: 0 | E87: 0 | F87: 0 | G87: 0 | H87: 0 | I87: 0 | J87: 0 | K87: 0 | L87: 0 | M87: 0 | N87: 0 | O87: 0 | P87: 0 | Q87: 0 | R87: 0 | S87: 0 | U87: =G87-INDEX($C87:$G87,1,aux!$AL$1) -> 0 | V87: 0 | W87: 0 | X87: =+IF(INDEX($C87:$G87,1,aux!$AL$1)>0,(G87/INDEX($C87:$G87,1,aux!$AL$1))^(1/($G$3-INDEX($C$3:$G$3,1,aux!$AL$1)))-1,"n.d.") -> n.d. | Y87: =IF(INDEX($C87:$G87,1,aux!$AL$1)>0,(G87-INDEX($C87:$G87,1,aux!$AL$1))/INDEX($C87:$G87,1,aux!$AL$1),"n.d.") -> n.d. | AA87: =O87-INDEX($K87:$O87,1,aux!$AL$1) -> 0 | AB87: 0 | AC87: 0 | AD87: =+IF(INDEX($K87:$O87,1,aux!$AL$1)>0,(O87/INDEX($K87:$O87,1,aux!$AL$1))^(1/($O$3-INDEX($K$3:$O$3,1,aux!$AL$1)))-1,"n.d.") -> n.d. | AE87: =IF(INDEX($K87:$O87,1,aux!$AL$1)>0,(O87-INDEX($K87:$O87,1,aux!$AL$1))/INDEX($K87:$O87,1,aux!$AL$1),"n.d.") -> n.d. | AX87: 09
A88: 1001 | B88: Trigo e mistura trigo/centeio | C88: 0 | D88: 0 | E88: 0 | F88: 0 | G88: 0 | H88: 0 | I88: 0 | J88: 0 | K88: 0 | L88: 0 | M88: 0 | N88: 0 | O88: 0 | P88: 0 | Q88: 0 | R88: 0 | S88: 0 | U88: =G88-INDEX($C88:$G88,1,aux!$AL$1) -> 0 | V88: 0 | W88: 0 | X88: =+IF(INDEX($C88:$G88,1,aux!$AL$1)>0,(G88/INDEX($C88:$G88,1,aux!$AL$1))^(1/($G$3-INDEX($C$3:$G$3,1,aux!$AL$1)))-1,"n.d.") -> n.d. | Y88: =IF(INDEX($C88:$G88,1,aux!$AL$1)>0,(G88-INDEX($C88:$G88,1,aux!$AL$1))/INDEX($C88:$G88,1,aux!$AL$1),"n.d.") -> n.d. | AA88: =O88-INDEX($K88:$O88,1,aux!$AL$1) -> 0 | AB88: 0 | AC88: 0 | AD88: =+IF(INDEX($K88:$O88,1,aux!$AL$1)>0,(O88/INDEX($K88:$O88,1,aux!$AL$1))^(1/($O$3-INDEX($K$3:$O$3,1,aux!$AL$1)))-1,"n.d.") -> n.d. | AE88: =IF(INDEX($K88:$O88,1,aux!$AL$1)>0,(O88-INDEX($K88:$O88,1,aux!$AL$1))/INDEX($K88:$O88,1,aux!$AL$1),"n.d.") -> n.d. | AX88: 10
A89: 1002 | B89: Centeio | C89: 0 | D89: 0 | E89: 0 | F89: 0 | G89: 0 | H89: 0 | I89: 0 | J89: 0 | K89: 0 | L89: 0 | M89: 0 | N89: 0 | O89: 0 | P89: 0 | Q89: 0 | R89: 0 | S89: 0 | U89: =G89-INDEX($C89:$G89,1,aux!$AL$1) -> 0 | V89: 0 | W89: 0 | X89: =+IF(INDEX($C89:$G89,1,aux!$AL$1)>0,(G89/INDEX($C89:$G89,1,aux!$AL$1))^(1/($G$3-INDEX($C$3:$G$3,1,aux!$AL$1)))-1,"n.d.") -> n.d. | Y89: =IF(INDEX($C89:$G89,1,aux!$AL$1)>0,(G89-INDEX($C89:$G89,1,aux!$AL$1))/INDEX($C89:$G89,1,aux!$AL$1),"n.d.") -> n.d. | AA89: =O89-INDEX($K89:$O89,1,aux!$AL$1) -> 0 | AB89: 0 | AC89: 0 | AD89: =+IF(INDEX($K89:$O89,1,aux!$AL$1)>0,(O89/INDEX($K89:$O89,1,aux!$AL$1))^(1/($O$3-INDEX($K$3:$O$3,1,aux!$AL$1)))-1,"n.d.") -> n.d. | AE89: =IF(INDEX($K89:$O89,1,aux!$AL$1)>0,(O89-INDEX($K89:$O89,1,aux!$AL$1))/INDEX($K89:$O89,1,aux!$AL$1),"n.d.") -> n.d. | AX89: 10
A90: 1003 | B90: Cevada | C90: 0 | D90: 0 | E90: 0 | F90: 0 | G90: 0 | H90: 0 | I90: 0 | J90: 0 | K90: 0 | L90: 0 | M90: 0 | N90: 0 | O90: 0 | P90: 0 | Q90: 0 | R90: 0 | S90: 0 | U90: =G90-INDEX($C90:$G90,1,aux!$AL$1) -> 0 | V90: 0 | W90: 0 | X90: =+IF(INDEX($C90:$G90,1,aux!$AL$1)>0,(G90/INDEX($C90:$G90,1,aux!$AL$1))^(1/($G$3-INDEX($C$3:$G$3,1,aux!$AL$1)))-1,"n.d.") -> n.d. | Y90: =IF(INDEX($C90:$G90,1,aux!$AL$1)>0,(G90-INDEX($C90:$G90,1,aux!$AL$1))/INDEX($C90:$G90,1,aux!$AL$1),"n.d.") -> n.d. | AA90: =O90-INDEX($K90:$O90,1,aux!$AL$1) -> 0 | AB90: 0 | AC90: 0 | AD90: =+IF(INDEX($K90:$O90,1,aux!$AL$1)>0,(O90/INDEX($K90:$O90,1,aux!$AL$1))^(1/($O$3-INDEX($K$3:$O$3,1,aux!$AL$1)))-1,"n.d.") -> n.d. | AE90: =IF(INDEX($K90:$O90,1,aux!$AL$1)>0,(O90-INDEX($K90:$O90,1,aux!$AL$1))/INDEX($K90:$O90,1,aux!$AL$1),"n.d.") -> n.d. | AX90: 10
A91: 1004 | B91: Aveia | C91: 0 | D91: 0 | E91: 0 | F91: 0 | G91: 0 | H91: 0 | I91: 0 | J91: 0 | K91: 0 | L91: 0 | M91: 0 | N91: 0 | O91: 0 | P91: 0 | Q91: 0 | R91: 0 | S91: 0 | U91: =G91-INDEX($C91:$G91,1,aux!$AL$1) -> 0 | V91: 0 | W91: 0 | X91: =+IF(INDEX($C91:$G91,1,aux!$AL$1)>0,(G91/INDEX($C91:$G91,1,aux!$AL$1))^(1/($G$3-INDEX($C$3:$G$3,1,aux!$AL$1)))-1,"n.d.") -> n.d. | Y91: =IF(INDEX($C91:$G91,1,aux!$AL$1)>0,(G91-INDEX($C91:$G91,1,aux!$AL$1))/INDEX($C91:$G91,1,aux!$AL$1),"n.d.") -> n.d. | AA91: =O91-INDEX($K91:$O91,1,aux!$AL$1) -> 0 | AB91: 0 | AC91: 0 | AD91: =+IF(INDEX($K91:$O91,1,aux!$AL$1)>0,(O91/INDEX($K91:$O91,1,aux!$AL$1))^(1/($O$3-INDEX($K$3:$O$3,1,aux!$AL$1)))-1,"n.d.") -> n.d. | AE91: =IF(INDEX($K91:$O91,1,aux!$AL$1)>0,(O91-INDEX($K91:$O91,1,aux!$AL$1))/INDEX($K91:$O91,1,aux!$AL$1),"n.d.") -> n.d. | AX91: 10
A92: 1005 | B92: Milho | C92: 0 | D92: 0 | E92: 0 | F92: 0 | G92: 0 | H92: 0 | I92: 0 | J92: 0 | K92: 0 | L92: 0 | M92: 0 | N92: 0 | O92: 0 | P92: 0 | Q92: 0 | R92: 0 | S92: 0 | U92: =G92-INDEX($C92:$G92,1,aux!$AL$1) -> 0 | V92: 0 | W92: 0 | X92: =+IF(INDEX($C92:$G92,1,aux!$AL$1)>0,(G92/INDEX($C92:$G92,1,aux!$AL$1))^(1/($G$3-INDEX($C$3:$G$3,1,aux!$AL$1)))-1,"n.d.") -> n.d. | Y92: =IF(INDEX($C92:$G92,1,aux!$AL$1)>0,(G92-INDEX($C92:$G92,1,aux!$AL$1))/INDEX($C92:$G92,1,aux!$AL$1),"n.d.") -> n.d. | AA92: =O92-INDEX($K92:$O92,1,aux!$AL$1) -> 0 | AB92: 0 | AC92: 0 | AD92: =+IF(INDEX($K92:$O92,1,aux!$AL$1)>0,(O92/INDEX($K92:$O92,1,aux!$AL$1))^(1/($O$3-INDEX($K$3:$O$3,1,aux!$AL$1)))-1,"n.d.") -> n.d. | AE92: =IF(INDEX($K92:$O92,1,aux!$AL$1)>0,(O92-INDEX($K92:$O92,1,aux!$AL$1))/INDEX($K92:$O92,1,aux!$AL$1),"n.d.") -> n.d. | AX92: 10
A93: 1006 | B93: Arroz | C93: 0 | D93: 0 | E93: 0 | F93: 0 | G93: 0 | H93: 0 | I93: 0 | J93: 0 | K93: 221363 | L93: 13925 | M93: 0 | N93: 0 | O93: 0 | P93: 47057.6 | Q93: 0.00331196097 | R93: 0.0007136827947 | S93: 47057.6 | U93: =G93-INDEX($C93:$G93,1,aux!$AL$1) -> 0 | V93: 0 | W93: 0 | X93: =+IF(INDEX($C93:$G93,1,aux!$AL$1)>0,(G93/INDEX($C93:$G93,1,aux!$AL$1))^(1/($G$3-INDEX($C$3:$G$3,1,aux!$AL$1)))-1,"n.d.") -> n.d. | Y93: =IF(INDEX($C93:$G93,1,aux!$AL$1)>0,(G93-INDEX($C93:$G93,1,aux!$AL$1))/INDEX($C93:$G93,1,aux!$AL$1),"n.d.") -> n.d. | AA93: =O93-INDEX($K93:$O93,1,aux!$AL$1) -> -221363 | AB93: 0.06139510554 | AC93: -0.01368466982 | AD93: =+IF(INDEX($K93:$O93,1,aux!$AL$1)>0,(O93/INDEX($K93:$O93,1,aux!$AL$1))^(1/($O$3-INDEX($K$3:$O$3,1,aux!$AL$1)))-1,"n.d.") -> -1 | AE93: =IF(INDEX($K93:$O93,1,aux!$AL$1)>0,(O93-INDEX($K93:$O93,1,aux!$AL$1))/INDEX($K93:$O93,1,aux!$AL$1),"n.d.") -> -1 | AX93: 10
A94: 1007 | B94: Sorgo de grão | C94: 0 | D94: 0 | E94: 0 | F94: 0 | G94: 0 | H94: 0 | I94: 0 | J94: 0 | K94: 0 | L94: 0 | M94: 0 | N94: 0 | O94: 0 | P94: 0 | Q94: 0 | R94: 0 | S94: 0 | U94: =G94-INDEX($C94:$G94,1,aux!$AL$1) -> 0 | V94: 0 | W94: 0 | X94: =+IF(INDEX($C94:$G94,1,aux!$AL$1)>0,(G94/INDEX($C94:$G94,1,aux!$AL$1))^(1/($G$3-INDEX($C$3:$G$3,1,aux!$AL$1)))-1,"n.d.") -> n.d. | Y94: =IF(INDEX($C94:$G94,1,aux!$AL$1)>0,(G94-INDEX($C94:$G94,1,aux!$AL$1))/INDEX($C94:$G94,1,aux!$AL$1),"n.d.") -> n.d. | AA94: =O94-INDEX($K94:$O94,1,aux!$AL$1) -> 0 | AB94: 0 | AC94: 0 | AD94: =+IF(INDEX($K94:$O94,1,aux!$AL$1)>0,(O94/INDEX($K94:$O94,1,aux!$AL$1))^(1/($O$3-INDEX($K$3:$O$3,1,aux!$AL$1)))-1,"n.d.") -> n.d. | AE94: =IF(INDEX($K94:$O94,1,aux!$AL$1)>0,(O94-INDEX($K94:$O94,1,aux!$AL$1))/INDEX($K94:$O94,1,aux!$AL$1),"n.d.") -> n.d. | AX94: 10
A95: 1008 | B95: Trigo mourisco, painço e outros cereais | C95: 0 | D95: 0 | E95: 0 | F95: 0 | G95: 0 | H95: 0 | I95: 0 | J95: 0 | K95: 0 | L95: 0 | M95: 0 | N95: 0 | O95: 0 | P95: 0 | Q95: 0 | R95: 0 | S95: 0 | U95: =G95-INDEX($C95:$G95,1,aux!$AL$1) -> 0 | V95: 0 | W95: 0 | X95: =+IF(INDEX($C95:$G95,1,aux!$AL$1)>0,(G95/INDEX($C95:$G95,1,aux!$AL$1))^(1/($G$3-INDEX($C$3:$G$3,1,aux!$AL$1)))-1,"n.d.") -> n.d. | Y95: =IF(INDEX($C95:$G95,1,aux!$AL$1)>0,(G95-INDEX($C95:$G95,1,aux!$AL$1))/INDEX($C95:$G95,1,aux!$AL$1),"n.d.") -> n.d. | AA95: =O95-INDEX($K95:$O95,1,aux!$AL$1) -> 0 | AB95: 0 | AC95: 0 | AD95: =+IF(INDEX($K95:$O95,1,aux!$AL$1)>0,(O95/INDEX($K95:$O95,1,aux!$AL$1))^(1/($O$3-INDEX($K$3:$O$3,1,aux!$AL$1)))-1,"n.d.") -> n.d. | AE95: =IF(INDEX($K95:$O95,1,aux!$AL$1)>0,(O95-INDEX($K95:$O95,1,aux!$AL$1))/INDEX($K95:$O95,1,aux!$AL$1),"n.d.") -> n.d. | AX95: 10
A96: 10SS | B96: Cereais | C96: 0 | D96: 0 | E96: 0 | F96: 0 | G96: 0 | H96: 0 | I96: 0 | J96: 0 | K96: 0 | L96: 0 | M96: 0 | N96: 0 | O96: 0 | P96: 0 | Q96: 0 | R96: 0 | S96: 0 | U96: =G96-INDEX($C96:$G96,1,aux!$AL$1) -> 0 | V96: 0 | W96: 0 | X96: =+IF(INDEX($C96:$G96,1,aux!$AL$1)>0,(G96/INDEX($C96:$G96,1,aux!$AL$1))^(1/($G$3-INDEX($C$3:$G$3,1,aux!$AL$1)))-1,"n.d.") -> n.d. | Y96: =IF(INDEX($C96:$G96,1,aux!$AL$1)>0,(G96-INDEX($C96:$G96,1,aux!$AL$1))/INDEX($C96:$G96,1,aux!$AL$1),"n.d.") -> n.d. | AA96: =O96-INDEX($K96:$O96,1,aux!$AL$1) -> 0 | AB96: 0 | AC96: 0 | AD96: =+IF(INDEX($K96:$O96,1,aux!$AL$1)>0,(O96/INDEX($K96:$O96,1,aux!$AL$1))^(1/($O$3-INDEX($K$3:$O$3,1,aux!$AL$1)))-1,"n.d.") -> n.d. | AE96: =IF(INDEX($K96:$O96,1,aux!$AL$1)>0,(O96-INDEX($K96:$O96,1,aux!$AL$1))/INDEX($K96:$O96,1,aux!$AL$1),"n.d.") -> n.d. | AX96: 10
A97: 1101 | B97: Farinhas de trigo ou trigo/centeio | C97: 0 | D97: 0 | E97: 0 | F97: 0 | G97: 0 | H97: 0 | I97: 0 | J97: 0 | K97: 0 | L97: 0 | M97: 0 | N97: 0 | O97: 0 | P97: 0 | Q97: 0 | R97: 0 | S97: 0 | U97: =G97-INDEX($C97:$G97,1,aux!$AL$1) -> 0 | V97: 0 | W97: 0 | X97: =+IF(INDEX($C97:$G97,1,aux!$AL$1)>0,(G97/INDEX($C97:$G97,1,aux!$AL$1))^(1/($G$3-INDEX($C$3:$G$3,1,aux!$AL$1)))-1,"n.d.") -> n.d. | Y97: =IF(INDEX($C97:$G97,1,aux!$AL$1)>0,(G97-INDEX($C97:$G97,1,aux!$AL$1))/INDEX($C97:$G97,1,aux!$AL$1),"n.d.") -> n.d. | AA97: =O97-INDEX($K97:$O97,1,aux!$AL$1) -> 0 | AB97: 0 | AC97: 0 | AD97: =+IF(INDEX($K97:$O97,1,aux!$AL$1)>0,(O97/INDEX($K97:$O97,1,aux!$AL$1))^(1/($O$3-INDEX($K$3:$O$3,1,aux!$AL$1)))-1,"n.d.") -> n.d. | AE97: =IF(INDEX($K97:$O97,1,aux!$AL$1)>0,(O97-INDEX($K97:$O97,1,aux!$AL$1))/INDEX($K97:$O97,1,aux!$AL$1),"n.d.") -> n.d. | AX97: 11
A98: 1102 | B98: Outras farinhas de cereais | C98: 0 | D98: 0 | E98: 0 | F98: 0 | G98: 0 | H98: 0 | I98: 0 | J98: 0 | K98: 0 | L98: 0 | M98: 0 | N98: 0 | O98: 0 | P98: 0 | Q98: 0 | R98: 0 | S98: 0 | U98: =G98-INDEX($C98:$G98,1,aux!$AL$1) -> 0 | V98: 0 | W98: 0 | X98: =+IF(INDEX($C98:$G98,1,aux!$AL$1)>0,(G98/INDEX($C98:$G98,1,aux!$AL$1))^(1/($G$3-INDEX($C$3:$G$3,1,aux!$AL$1)))-1,"n.d.") -> n.d. | Y98: =IF(INDEX($C98:$G98,1,aux!$AL$1)>0,(G98-INDEX($C98:$G98,1,aux!$AL$1))/INDEX($C98:$G98,1,aux!$AL$1),"n.d.") -> n.d. | AA98: =O98-INDEX($K98:$O98,1,aux!$AL$1) -> 0 | AB98: 0 | AC98: 0 | AD98: =+IF(INDEX($K98:$O98,1,aux!$AL$1)>0,(O98/INDEX($K98:$O98,1,aux!$AL$1))^(1/($O$3-INDEX($K$3:$O$3,1,aux!$AL$1)))-1,"n.d.") -> n.d. | AE98: =IF(INDEX($K98:$O98,1,aux!$AL$1)>0,(O98-INDEX($K98:$O98,1,aux!$AL$1))/INDEX($K98:$O98,1,aux!$AL$1),"n.d.") -> n.d. | AX98: 11
A99: 1103 | B99: Grumos, sêmolas, etc. de cereais | C99: 0 | D99: 0 | E99: 0 | F99: 0 | G99: 0 | H99: 0 | I99: 0 | J99: 0 | K99: 0 | L99: 0 | M99: 0 | N99: 0 | O99: 0 | P99: 0 | Q99: 0 | R99: 0 | S99: 0 | U99: =G99-INDEX($C99:$G99,1,aux!$AL$1) -> 0 | V99: 0 | W99: 0 | X99: =+IF(INDEX($C99:$G99,1,aux!$AL$1)>0,(G99/INDEX($C99:$G99,1,aux!$AL$1))^(1/($G$3-INDEX($C$3:$G$3,1,aux!$AL$1)))-1,"n.d.") -> n.d. | Y99: =IF(INDEX($C99:$G99,1,aux!$AL$1)>0,(G99-INDEX($C99:$G99,1,aux!$AL$1))/INDEX($C99:$G99,1,aux!$AL$1),"n.d.") -> n.d. | AA99: =O99-INDEX($K99:$O99,1,aux!$AL$1) -> 0 | AB99: 0 | AC99: 0 | AD99: =+IF(INDEX($K99:$O99,1,aux!$AL$1)>0,(O99/INDEX($K99:$O99,1,aux!$AL$1))^(1/($O$3-INDEX($K$3:$O$3,1,aux!$AL$1)))-1,"n.d.") -> n.d. | AE99: =IF(INDEX($K99:$O99,1,aux!$AL$1)>0,(O99-INDEX($K99:$O99,1,aux!$AL$1))/INDEX($K99:$O99,1,aux!$AL$1),"n.d.") -> n.d. | AX99: 11
A100: 1104 | B100: Grãos de cereais processados | C100: 0 | D100: 0 | E100: 0 | F100: 0 | G100: 0 | H100: 0 | I100: 0 | J100: 0 | K100: 0 | L100: 0 | M100: 0 | N100: 0 | O100: 0 | P100: 0 | Q100: 0 | R100: 0 | S100: 0 | U100: =G100-INDEX($C100:$G100,1,aux!$AL$1) -> 0 | V100: =IF($U$236<>0,U100/$U$236, "n.d.") -> 0 | W100: =IF($U$320<>0,U100/$U$320, "n.d.") -> 0 | X100: =+IF(INDEX($C100:$G100,1,aux!$AL$1)>0,(G100/INDEX($C100:$G100,1,aux!$AL$1))^(1/($G$3-INDEX($C$3:$G$3,1,aux!$AL$1)))-1,"n.d.") -> n.d. | Y100: =IF(INDEX($C100:$G100,1,aux!$AL$1)>0,(G100-INDEX($C100:$G100,1,aux!$AL$1))/INDEX($C100:$G100,1,aux!$AL$1),"n.d.") -> n.d. | AA100: =O100-INDEX($K100:$O100,1,aux!$AL$1) -> 0 | AB100: =IF($AA$236<>0,AA100/$AA$236, "n.d.") -> 0 | AC100: =IF($AA$320<>0,AA100/$AA$320, "n.d.") -> 0 | AD100: =+IF(INDEX($K100:$O100,1,aux!$AL$1)>0,(O100/INDEX($K100:$O100,1,aux!$AL$1))^(1/($O$3-INDEX($K$3:$O$3,1,aux!$AL$1)))-1,"n.d.") -> n.d. | AE100: =IF(INDEX($K100:$O100,1,aux!$AL$1)>0,(O100-INDEX($K100:$O100,1,aux!$AL$1))/INDEX($K100:$O100,1,aux!$AL$1),"n.d.") -> n.d. | AX100: 11
A101: 1105 | B101: Farinha, sêmola, etc. de batata | C101: 0 | D101: 0 | E101: 0 | F101: 0 | G101: 0 | H101: 0 | I101: 0 | J101: 0 | K101: 0 | L101: 0 | M101: 0 | N101: 0 | O101: 0 | P101: 0 | Q101: 0 | R101: 0 | S101: 0 | U101: =G101-INDEX($C101:$G101,1,aux!$AL$1) -> 0 | V101: 0 | W101: 0 | X101: =+IF(INDEX($C101:$G101,1,aux!$AL$1)>0,(G101/INDEX($C101:$G101,1,aux!$AL$1))^(1/($G$3-INDEX($C$3:$G$3,1,aux!$AL$1)))-1,"n.d.") -> n.d. | Y101: =IF(INDEX($C101:$G101,1,aux!$AL$1)>0,(G101-INDEX($C101:$G101,1,aux!$AL$1))/INDEX($C101:$G101,1,aux!$AL$1),"n.d.") -> n.d. | AA101: =O101-INDEX($K101:$O101,1,aux!$AL$1) -> 0 | AB101: 0 | AC101: 0 | AD101: =+IF(INDEX($K101:$O101,1,aux!$AL$1)>0,(O101/INDEX($K101:$O101,1,aux!$AL$1))^(1/($O$3-INDEX($K$3:$O$3,1,aux!$AL$1)))-1,"n.d.") -> n.d. | AE101: =IF(INDEX($K101:$O101,1,aux!$AL$1)>0,(O101-INDEX($K101:$O101,1,aux!$AL$1))/INDEX($K101:$O101,1,aux!$AL$1),"n.d.") -> n.d. | AX101: 11
A102: 1106 | B102: Farinhas, etc. de leguminosas e outros tubérculos | C102: 0 | D102: 0 | E102: 0 | F102: 0 | G102: 0 | H102: 0 | I102: 0 | J102: 0 | K102: 0 | L102: 0 | M102: 0 | N102: 0 | O102: 0 | P102: 0 | Q102: 0 | R102: 0 | S102: 0 | U102: =G102-INDEX($C102:$G102,1,aux!$AL$1) -> 0 | V102: 0 | W102: 0 | X102: =+IF(INDEX($C102:$G102,1,aux!$AL$1)>0,(G102/INDEX($C102:$G102,1,aux!$AL$1))^(1/($G$3-INDEX($C$3:$G$3,1,aux!$AL$1)))-1,"n.d.") -> n.d. | Y102: =IF(INDEX($C102:$G102,1,aux!$AL$1)>0,(G102-INDEX($C102:$G102,1,aux!$AL$1))/INDEX($C102:$G102,1,aux!$AL$1),"n.d.") -> n.d. | AA102: =O102-INDEX($K102:$O102,1,aux!$AL$1) -> 0 | AB102: 0 | AC102: 0 | AD102: =+IF(INDEX($K102:$O102,1,aux!$AL$1)>0,(O102/INDEX($K102:$O102,1,aux!$AL$1))^(1/($O$3-INDEX($K$3:$O$3,1,aux!$AL$1)))-1,"n.d.") -> n.d. | AE102: =IF(INDEX($K102:$O102,1,aux!$AL$1)>0,(O102-INDEX($K102:$O102,1,aux!$AL$1))/INDEX($K102:$O102,1,aux!$AL$1),"n.d.") -> n.d. | AX102: 11
A103: 1107 | B103: Malte, mesmo torrado | C103: 0 | D103: 0 | E103: 0 | F103: 0 | G103: 0 | H103: 0 | I103: 0 | J103: 0 | K103: 0 | L103: 400206 | M103: 0 | N103: 0 | O103: 0 | P103: 80041.2 | Q103: 0.005633379738 | R103: 0.001213917142 | S103: 80041.2 | U103: =G103-INDEX($C103:$G103,1,aux!$AL$1) -> 0 | V103: 0 | W103: 0 | X103: =+IF(INDEX($C103:$G103,1,aux!$AL$1)>0,(G103/INDEX($C103:$G103,1,aux!$AL$1))^(1/($G$3-INDEX($C$3:$G$3,1,aux!$AL$1)))-1,"n.d.") -> n.d. | Y103: =IF(INDEX($C103:$G103,1,aux!$AL$1)>0,(G103-INDEX($C103:$G103,1,aux!$AL$1))/INDEX($C103:$G103,1,aux!$AL$1),"n.d.") -> n.d. | AA103: =O103-INDEX($K103:$O103,1,aux!$AL$1) -> 0 | AB103: 0 | AC103: 0 | AD103: =+IF(INDEX($K103:$O103,1,aux!$AL$1)>0,(O103/INDEX($K103:$O103,1,aux!$AL$1))^(1/($O$3-INDEX($K$3:$O$3,1,aux!$AL$1)))-1,"n.d.") -> n.d. | AE103: =IF(INDEX($K103:$O103,1,aux!$AL$1)>0,(O103-INDEX($K103:$O103,1,aux!$AL$1))/INDEX($K103:$O103,1,aux!$AL$1),"n.d.") -> n.d. | AX103: =+LEFT(A103,2) -> 11
A104: 1108 | B104: Amidos e féculas; inulina | C104: 0 | D104: 0 | E104: 0 | F104: 0 | G104: 0 | H104: 0 | I104: 0 | J104: 0 | K104: 0 | L104: 0 | M104: 0 | N104: 0 | O104: 0 | P104: 0 | Q104: 0 | R104: 0 | S104: 0 | U104: =G104-INDEX($C104:$G104,1,aux!$AL$1) -> 0 | V104: 0 | W104: 0 | X104: =+IF(INDEX($C104:$G104,1,aux!$AL$1)>0,(G104/INDEX($C104:$G104,1,aux!$AL$1))^(1/($G$3-INDEX($C$3:$G$3,1,aux!$AL$1)))-1,"n.d.") -> n.d. | Y104: =IF(INDEX($C104:$G104,1,aux!$AL$1)>0,(G104-INDEX($C104:$G104,1,aux!$AL$1))/INDEX($C104:$G104,1,aux!$AL$1),"n.d.") -> n.d. | AA104: =O104-INDEX($K104:$O104,1,aux!$AL$1) -> 0 | AB104: 0 | AC104: 0 | AD104: =+IF(INDEX($K104:$O104,1,aux!$AL$1)>0,(O104/INDEX($K104:$O104,1,aux!$AL$1))^(1/($O$3-INDEX($K$3:$O$3,1,aux!$AL$1)))-1,"n.d.") -> n.d. | AE104: =IF(INDEX($K104:$O104,1,aux!$AL$1)>0,(O104-INDEX($K104:$O104,1,aux!$AL$1))/INDEX($K104:$O104,1,aux!$AL$1),"n.d.") -> n.d. | AX104: 11
A105: 1109 | B105: Glúten de trigo, mesmo seco | C105: 0 | D105: 0 | E105: 0 | F105: 0 | G105: 0 | H105: 0 | I105: 0 | J105: 0 | K105: 0 | L105: 0 | M105: 0 | N105: 0 | O105: 0 | P105: 0 | Q105: 0 | R105: 0 | S105: 0 | U105: =G105-INDEX($C105:$G105,1,aux!$AL$1) -> 0 | V105: 0 | W105: 0 | X105: =+IF(INDEX($C105:$G105,1,aux!$AL$1)>0,(G105/INDEX($C105:$G105,1,aux!$AL$1))^(1/($G$3-INDEX($C$3:$G$3,1,aux!$AL$1)))-1,"n.d.") -> n.d. | Y105: =IF(INDEX($C105:$G105,1,aux!$AL$1)>0,(G105-INDEX($C105:$G105,1,aux!$AL$1))/INDEX($C105:$G105,1,aux!$AL$1),"n.d.") -> n.d. | AA105: =O105-INDEX($K105:$O105,1,aux!$AL$1) -> 0 | AB105: 0 | AC105: 0 | AD105: =+IF(INDEX($K105:$O105,1,aux!$AL$1)>0,(O105/INDEX($K105:$O105,1,aux!$AL$1))^(1/($O$3-INDEX($K$3:$O$3,1,aux!$AL$1)))-1,"n.d.") -> n.d. | AE105: =IF(INDEX($K105:$O105,1,aux!$AL$1)>0,(O105-INDEX($K105:$O105,1,aux!$AL$1))/INDEX($K105:$O105,1,aux!$AL$1),"n.d.") -> n.d. | AX105: 11
A106: 11SS | B106: Produtos da indústria de moagem e outros | C106: 0 | D106: 0 | E106: 0 | F106: 0 | G106: 0 | H106: 0 | I106: 0 | J106: 0 | K106: 0 | L106: 0 | M106: 0 | N106: 0 | O106: 0 | P106: 0 | Q106: 0 | R106: 0 | S106: 0 | U106: =G106-INDEX($C106:$G106,1,aux!$AL$1) -> 0 | V106: 0 | W106: 0 | X106: =+IF(INDEX($C106:$G106,1,aux!$AL$1)>0,(G106/INDEX($C106:$G106,1,aux!$AL$1))^(1/($G$3-INDEX($C$3:$G$3,1,aux!$AL$1)))-1,"n.d.") -> n.d. | Y106: =IF(INDEX($C106:$G106,1,aux!$AL$1)>0,(G106-INDEX($C106:$G106,1,aux!$AL$1))/INDEX($C106:$G106,1,aux!$AL$1),"n.d.") -> n.d. | AA106: =O106-INDEX($K106:$O106,1,aux!$AL$1) -> 0 | AB106: 0 | AC106: 0 | AD106: =+IF(INDEX($K106:$O106,1,aux!$AL$1)>0,(O106/INDEX($K106:$O106,1,aux!$AL$1))^(1/($O$3-INDEX($K$3:$O$3,1,aux!$AL$1)))-1,"n.d.") -> n.d. | AE106: =IF(INDEX($K106:$O106,1,aux!$AL$1)>0,(O106-INDEX($K106:$O106,1,aux!$AL$1))/INDEX($K106:$O106,1,aux!$AL$1),"n.d.") -> n.d. | AX106: 11
A107: 1201 | B107: Soja, mesmo triturada | C107: 0 | D107: 0 | E107: 0 | F107: 0 | G107: 0 | H107: 0 | I107: 0 | J107: 0 | K107: 0 | L107: 0 | M107: 0 | N107: 0 | O107: 0 | P107: 0 | Q107: 0 | R107: 0 | S107: 0 | U107: =G107-INDEX($C107:$G107,1,aux!$AL$1) -> 0 | V107: 0 | W107: 0 | X107: =+IF(INDEX($C107:$G107,1,aux!$AL$1)>0,(G107/INDEX($C107:$G107,1,aux!$AL$1))^(1/($G$3-INDEX($C$3:$G$3,1,aux!$AL$1)))-1,"n.d.") -> n.d. | Y107: =IF(INDEX($C107:$G107,1,aux!$AL$1)>0,(G107-INDEX($C107:$G107,1,aux!$AL$1))/INDEX($C107:$G107,1,aux!$AL$1),"n.d.") -> n.d. | AA107: =O107-INDEX($K107:$O107,1,aux!$AL$1) -> 0 | AB107: 0 | AC107: 0 | AD107: =+IF(INDEX($K107:$O107,1,aux!$AL$1)>0,(O107/INDEX($K107:$O107,1,aux!$AL$1))^(1/($O$3-INDEX($K$3:$O$3,1,aux!$AL$1)))-1,"n.d.") -> n.d. | AE107: =IF(INDEX($K107:$O107,1,aux!$AL$1)>0,(O107-INDEX($K107:$O107,1,aux!$AL$1))/INDEX($K107:$O107,1,aux!$AL$1),"n.d.") -> n.d. | AX107: 12
A108: 1202 | B108: Amendoins não torrados | C108: 0 | D108: 0 | E108: 0 | F108: 0 | G108: 0 | H108: 0 | I108: 0 | J108: 0 | K108: 0 | L108: 0 | M108: 0 | N108: 0 | O108: 0 | P108: 0 | Q108: 0 | R108: 0 | S108: 0 | U108: =G108-INDEX($C108:$G108,1,aux!$AL$1) -> 0 | V108: 0 | W108: 0 | X108: =+IF(INDEX($C108:$G108,1,aux!$AL$1)>0,(G108/INDEX($C108:$G108,1,aux!$AL$1))^(1/($G$3-INDEX($C$3:$G$3,1,aux!$AL$1)))-1,"n.d.") -> n.d. | Y108: =IF(INDEX($C108:$G108,1,aux!$AL$1)>0,(G108-INDEX($C108:$G108,1,aux!$AL$1))/INDEX($C108:$G108,1,aux!$AL$1),"n.d.") -> n.d. | AA108: =O108-INDEX($K108:$O108,1,aux!$AL$1) -> 0 | AB108: 0 | AC108: 0 | AD108: =+IF(INDEX($K108:$O108,1,aux!$AL$1)>0,(O108/INDEX($K108:$O108,1,aux!$AL$1))^(1/($O$3-INDEX($K$3:$O$3,1,aux!$AL$1)))-1,"n.d.") -> n.d. | AE108: =IF(INDEX($K108:$O108,1,aux!$AL$1)>0,(O108-INDEX($K108:$O108,1,aux!$AL$1))/INDEX($K108:$O108,1,aux!$AL$1),"n.d.") -> n.d. | AX108: 12
A109: 1203 | B109: Copra | C109: 0 | D109: 0 | E109: 0 | F109: 0 | G109: 0 | H109: 0 | I109: 0 | J109: 0 | K109: 0 | L109: 0 | M109: 0 | N109: 0 | O109: 0 | P109: 0 | Q109: 0 | R109: 0 | S109: 0 | U109: =G109-INDEX($C109:$G109,1,aux!$AL$1) -> 0 | V109: 0 | W109: 0 | X109: =+IF(INDEX($C109:$G109,1,aux!$AL$1)>0,(G109/INDEX($C109:$G109,1,aux!$AL$1))^(1/($G$3-INDEX($C$3:$G$3,1,aux!$AL$1)))-1,"n.d.") -> n.d. | Y109: =IF(INDEX($C109:$G109,1,aux!$AL$1)>0,(G109-INDEX($C109:$G109,1,aux!$AL$1))/INDEX($C109:$G109,1,aux!$AL$1),"n.d.") -> n.d. | AA109: =O109-INDEX($K109:$O109,1,aux!$AL$1) -> 0 | AB109: 0 | AC109: 0 | AD109: =+IF(INDEX($K109:$O109,1,aux!$AL$1)>0,(O109/INDEX($K109:$O109,1,aux!$AL$1))^(1/($O$3-INDEX($K$3:$O$3,1,aux!$AL$1)))-1,"n.d.") -> n.d. | AE109: =IF(INDEX($K109:$O109,1,aux!$AL$1)>0,(O109-INDEX($K109:$O109,1,aux!$AL$1))/INDEX($K109:$O109,1,aux!$AL$1),"n.d.") -> n.d. | AX109: 12
A110: 1204 | B110: Sementes de linho (linhaça) | C110: 0 | D110: 0 | E110: 0 | F110: 0 | G110: 0 | H110: 0 | I110: 0 | J110: 0 | K110: 0 | L110: 0 | M110: 0 | N110: 0 | O110: 0 | P110: 0 | Q110: 0 | R110: 0 | S110: 0 | U110: =G110-INDEX($C110:$G110,1,aux!$AL$1) -> 0 | V110: 0 | W110: 0 | X110: =+IF(INDEX($C110:$G110,1,aux!$AL$1)>0,(G110/INDEX($C110:$G110,1,aux!$AL$1))^(1/($G$3-INDEX($C$3:$G$3,1,aux!$AL$1)))-1,"n.d.") -> n.d. | Y110: =IF(INDEX($C110:$G110,1,aux!$AL$1)>0,(G110-INDEX($C110:$G110,1,aux!$AL$1))/INDEX($C110:$G110,1,aux!$AL$1),"n.d.") -> n.d. | AA110: =O110-INDEX($K110:$O110,1,aux!$AL$1) -> 0 | AB110: 0 | AC110: 0 | AD110: =+IF(INDEX($K110:$O110,1,aux!$AL$1)>0,(O110/INDEX($K110:$O110,1,aux!$AL$1))^(1/($O$3-INDEX($K$3:$O$3,1,aux!$AL$1)))-1,"n.d.") -> n.d. | AE110: =IF(INDEX($K110:$O110,1,aux!$AL$1)>0,(O110-INDEX($K110:$O110,1,aux!$AL$1))/INDEX($K110:$O110,1,aux!$AL$1),"n.d.") -> n.d. | AX110: 12
A111: 1205 | B111: Sementes de nabo silvestre ou de colza | C111: 0 | D111: 0 | E111: 0 | F111: 0 | G111: 0 | H111: 0 | I111: 0 | J111: 0 | K111: 0 | L111: 0 | M111: 0 | N111: 0 | O111: 0 | P111: 0 | Q111: 0 | R111: 0 | S111: 0 | U111: =G111-INDEX($C111:$G111,1,aux!$AL$1) -> 0 | V111: 0 | W111: 0 | X111: =+IF(INDEX($C111:$G111,1,aux!$AL$1)>0,(G111/INDEX($C111:$G111,1,aux!$AL$1))^(1/($G$3-INDEX($C$3:$G$3,1,aux!$AL$1)))-1,"n.d.") -> n.d. | Y111: =IF(INDEX($C111:$G111,1,aux!$AL$1)>0,(G111-INDEX($C111:$G111,1,aux!$AL$1))/INDEX($C111:$G111,1,aux!$AL$1),"n.d.") -> n.d. | AA111: =O111-INDEX($K111:$O111,1,aux!$AL$1) -> 0 | AB111: 0 | AC111: 0 | AD111: =+IF(INDEX($K111:$O111,1,aux!$AL$1)>0,(O111/INDEX($K111:$O111,1,aux!$AL$1))^(1/($O$3-INDEX($K$3:$O$3,1,aux!$AL$1)))-1,"n.d.") -> n.d. | AE111: =IF(INDEX($K111:$O111,1,aux!$AL$1)>0,(O111-INDEX($K111:$O111,1,aux!$AL$1))/INDEX($K111:$O111,1,aux!$AL$1),"n.d.") -> n.d. | AX111: 12
A112: 1206 | B112: Sementes de girassol | C112: 0 | D112: 0 | E112: 0 | F112: 0 | G112: 0 | H112: 0 | I112: 0 | J112: 0 | K112: 0 | L112: 0 | M112: 0 | N112: 0 | O112: 0 | P112: 0 | Q112: 0 | R112: 0 | S112: 0 | U112: =G112-INDEX($C112:$G112,1,aux!$AL$1) -> 0 | V112: 0 | W112: 0 | X112: =+IF(INDEX($C112:$G112,1,aux!$AL$1)>0,(G112/INDEX($C112:$G112,1,aux!$AL$1))^(1/($G$3-INDEX($C$3:$G$3,1,aux!$AL$1)))-1,"n.d.") -> n.d. | Y112: =IF(INDEX($C112:$G112,1,aux!$AL$1)>0,(G112-INDEX($C112:$G112,1,aux!$AL$1))/INDEX($C112:$G112,1,aux!$AL$1),"n.d.") -> n.d. | AA112: =O112-INDEX($K112:$O112,1,aux!$AL$1) -> 0 | AB112: 0 | AC112: 0 | AD112: =+IF(INDEX($K112:$O112,1,aux!$AL$1)>0,(O112/INDEX($K112:$O112,1,aux!$AL$1))^(1/($O$3-INDEX($K$3:$O$3,1,aux!$AL$1)))-1,"n.d.") -> n.d. | AE112: =IF(INDEX($K112:$O112,1,aux!$AL$1)>0,(O112-INDEX($K112:$O112,1,aux!$AL$1))/INDEX($K112:$O112,1,aux!$AL$1),"n.d.") -> n.d. | AX112: 12
A113: 1207 | B113: Sementes e frutos oleaginosos | C113: 0 | D113: 0 | E113: 0 | F113: 0 | G113: 0 | H113: 0 | I113: 0 | J113: 0 | K113: 0 | L113: 0 | M113: 0 | N113: 0 | O113: 0 | P113: 0 | Q113: 0 | R113: 0 | S113: 0 | U113: =G113-INDEX($C113:$G113,1,aux!$AL$1) -> 0 | V113: 0 | W113: 0 | X113: =+IF(INDEX($C113:$G113,1,aux!$AL$1)>0,(G113/INDEX($C113:$G113,1,aux!$AL$1))^(1/($G$3-INDEX($C$3:$G$3,1,aux!$AL$1)))-1,"n.d.") -> n.d. | Y113: =IF(INDEX($C113:$G113,1,aux!$AL$1)>0,(G113-INDEX($C113:$G113,1,aux!$AL$1))/INDEX($C113:$G113,1,aux!$AL$1),"n.d.") -> n.d. | AA113: =O113-INDEX($K113:$O113,1,aux!$AL$1) -> 0 | AB113: 0 | AC113: 0 | AD113: =+IF(INDEX($K113:$O113,1,aux!$AL$1)>0,(O113/INDEX($K113:$O113,1,aux!$AL$1))^(1/($O$3-INDEX($K$3:$O$3,1,aux!$AL$1)))-1,"n.d.") -> n.d. | AE113: =IF(INDEX($K113:$O113,1,aux!$AL$1)>0,(O113-INDEX($K113:$O113,1,aux!$AL$1))/INDEX($K113:$O113,1,aux!$AL$1),"n.d.") -> n.d. | AX113: 12
A114: 1208 | B114: Farinhas de sementes oleaginosas | C114: 0 | D114: 0 | E114: 0 | F114: 0 | G114: 0 | H114: 0 | I114: 0 | J114: 0 | K114: 0 | L114: 0 | M114: 0 | N114: 47 | O114: 0 | P114: 9.4 | Q114: 6.615814048e-07 | R114: 1.425618448e-07 | S114: 9.4 | U114: =G114-INDEX($C114:$G114,1,aux!$AL$1) -> 0 | V114: 0 | W114: 0 | X114: =+IF(INDEX($C114:$G114,1,aux!$AL$1)>0,(G114/INDEX($C114:$G114,1,aux!$AL$1))^(1/($G$3-INDEX($C$3:$G$3,1,aux!$AL$1)))-1,"n.d.") -> n.d. | Y114: =IF(INDEX($C114:$G114,1,aux!$AL$1)>0,(G114-INDEX($C114:$G114,1,aux!$AL$1))/INDEX($C114:$G114,1,aux!$AL$1),"n.d.") -> n.d. | AA114: =O114-INDEX($K114:$O114,1,aux!$AL$1) -> 0 | AB114: 0 | AC114: 0 | AD114: =+IF(INDEX($K114:$O114,1,aux!$AL$1)>0,(O114/INDEX($K114:$O114,1,aux!$AL$1))^(1/($O$3-INDEX($K$3:$O$3,1,aux!$AL$1)))-1,"n.d.") -> n.d. | AE114: =IF(INDEX($K114:$O114,1,aux!$AL$1)>0,(O114-INDEX($K114:$O114,1,aux!$AL$1))/INDEX($K114:$O114,1,aux!$AL$1),"n.d.") -> n.d. | AX114: 12
A115: 1209 | B115: Sementes, frutos e esporos para sementeira | C115: 0 | D115: 0 | E115: 0 | F115: 0 | G115: 0 | H115: 0 | I115: 0 | J115: 0 | K115: 0 | L115: 0 | M115: 0 | N115: 0 | O115: 0 | P115: 0 | Q115: 0 | R115: 0 | S115: 0 | U115: =G115-INDEX($C115:$G115,1,aux!$AL$1) -> 0 | V115: 0 | W115: 0 | X115: =+IF(INDEX($C115:$G115,1,aux!$AL$1)>0,(G115/INDEX($C115:$G115,1,aux!$AL$1))^(1/($G$3-INDEX($C$3:$G$3,1,aux!$AL$1)))-1,"n.d.") -> n.d. | Y115: =IF(INDEX($C115:$G115,1,aux!$AL$1)>0,(G115-INDEX($C115:$G115,1,aux!$AL$1))/INDEX($C115:$G115,1,aux!$AL$1),"n.d.") -> n.d. | AA115: =O115-INDEX($K115:$O115,1,aux!$AL$1) -> 0 | AB115: 0 | AC115: 0 | AD115: =+IF(INDEX($K115:$O115,1,aux!$AL$1)>0,(O115/INDEX($K115:$O115,1,aux!$AL$1))^(1/($O$3-INDEX($K$3:$O$3,1,aux!$AL$1)))-1,"n.d.") -> n.d. | AE115: =IF(INDEX($K115:$O115,1,aux!$AL$1)>0,(O115-INDEX($K115:$O115,1,aux!$AL$1))/INDEX($K115:$O115,1,aux!$AL$1),"n.d.") -> n.d. | AX115: 12
A116: 1210 | B116: Cones de lúpulo, frescos ou secos | C116: 0 | D116: 0 | E116: 0 | F116: 0 | G116: 0 | H116: 0 | I116: 0 | J116: 0 | K116: 0 | L116: 0 | M116: 0 | N116: 0 | O116: 0 | P116: 0 | Q116: 0 | R116: 0 | S116: 0 | U116: =G116-INDEX($C116:$G116,1,aux!$AL$1) -> 0 | V116: 0 | W116: 0 | X116: =+IF(INDEX($C116:$G116,1,aux!$AL$1)>0,(G116/INDEX($C116:$G116,1,aux!$AL$1))^(1/($G$3-INDEX($C$3:$G$3,1,aux!$AL$1)))-1,"n.d.") -> n.d. | Y116: =IF(INDEX($C116:$G116,1,aux!$AL$1)>0,(G116-INDEX($C116:$G116,1,aux!$AL$1))/INDEX($C116:$G116,1,aux!$AL$1),"n.d.") -> n.d. | AA116: =O116-INDEX($K116:$O116,1,aux!$AL$1) -> 0 | AB116: 0 | AC116: 0 | AD116: =+IF(INDEX($K116:$O116,1,aux!$AL$1)>0,(O116/INDEX($K116:$O116,1,aux!$AL$1))^(1/($O$3-INDEX($K$3:$O$3,1,aux!$AL$1)))-1,"n.d.") -> n.d. | AE116: =IF(INDEX($K116:$O116,1,aux!$AL$1)>0,(O116-INDEX($K116:$O116,1,aux!$AL$1))/INDEX($K116:$O116,1,aux!$AL$1),"n.d.") -> n.d. | AX116: 12
A117: 1211 | B117: Plantas, partes de plantas para usos não alimentares | C117: 0 | D117: 0 | E117: 0 | F117: 0 | G117: 0 | H117: 0 | I117: 0 | J117: 0 | K117: 0 | L117: 0 | M117: 0 | N117: 0 | O117: 0 | P117: 0 | Q117: 0 | R117: 0 | S117: 0 | U117: =G117-INDEX($C117:$G117,1,aux!$AL$1) -> 0 | V117: 0 | W117: 0 | X117: =+IF(INDEX($C117:$G117,1,aux!$AL$1)>0,(G117/INDEX($C117:$G117,1,aux!$AL$1))^(1/($G$3-INDEX($C$3:$G$3,1,aux!$AL$1)))-1,"n.d.") -> n.d. | Y117: =IF(INDEX($C117:$G117,1,aux!$AL$1)>0,(G117-INDEX($C117:$G117,1,aux!$AL$1))/INDEX($C117:$G117,1,aux!$AL$1),"n.d.") -> n.d. | AA117: =O117-INDEX($K117:$O117,1,aux!$AL$1) -> 0 | AB117: 0 | AC117: 0 | AD117: =+IF(INDEX($K117:$O117,1,aux!$AL$1)>0,(O117/INDEX($K117:$O117,1,aux!$AL$1))^(1/($O$3-INDEX($K$3:$O$3,1,aux!$AL$1)))-1,"n.d.") -> n.d. | AE117: =IF(INDEX($K117:$O117,1,aux!$AL$1)>0,(O117-INDEX($K117:$O117,1,aux!$AL$1))/INDEX($K117:$O117,1,aux!$AL$1),"n.d.") -> n.d. | AX117: 12
A118: 1212 | B118: Alfarroba, algas, beterraba sacarina, etc. | C118: 0 | D118: 0 | E118: 0 | F118: 0 | G118: 0 | H118: 0 | I118: 0 | J118: 0 | K118: 228000 | L118: 855750 | M118: 0 | N118: 331200 | O118: 669600 | P118: 416910 | Q118: 0.02934254292 | R118: 0.006322921142 | S118: 416910 | U118: =G118-INDEX($C118:$G118,1,aux!$AL$1) -> 0 | V118: 0 | W118: 0 | X118: =+IF(INDEX($C118:$G118,1,aux!$AL$1)>0,(G118/INDEX($C118:$G118,1,aux!$AL$1))^(1/($G$3-INDEX($C$3:$G$3,1,aux!$AL$1)))-1,"n.d.") -> n.d. | Y118: =IF(INDEX($C118:$G118,1,aux!$AL$1)>0,(G118-INDEX($C118:$G118,1,aux!$AL$1))/INDEX($C118:$G118,1,aux!$AL$1),"n.d.") -> n.d. | AA118: =O118-INDEX($K118:$O118,1,aux!$AL$1) -> 441600 | AB118: -0.1224779146 | AC118: 0.02729973027 | AD118: =+IF(INDEX($K118:$O118,1,aux!$AL$1)>0,(O118/INDEX($K118:$O118,1,aux!$AL$1))^(1/($O$3-INDEX($K$3:$O$3,1,aux!$AL$1)))-1,"n.d.") -> 0.3090919417 | AE118: =IF(INDEX($K118:$O118,1,aux!$AL$1)>0,(O118-INDEX($K118:$O118,1,aux!$AL$1))/INDEX($K118:$O118,1,aux!$AL$1),"n.d.") -> 1.936842105 | AX118: 12
A119: 1213 | B119: Palhas e cascas de cereais | C119: 0 | D119: 0 | E119: 0 | F119: 0 | G119: 0 | H119: 0 | I119: 0 | J119: 0 | K119: 0 | L119: 2142 | M119: 1216 | N119: 0 | O119: 0 | P119: 671.6 | Q119: 4.726787994e-05 | R119: 1.018558883e-05 | S119: 671.6 | U119: =G119-INDEX($C119:$G119,1,aux!$AL$1) -> 0 | V119: 0 | W119: 0 | X119: =+IF(INDEX($C119:$G119,1,aux!$AL$1)>0,(G119/INDEX($C119:$G119,1,aux!$AL$1))^(1/($G$3-INDEX($C$3:$G$3,1,aux!$AL$1)))-1,"n.d.") -> n.d. | Y119: =IF(INDEX($C119:$G119,1,aux!$AL$1)>0,(G119-INDEX($C119:$G119,1,aux!$AL$1))/INDEX($C119:$G119,1,aux!$AL$1),"n.d.") -> n.d. | AA119: =O119-INDEX($K119:$O119,1,aux!$AL$1) -> 0 | AB119: 0 | AC119: 0 | AD119: =+IF(INDEX($K119:$O119,1,aux!$AL$1)>0,(O119/INDEX($K119:$O119,1,aux!$AL$1))^(1/($O$3-INDEX($K$3:$O$3,1,aux!$AL$1)))-1,"n.d.") -> n.d. | AE119: =IF(INDEX($K119:$O119,1,aux!$AL$1)>0,(O119-INDEX($K119:$O119,1,aux!$AL$1))/INDEX($K119:$O119,1,aux!$AL$1),"n.d.") -> n.d. | AX119: 12
A120: 1214 | B120: Rutabagas e outros produtos forrageiros | C120: 0 | D120: 0 | E120: 0 | F120: 0 | G120: 0 | H120: 0 | I120: 0 | J120: 0 | K120: 0 | L120: 0 | M120: 0 | N120: 0 | O120: 0 | P120: 0 | Q120: 0 | R120: 0 | S120: 0 | U120: =G120-INDEX($C120:$G120,1,aux!$AL$1) -> 0 | V120: 0 | W120: 0 | X120: =+IF(INDEX($C120:$G120,1,aux!$AL$1)>0,(G120/INDEX($C120:$G120,1,aux!$AL$1))^(1/($G$3-INDEX($C$3:$G$3,1,aux!$AL$1)))-1,"n.d.") -> n.d. | Y120: =IF(INDEX($C120:$G120,1,aux!$AL$1)>0,(G120-INDEX($C120:$G120,1,aux!$AL$1))/INDEX($C120:$G120,1,aux!$AL$1),"n.d.") -> n.d. | AA120: =O120-INDEX($K120:$O120,1,aux!$AL$1) -> 0 | AB120: 0 | AC120: 0 | AD120: =+IF(INDEX($K120:$O120,1,aux!$AL$1)>0,(O120/INDEX($K120:$O120,1,aux!$AL$1))^(1/($O$3-INDEX($K$3:$O$3,1,aux!$AL$1)))-1,"n.d.") -> n.d. | AE120: =IF(INDEX($K120:$O120,1,aux!$AL$1)>0,(O120-INDEX($K120:$O120,1,aux!$AL$1))/INDEX($K120:$O120,1,aux!$AL$1),"n.d.") -> n.d. | AX120: 12
A121: 12SS | B121: Sementes e frutos oleaginosos, etc. | C121: 0 | D121: 0 | E121: 0 | F121: 0 | G121: 0 | H121: 0 | I121: 0 | J121: 0 | K121: 0 | L121: 0 | M121: 0 | N121: 0 | O121: 0 | P121: 0 | Q121: 0 | R121: 0 | S121: 0 | U121: =G121-INDEX($C121:$G121,1,aux!$AL$1) -> 0 | V121: 0 | W121: 0 | X121: =+IF(INDEX($C121:$G121,1,aux!$AL$1)>0,(G121/INDEX($C121:$G121,1,aux!$AL$1))^(1/($G$3-INDEX($C$3:$G$3,1,aux!$AL$1)))-1,"n.d.") -> n.d. | Y121: =IF(INDEX($C121:$G121,1,aux!$AL$1)>0,(G121-INDEX($C121:$G121,1,aux!$AL$1))/INDEX($C121:$G121,1,aux!$AL$1),"n.d.") -> n.d. | AA121: =O121-INDEX($K121:$O121,1,aux!$AL$1) -> 0 | AB121: 0 | AC121: 0 | AD121: =+IF(INDEX($K121:$O121,1,aux!$AL$1)>0,(O121/INDEX($K121:$O121,1,aux!$AL$1))^(1/($O$3-INDEX($K$3:$O$3,1,aux!$AL$1)))-1,"n.d.") -> n.d. | AE121: =IF(INDEX($K121:$O121,1,aux!$AL$1)>0,(O121-INDEX($K121:$O121,1,aux!$AL$1))/INDEX($K121:$O121,1,aux!$AL$1),"n.d.") -> n.d. | AX121: 12
A122: 1302 | B122: Sucos e extratos vegetais, etc. | C122: 0 | D122: 0 | E122: 0 | F122: 0 | G122: 0 | H122: 0 | I122: 0 | J122: 0 | K122: 0 | L122: 0 | M122: 0 | N122: 0 | O122: 0 | P122: 0 | Q122: 0 | R122: 0 | S122: 0 | U122: =G122-INDEX($C122:$G122,1,aux!$AL$1) -> 0 | V122: 0 | W122: 0 | X122: =+IF(INDEX($C122:$G122,1,aux!$AL$1)>0,(G122/INDEX($C122:$G122,1,aux!$AL$1))^(1/($G$3-INDEX($C$3:$G$3,1,aux!$AL$1)))-1,"n.d.") -> n.d. | Y122: =IF(INDEX($C122:$G122,1,aux!$AL$1)>0,(G122-INDEX($C122:$G122,1,aux!$AL$1))/INDEX($C122:$G122,1,aux!$AL$1),"n.d.") -> n.d. | AA122: =O122-INDEX($K122:$O122,1,aux!$AL$1) -> 0 | AB122: 0 | AC122: 0 | AD122: =+IF(INDEX($K122:$O122,1,aux!$AL$1)>0,(O122/INDEX($K122:$O122,1,aux!$AL$1))^(1/($O$3-INDEX($K$3:$O$3,1,aux!$AL$1)))-1,"n.d.") -> n.d. | AE122: =IF(INDEX($K122:$O122,1,aux!$AL$1)>0,(O122-INDEX($K122:$O122,1,aux!$AL$1))/INDEX($K122:$O122,1,aux!$AL$1),"n.d.") -> n.d. | AX122: 13
A123: 13SS | B123: Gomas, resinas e outros sucos e extratos vegetais | C123: 0 | D123: 0 | E123: 0 | F123: 0 | G123: 0 | H123: 0 | I123: 0 | J123: 0 | K123: 0 | L123: 0 | M123: 0 | N123: 0 | O123: 0 | P123: 0 | Q123: 0 | R123: 0 | S123: 0 | U123: =G123-INDEX($C123:$G123,1,aux!$AL$1) -> 0 | V123: 0 | W123: 0 | X123: =+IF(INDEX($C123:$G123,1,aux!$AL$1)>0,(G123/INDEX($C123:$G123,1,aux!$AL$1))^(1/($G$3-INDEX($C$3:$G$3,1,aux!$AL$1)))-1,"n.d.") -> n.d. | Y123: =IF(INDEX($C123:$G123,1,aux!$AL$1)>0,(G123-INDEX($C123:$G123,1,aux!$AL$1))/INDEX($C123:$G123,1,aux!$AL$1),"n.d.") -> n.d. | AA123: =O123-INDEX($K123:$O123,1,aux!$AL$1) -> 0 | AB123: 0 | AC123: 0 | AD123: =+IF(INDEX($K123:$O123,1,aux!$AL$1)>0,(O123/INDEX($K123:$O123,1,aux!$AL$1))^(1/($O$3-INDEX($K$3:$O$3,1,aux!$AL$1)))-1,"n.d.") -> n.d. | AE123: =IF(INDEX($K123:$O123,1,aux!$AL$1)>0,(O123-INDEX($K123:$O123,1,aux!$AL$1))/INDEX($K123:$O123,1,aux!$AL$1),"n.d.") -> n.d. | AX123: 13
A124: 1401 | B124: Matérias vegetais utilizadas em cestaria | C124: 0 | D124: 0 | E124: 0 | F124: 0 | G124: 0 | H124: 0 | I124: 0 | J124: 0 | K124: 0 | L124: 0 | M124: 0 | N124: 0 | O124: 0 | P124: 0 | Q124: 0 | R124: 0 | S124: 0 | U124: =G124-INDEX($C124:$G124,1,aux!$AL$1) -> 0 | V124: 0 | W124: 0 | X124: =+IF(INDEX($C124:$G124,1,aux!$AL$1)>0,(G124/INDEX($C124:$G124,1,aux!$AL$1))^(1/($G$3-INDEX($C$3:$G$3,1,aux!$AL$1)))-1,"n.d.") -> n.d. | Y124: =IF(INDEX($C124:$G124,1,aux!$AL$1)>0,(G124-INDEX($C124:$G124,1,aux!$AL$1))/INDEX($C124:$G124,1,aux!$AL$1),"n.d.") -> n.d. | AA124: =O124-INDEX($K124:$O124,1,aux!$AL$1) -> 0 | AB124: 0 | AC124: 0 | AD124: =+IF(INDEX($K124:$O124,1,aux!$AL$1)>0,(O124/INDEX($K124:$O124,1,aux!$AL$1))^(1/($O$3-INDEX($K$3:$O$3,1,aux!$AL$1)))-1,"n.d.") -> n.d. | AE124: =IF(INDEX($K124:$O124,1,aux!$AL$1)>0,(O124-INDEX($K124:$O124,1,aux!$AL$1))/INDEX($K124:$O124,1,aux!$AL$1),"n.d.") -> n.d. | AX124: 14
A125: 1404 | B125: Outros produtos vegetais | C125: 0 | D125: 0 | E125: 0 | F125: 0 | G125: 0 | H125: 0 | I125: 0 | J125: 0 | K125: 0 | L125: 0 | M125: 0 | N125: 0 | O125: 0 | P125: 0 | Q125: 0 | R125: 0 | S125: 0 | U125: =G125-INDEX($C125:$G125,1,aux!$AL$1) -> 0 | V125: 0 | W125: 0 | X125: =+IF(INDEX($C125:$G125,1,aux!$AL$1)>0,(G125/INDEX($C125:$G125,1,aux!$AL$1))^(1/($G$3-INDEX($C$3:$G$3,1,aux!$AL$1)))-1,"n.d.") -> n.d. | Y125: =IF(INDEX($C125:$G125,1,aux!$AL$1)>0,(G125-INDEX($C125:$G125,1,aux!$AL$1))/INDEX($C125:$G125,1,aux!$AL$1),"n.d.") -> n.d. | AA125: =O125-INDEX($K125:$O125,1,aux!$AL$1) -> 0 | AB125: 0 | AC125: 0 | AD125: =+IF(INDEX($K125:$O125,1,aux!$AL$1)>0,(O125/INDEX($K125:$O125,1,aux!$AL$1))^(1/($O$3-INDEX($K$3:$O$3,1,aux!$AL$1)))-1,"n.d.") -> n.d. | AE125: =IF(INDEX($K125:$O125,1,aux!$AL$1)>0,(O125-INDEX($K125:$O125,1,aux!$AL$1))/INDEX($K125:$O125,1,aux!$AL$1),"n.d.") -> n.d. | AX125: 14
A126: 14SS | B126: Matérias para entrançar e outros | C126: 0 | D126: 0 | E126: 0 | F126: 0 | G126: 0 | H126: 0 | I126: 0 | J126: 0 | K126: 0 | L126: 0 | M126: 0 | N126: 0 | O126: 0 | P126: 0 | Q126: 0 | R126: 0 | S126: 0 | U126: =G126-INDEX($C126:$G126,1,aux!$AL$1) -> 0 | V126: 0 | W126: 0 | X126: =+IF(INDEX($C126:$G126,1,aux!$AL$1)>0,(G126/INDEX($C126:$G126,1,aux!$AL$1))^(1/($G$3-INDEX($C$3:$G$3,1,aux!$AL$1)))-1,"n.d.") -> n.d. | Y126: =IF(INDEX($C126:$G126,1,aux!$AL$1)>0,(G126-INDEX($C126:$G126,1,aux!$AL$1))/INDEX($C126:$G126,1,aux!$AL$1),"n.d.") -> n.d. | AA126: =O126-INDEX($K126:$O126,1,aux!$AL$1) -> 0 | AB126: 0 | AC126: 0 | AD126: =+IF(INDEX($K126:$O126,1,aux!$AL$1)>0,(O126/INDEX($K126:$O126,1,aux!$AL$1))^(1/($O$3-INDEX($K$3:$O$3,1,aux!$AL$1)))-1,"n.d.") -> n.d. | AE126: =IF(INDEX($K126:$O126,1,aux!$AL$1)>0,(O126-INDEX($K126:$O126,1,aux!$AL$1))/INDEX($K126:$O126,1,aux!$AL$1),"n.d.") -> n.d. | AX126: 14
A127: 1501 | B127: Gorduras de suínos e aves | C127: 0 | D127: 0 | E127: 0 | F127: 0 | G127: 0 | H127: 0 | I127: 0 | J127: 0 | K127: 0 | L127: 0 | M127: 0 | N127: 0 | O127: 0 | P127: 0 | Q127: 0 | R127: 0 | S127: 0 | U127: =G127-INDEX($C127:$G127,1,aux!$AL$1) -> 0 | V127: 0 | W127: 0 | X127: =+IF(INDEX($C127:$G127,1,aux!$AL$1)>0,(G127/INDEX($C127:$G127,1,aux!$AL$1))^(1/($G$3-INDEX($C$3:$G$3,1,aux!$AL$1)))-1,"n.d.") -> n.d. | Y127: =IF(INDEX($C127:$G127,1,aux!$AL$1)>0,(G127-INDEX($C127:$G127,1,aux!$AL$1))/INDEX($C127:$G127,1,aux!$AL$1),"n.d.") -> n.d. | AA127: =O127-INDEX($K127:$O127,1,aux!$AL$1) -> 0 | AB127: 0 | AC127: 0 | AD127: =+IF(INDEX($K127:$O127,1,aux!$AL$1)>0,(O127/INDEX($K127:$O127,1,aux!$AL$1))^(1/($O$3-INDEX($K$3:$O$3,1,aux!$AL$1)))-1,"n.d.") -> n.d. | AE127: =IF(INDEX($K127:$O127,1,aux!$AL$1)>0,(O127-INDEX($K127:$O127,1,aux!$AL$1))/INDEX($K127:$O127,1,aux!$AL$1),"n.d.") -> n.d. | AX127: 15
A128: 1502 | B128: Gorduras de bovinos, ovinos ou caprinos | C128: 0 | D128: 0 | E128: 0 | F128: 0 | G128: 0 | H128: 0 | I128: 0 | J128: 0 | K128: 0 | L128: 0 | M128: 0 | N128: 0 | O128: 0 | P128: 0 | Q128: 0 | R128: 0 | S128: 0 | U128: =G128-INDEX($C128:$G128,1,aux!$AL$1) -> 0 | V128: 0 | W128: 0 | X128: =+IF(INDEX($C128:$G128,1,aux!$AL$1)>0,(G128/INDEX($C128:$G128,1,aux!$AL$1))^(1/($G$3-INDEX($C$3:$G$3,1,aux!$AL$1)))-1,"n.d.") -> n.d. | Y128: =IF(INDEX($C128:$G128,1,aux!$AL$1)>0,(G128-INDEX($C128:$G128,1,aux!$AL$1))/INDEX($C128:$G128,1,aux!$AL$1),"n.d.") -> n.d. | AA128: =O128-INDEX($K128:$O128,1,aux!$AL$1) -> 0 | AB128: 0 | AC128: 0 | AD128: =+IF(INDEX($K128:$O128,1,aux!$AL$1)>0,(O128/INDEX($K128:$O128,1,aux!$AL$1))^(1/($O$3-INDEX($K$3:$O$3,1,aux!$AL$1)))-1,"n.d.") -> n.d. | AE128: =IF(INDEX($K128:$O128,1,aux!$AL$1)>0,(O128-INDEX($K128:$O128,1,aux!$AL$1))/INDEX($K128:$O128,1,aux!$AL$1),"n.d.") -> n.d. | AX128: 15
A129: 1503 | B129: Estearina solar, óleo de banha de porco, etc. | C129: 0 | D129: 0 | E129: 0 | F129: 0 | G129: 0 | H129: 0 | I129: 0 | J129: 0 | K129: 0 | L129: 0 | M129: 0 | N129: 0 | O129: 0 | P129: 0 | Q129: 0 | R129: 0 | S129: 0 | U129: =G129-INDEX($C129:$G129,1,aux!$AL$1) -> 0 | V129: 0 | W129: 0 | X129: =+IF(INDEX($C129:$G129,1,aux!$AL$1)>0,(G129/INDEX($C129:$G129,1,aux!$AL$1))^(1/($G$3-INDEX($C$3:$G$3,1,aux!$AL$1)))-1,"n.d.") -> n.d. | Y129: =IF(INDEX($C129:$G129,1,aux!$AL$1)>0,(G129-INDEX($C129:$G129,1,aux!$AL$1))/INDEX($C129:$G129,1,aux!$AL$1),"n.d.") -> n.d. | AA129: =O129-INDEX($K129:$O129,1,aux!$AL$1) -> 0 | AB129: 0 | AC129: 0 | AD129: =+IF(INDEX($K129:$O129,1,aux!$AL$1)>0,(O129/INDEX($K129:$O129,1,aux!$AL$1))^(1/($O$3-INDEX($K$3:$O$3,1,aux!$AL$1)))-1,"n.d.") -> n.d. | AE129: =IF(INDEX($K129:$O129,1,aux!$AL$1)>0,(O129-INDEX($K129:$O129,1,aux!$AL$1))/INDEX($K129:$O129,1,aux!$AL$1),"n.d.") -> n.d. | AX129: 15
A130: 1504 | B130: Gorduras e óleos de peixes,etc. | C130: 0 | D130: 0 | E130: 0 | F130: 0 | G130: 0 | H130: 0 | I130: 0 | J130: 0 | K130: 0 | L130: 0 | M130: 0 | N130: 0 | O130: 0 | P130: 0 | Q130: 0 | R130: 0 | S130: 0 | U130: =G130-INDEX($C130:$G130,1,aux!$AL$1) -> 0 | V130: 0 | W130: 0 | X130: =+IF(INDEX($C130:$G130,1,aux!$AL$1)>0,(G130/INDEX($C130:$G130,1,aux!$AL$1))^(1/($G$3-INDEX($C$3:$G$3,1,aux!$AL$1)))-1,"n.d.") -> n.d. | Y130: =IF(INDEX($C130:$G130,1,aux!$AL$1)>0,(G130-INDEX($C130:$G130,1,aux!$AL$1))/INDEX($C130:$G130,1,aux!$AL$1),"n.d.") -> n.d. | AA130: =O130-INDEX($K130:$O130,1,aux!$AL$1) -> 0 | AB130: 0 | AC130: 0 | AD130: =+IF(INDEX($K130:$O130,1,aux!$AL$1)>0,(O130/INDEX($K130:$O130,1,aux!$AL$1))^(1/($O$3-INDEX($K$3:$O$3,1,aux!$AL$1)))-1,"n.d.") -> n.d. | AE130: =IF(INDEX($K130:$O130,1,aux!$AL$1)>0,(O130-INDEX($K130:$O130,1,aux!$AL$1))/INDEX($K130:$O130,1,aux!$AL$1),"n.d.") -> n.d. | AX130: 15
A131: 1505 | B131: Suarda e derivados, incluindo lanolina | C131: 0 | D131: 0 | E131: 0 | F131: 0 | G131: 0 | H131: 0 | I131: 0 | J131: 0 | K131: 0 | L131: 0 | M131: 0 | N131: 0 | O131: 0 | P131: 0 | Q131: 0 | R131: 0 | S131: 0 | U131: =G131-INDEX($C131:$G131,1,aux!$AL$1) -> 0 | V131: 0 | W131: 0 | X131: =+IF(INDEX($C131:$G131,1,aux!$AL$1)>0,(G131/INDEX($C131:$G131,1,aux!$AL$1))^(1/($G$3-INDEX($C$3:$G$3,1,aux!$AL$1)))-1,"n.d.") -> n.d. | Y131: =IF(INDEX($C131:$G131,1,aux!$AL$1)>0,(G131-INDEX($C131:$G131,1,aux!$AL$1))/INDEX($C131:$G131,1,aux!$AL$1),"n.d.") -> n.d. | AA131: =O131-INDEX($K131:$O131,1,aux!$AL$1) -> 0 | AB131: 0 | AC131: 0 | AD131: =+IF(INDEX($K131:$O131,1,aux!$AL$1)>0,(O131/INDEX($K131:$O131,1,aux!$AL$1))^(1/($O$3-INDEX($K$3:$O$3,1,aux!$AL$1)))-1,"n.d.") -> n.d. | AE131: =IF(INDEX($K131:$O131,1,aux!$AL$1)>0,(O131-INDEX($K131:$O131,1,aux!$AL$1))/INDEX($K131:$O131,1,aux!$AL$1),"n.d.") -> n.d. | AX131: 15
A132: 1506 | B132: Outras gorduras e óleos animais e suas frações | C132: 0 | D132: 0 | E132: 0 | F132: 0 | G132: 0 | H132: 0 | I132: 0 | J132: 0 | K132: 0 | L132: 0 | M132: 0 | N132: 0 | O132: 0 | P132: 0 | Q132: 0 | R132: 0 | S132: 0 | U132: =G132-INDEX($C132:$G132,1,aux!$AL$1) -> 0 | V132: =IF($U$236<>0,U132/$U$236, "n.d.") -> 0 | W132: =IF($U$320<>0,U132/$U$320, "n.d.") -> 0 | X132: =+IF(INDEX($C132:$G132,1,aux!$AL$1)>0,(G132/INDEX($C132:$G132,1,aux!$AL$1))^(1/($G$3-INDEX($C$3:$G$3,1,aux!$AL$1)))-1,"n.d.") -> n.d. | Y132: =IF(INDEX($C132:$G132,1,aux!$AL$1)>0,(G132-INDEX($C132:$G132,1,aux!$AL$1))/INDEX($C132:$G132,1,aux!$AL$1),"n.d.") -> n.d. | AA132: =O132-INDEX($K132:$O132,1,aux!$AL$1) -> 0 | AB132: =IF($AA$236<>0,AA132/$AA$236, "n.d.") -> 0 | AC132: =IF($AA$320<>0,AA132/$AA$320, "n.d.") -> 0 | AD132: =+IF(INDEX($K132:$O132,1,aux!$AL$1)>0,(O132/INDEX($K132:$O132,1,aux!$AL$1))^(1/($O$3-INDEX($K$3:$O$3,1,aux!$AL$1)))-1,"n.d.") -> n.d. | AE132: =IF(INDEX($K132:$O132,1,aux!$AL$1)>0,(O132-INDEX($K132:$O132,1,aux!$AL$1))/INDEX($K132:$O132,1,aux!$AL$1),"n.d.") -> n.d. | AX132: 15
A133: 1507 | B133: Óleo de soja e suas frações | C133: 0 | D133: 0 | E133: 0 | F133: 0 | G133: 0 | H133: 0 | I133: 0 | J133: 0 | K133: 0 | L133: 543655 | M133: 2428000 | N133: 4738169 | O133: 11506633 | P133: 3843291.4 | Q133: 0.270494694 | R133: 0.05828794811 | S133: 3843291.4 | U133: =G133-INDEX($C133:$G133,1,aux!$AL$1) -> 0 | V133: 0 | W133: 0 | X133: =+IF(INDEX($C133:$G133,1,aux!$AL$1)>0,(G133/INDEX($C133:$G133,1,aux!$AL$1))^(1/($G$3-INDEX($C$3:$G$3,1,aux!$AL$1)))-1,"n.d.") -> n.d. | Y133: =IF(INDEX($C133:$G133,1,aux!$AL$1)>0,(G133-INDEX($C133:$G133,1,aux!$AL$1))/INDEX($C133:$G133,1,aux!$AL$1),"n.d.") -> n.d. | AA133: =O133-INDEX($K133:$O133,1,aux!$AL$1) -> 11506633 | AB133: -3.191368691 | AC133: 0.711340528 | AD133: =+IF(INDEX($K133:$O133,1,aux!$AL$1)>0,(O133/INDEX($K133:$O133,1,aux!$AL$1))^(1/($O$3-INDEX($K$3:$O$3,1,aux!$AL$1)))-1,"n.d.") -> n.d. | AE133: =IF(INDEX($K133:$O133,1,aux!$AL$1)>0,(O133-INDEX($K133:$O133,1,aux!$AL$1))/INDEX($K133:$O133,1,aux!$AL$1),"n.d.") -> n.d. | AX133: 15
A134: 1508 | B134: Óleo de amendoim e suas frações | C134: 0 | D134: 0 | E134: 0 | F134: 0 | G134: 0 | H134: 0 | I134: 0 | J134: 0 | K134: 0 | L134: 0 | M134: 0 | N134: 0 | O134: 0 | P134: 0 | Q134: 0 | R134: 0 | S134: 0 | U134: =G134-INDEX($C134:$G134,1,aux!$AL$1) -> 0 | V134: 0 | W134: 0 | X134: =+IF(INDEX($C134:$G134,1,aux!$AL$1)>0,(G134/INDEX($C134:$G134,1,aux!$AL$1))^(1/($G$3-INDEX($C$3:$G$3,1,aux!$AL$1)))-1,"n.d.") -> n.d. | Y134: =IF(INDEX($C134:$G134,1,aux!$AL$1)>0,(G134-INDEX($C134:$G134,1,aux!$AL$1))/INDEX($C134:$G134,1,aux!$AL$1),"n.d.") -> n.d. | AA134: =O134-INDEX($K134:$O134,1,aux!$AL$1) -> 0 | AB134: 0 | AC134: 0 | AD134: =+IF(INDEX($K134:$O134,1,aux!$AL$1)>0,(O134/INDEX($K134:$O134,1,aux!$AL$1))^(1/($O$3-INDEX($K$3:$O$3,1,aux!$AL$1)))-1,"n.d.") -> n.d. | AE134: =IF(INDEX($K134:$O134,1,aux!$AL$1)>0,(O134-INDEX($K134:$O134,1,aux!$AL$1))/INDEX($K134:$O134,1,aux!$AL$1),"n.d.") -> n.d. | AX134: 15
